Workbook

Sheet Assumptions
B4: Assumptions and basic philosophy
B9: General: | P9: Requirements:
P15: Model terminology:
Q17: Input cells: | R17: Valid | T17: Not valid
Q19: Output cells:
B22: Uncertainty: | P22: Key input assumptions:
P24: Standard discount rate: 8%
P25: Investment horizon: 25 years
B29: Measure correlations:
B37: Note: A more thorough description of the underlying assumptions and a comprehensive user manual can be found in the report (Chapter 3.4 and Appendix A respectively)
T44: Version 1.0: Normal mode

Sheet Dashboard
B4: Energy Efficiency Appraisal Tool
B8: Input data | G8: Output data | I8: Before / Optimal / All | L8: Reference values | S8: Instructions
C10: Select vessel type: | E10: Dry bulk carriers | H10: EEOI [g CO2/ton nm]: | I10: =IFERROR(ROUND(MAX(Calc!$L$8:$L$27),1),"-")& " / "& IFERROR(ROUND(VLOOKUP(0,Calc!$AM$7:$AQ$28,4,TRUE),1),"-")& " / "& IFERROR(ROUND(MIN(Calc!S8:S27),1),"-") -> 7,6 / 7,2 / 6,6 | M10: TW [million tons x nm/year]: | N10: =IFERROR(Calc!K2/10^6,"-") -> 2238.4022 | S10: 1. Select vessel type/size from the drop
C12: Select vessel size: | E12: 100000-199999 Dwt | H12: EEDI [g CO2/ton nm]: | I12: =IF(Calc!K3=-1,"No EEDI required", IFERROR(ROUND(MAX(Calc!$K$8:$K$27),1),"-")& " / "& IFERROR(ROUND(VLOOKUP(0,Calc!$AM$7:$AQ$28,3,TRUE),1),"-")& " / "& IFERROR(ROUND(MIN(Calc!R8:R27),1),"-")) -> 2,9 / 2,8 / 2,6 | M12: Sailed distance [nm/year]: | N12: =IFERROR(Calc!Q3,"-") -> 99484.54223 | S12: down menus and enter fuel price
C14: Fuel price [$/ton]: | E14: 600 | H14: Fuel [tonnes/year]: | I14: =IFERROR(ROUND(MAX(Calc!$H$8:$H$27),0),"-")& " / "& IFERROR(ROUND(VLOOKUP(0,Calc!$AM$7:$AQ$28,5,TRUE),0),"-")& " / "& IFERROR(ROUND(MIN(Calc!O8:O27),0),"-") -> 5407 / 5109 / 4663 | S14: 2. Apply measures from the drop down
S16: menus or measure buttons.
B17: Cost abatement curves | S17: 3. Press "Calculate" to run the model
S18: Measure | T18: Include?
E19: Cost efficiency [$/ton CO2] and Δ EEDI | K19: Cost efficiency [$/ton CO2] and Δ EEOI | R19: =VLOOKUP(S19,List!$C$92:$H$108,6,FALSE) -> Kite | S19: =List!C92 -> Kite | T19: Yes | U19: =IF(VLOOKUP(R19,Startup!$C$12:$M$32,4,FALSE)="Yes",Dashboard!$T19,"No") -> Yes
R20: =VLOOKUP(S20,List!$C$92:$H$108,6,FALSE) -> Fixed sails or wings | S20: =List!C93 -> Fixed sails or wings | T20: No | U20: =IF(VLOOKUP(R20,Startup!$C$12:$M$32,4,FALSE)="Yes",Dashboard!$T20,"No") -> No
R21: =VLOOKUP(S21,List!$C$92:$H$108,6,FALSE) -> Solar Panel | S21: =List!C94 -> Solar Panel | T21: Yes | U21: =IF(VLOOKUP(R21,Startup!$C$12:$M$32,4,FALSE)="Yes",Dashboard!$T21,"No") -> Yes
R22: =VLOOKUP(S22,List!$C$92:$H$108,6,FALSE) -> Electronic engine control | S22: =List!C95 -> Electronic engine control | T22: No | U22: =IF(VLOOKUP(R22,Startup!$C$12:$M$32,4,FALSE)="Yes",Dashboard!$T22,"No") -> No
R23: =VLOOKUP(S23,List!$C$92:$H$108,6,FALSE) -> Waste heat recovery | S23: =List!C96 -> Waste heat recovery | T23: Yes | U23: =IF(VLOOKUP(R23,Startup!$C$12:$M$32,4,FALSE)="Yes",Dashboard!$T23,"No") -> Yes
R24: =VLOOKUP(S24,List!$C$92:$H$108,6,FALSE) -> Hull coating condition | S24: =List!C97 -> Hull coating condition | T24: Yes | U24: =IF(VLOOKUP(R24,Startup!$C$12:$M$32,4,FALSE)="Yes",Dashboard!$T24,"No") -> Yes
R25: =VLOOKUP(S25,List!$C$92:$H$108,6,FALSE) -> Air cavity lubrication | S25: =List!C98 -> Air cavity lubrication | T25: Yes | U25: =IF(VLOOKUP(R25,Startup!$C$12:$M$32,4,FALSE)="Yes",Dashboard!$T25,"No") -> Yes
R26: =VLOOKUP(S26,List!$C$92:$H$108,6,FALSE) -> Contra-rotating propeller | S26: =List!C99 -> Contra-rotating propeller | T26: Yes | U26: =IF(VLOOKUP(R26,Startup!$C$12:$M$32,4,FALSE)="Yes",Dashboard!$T26,"No") -> Yes
R27: =VLOOKUP(S27,List!$C$92:$H$108,6,FALSE) -> Propulsion efficiency devices | S27: =List!C100 -> Propulsion efficiency devices | T27: Yes | U27: =IF(VLOOKUP(R27,Startup!$C$12:$M$32,4,FALSE)="Yes",Dashboard!$T27,"No") -> Yes
R28: =VLOOKUP(S28,List!$C$92:$H$108,6,FALSE) -> Frequency converters | S28: =List!C101 -> Frequency converters | T28: Yes | U28: =IF(VLOOKUP(R28,Startup!$C$12:$M$32,4,FALSE)="Yes",Dashboard!$T28,"No") -> Yes
R29: =VLOOKUP(S29,List!$C$92:$H$108,6,FALSE) -> EGB on AE | S29: =List!C102 -> EGB on AE | T29: Yes | U29: =IF(VLOOKUP(R29,Startup!$C$12:$M$32,4,FALSE)="Yes",Dashboard!$T29,"No") -> Yes
R30: =VLOOKUP(S30,List!$C$92:$H$108,6,FALSE) -> Light systems | S30: =List!C103 -> Light systems | T30: Yes | U30: =IF(VLOOKUP(R30,Startup!$C$12:$M$32,4,FALSE)="Yes",Dashboard!$T30,"No") -> Yes
R31: =VLOOKUP(S31,List!$C$92:$H$108,6,FALSE) -> Trim&draft optimisation | S31: =List!C104 -> Trim&draft optimisation | T31: Yes | U31: =IF(VLOOKUP(R31,Startup!$C$12:$M$32,4,FALSE)="Yes",Dashboard!$T31,"No") -> Yes
R32: =VLOOKUP(S32,List!$C$92:$H$108,6,FALSE) -> Weather routing | S32: =List!C105 -> Weather routing | T32: Yes | U32: =IF(VLOOKUP(R32,Startup!$C$12:$M$32,4,FALSE)="Yes",Dashboard!$T32,"No") -> Yes
R33: =VLOOKUP(S33,List!$C$92:$H$108,6,FALSE) -> Voyage execution | S33: =List!C106 -> Voyage execution | T33: Yes | U33: =IF(VLOOKUP(R33,Startup!$C$12:$M$32,4,FALSE)="Yes",Dashboard!$T33,"No") -> Yes
R34: =VLOOKUP(S34,List!$C$92:$H$108,6,FALSE) -> Steam plant op impr | S34: =List!C107 -> Steam plant op impr | T34: No | U34: =IF(VLOOKUP(R34,Startup!$C$12:$M$32,4,FALSE)="Yes",Dashboard!$T34,"No") -> No
R35: =VLOOKUP(S35,List!$C$92:$H$108,6,FALSE) -> Propeller efficiency | S35: =List!C108 -> Propeller efficiency | T35: Yes | U35: =IF(VLOOKUP(R35,Startup!$C$12:$M$32,4,FALSE)="Yes",Dashboard!$T35,"No") -> Yes
B37: Abatement summary
B38: ID | C38: Measure | F38: Uncertainty | G38: Type of measure | H38: Cost efficiency | I38: Fuel reduction | J38: Δ EEDI | K38: Δ EEOI | L38: CAPEX | M38: Yearly savings | N38: Yearly op. costs | O38: Payback period
F39: [%] | G39: [T/O] | H39: [$/ton CO2] | I39: [%] | J39: [%] | K39: [%] | L39: [$] | M39: [$] | N39: [$] | O39: [years]
B40: 1 | C40: =IF(Startup!F13="No","",VLOOKUP(Startup!C13,List!$B$92:$C$108,2,FALSE)) -> Trim&draft optimisation | F40: =IF($C40="","",VLOOKUP($C40,List!$C$91:$Z$108,7,FALSE)) -> < 10 % | G40: =IF($C40="","",VLOOKUP($C40,List!$C$91:$Z$108,4,FALSE)) -> O | H40: =IF($C40="","",VLOOKUP($B40,Calc!$B$7:$DG$27,27,FALSE)) -> -75.04896767 | I40: =IF($C40="","",VLOOKUP($B40,Calc!$B$7:$DG$27,29,FALSE)) -> 0.004599398588 | J40: =IF($C40="","",VLOOKUP($B40,Calc!$B$7:$DG$27,31,FALSE)) -> n/a | K40: =IF($C40="","",VLOOKUP($B40,Calc!$B$7:$DG$27,33,FALSE)) -> 0.004599398588 | L40: =IF($C40="","",ROUND(VLOOKUP($B40,Calc!$B$7:$DG$27,34,FALSE),-3)) -> 25000 | M40: =IF($C40="","",ROUND(VLOOKUP($B40,Calc!$B$7:$FG$27,131,FALSE),-3)) -> 15000 | N40: =IF($C40="","",ROUND(VLOOKUP($B40,Calc!$B$7:$FG$27,132,FALSE),-3)) -> 0 | O40: =IF($C40="","",VLOOKUP($B40,Calc!$B$7:$DG$27,20,FALSE)) -> 2
B41: 2 | C41: =IF(Startup!F14="No","",VLOOKUP(Startup!C14,List!$B$92:$C$108,2,FALSE)) -> Voyage execution | F41: =IF($C41="","",VLOOKUP($C41,List!$C$91:$Z$108,7,FALSE)) -> 10-30 % | G41: =IF($C41="","",VLOOKUP($C41,List!$C$91:$Z$108,4,FALSE)) -> O | H41: =IF($C41="","",VLOOKUP($B41,Calc!$B$7:$DG$27,27,FALSE)) -> -68.51868246 | I41: =IF($C41="","",VLOOKUP($B41,Calc!$B$7:$DG$27,29,FALSE)) -> 0.01031637303 | J41: =IF($C41="","",VLOOKUP($B41,Calc!$B$7:$DG$27,31,FALSE)) -> n/a | K41: =IF($C41="","",VLOOKUP($B41,Calc!$B$7:$DG$27,33,FALSE)) -> 0.01031637303 | L41: =IF($C41="","",ROUND(VLOOKUP($B41,Calc!$B$7:$DG$27,34,FALSE),-3)) -> 10000 | M41: =IF($C41="","",ROUND(VLOOKUP($B41,Calc!$B$7:$FG$27,131,FALSE),-3)) -> 34000 | N41: =IF($C41="","",ROUND(VLOOKUP($B41,Calc!$B$7:$FG$27,132,FALSE),-3)) -> 5000 | O41: =IF($C41="","",VLOOKUP($B41,Calc!$B$7:$DG$27,20,FALSE)) -> 1 | S41: Note: Measures not applicable for the chosen vessel, will be automatically de-selected after a model run. Other relevant assumptions are given in the tab named “Assumptions”.
B42: 3 | C42: =IF(Startup!F15="No","",VLOOKUP(Startup!C15,List!$B$92:$C$108,2,FALSE)) -> Propulsion efficiency devices | F42: =IF($C42="","",VLOOKUP($C42,List!$C$91:$Z$108,7,FALSE)) -> < 10 % | G42: =IF($C42="","",VLOOKUP($C42,List!$C$91:$Z$108,4,FALSE)) -> T* | H42: =IF($C42="","",VLOOKUP($B42,Calc!$B$7:$DG$27,27,FALSE)) -> -61.64370022 | I42: =IF($C42="","",VLOOKUP($B42,Calc!$B$7:$DG$27,29,FALSE)) -> 0.0118464671 | J42: =IF($C42="","",VLOOKUP($B42,Calc!$B$7:$DG$27,31,FALSE)) -> 0.01198848833 | K42: =IF($C42="","",VLOOKUP($B42,Calc!$B$7:$DG$27,33,FALSE)) -> 0.0118464671 | L42: =IF($C42="","",ROUND(VLOOKUP($B42,Calc!$B$7:$DG$27,34,FALSE),-3)) -> 107000 | M42: =IF($C42="","",ROUND(VLOOKUP($B42,Calc!$B$7:$FG$27,131,FALSE),-3)) -> 38000 | N42: =IF($C42="","",ROUND(VLOOKUP($B42,Calc!$B$7:$FG$27,132,FALSE),-3)) -> 0 | O42: =IF($C42="","",VLOOKUP($B42,Calc!$B$7:$DG$27,20,FALSE)) -> 4
B43: 4 | C43: =IF(Startup!F16="No","",VLOOKUP(Startup!C16,List!$B$92:$C$108,2,FALSE)) -> Light systems | F43: =IF($C43="","",VLOOKUP($C43,List!$C$91:$Z$108,7,FALSE)) -> < 10 % | G43: =IF($C43="","",VLOOKUP($C43,List!$C$91:$Z$108,4,FALSE)) -> T | H43: =IF($C43="","",VLOOKUP($B43,Calc!$B$7:$DG$27,27,FALSE)) -> -43.30833213 | I43: =IF($C43="","",VLOOKUP($B43,Calc!$B$7:$DG$27,29,FALSE)) -> 0.005419493436 | J43: =IF($C43="","",VLOOKUP($B43,Calc!$B$7:$DG$27,31,FALSE)) -> 0.005449024388 | K43: =IF($C43="","",VLOOKUP($B43,Calc!$B$7:$DG$27,33,FALSE)) -> 0.005419493436 | L43: =IF($C43="","",ROUND(VLOOKUP($B43,Calc!$B$7:$DG$27,34,FALSE),-3)) -> 100000 | M43: =IF($C43="","",ROUND(VLOOKUP($B43,Calc!$B$7:$FG$27,131,FALSE),-3)) -> 17000 | N43: =IF($C43="","",ROUND(VLOOKUP($B43,Calc!$B$7:$FG$27,132,FALSE),-3)) -> 0 | O43: =IF($C43="","",VLOOKUP($B43,Calc!$B$7:$DG$27,20,FALSE)) -> 8
B44: 5 | C44: =IF(Startup!F17="No","",VLOOKUP(Startup!C17,List!$B$92:$C$108,2,FALSE)) -> Weather routing | F44: =IF($C44="","",VLOOKUP($C44,List!$C$91:$Z$108,7,FALSE)) -> 10-30 % | G44: =IF($C44="","",VLOOKUP($C44,List!$C$91:$Z$108,4,FALSE)) -> O | H44: =IF($C44="","",VLOOKUP($B44,Calc!$B$7:$DG$27,27,FALSE)) -> -42.28202166 | I44: =IF($C44="","",VLOOKUP($B44,Calc!$B$7:$DG$27,29,FALSE)) -> 0.002892915334 | J44: =IF($C44="","",VLOOKUP($B44,Calc!$B$7:$DG$27,31,FALSE)) -> n/a | K44: =IF($C44="","",VLOOKUP($B44,Calc!$B$7:$DG$27,33,FALSE)) -> 0.002892915334 | L44: =IF($C44="","",ROUND(VLOOKUP($B44,Calc!$B$7:$DG$27,34,FALSE),-3)) -> 15000 | M44: =IF($C44="","",ROUND(VLOOKUP($B44,Calc!$B$7:$FG$27,131,FALSE),-3)) -> 9000 | N44: =IF($C44="","",ROUND(VLOOKUP($B44,Calc!$B$7:$FG$27,132,FALSE),-3)) -> 3000 | O44: =IF($C44="","",VLOOKUP($B44,Calc!$B$7:$DG$27,20,FALSE)) -> 3
B45: 6 | C45: =IF(Startup!F18="No","",VLOOKUP(Startup!C18,List!$B$92:$C$108,2,FALSE)) -> Frequency converters | F45: =IF($C45="","",VLOOKUP($C45,List!$C$91:$Z$108,7,FALSE)) -> 10-30 % | G45: =IF($C45="","",VLOOKUP($C45,List!$C$91:$Z$108,4,FALSE)) -> T | H45: =IF($C45="","",VLOOKUP($B45,Calc!$B$7:$DG$27,27,FALSE)) -> -20.31041052 | I45: =IF($C45="","",VLOOKUP($B45,Calc!$B$7:$DG$27,29,FALSE)) -> 0.02131285139 | J45: =IF($C45="","",VLOOKUP($B45,Calc!$B$7:$DG$27,31,FALSE)) -> 0.02177698095 | K45: =IF($C45="","",VLOOKUP($B45,Calc!$B$7:$DG$27,33,FALSE)) -> 0.02131285139 | L45: =IF($C45="","",ROUND(VLOOKUP($B45,Calc!$B$7:$DG$27,34,FALSE),-3)) -> 534000 | M45: =IF($C45="","",ROUND(VLOOKUP($B45,Calc!$B$7:$FG$27,131,FALSE),-3)) -> 68000 | N45: =IF($C45="","",ROUND(VLOOKUP($B45,Calc!$B$7:$FG$27,132,FALSE),-3)) -> 5000 | O45: =IF($C45="","",VLOOKUP($B45,Calc!$B$7:$DG$27,20,FALSE)) -> 14
B46: 7 | C46: =IF(Startup!F19="No","",VLOOKUP(Startup!C19,List!$B$92:$C$108,2,FALSE)) -> Propeller efficiency | F46: =IF($C46="","",VLOOKUP($C46,List!$C$91:$Z$108,7,FALSE)) -> < 10 % | G46: =IF($C46="","",VLOOKUP($C46,List!$C$91:$Z$108,4,FALSE)) -> O | H46: =IF($C46="","",VLOOKUP($B46,Calc!$B$7:$DG$27,27,FALSE)) -> 11.5778997 | I46: =IF($C46="","",VLOOKUP($B46,Calc!$B$7:$DG$27,29,FALSE)) -> 0.002305949967 | J46: =IF($C46="","",VLOOKUP($B46,Calc!$B$7:$DG$27,31,FALSE)) -> n/a | K46: =IF($C46="","",VLOOKUP($B46,Calc!$B$7:$DG$27,33,FALSE)) -> 0.002305949967 | L46: =IF($C46="","",ROUND(VLOOKUP($B46,Calc!$B$7:$DG$27,34,FALSE),-3)) -> 8000 | M46: =IF($C46="","",ROUND(VLOOKUP($B46,Calc!$B$7:$FG$27,131,FALSE),-3)) -> 7000 | N46: =IF($C46="","",ROUND(VLOOKUP($B46,Calc!$B$7:$FG$27,132,FALSE),-3)) -> 0 | O46: =IF($C46="","",VLOOKUP($B46,Calc!$B$7:$DG$27,20,FALSE)) -> 25+
B47: 8 | C47: =IF(Startup!F20="No","",VLOOKUP(Startup!C20,List!$B$92:$C$108,2,FALSE)) -> Air cavity lubrication | F47: =IF($C47="","",VLOOKUP($C47,List!$C$91:$Z$108,7,FALSE)) -> 10-30 % | G47: =IF($C47="","",VLOOKUP($C47,List!$C$91:$Z$108,4,FALSE)) -> T | H47: =IF($C47="","",VLOOKUP($B47,Calc!$B$7:$DG$27,27,FALSE)) -> 74.47456454 | I47: =IF($C47="","",VLOOKUP($B47,Calc!$B$7:$DG$27,29,FALSE)) -> 0.02918515865 | J47: =IF($C47="","",VLOOKUP($B47,Calc!$B$7:$DG$27,31,FALSE)) -> 0.03006253861 | K47: =IF($C47="","",VLOOKUP($B47,Calc!$B$7:$DG$27,33,FALSE)) -> 0.02918515865 | L47: =IF($C47="","",ROUND(VLOOKUP($B47,Calc!$B$7:$DG$27,34,FALSE),-3)) -> 1786000 | M47: =IF($C47="","",ROUND(VLOOKUP($B47,Calc!$B$7:$FG$27,131,FALSE),-3)) -> 90000 | N47: =IF($C47="","",ROUND(VLOOKUP($B47,Calc!$B$7:$FG$27,132,FALSE),-3)) -> 10000 | O47: =IF($C47="","",VLOOKUP($B47,Calc!$B$7:$DG$27,20,FALSE)) -> 25+
B48: 9 | C48: =IF(Startup!F21="No","",VLOOKUP(Startup!C21,List!$B$92:$C$108,2,FALSE)) -> Contra-rotating propeller | F48: =IF($C48="","",VLOOKUP($C48,List!$C$91:$Z$108,7,FALSE)) -> 10-30 % | G48: =IF($C48="","",VLOOKUP($C48,List!$C$91:$Z$108,4,FALSE)) -> T | H48: =IF($C48="","",VLOOKUP($B48,Calc!$B$7:$DG$27,27,FALSE)) -> 135.2322415 | I48: =IF($C48="","",VLOOKUP($B48,Calc!$B$7:$DG$27,29,FALSE)) -> 0.01893939932 | J48: =IF($C48="","",VLOOKUP($B48,Calc!$B$7:$DG$27,31,FALSE)) -> 0.0193050249 | K48: =IF($C48="","",VLOOKUP($B48,Calc!$B$7:$DG$27,33,FALSE)) -> 0.01893939932 | L48: =IF($C48="","",ROUND(VLOOKUP($B48,Calc!$B$7:$DG$27,34,FALSE),-3)) -> 1071000 | M48: =IF($C48="","",ROUND(VLOOKUP($B48,Calc!$B$7:$FG$27,131,FALSE),-3)) -> 57000 | N48: =IF($C48="","",ROUND(VLOOKUP($B48,Calc!$B$7:$FG$27,132,FALSE),-3)) -> 30000 | O48: =IF($C48="","",VLOOKUP($B48,Calc!$B$7:$DG$27,20,FALSE)) -> 25+
B49: 10 | C49: =IF(Startup!F22="No","",VLOOKUP(Startup!C22,List!$B$92:$C$108,2,FALSE)) -> EGB on AE | F49: =IF($C49="","",VLOOKUP($C49,List!$C$91:$Z$108,7,FALSE)) -> < 10 % | G49: =IF($C49="","",VLOOKUP($C49,List!$C$91:$Z$108,4,FALSE)) -> T | H49: =IF($C49="","",VLOOKUP($B49,Calc!$B$7:$DG$27,27,FALSE)) -> 146.2123096 | I49: =IF($C49="","",VLOOKUP($B49,Calc!$B$7:$DG$27,29,FALSE)) -> 0.002062578833 | J49: =IF($C49="","",VLOOKUP($B49,Calc!$B$7:$DG$27,31,FALSE)) -> 0.002066841857 | K49: =IF($C49="","",VLOOKUP($B49,Calc!$B$7:$DG$27,33,FALSE)) -> 0.002062578833 | L49: =IF($C49="","",ROUND(VLOOKUP($B49,Calc!$B$7:$DG$27,34,FALSE),-3)) -> 69000 | M49: =IF($C49="","",ROUND(VLOOKUP($B49,Calc!$B$7:$FG$27,131,FALSE),-3)) -> 6000 | N49: =IF($C49="","",ROUND(VLOOKUP($B49,Calc!$B$7:$FG$27,132,FALSE),-3)) -> 10000 | O49: =IF($C49="","",VLOOKUP($B49,Calc!$B$7:$DG$27,20,FALSE)) -> 25+
B50: 11 | C50: =IF(Startup!F23="No","",VLOOKUP(Startup!C23,List!$B$92:$C$108,2,FALSE)) -> Kite | F50: =IF($C50="","",VLOOKUP($C50,List!$C$91:$Z$108,7,FALSE)) -> > 30 % | G50: =IF($C50="","",VLOOKUP($C50,List!$C$91:$Z$108,4,FALSE)) -> T | H50: =IF($C50="","",VLOOKUP($B50,Calc!$B$7:$DG$27,27,FALSE)) -> 337.894147 | I50: =IF($C50="","",VLOOKUP($B50,Calc!$B$7:$DG$27,29,FALSE)) -> 0.02406795032 | J50: =IF($C50="","",VLOOKUP($B50,Calc!$B$7:$DG$27,31,FALSE)) -> 0.02466150213 | K50: =IF($C50="","",VLOOKUP($B50,Calc!$B$7:$DG$27,33,FALSE)) -> 0.02406795032 | L50: =IF($C50="","",ROUND(VLOOKUP($B50,Calc!$B$7:$DG$27,34,FALSE),-3)) -> 1887000 | M50: =IF($C50="","",ROUND(VLOOKUP($B50,Calc!$B$7:$FG$27,131,FALSE),-3)) -> 71000 | N50: =IF($C50="","",ROUND(VLOOKUP($B50,Calc!$B$7:$FG$27,132,FALSE),-3)) -> 176000 | O50: =IF($C50="","",VLOOKUP($B50,Calc!$B$7:$DG$27,20,FALSE)) -> 25+
B51: 12 | C51: =IF(Startup!F24="No","",VLOOKUP(Startup!C24,List!$B$92:$C$108,2,FALSE)) -> Hull coating condition | F51: =IF($C51="","",VLOOKUP($C51,List!$C$91:$Z$108,7,FALSE)) -> < 10 % | G51: =IF($C51="","",VLOOKUP($C51,List!$C$91:$Z$108,4,FALSE)) -> O | H51: =IF($C51="","",VLOOKUP($B51,Calc!$B$7:$DG$27,27,FALSE)) -> 557.873355 | I51: =IF($C51="","",VLOOKUP($B51,Calc!$B$7:$DG$27,29,FALSE)) -> 0.004773758595 | J51: =IF($C51="","",VLOOKUP($B51,Calc!$B$7:$DG$27,31,FALSE)) -> n/a | K51: =IF($C51="","",VLOOKUP($B51,Calc!$B$7:$DG$27,33,FALSE)) -> 0.004773758595 | L51: =IF($C51="","",ROUND(VLOOKUP($B51,Calc!$B$7:$DG$27,34,FALSE),-3)) -> 429000 | M51: =IF($C51="","",ROUND(VLOOKUP($B51,Calc!$B$7:$FG$27,131,FALSE),-3)) -> 14000 | N51: =IF($C51="","",ROUND(VLOOKUP($B51,Calc!$B$7:$FG$27,132,FALSE),-3)) -> 0 | O51: =IF($C51="","",VLOOKUP($B51,Calc!$B$7:$DG$27,20,FALSE)) -> 25+
B52: 13 | C52: =IF(Startup!F25="No","",VLOOKUP(Startup!C25,List!$B$92:$C$108,2,FALSE)) -> Solar Panel | F52: =IF($C52="","",VLOOKUP($C52,List!$C$91:$Z$108,7,FALSE)) -> > 30 % | G52: =IF($C52="","",VLOOKUP($C52,List!$C$91:$Z$108,4,FALSE)) -> T | H52: =IF($C52="","",VLOOKUP($B52,Calc!$B$7:$DG$27,27,FALSE)) -> 3055.404783 | I52: =IF($C52="","",VLOOKUP($B52,Calc!$B$7:$DG$27,29,FALSE)) -> 0.00197291939 | J52: =IF($C52="","",VLOOKUP($B52,Calc!$B$7:$DG$27,31,FALSE)) -> 0.001976819496 | K52: =IF($C52="","",VLOOKUP($B52,Calc!$B$7:$DG$27,33,FALSE)) -> 0.00197291939 | L52: =IF($C52="","",ROUND(VLOOKUP($B52,Calc!$B$7:$DG$27,34,FALSE),-3)) -> 1370000 | M52: =IF($C52="","",ROUND(VLOOKUP($B52,Calc!$B$7:$FG$27,131,FALSE),-3)) -> 6000 | N52: =IF($C52="","",ROUND(VLOOKUP($B52,Calc!$B$7:$FG$27,132,FALSE),-3)) -> 0 | O52: =IF($C52="","",VLOOKUP($B52,Calc!$B$7:$DG$27,20,FALSE)) -> 25+
B53: 14 | C53: =IF(Startup!F26="No","",VLOOKUP(Startup!C26,List!$B$92:$C$108,2,FALSE)) -> Waste heat recovery | F53: =IF($C53="","",VLOOKUP($C53,List!$C$91:$Z$108,7,FALSE)) -> < 10 % | G53: =IF($C53="","",VLOOKUP($C53,List!$C$91:$Z$108,4,FALSE)) -> T | H53: =IF($C53="","",VLOOKUP($B53,Calc!$B$7:$DG$27,27,FALSE)) -> 3097.426736 | I53: =IF($C53="","",VLOOKUP($B53,Calc!$B$7:$DG$27,29,FALSE)) -> 0.007065024036 | J53: =IF($C53="","",VLOOKUP($B53,Calc!$B$7:$DG$27,31,FALSE)) -> 0.007115293758 | K53: =IF($C53="","",VLOOKUP($B53,Calc!$B$7:$DG$27,33,FALSE)) -> 0.007065024036 | L53: =IF($C53="","",ROUND(VLOOKUP($B53,Calc!$B$7:$DG$27,34,FALSE),-3)) -> 8209000 | M53: =IF($C53="","",ROUND(VLOOKUP($B53,Calc!$B$7:$FG$27,131,FALSE),-3)) -> 20000 | N53: =IF($C53="","",ROUND(VLOOKUP($B53,Calc!$B$7:$FG$27,132,FALSE),-3)) -> 10000 | O53: =IF($C53="","",VLOOKUP($B53,Calc!$B$7:$DG$27,20,FALSE)) -> 25+
B54: 15 | C54: =IF(Startup!F27="No","",VLOOKUP(Startup!C27,List!$B$92:$C$108,2,FALSE)) ->  | F54: =IF($C54="","",VLOOKUP($C54,List!$C$91:$Z$108,7,FALSE)) ->  | G54: =IF($C54="","",VLOOKUP($C54,List!$C$91:$Z$108,4,FALSE)) ->  | H54: =IF($C54="","",VLOOKUP($B54,Calc!$B$7:$DG$27,27,FALSE)) ->  | I54: =IF($C54="","",VLOOKUP($B54,Calc!$B$7:$DG$27,29,FALSE)) ->  | J54: =IF($C54="","",VLOOKUP($B54,Calc!$B$7:$DG$27,31,FALSE)) ->  | K54: =IF($C54="","",VLOOKUP($B54,Calc!$B$7:$DG$27,33,FALSE)) ->  | L54: =IF($C54="","",ROUND(VLOOKUP($B54,Calc!$B$7:$DG$27,34,FALSE),-3)) ->  | M54: =IF($C54="","",ROUND(VLOOKUP($B54,Calc!$B$7:$FG$27,131,FALSE),-3)) ->  | N54: =IF($C54="","",ROUND(VLOOKUP($B54,Calc!$B$7:$FG$27,132,FALSE),-3)) ->  | O54: =IF($C54="","",VLOOKUP($B54,Calc!$B$7:$DG$27,20,FALSE)) -> 
B55: 16 | C55: =IF(Startup!F28="No","",VLOOKUP(Startup!C28,List!$B$92:$C$108,2,FALSE)) ->  | F55: =IF($C55="","",VLOOKUP($C55,List!$C$91:$Z$108,7,FALSE)) ->  | G55: =IF($C55="","",VLOOKUP($C55,List!$C$91:$Z$108,4,FALSE)) ->  | H55: =IF($C55="","",VLOOKUP($B55,Calc!$B$7:$DG$27,27,FALSE)) ->  | I55: =IF($C55="","",VLOOKUP($B55,Calc!$B$7:$DG$27,29,FALSE)) ->  | J55: =IF($C55="","",VLOOKUP($B55,Calc!$B$7:$DG$27,31,FALSE)) ->  | K55: =IF($C55="","",VLOOKUP($B55,Calc!$B$7:$DG$27,33,FALSE)) ->  | L55: =IF($C55="","",ROUND(VLOOKUP($B55,Calc!$B$7:$DG$27,34,FALSE),-3)) ->  | M55: =IF($C55="","",ROUND(VLOOKUP($B55,Calc!$B$7:$FG$27,131,FALSE),-3)) ->  | N55: =IF($C55="","",ROUND(VLOOKUP($B55,Calc!$B$7:$FG$27,132,FALSE),-3)) ->  | O55: =IF($C55="","",VLOOKUP($B55,Calc!$B$7:$DG$27,20,FALSE)) -> 
B56: 17 | C56: =IF(Startup!F29="No","",VLOOKUP(Startup!C29,List!$B$92:$C$108,2,FALSE)) ->  | F56: =IF($C56="","",VLOOKUP($C56,List!$C$91:$Z$108,7,FALSE)) ->  | G56: =IF($C56="","",VLOOKUP($C56,List!$C$91:$Z$108,4,FALSE)) ->  | H56: =IF($C56="","",VLOOKUP($B56,Calc!$B$7:$DG$27,27,FALSE)) ->  | I56: =IF($C56="","",VLOOKUP($B56,Calc!$B$7:$DG$27,29,FALSE)) ->  | J56: =IF($C56="","",VLOOKUP($B56,Calc!$B$7:$DG$27,31,FALSE)) ->  | K56: =IF($C56="","",VLOOKUP($B56,Calc!$B$7:$DG$27,33,FALSE)) ->  | L56: =IF($C56="","",ROUND(VLOOKUP($B56,Calc!$B$7:$DG$27,34,FALSE),-3)) ->  | M56: =IF($C56="","",ROUND(VLOOKUP($B56,Calc!$B$7:$FG$27,131,FALSE),-3)) ->  | N56: =IF($C56="","",ROUND(VLOOKUP($B56,Calc!$B$7:$FG$27,132,FALSE),-3)) ->  | O56: =IF($C56="","",VLOOKUP($B56,Calc!$B$7:$DG$27,20,FALSE)) ->  | T56: Version 1.0: Normal mode

Sheet EEDI calculation (hidden)
B1: EEDI calculation = a*b^c
B2: Selected vessel in filter | C2: =Type -> Dry bulk carriers
B3: DWT | C3: =Calc!Q4 -> 150000
B6: Vessel type | C6: a | D6: b | E6: c | F6: Phase 1 | G6: Phase 2 | H6: Phase 3 | I6: Min DWT/GT | J6: Max DWT/GT | K6: Required EEDI | L6: EDDI help
B7: Dry bulk carriers | C7: 961.79 | D7: DWT of the ship | E7: 0.477 | F7: 10 | G7: 20 | H7: 30 | I7: 10000 | J7: 20000 | K7: =IF(AND($C$2=B7,$C$3>J7),C7*POWER($C$3,-E7)*(1-F7/100), IF(AND($C$2=B7,$C$3<I7),-1, IF(AND($C$2=B7,$C$3<=J7,$C$3>=I7),L7,"Wrong shiptype"))) -> 2.939863973 | L7: =HLOOKUP($C$3,$B$36:$CX$38,3,TRUE) -> 2.939863973
B8: Crude oil tankers | C8: 1218.8 | D8: DWT of the ship | E8: 0.488 | F8: 10 | G8: 20 | H8: 30 | I8: 2000 | J8: 10000 | K8: =IF(AND($C$2=B8,$C$3>J8),C8*POWER($C$3,-E8)*(1-F8/100), IF(AND($C$2=B8,$C$3<I8),-1, IF(AND($C$2=B8,$C$3<=J8,$C$3>=I8),L8,"Wrong shiptype"))) -> Wrong shiptype | L8: =HLOOKUP($C$3,$B$63:$CX$65,3,TRUE) -> 3.267701824
B9: Container ships | C9: 174.22 | D9: DWT of the ship | E9: 0.201 | F9: 10 | G9: 20 | H9: 30 | I9: 10000 | J9: 15000 | K9: Wrong shiptype | L9: =HLOOKUP($C$3,$B$90:$CX$92,3,TRUE) -> 14.2871688
B10: Ro-Ro ships | C10: 1405.15 | D10: DWT of the ship | E10: 0.498 | F10: 5 | G10: 20 | H10: 30 | I10: 1000 | J10: 2000 | K10: Wrong shiptype | L10: =HLOOKUP($C$3,$B$117:$CX$119,3,TRUE) -> 3.529822329
B11: General cargo vessels | C11: 107.48 | D11: DWT of the ship | E11: 0.216 | F11: 10 | G11: 20 | H11: 30 | I11: 3000 | J11: 15000 | K11: Wrong shiptype | L11: =HLOOKUP($C$3,$B$144:$CX$146,3,TRUE) -> 7.371136528
B12: Passenger vessels | C12: 170.84 | D12: GT of the ship | E12: 0.214 | F12: 5 | G12: 20 | H12: 30 | I12: 25000 | J12: 30000 | K12: Wrong shiptype | L12: =HLOOKUP($C$3,$B$171:$CX$173,3,TRUE) -> 12.66571288
B13: Ro-Pax vessels | C13: 752.16 | D13: DWT of the ship | E13: 0.381 | F13: 5 | G13: 20 | H13: 30 | I13: 1000 | J13: 4000 | K13: Wrong shiptype | L13: =HLOOKUP($C$3,$B$198:$CX$200,3,TRUE) -> 7.619791176
B14: Cruise vessels | C14: 170.84 | D14: GT of the ship | E14: 0.214 | F14: 5 | G14: 20 | H14: 30 | I14: 25000 | J14: 30000 | K14: Wrong shiptype | L14: =HLOOKUP($C$3,$B$225:$CX$227,3,TRUE) -> 12.66571288
B15: Chemical tankers | C15: 1218.8 | D15: DWT of the ship | E15: 0.488 | F15: 10 | G15: 20 | H15: 30 | I15: 2000 | J15: 10000 | K15: Wrong shiptype | L15: =HLOOKUP($C$3,$B$252:$CX$254,3,TRUE) -> 3.267701824
B16: Product tankers | C16: 1218.8 | D16: DWT of the ship | E16: 0.488 | F16: 10 | G16: 20 | H16: 30 | I16: 2000 | J16: 10000 | K16: Wrong shiptype | L16: =HLOOKUP($C$3,$B$279:$CX$281,3,TRUE) -> 3.267701824
B19: Plot
B21: DWT | C21: 2000 | D21: 3000 | E21: 4000 | F21: 5000 | G21: 6000 | H21: 7000 | I21: 8000 | J21: 9000 | K21: 10000 | L21: 11000 | M21: 12000 | N21: 13000 | O21: 14000 | P21: 15000 | Q21: 16000 | R21: 17000 | S21: 18000 | T21: 19000 | U21: 20000 | V21: 25000 | W21: 30000 | X21: 35000 | Y21: 40000 | Z21: 45000 | AA21: 50000 | AB21: 55000 | AC21: 60000 | AD21: 65000 | AE21: 70000 | AF21: 75000 | AG21: 80000 | AH21: 85000 | AI21: 90000 | AJ21: 95000 | AK21: 100000 | AL21: 105000 | AM21: 110000 | AN21: 115000 | AO21: 120000 | AP21: 125000 | AQ21: 130000 | AR21: 135000 | AS21: 140000 | AT21: 145000 | AU21: 150000 | AV21: 155000 | AW21: 160000 | AX21: 165000 | AY21: 170000 | AZ21: 175000 | BA21: 180000 | BB21: 185000 | BC21: 190000 | BD21: 195000 | BE21: 200000 | BF21: 205000 | BG21: 210000 | BH21: 215000 | BI21: 220000 | BJ21: 225000 | BK21: 230000 | BL21: 235000 | BM21: 240000 | BN21: 245000 | BO21: 250000 | BP21: 255000 | BQ21: 260000 | BR21: 265000 | BS21: 270000 | BT21: 275000 | BU21: 280000
B22: Phase 0, 1. Jan 2013-31 dec. 2014 | C22: =IF($C$2=$B$7,C37, IF($C$2=$B$8,C64, IF($C$2=$B$9,C91, IF($C$2=$B$10,C118, IF($C$2=$B$11,C145, IF($C$2=$B$12,C172, IF($C$2=$B$13,C199, IF($C$2=$B$14,C226, IF($C$2=$B$15,C253, IF($C$2=$B$16,C280,0)))))))))) -> 25.61468087 | D22: =IF($C$2=$B$7,D37, IF($C$2=$B$8,D64, IF($C$2=$B$9,D91, IF($C$2=$B$10,D118, IF($C$2=$B$11,D145, IF($C$2=$B$12,D172, IF($C$2=$B$13,D199, IF($C$2=$B$14,D226, IF($C$2=$B$15,D253, IF($C$2=$B$16,D280,0)))))))))) -> 21.11025205 | E22: 18.40338202 | F22: 16.54518262 | G22: 15.16708466 | H22: 14.09186559 | I22: 13.22227951 | J22: 12.4999012 | K22: 11.88721882 | L22: 11.35889138 | M22: 10.89709665 | N22: 10.4888839 | O22: 10.12458391 | P22: 9.796810932 | Q22: 9.499812324 | R22: 9.229031362 | S22: 8.980805117 | T22: 8.752150753 | U22: 8.540611155 | V22: 7.678261045 | W22: 7.038715615 | X22: 6.539729725 | Y22: 6.13617365 | Z22: 5.800933518 | AA22: 5.516600891 | AB22: 5.271415563 | AC22: 5.057106629 | AD22: 4.867663928 | AE22: 4.698600193 | AF22: 4.546487848 | AG22: 4.408657224 | AH22: 4.282993642 | AI22: 4.167797216 | AJ22: 4.061683676 | AK22: 3.963512729 | AL22: 3.872335357 | AM22: 3.787354405 | AN22: 3.707894659 | AO22: 3.633379846 | AP22: 3.563314713 | AQ22: 3.497270932 | AR22: 3.434875891 | AS22: 3.375803695 | AT22: 3.319767892 | AU22: 3.266515526 | AV22: 3.215822261 | AW22: 3.167488345 | AX22: 3.121335242 | AY22: 3.07720282 | AZ22: 3.034946977 | BA22: 2.994437634 | BB22: 2.955557023 | BC22: 2.918198229 | BD22: 2.882263936 | BE22: 2.84766534 | BF22: 2.814321222 | BG22: 2.782157126 | BH22: 2.751104656 | BI22: 2.721100853 | BJ22: 2.692087653 | BK22: 2.664011403 | BL22: 2.636822446 | BM22: 2.610474739 | BN22: 2.584925525 | BO22: 2.560135036 | BP22: =IF($C$2=$B$7,BP37, IF($C$2=$B$8,BP64, IF($C$2=$B$9,BP91, IF($C$2=$B$10,BP118, IF($C$2=$B$11,BP145, IF($C$2=$B$12,BP172, IF($C$2=$B$13,BP199, IF($C$2=$B$14,BP226, IF($C$2=$B$15,BP253, IF($C$2=$B$16,BP280,0)))))))))) -> 2.536066231 | BQ22: 2.512684555 | BR22: 2.489957735 | BS22: 2.467855584 | BT22: 2.446349834 | BU22: 2.425413979
B23: Phase 1, 1. Jan 2015-31 dec. 2019 | C23: =IF($C$2=$B$7,C38, IF($C$2=$B$8,C65, IF($C$2=$B$9,C92, IF($C$2=$B$10,C119, IF($C$2=$B$11,C146, IF($C$2=$B$12,C173, IF($C$2=$B$13,C200, IF($C$2=$B$14,C227, IF($C$2=$B$15,C254, IF($C$2=$B$16,C281,0)))))))))) -> 25.61468087 | D23: =IF($C$2=$B$7,D38, IF($C$2=$B$8,D65, IF($C$2=$B$9,D92, IF($C$2=$B$10,D119, IF($C$2=$B$11,D146, IF($C$2=$B$12,D173, IF($C$2=$B$13,D200, IF($C$2=$B$14,D227, IF($C$2=$B$15,D254, IF($C$2=$B$16,D281,0)))))))))) -> 21.11025205 | E23: 18.40338202 | F23: 16.54518262 | G23: 15.16708466 | H23: 14.09186559 | I23: 13.22227951 | J23: 12.4999012 | K23: 11.88721882 | L23: 11.24530246 | M23: 10.67915472 | N23: 10.17421738 | O23: 9.719600558 | P23: 9.306970385 | Q23: 8.929823584 | R23: 8.582999166 | S23: 8.262340708 | T23: 7.964457185 | U23: 7.68655004 | V23: 6.91043494 | W23: 6.334844054 | X23: 5.885756753 | Y23: 5.522556285 | Z23: 5.220840166 | AA23: 4.964940802 | AB23: 4.744274006 | AC23: 4.551395966 | AD23: 4.380897535 | AE23: 4.228740174 | AF23: 4.091839063 | AG23: 3.967791502 | AH23: 3.854694278 | AI23: 3.751017495 | AJ23: 3.655515309 | AK23: 3.567161456 | AL23: 3.485101822 | AM23: 3.408618964 | AN23: 3.337105194 | AO23: 3.270041862 | AP23: 3.206983242 | AQ23: 3.147543839 | AR23: 3.091388302 | AS23: 3.038223326 | AT23: 2.987791103 | AU23: 2.939863973 | AV23: 2.894240035 | AW23: 2.850739511 | AX23: 2.809201718 | AY23: 2.769482538 | AZ23: 2.73145228 | BA23: 2.694993871 | BB23: 2.660001321 | BC23: 2.626378407 | BD23: 2.594037542 | BE23: 2.562898806 | BF23: 2.5328891 | BG23: 2.503941413 | BH23: 2.47599419 | BI23: 2.448990768 | BJ23: 2.422878887 | BK23: 2.397610263 | BL23: 2.373140201 | BM23: 2.349427265 | BN23: 2.326432973 | BO23: 2.304121533 | BP23: =IF($C$2=$B$7,BP38, IF($C$2=$B$8,BP65, IF($C$2=$B$9,BP92, IF($C$2=$B$10,BP119, IF($C$2=$B$11,BP146, IF($C$2=$B$12,BP173, IF($C$2=$B$13,BP200, IF($C$2=$B$14,BP227, IF($C$2=$B$15,BP254, IF($C$2=$B$16,BP281,0)))))))))) -> 2.282459608 | BQ23: 2.2614161 | BR23: 2.240961962 | BS23: 2.221070026 | BT23: 2.201714851 | BU23: 2.182872581
B24: Phase 2, 1. Jan 2020-31 dec. 2024 | C24: =IF($C$2=$B$7,C39, IF($C$2=$B$8,C66, IF($C$2=$B$9,C93, IF($C$2=$B$10,C120, IF($C$2=$B$11,C147, IF($C$2=$B$12,C174, IF($C$2=$B$13,C201, IF($C$2=$B$14,C228, IF($C$2=$B$15,C255, IF($C$2=$B$16,C282,0)))))))))) -> 25.61468087 | D24: =IF($C$2=$B$7,D39, IF($C$2=$B$8,D66, IF($C$2=$B$9,D93, IF($C$2=$B$10,D120, IF($C$2=$B$11,D147, IF($C$2=$B$12,D174, IF($C$2=$B$13,D201, IF($C$2=$B$14,D228, IF($C$2=$B$15,D255, IF($C$2=$B$16,D282,0)))))))))) -> 21.11025205 | E24: 18.40338202 | F24: 16.54518262 | G24: 15.16708466 | H24: 14.09186559 | I24: 13.22227951 | J24: 12.4999012 | K24: 11.88721882 | L24: 11.13171355 | M24: 10.46121279 | N24: 9.859550865 | O24: 9.314617202 | P24: 8.817129839 | Q24: 8.359834845 | R24: 7.936966971 | S24: 7.543876299 | T24: 7.176763617 | U24: 6.832488924 | V24: 6.142608836 | W24: 5.630972492 | X24: 5.23178378 | Y24: 4.90893892 | Z24: 4.640746814 | AA24: 4.413280713 | AB24: 4.21713245 | AC24: 4.045685303 | AD24: 3.894131143 | AE24: 3.758880154 | AF24: 3.637190279 | AG24: 3.526925779 | AH24: 3.426394914 | AI24: 3.334237773 | AJ24: 3.249346941 | AK24: 3.170810183 | AL24: 3.097868286 | AM24: 3.029883524 | AN24: 2.966315728 | AO24: 2.906703877 | AP24: 2.85065177 | AQ24: 2.797816746 | AR24: 2.747900713 | AS24: 2.700642956 | AT24: 2.655814314 | AU24: 2.61321242 | AV24: 2.572657809 | AW24: 2.533990676 | AX24: 2.497068194 | AY24: 2.461762256 | AZ24: 2.427957582 | BA24: 2.395550107 | BB24: 2.364445618 | BC24: 2.334558584 | BD24: 2.305811149 | BE24: 2.278132272 | BF24: 2.251456977 | BG24: 2.225725701 | BH24: 2.200883725 | BI24: 2.176880683 | BJ24: 2.153670122 | BK24: 2.131209123 | BL24: 2.109457957 | BM24: 2.088379791 | BN24: 2.06794042 | BO24: 2.048108029 | BP24: =IF($C$2=$B$7,BP39, IF($C$2=$B$8,BP66, IF($C$2=$B$9,BP93, IF($C$2=$B$10,BP120, IF($C$2=$B$11,BP147, IF($C$2=$B$12,BP174, IF($C$2=$B$13,BP201, IF($C$2=$B$14,BP228, IF($C$2=$B$15,BP255, IF($C$2=$B$16,BP282,0)))))))))) -> 2.028852985 | BQ24: 2.010147644 | BR24: 1.991966188 | BS24: 1.974284468 | BT24: 1.957079867 | BU24: 1.940331183
B25: Phase 3, 1. Jan 2025-onwards | C25: =IF($C$2=$B$7,C40, IF($C$2=$B$8,C67, IF($C$2=$B$9,C94, IF($C$2=$B$10,C121, IF($C$2=$B$11,C148, IF($C$2=$B$12,C175, IF($C$2=$B$13,C202, IF($C$2=$B$14,C229, IF($C$2=$B$15,C256, IF($C$2=$B$16,C283,0)))))))))) -> 25.61468087 | D25: =IF($C$2=$B$7,D40, IF($C$2=$B$8,D67, IF($C$2=$B$9,D94, IF($C$2=$B$10,D121, IF($C$2=$B$11,D148, IF($C$2=$B$12,D175, IF($C$2=$B$13,D202, IF($C$2=$B$14,D229, IF($C$2=$B$15,D256, IF($C$2=$B$16,D283,0)))))))))) -> 21.11025205 | E25: 18.40338202 | F25: 16.54518262 | G25: 15.16708466 | H25: 14.09186559 | I25: 13.22227951 | J25: 12.4999012 | K25: 11.88721882 | L25: 11.01812464 | M25: 10.24327085 | N25: 9.544884348 | O25: 8.909633845 | P25: 8.327289292 | Q25: 7.789846106 | R25: 7.290934776 | S25: 6.825411889 | T25: 6.38907005 | U25: 5.978427809 | V25: 5.374782731 | W25: 4.927100931 | X25: 4.577810808 | Y25: 4.295321555 | Z25: 4.060653462 | AA25: 3.861620624 | AB25: 3.689990894 | AC25: 3.539974641 | AD25: 3.40736475 | AE25: 3.289020135 | AF25: 3.182541494 | AG25: 3.086060057 | AH25: 2.99809555 | AI25: 2.917458052 | AJ25: 2.843178573 | AK25: 2.77445891 | AL25: 2.71063475 | AM25: 2.651148083 | AN25: 2.595526262 | AO25: 2.543365892 | AP25: 2.494320299 | AQ25: 2.448089653 | AR25: 2.404413124 | AS25: 2.363062587 | AT25: 2.323837524 | AU25: 2.286560868 | AV25: 2.251075583 | AW25: 2.217241842 | AX25: 2.184934669 | AY25: 2.154041974 | AZ25: 2.124462884 | BA25: 2.096106344 | BB25: 2.068889916 | BC25: 2.042738761 | BD25: 2.017584755 | BE25: 1.993365738 | BF25: 1.970024855 | BG25: 1.947509988 | BH25: 1.925773259 | BI25: 1.904770597 | BJ25: 1.884461357 | BK25: 1.864807982 | BL25: 1.845775712 | BM25: 1.827332317 | BN25: 1.809447868 | BO25: 1.792094526 | BP25: =IF($C$2=$B$7,BP40, IF($C$2=$B$8,BP67, IF($C$2=$B$9,BP94, IF($C$2=$B$10,BP121, IF($C$2=$B$11,BP148, IF($C$2=$B$12,BP175, IF($C$2=$B$13,BP202, IF($C$2=$B$14,BP229, IF($C$2=$B$15,BP256, IF($C$2=$B$16,BP283,0)))))))))) -> 1.775246362 | BQ25: 1.758879189 | BR25: 1.742970415 | BS25: 1.727498909 | BT25: 1.712444884 | BU25: 1.697789785
B27: Required EEDI | C27: =VLOOKUP(C2,B7:K16,10,FALSE) -> 2.939863973
B28: Attained EEDI | C28: =IF(C27=-1,-1,Calc!K4) -> 2.599284144
B29: X-axis | C29: =IF(OR($C$2=B12,$C$2=B14)=TRUE,"Gross ton [tons]","Deadweight [tons]") -> Deadweight [tons]
B30: Heading plot | C30: =IF(C27>0,"Energy Efficiency Design Index [g CO2/ton nm], "&Calc!Q2&". Required EEDI: "&ROUND(C27,2), "Energy Efficiency Design Index [g CO2/ton nm], "&Calc!Q2&". No EEDI rquirement") -> Energy Efficiency Design Index [g CO2/ton nm], Bulker 100000-199999 Dwt. Required EEDI: 2,94
B31: =B7 -> Dry bulk carriers
B32: a | C32: =C7 -> 961.79 | D32: c | E32: =E7 -> 0.477
B33: Min DWT | C33: =I7 -> 10000
B34: Max DWT | C34: =J7 -> 20000
B36: DWT | C36: =C$21 -> 2000 | D36: =D$21 -> 3000 | E36: 4000 | F36: 5000 | G36: 6000 | H36: 7000 | I36: 8000 | J36: 9000 | K36: 10000 | L36: 11000 | M36: 12000 | N36: 13000 | O36: 14000 | P36: 15000 | Q36: 16000 | R36: 17000 | S36: 18000 | T36: 19000 | U36: 20000 | V36: 25000 | W36: 30000 | X36: 35000 | Y36: 40000 | Z36: 45000 | AA36: 50000 | AB36: 55000 | AC36: 60000 | AD36: 65000 | AE36: 70000 | AF36: 75000 | AG36: 80000 | AH36: 85000 | AI36: 90000 | AJ36: 95000 | AK36: 100000 | AL36: 105000 | AM36: 110000 | AN36: 115000 | AO36: 120000 | AP36: 125000 | AQ36: 130000 | AR36: 135000 | AS36: 140000 | AT36: 145000 | AU36: 150000 | AV36: 155000 | AW36: 160000 | AX36: 165000 | AY36: 170000 | AZ36: 175000 | BA36: 180000 | BB36: 185000 | BC36: 190000 | BD36: 195000 | BE36: 200000 | BF36: 205000 | BG36: 210000 | BH36: 215000 | BI36: 220000 | BJ36: 225000 | BK36: 230000 | BL36: 235000 | BM36: 240000 | BN36: 245000 | BO36: 250000 | BP36: =BP$21 -> 255000 | BQ36: 260000 | BR36: 265000 | BS36: 270000 | BT36: 275000 | BU36: 280000
B37: Phase 0, 1. Jan 2013-31 dec. 2014 | C37: =$C$7*POWER(C$36,-$E$7) -> 25.61468087 | D37: 21.11025205 | E37: 18.40338202 | F37: 16.54518262 | G37: 15.16708466 | H37: 14.09186559 | I37: 13.22227951 | J37: 12.4999012 | K37: 11.88721882 | L37: 11.35889138 | M37: 10.89709665 | N37: 10.4888839 | O37: 10.12458391 | P37: 9.796810932 | Q37: 9.499812324 | R37: 9.229031362 | S37: 8.980805117 | T37: 8.752150753 | U37: 8.540611155 | V37: 7.678261045 | W37: 7.038715615 | X37: 6.539729725 | Y37: 6.13617365 | Z37: 5.800933518 | AA37: 5.516600891 | AB37: 5.271415563 | AC37: 5.057106629 | AD37: 4.867663928 | AE37: 4.698600193 | AF37: 4.546487848 | AG37: 4.408657224 | AH37: 4.282993642 | AI37: 4.167797216 | AJ37: 4.061683676 | AK37: 3.963512729 | AL37: 3.872335357 | AM37: 3.787354405 | AN37: 3.707894659 | AO37: 3.633379846 | AP37: 3.563314713 | AQ37: 3.497270932 | AR37: 3.434875891 | AS37: 3.375803695 | AT37: 3.319767892 | AU37: 3.266515526 | AV37: 3.215822261 | AW37: 3.167488345 | AX37: 3.121335242 | AY37: 3.07720282 | AZ37: 3.034946977 | BA37: 2.994437634 | BB37: 2.955557023 | BC37: 2.918198229 | BD37: 2.882263936 | BE37: 2.84766534 | BF37: 2.814321222 | BG37: 2.782157126 | BH37: 2.751104656 | BI37: 2.721100853 | BJ37: 2.692087653 | BK37: 2.664011403 | BL37: 2.636822446 | BM37: 2.610474739 | BN37: 2.584925525 | BO37: =$C$7*POWER(BO$36,-$E$7) -> 2.560135036 | BP37: 2.536066231 | BQ37: 2.512684555 | BR37: 2.489957735 | BS37: 2.467855584 | BT37: 2.446349834 | BU37: 2.425413979
B38: Phase 1, 1. Jan 2015-31 dec. 2019 | C38: =C45 -> 25.61468087 | D38: =D45 -> 21.11025205 | E38: 18.40338202 | F38: 16.54518262 | G38: 15.16708466 | H38: 14.09186559 | I38: 13.22227951 | J38: 12.4999012 | K38: 11.88721882 | L38: 11.24530246 | M38: 10.67915472 | N38: 10.17421738 | O38: 9.719600558 | P38: 9.306970385 | Q38: 8.929823584 | R38: 8.582999166 | S38: 8.262340708 | T38: 7.964457185 | U38: 7.68655004 | V38: 6.91043494 | W38: 6.334844054 | X38: 5.885756753 | Y38: 5.522556285 | Z38: 5.220840166 | AA38: 4.964940802 | AB38: 4.744274006 | AC38: 4.551395966 | AD38: 4.380897535 | AE38: 4.228740174 | AF38: 4.091839063 | AG38: 3.967791502 | AH38: 3.854694278 | AI38: 3.751017495 | AJ38: 3.655515309 | AK38: 3.567161456 | AL38: 3.485101822 | AM38: 3.408618964 | AN38: 3.337105194 | AO38: 3.270041862 | AP38: 3.206983242 | AQ38: 3.147543839 | AR38: 3.091388302 | AS38: 3.038223326 | AT38: 2.987791103 | AU38: 2.939863973 | AV38: 2.894240035 | AW38: 2.850739511 | AX38: 2.809201718 | AY38: 2.769482538 | AZ38: 2.73145228 | BA38: 2.694993871 | BB38: 2.660001321 | BC38: 2.626378407 | BD38: 2.594037542 | BE38: 2.562898806 | BF38: 2.5328891 | BG38: 2.503941413 | BH38: 2.47599419 | BI38: 2.448990768 | BJ38: 2.422878887 | BK38: 2.397610263 | BL38: =BL45 -> 2.373140201 | BM38: 2.349427265 | BN38: 2.326432973 | BO38: 2.304121533 | BP38: 2.282459608 | BQ38: 2.2614161 | BR38: 2.240961962 | BS38: 2.221070026 | BT38: 2.201714851 | BU38: 2.182872581
B39: Phase 2, 1. Jan 2020-31 dec. 2024 | C39: =C50 -> 25.61468087 | D39: =D50 -> 21.11025205 | E39: 18.40338202 | F39: 16.54518262 | G39: 15.16708466 | H39: 14.09186559 | I39: 13.22227951 | J39: 12.4999012 | K39: 11.88721882 | L39: 11.13171355 | M39: 10.46121279 | N39: 9.859550865 | O39: 9.314617202 | P39: 8.817129839 | Q39: 8.359834845 | R39: 7.936966971 | S39: 7.543876299 | T39: 7.176763617 | U39: 6.832488924 | V39: 6.142608836 | W39: 5.630972492 | X39: 5.23178378 | Y39: 4.90893892 | Z39: 4.640746814 | AA39: 4.413280713 | AB39: 4.21713245 | AC39: 4.045685303 | AD39: 3.894131143 | AE39: 3.758880154 | AF39: 3.637190279 | AG39: 3.526925779 | AH39: 3.426394914 | AI39: 3.334237773 | AJ39: 3.249346941 | AK39: 3.170810183 | AL39: 3.097868286 | AM39: 3.029883524 | AN39: 2.966315728 | AO39: 2.906703877 | AP39: 2.85065177 | AQ39: 2.797816746 | AR39: 2.747900713 | AS39: 2.700642956 | AT39: 2.655814314 | AU39: 2.61321242 | AV39: 2.572657809 | AW39: 2.533990676 | AX39: 2.497068194 | AY39: 2.461762256 | AZ39: 2.427957582 | BA39: 2.395550107 | BB39: 2.364445618 | BC39: 2.334558584 | BD39: 2.305811149 | BE39: 2.278132272 | BF39: 2.251456977 | BG39: 2.225725701 | BH39: 2.200883725 | BI39: 2.176880683 | BJ39: 2.153670122 | BK39: 2.131209123 | BL39: =BL50 -> 2.109457957 | BM39: 2.088379791 | BN39: 2.06794042 | BO39: 2.048108029 | BP39: 2.028852985 | BQ39: 2.010147644 | BR39: 1.991966188 | BS39: 1.974284468 | BT39: 1.957079867 | BU39: 1.940331183
B40: Phase 3, 1. Jan 2025-onwards | C40: =C55 -> 25.61468087 | D40: =D55 -> 21.11025205 | E40: 18.40338202 | F40: 16.54518262 | G40: 15.16708466 | H40: 14.09186559 | I40: 13.22227951 | J40: 12.4999012 | K40: 11.88721882 | L40: 11.01812464 | M40: 10.24327085 | N40: 9.544884348 | O40: 8.909633845 | P40: 8.327289292 | Q40: 7.789846106 | R40: 7.290934776 | S40: 6.825411889 | T40: 6.38907005 | U40: 5.978427809 | V40: 5.374782731 | W40: 4.927100931 | X40: 4.577810808 | Y40: 4.295321555 | Z40: 4.060653462 | AA40: 3.861620624 | AB40: 3.689990894 | AC40: 3.539974641 | AD40: 3.40736475 | AE40: 3.289020135 | AF40: 3.182541494 | AG40: 3.086060057 | AH40: 2.99809555 | AI40: 2.917458052 | AJ40: 2.843178573 | AK40: 2.77445891 | AL40: 2.71063475 | AM40: 2.651148083 | AN40: 2.595526262 | AO40: 2.543365892 | AP40: 2.494320299 | AQ40: 2.448089653 | AR40: 2.404413124 | AS40: 2.363062587 | AT40: 2.323837524 | AU40: 2.286560868 | AV40: 2.251075583 | AW40: 2.217241842 | AX40: 2.184934669 | AY40: 2.154041974 | AZ40: 2.124462884 | BA40: 2.096106344 | BB40: 2.068889916 | BC40: 2.042738761 | BD40: 2.017584755 | BE40: 1.993365738 | BF40: 1.970024855 | BG40: 1.947509988 | BH40: 1.925773259 | BI40: 1.904770597 | BJ40: 1.884461357 | BK40: 1.864807982 | BL40: =BL55 -> 1.845775712 | BM40: 1.827332317 | BN40: 1.809447868 | BO40: 1.792094526 | BP40: 1.775246362 | BQ40: 1.758879189 | BR40: 1.742970415 | BS40: 1.727498909 | BT40: 1.712444884 | BU40: 1.697789785
A42: 10 | B42: Interpolation | C42: =IF(($C$33-$C$34=0),1,(C$36-$C$33)/($C$34-$C$33)*$A42) -> -8 | D42: =IF(($C$33-$C$34=0),1,(D$36-$C$33)/($C$34-$C$33)*$A42) -> -7 | E42: -6 | F42: -5 | G42: -4 | H42: -3 | I42: -2 | J42: -1 | K42: 0 | L42: 1 | M42: 2 | N42: 3 | O42: 4 | P42: 5 | Q42: 6 | R42: 7 | S42: 8 | T42: 9 | U42: 10 | V42: 15 | W42: 20 | X42: 25 | Y42: 30 | Z42: 35 | AA42: 40 | AB42: 45 | AC42: 50 | AD42: 55 | AE42: 60 | AF42: 65 | AG42: 70 | AH42: 75 | AI42: 80 | AJ42: 85 | AK42: 90 | AL42: 95 | AM42: 100 | AN42: 105 | AO42: 110 | AP42: 115 | AQ42: 120 | AR42: 125 | AS42: 130 | AT42: 135 | AU42: 140 | AV42: 145 | AW42: 150 | AX42: 155 | AY42: 160 | AZ42: 165 | BA42: 170 | BB42: 175 | BC42: 180 | BD42: 185 | BE42: 190 | BF42: 195 | BG42: 200 | BH42: 205 | BI42: 210 | BJ42: 215 | BK42: 220 | BL42: 225 | BM42: 230 | BN42: 235 | BO42: 240 | BP42: =IF(($C$33-$C$34=0),1,(BP$36-$C$33)/($C$34-$C$33)*$A42) -> 245 | BQ42: 250 | BR42: 255 | BS42: 260 | BT42: 265 | BU42: 270
A43: Phase 1 | B43: Reduction | C43: =IF(C$36<$C$34,C$42,$A42) -> -8 | D43: =IF(D$36<$C$34,D$42,$A42) -> -7 | E43: -6 | F43: -5 | G43: -4 | H43: -3 | I43: -2 | J43: -1 | K43: 0 | L43: 1 | M43: 2 | N43: 3 | O43: 4 | P43: 5 | Q43: 6 | R43: 7 | S43: 8 | T43: 9 | U43: 10 | V43: 10 | W43: 10 | X43: 10 | Y43: 10 | Z43: =IF(Z$36<$C$34,Z$42,$A42) -> 10 | AA43: 10 | AB43: 10 | AC43: 10 | AD43: 10 | AE43: 10 | AF43: 10 | AG43: 10 | AH43: 10 | AI43: 10 | AJ43: 10 | AK43: 10 | AL43: 10 | AM43: 10 | AN43: 10 | AO43: 10 | AP43: 10 | AQ43: 10 | AR43: 10 | AS43: 10 | AT43: 10 | AU43: 10 | AV43: 10 | AW43: 10 | AX43: 10 | AY43: 10 | AZ43: 10 | BA43: 10 | BB43: 10 | BC43: 10 | BD43: 10 | BE43: 10 | BF43: 10 | BG43: 10 | BH43: 10 | BI43: 10 | BJ43: 10 | BK43: =IF(BK$36<$C$34,BK$42,$A42) -> 10 | BL43: 10 | BM43: 10 | BN43: 10 | BO43: 10 | BP43: 10 | BQ43: 10 | BR43: 10 | BS43: 10 | BT43: 10 | BU43: 10
B44: Calculated reduction | C44: =IF(C$36<$C$33,0,C$43) -> 0 | D44: =IF(D$36<$C$33,0,D$43) -> 0 | E44: 0 | F44: 0 | G44: 0 | H44: 0 | I44: 0 | J44: 0 | K44: 0 | L44: 1 | M44: 2 | N44: 3 | O44: 4 | P44: 5 | Q44: 6 | R44: 7 | S44: 8 | T44: 9 | U44: 10 | V44: 10 | W44: 10 | X44: 10 | Y44: 10 | Z44: 10 | AA44: 10 | AB44: 10 | AC44: 10 | AD44: 10 | AE44: 10 | AF44: 10 | AG44: 10 | AH44: 10 | AI44: 10 | AJ44: 10 | AK44: 10 | AL44: 10 | AM44: 10 | AN44: 10 | AO44: 10 | AP44: 10 | AQ44: 10 | AR44: 10 | AS44: 10 | AT44: 10 | AU44: 10 | AV44: 10 | AW44: 10 | AX44: 10 | AY44: 10 | AZ44: 10 | BA44: 10 | BB44: 10 | BC44: 10 | BD44: 10 | BE44: 10 | BF44: 10 | BG44: 10 | BH44: 10 | BI44: 10 | BJ44: 10 | BK44: 10 | BL44: 10 | BM44: 10 | BN44: 10 | BO44: 10 | BP44: =IF(BP$36<$C$33,0,BP$43) -> 10 | BQ44: 10 | BR44: 10 | BS44: 10 | BT44: 10 | BU44: 10
B45: Phase 1, 1. Jan 2015-31 dec. 2019 | C45: =$C$32*POWER((C$36),-$E$32)*(1-(C$44/100)) -> 25.61468087 | D45: =$C$32*POWER((D$36),-$E$32)*(1-(D$44/100)) -> 21.11025205 | E45: 18.40338202 | F45: 16.54518262 | G45: 15.16708466 | H45: 14.09186559 | I45: 13.22227951 | J45: 12.4999012 | K45: 11.88721882 | L45: 11.24530246 | M45: 10.67915472 | N45: 10.17421738 | O45: 9.719600558 | P45: 9.306970385 | Q45: 8.929823584 | R45: 8.582999166 | S45: 8.262340708 | T45: 7.964457185 | U45: 7.68655004 | V45: 6.91043494 | W45: 6.334844054 | X45: 5.885756753 | Y45: 5.522556285 | Z45: 5.220840166 | AA45: 4.964940802 | AB45: 4.744274006 | AC45: 4.551395966 | AD45: 4.380897535 | AE45: 4.228740174 | AF45: 4.091839063 | AG45: 3.967791502 | AH45: 3.854694278 | AI45: 3.751017495 | AJ45: 3.655515309 | AK45: 3.567161456 | AL45: 3.485101822 | AM45: 3.408618964 | AN45: 3.337105194 | AO45: 3.270041862 | AP45: 3.206983242 | AQ45: 3.147543839 | AR45: 3.091388302 | AS45: 3.038223326 | AT45: 2.987791103 | AU45: 2.939863973 | AV45: 2.894240035 | AW45: 2.850739511 | AX45: 2.809201718 | AY45: 2.769482538 | AZ45: 2.73145228 | BA45: 2.694993871 | BB45: 2.660001321 | BC45: 2.626378407 | BD45: 2.594037542 | BE45: 2.562898806 | BF45: 2.5328891 | BG45: 2.503941413 | BH45: 2.47599419 | BI45: 2.448990768 | BJ45: 2.422878887 | BK45: 2.397610263 | BL45: 2.373140201 | BM45: 2.349427265 | BN45: 2.326432973 | BO45: 2.304121533 | BP45: =$C$32*POWER((BP$36),-$E$32)*(1-(BP$44/100)) -> 2.282459608 | BQ45: 2.2614161 | BR45: 2.240961962 | BS45: 2.221070026 | BT45: 2.201714851 | BU45: 2.182872581
A47: 20 | B47: Interpolation | C47: =IF(($C$33-$C$34=0),1,(C$36-$C$33)/($C$34-$C$33)*$A$47) -> -16 | D47: -14 | E47: -12 | F47: -10 | G47: -8 | H47: -6 | I47: -4 | J47: -2 | K47: 0 | L47: 2 | M47: 4 | N47: 6 | O47: 8 | P47: 10 | Q47: 12 | R47: 14 | S47: 16 | T47: 18 | U47: 20 | V47: 30 | W47: 40 | X47: 50 | Y47: 60 | Z47: =IF(($C$33-$C$34=0),1,(Z$36-$C$33)/($C$34-$C$33)*$A$47) -> 70 | AA47: 80 | AB47: 90 | AC47: 100 | AD47: 110 | AE47: 120 | AF47: 130 | AG47: 140 | AH47: 150 | AI47: 160 | AJ47: 170 | AK47: 180 | AL47: 190 | AM47: 200 | AN47: 210 | AO47: 220 | AP47: 230 | AQ47: 240 | AR47: 250 | AS47: 260 | AT47: 270 | AU47: 280 | AV47: 290 | AW47: 300 | AX47: 310 | AY47: 320 | AZ47: 330 | BA47: 340 | BB47: 350 | BC47: 360 | BD47: 370 | BE47: 380 | BF47: 390 | BG47: 400 | BH47: 410 | BI47: 420 | BJ47: 430 | BK47: 440 | BL47: 450 | BM47: 460 | BN47: 470 | BO47: 480 | BP47: 490 | BQ47: 500 | BR47: 510 | BS47: 520 | BT47: 530 | BU47: 540
A48: Phase 2 | B48: Reduction | C48: =IF(C$36<$C$34,C$47,$A$47) -> -16 | D48: -14 | E48: -12 | F48: -10 | G48: -8 | H48: -6 | I48: -4 | J48: -2 | K48: 0 | L48: 2 | M48: 4 | N48: 6 | O48: 8 | P48: 10 | Q48: 12 | R48: 14 | S48: 16 | T48: 18 | U48: 20 | V48: 20 | W48: 20 | X48: 20 | Y48: 20 | Z48: =IF(Z$36<$C$34,Z$47,$A$47) -> 20 | AA48: 20 | AB48: 20 | AC48: 20 | AD48: 20 | AE48: 20 | AF48: 20 | AG48: 20 | AH48: 20 | AI48: 20 | AJ48: 20 | AK48: 20 | AL48: 20 | AM48: 20 | AN48: 20 | AO48: 20 | AP48: 20 | AQ48: 20 | AR48: 20 | AS48: 20 | AT48: 20 | AU48: 20 | AV48: 20 | AW48: 20 | AX48: 20 | AY48: 20 | AZ48: 20 | BA48: 20 | BB48: 20 | BC48: 20 | BD48: 20 | BE48: 20 | BF48: 20 | BG48: 20 | BH48: 20 | BI48: 20 | BJ48: 20 | BK48: 20 | BL48: 20 | BM48: 20 | BN48: 20 | BO48: 20 | BP48: 20 | BQ48: 20 | BR48: 20 | BS48: 20 | BT48: 20 | BU48: 20
B49: Calculated reduction | C49: =IF(C$36<$C$33,0,C$48) -> 0 | D49: 0 | E49: 0 | F49: 0 | G49: 0 | H49: 0 | I49: 0 | J49: 0 | K49: 0 | L49: 2 | M49: 4 | N49: 6 | O49: 8 | P49: 10 | Q49: 12 | R49: 14 | S49: 16 | T49: 18 | U49: 20 | V49: 20 | W49: 20 | X49: 20 | Y49: 20 | Z49: =IF(Z$36<$C$33,0,Z$48) -> 20 | AA49: 20 | AB49: 20 | AC49: 20 | AD49: 20 | AE49: 20 | AF49: 20 | AG49: 20 | AH49: 20 | AI49: 20 | AJ49: 20 | AK49: 20 | AL49: 20 | AM49: 20 | AN49: 20 | AO49: 20 | AP49: 20 | AQ49: 20 | AR49: 20 | AS49: 20 | AT49: 20 | AU49: 20 | AV49: 20 | AW49: 20 | AX49: 20 | AY49: 20 | AZ49: 20 | BA49: 20 | BB49: 20 | BC49: 20 | BD49: 20 | BE49: 20 | BF49: 20 | BG49: 20 | BH49: 20 | BI49: 20 | BJ49: 20 | BK49: 20 | BL49: 20 | BM49: 20 | BN49: 20 | BO49: 20 | BP49: 20 | BQ49: 20 | BR49: 20 | BS49: 20 | BT49: 20 | BU49: 20
B50: Phase 2, 1. Jan 2020-31 dec. 2024 | C50: =$C$32*POWER((C$36),-$E$32)*(1-(C$49/100)) -> 25.61468087 | D50: 21.11025205 | E50: 18.40338202 | F50: 16.54518262 | G50: 15.16708466 | H50: 14.09186559 | I50: 13.22227951 | J50: 12.4999012 | K50: 11.88721882 | L50: 11.13171355 | M50: 10.46121279 | N50: 9.859550865 | O50: 9.314617202 | P50: 8.817129839 | Q50: 8.359834845 | R50: 7.936966971 | S50: 7.543876299 | T50: 7.176763617 | U50: 6.832488924 | V50: 6.142608836 | W50: 5.630972492 | X50: 5.23178378 | Y50: 4.90893892 | Z50: =$C$32*POWER((Z$36),-$E$32)*(1-(Z$49/100)) -> 4.640746814 | AA50: 4.413280713 | AB50: 4.21713245 | AC50: 4.045685303 | AD50: 3.894131143 | AE50: 3.758880154 | AF50: 3.637190279 | AG50: 3.526925779 | AH50: 3.426394914 | AI50: 3.334237773 | AJ50: 3.249346941 | AK50: 3.170810183 | AL50: 3.097868286 | AM50: 3.029883524 | AN50: 2.966315728 | AO50: 2.906703877 | AP50: 2.85065177 | AQ50: 2.797816746 | AR50: 2.747900713 | AS50: 2.700642956 | AT50: 2.655814314 | AU50: 2.61321242 | AV50: 2.572657809 | AW50: 2.533990676 | AX50: 2.497068194 | AY50: 2.461762256 | AZ50: 2.427957582 | BA50: 2.395550107 | BB50: 2.364445618 | BC50: 2.334558584 | BD50: 2.305811149 | BE50: 2.278132272 | BF50: 2.251456977 | BG50: 2.225725701 | BH50: 2.200883725 | BI50: 2.176880683 | BJ50: 2.153670122 | BK50: 2.131209123 | BL50: 2.109457957 | BM50: 2.088379791 | BN50: 2.06794042 | BO50: 2.048108029 | BP50: 2.028852985 | BQ50: 2.010147644 | BR50: 1.991966188 | BS50: 1.974284468 | BT50: 1.957079867 | BU50: 1.940331183
A52: 30 | B52: Interpolation | C52: =IF(($C$33-$C$34=0),1,(C$36-$C$33)/($C$34-$C$33)*$A$52) -> -24 | D52: -21 | E52: -18 | F52: -15 | G52: -12 | H52: -9 | I52: -6 | J52: -3 | K52: 0 | L52: 3 | M52: 6 | N52: 9 | O52: 12 | P52: 15 | Q52: 18 | R52: 21 | S52: 24 | T52: 27 | U52: 30 | V52: 45 | W52: 60 | X52: 75 | Y52: 90 | Z52: =IF(($C$33-$C$34=0),1,(Z$36-$C$33)/($C$34-$C$33)*$A$52) -> 105 | AA52: 120 | AB52: 135 | AC52: 150 | AD52: 165 | AE52: 180 | AF52: 195 | AG52: 210 | AH52: 225 | AI52: 240 | AJ52: 255 | AK52: 270 | AL52: 285 | AM52: 300 | AN52: 315 | AO52: 330 | AP52: 345 | AQ52: 360 | AR52: 375 | AS52: 390 | AT52: 405 | AU52: 420 | AV52: 435 | AW52: 450 | AX52: 465 | AY52: 480 | AZ52: 495 | BA52: 510 | BB52: 525 | BC52: 540 | BD52: 555 | BE52: 570 | BF52: 585 | BG52: 600 | BH52: 615 | BI52: 630 | BJ52: 645 | BK52: 660 | BL52: 675 | BM52: 690 | BN52: 705 | BO52: 720 | BP52: 735 | BQ52: 750 | BR52: 765 | BS52: 780 | BT52: 795 | BU52: 810
A53: Phase 2 | B53: Reduction | C53: =IF(C$36<$C$34,C$52,$A$52) -> -24 | D53: -21 | E53: -18 | F53: -15 | G53: -12 | H53: -9 | I53: -6 | J53: -3 | K53: 0 | L53: 3 | M53: 6 | N53: 9 | O53: 12 | P53: 15 | Q53: 18 | R53: 21 | S53: 24 | T53: 27 | U53: 30 | V53: 30 | W53: 30 | X53: 30 | Y53: 30 | Z53: =IF(Z$36<$C$34,Z$52,$A$52) -> 30 | AA53: 30 | AB53: 30 | AC53: 30 | AD53: 30 | AE53: 30 | AF53: 30 | AG53: 30 | AH53: 30 | AI53: 30 | AJ53: 30 | AK53: 30 | AL53: 30 | AM53: 30 | AN53: 30 | AO53: 30 | AP53: 30 | AQ53: 30 | AR53: 30 | AS53: 30 | AT53: 30 | AU53: 30 | AV53: 30 | AW53: 30 | AX53: 30 | AY53: 30 | AZ53: 30 | BA53: 30 | BB53: 30 | BC53: 30 | BD53: 30 | BE53: 30 | BF53: 30 | BG53: 30 | BH53: 30 | BI53: 30 | BJ53: 30 | BK53: 30 | BL53: 30 | BM53: 30 | BN53: 30 | BO53: 30 | BP53: 30 | BQ53: 30 | BR53: 30 | BS53: 30 | BT53: 30 | BU53: 30
B54: Calculated reduction | C54: =IF(C$36<$C$33,0,C$53) -> 0 | D54: 0 | E54: 0 | F54: 0 | G54: 0 | H54: 0 | I54: 0 | J54: 0 | K54: 0 | L54: 3 | M54: 6 | N54: 9 | O54: 12 | P54: 15 | Q54: 18 | R54: 21 | S54: 24 | T54: 27 | U54: 30 | V54: 30 | W54: 30 | X54: 30 | Y54: 30 | Z54: =IF(Z$36<$C$33,0,Z$53) -> 30 | AA54: 30 | AB54: 30 | AC54: 30 | AD54: 30 | AE54: 30 | AF54: 30 | AG54: 30 | AH54: 30 | AI54: 30 | AJ54: 30 | AK54: 30 | AL54: 30 | AM54: 30 | AN54: 30 | AO54: 30 | AP54: 30 | AQ54: 30 | AR54: 30 | AS54: 30 | AT54: 30 | AU54: 30 | AV54: 30 | AW54: 30 | AX54: 30 | AY54: 30 | AZ54: 30 | BA54: 30 | BB54: 30 | BC54: 30 | BD54: 30 | BE54: 30 | BF54: 30 | BG54: 30 | BH54: 30 | BI54: 30 | BJ54: 30 | BK54: 30 | BL54: 30 | BM54: 30 | BN54: 30 | BO54: 30 | BP54: 30 | BQ54: 30 | BR54: 30 | BS54: 30 | BT54: 30 | BU54: 30
B55: Phase 3, 1. Jan 2025-onwards | C55: =$C$32*POWER((C$36),-$E$32)*(1-(C$54/100)) -> 25.61468087 | D55: 21.11025205 | E55: 18.40338202 | F55: 16.54518262 | G55: 15.16708466 | H55: 14.09186559 | I55: 13.22227951 | J55: 12.4999012 | K55: 11.88721882 | L55: 11.01812464 | M55: 10.24327085 | N55: 9.544884348 | O55: 8.909633845 | P55: 8.327289292 | Q55: 7.789846106 | R55: 7.290934776 | S55: 6.825411889 | T55: 6.38907005 | U55: 5.978427809 | V55: 5.374782731 | W55: 4.927100931 | X55: 4.577810808 | Y55: 4.295321555 | Z55: =$C$32*POWER((Z$36),-$E$32)*(1-(Z$54/100)) -> 4.060653462 | AA55: 3.861620624 | AB55: 3.689990894 | AC55: 3.539974641 | AD55: 3.40736475 | AE55: 3.289020135 | AF55: 3.182541494 | AG55: 3.086060057 | AH55: 2.99809555 | AI55: 2.917458052 | AJ55: 2.843178573 | AK55: 2.77445891 | AL55: 2.71063475 | AM55: 2.651148083 | AN55: 2.595526262 | AO55: 2.543365892 | AP55: 2.494320299 | AQ55: 2.448089653 | AR55: 2.404413124 | AS55: 2.363062587 | AT55: 2.323837524 | AU55: 2.286560868 | AV55: 2.251075583 | AW55: 2.217241842 | AX55: 2.184934669 | AY55: 2.154041974 | AZ55: 2.124462884 | BA55: 2.096106344 | BB55: 2.068889916 | BC55: 2.042738761 | BD55: 2.017584755 | BE55: 1.993365738 | BF55: 1.970024855 | BG55: 1.947509988 | BH55: 1.925773259 | BI55: 1.904770597 | BJ55: 1.884461357 | BK55: 1.864807982 | BL55: 1.845775712 | BM55: 1.827332317 | BN55: 1.809447868 | BO55: 1.792094526 | BP55: 1.775246362 | BQ55: 1.758879189 | BR55: 1.742970415 | BS55: 1.727498909 | BT55: 1.712444884 | BU55: 1.697789785
B58: =B8 -> Crude oil tankers
B59: a | C59: =C8 -> 1218.8 | D59: c | E59: =E8 -> 0.488
B60: Min DWT | C60: =I8 -> 2000
B61: Max DWT | C61: =J8 -> 10000
B63: DWT | C63: =C$21 -> 2000 | D63: =D$21 -> 3000 | E63: 4000 | F63: 5000 | G63: 6000 | H63: 7000 | I63: 8000 | J63: 9000 | K63: 10000 | L63: 11000 | M63: 12000 | N63: 13000 | O63: 14000 | P63: 15000 | Q63: 16000 | R63: 17000 | S63: 18000 | T63: 19000 | U63: 20000 | V63: 25000 | W63: 30000 | X63: 35000 | Y63: 40000 | Z63: 45000 | AA63: 50000 | AB63: 55000 | AC63: 60000 | AD63: 65000 | AE63: 70000 | AF63: 75000 | AG63: 80000 | AH63: 85000 | AI63: 90000 | AJ63: 95000 | AK63: 100000 | AL63: 105000 | AM63: 110000 | AN63: 115000 | AO63: 120000 | AP63: 125000 | AQ63: 130000 | AR63: 135000 | AS63: 140000 | AT63: 145000 | AU63: 150000 | AV63: 155000 | AW63: 160000 | AX63: 165000 | AY63: 170000 | AZ63: 175000 | BA63: 180000 | BB63: 185000 | BC63: 190000 | BD63: 195000 | BE63: 200000 | BF63: 205000 | BG63: 210000 | BH63: 215000 | BI63: 220000 | BJ63: 225000 | BK63: 230000 | BL63: 235000 | BM63: 240000 | BN63: 245000 | BO63: 250000 | BP63: =BP$21 -> 255000 | BQ63: 260000 | BR63: 265000 | BS63: 270000 | BT63: 275000 | BU63: 280000
B64: Phase 0, 1. Jan 2013-31 dec. 2014 | C64: =$C$8*POWER(C$63,-$E$8) -> 29.85587527 | D64: =$C$8*POWER(D$63,-$E$8) -> 24.49611844 | E64: 21.28762297 | F64: 19.09128159 | G64: 17.46604744 | H64: 16.20035764 | I64: 15.17834891 | J64: 14.33052499 | K64: 13.61232926 | L64: 12.99369939 | M64: 12.45351641 | N64: 11.97644956 | O64: 11.55106331 | P64: 11.16863019 | Q64: 10.82235795 | R64: 10.50687032 | S64: 10.21784859 | T64: 9.951778204 | U64: 9.705765802 | V64: 8.704377573 | W64: 7.963376941 | X64: 7.386305052 | Y64: 6.92033582 | Z64: 6.533783485 | AA64: 6.206333136 | AB64: 5.924278317 | AC64: 5.677990157 | AD64: 5.460478828 | AE64: 5.26653048 | AF64: 5.092165955 | AG64: 4.934288426 | AH64: 4.790446671 | AI64: 4.658671641 | AJ64: 4.53736092 | AK64: 4.425195332 | AL64: 4.321077619 | AM64: 4.224086618 | AN64: 4.133442489 | AO64: 4.048479994 | AP64: 3.968627699 | AQ64: 3.893391619 | AR64: 3.822342211 | AS64: 3.755103953 | AT64: 3.691346899 | AU64: 3.630779805 | AV64: 3.573144477 | AW64: 3.518211096 | AX64: 3.465774331 | AY64: 3.415650075 | AZ64: 3.367672711 | BA64: 3.321692784 | BB64: 3.277575028 | BC64: 3.23519668 | BD64: 3.19444603 | BE64: 3.155221174 | BF64: 3.11742893 | BG64: 3.080983906 | BH64: 3.045807678 | BI64: 3.011828075 | BJ64: 2.978978554 | BK64: 2.947197646 | BL64: 2.916428467 | BM64: 2.886618294 | BN64: 2.857718171 | BO64: 2.829682581 | BP64: =$C$8*POWER(BP$63,-$E$8) -> 2.802469131 | BQ64: 2.776038288 | BR64: 2.750353134 | BS64: 2.725379147 | BT64: 2.701084004 | BU64: 2.677437404
B65: Phase 1, 1. Jan 2015-31 dec. 2019 | C65: =C72 -> 29.85587527 | D65: =D72 -> 24.18991696 | E65: 20.7554324 | F65: 18.37535853 | G65: 16.59274507 | H65: 15.18783528 | I65: 14.03997274 | J65: 13.07660406 | K65: 12.25109634 | L65: 11.69432945 | M65: 11.20816477 | N65: 10.7788046 | O65: 10.39595698 | P65: 10.05176717 | Q65: 9.740122152 | R65: 9.456183285 | S65: 9.196063734 | T65: 8.956600383 | U65: 8.735189222 | V65: 7.833939816 | W65: 7.167039247 | X65: 6.647674547 | Y65: 6.228302238 | Z65: 5.880405137 | AA65: 5.585699823 | AB65: 5.331850485 | AC65: 5.110191142 | AD65: 4.914430945 | AE65: 4.739877432 | AF65: 4.58294936 | AG65: 4.440859583 | AH65: 4.311402004 | AI65: 4.192804477 | AJ65: 4.083624828 | AK65: 3.982675798 | AL65: 3.888969857 | AM65: 3.801677957 | AN65: 3.72009824 | AO65: 3.643631994 | AP65: 3.571764929 | AQ65: 3.504052457 | AR65: 3.44010799 | AS65: 3.379593558 | AT65: 3.322212209 | AU65: 3.267701824 | AV65: 3.215830029 | AW65: 3.166389987 | AX65: 3.119196898 | AY65: 3.074085068 | AZ65: 3.03090544 | BA65: 2.989523506 | BB65: 2.949817525 | BC65: 2.911677012 | BD65: 2.875001427 | BE65: 2.839699056 | BF65: 2.805686037 | BG65: 2.772885515 | BH65: 2.74122691 | BI65: 2.710645268 | BJ65: 2.681080699 | BK65: 2.652477881 | BL65: =BL72 -> 2.624785621 | BM65: 2.597956464 | BN65: 2.571946354 | BO65: 2.546714323 | BP65: 2.522222217 | BQ65: 2.498434459 | BR65: 2.475317821 | BS65: 2.452841232 | BT65: 2.430975603 | BU65: 2.409693664
B66: Phase 2, 1. Jan 2020-31 dec. 2024 | C66: =C77 -> 29.85587527 | D66: =D77 -> 23.88371548 | E66: 20.22324182 | F66: 17.65943547 | G66: 15.71944269 | H66: 14.17531293 | I66: 12.90159657 | J66: 11.82268312 | K66: 10.88986341 | L66: 10.39495951 | M66: 9.962813131 | N66: 9.581159645 | O66: 9.240850647 | P66: 8.934904154 | Q66: 8.657886357 | R66: 8.405496253 | S66: 8.174278874 | T66: 7.961422563 | U66: 7.764612641 | V66: 6.963502058 | W66: 6.370701553 | X66: 5.909044042 | Y66: 5.536268656 | Z66: 5.227026788 | AA66: 4.965066509 | AB66: 4.739422654 | AC66: 4.542392126 | AD66: 4.368383062 | AE66: 4.213224384 | AF66: 4.073732764 | AG66: 3.947430741 | AH66: 3.832357337 | AI66: 3.726937313 | AJ66: 3.629888736 | AK66: 3.540156265 | AL66: 3.456862096 | AM66: 3.379269295 | AN66: 3.306753992 | AO66: 3.238783995 | AP66: 3.174902159 | AQ66: 3.114713295 | AR66: 3.057873769 | AS66: 3.004083162 | AT66: 2.953077519 | AU66: 2.904623844 | AV66: 2.858515581 | AW66: 2.814568877 | AX66: 2.772619464 | AY66: 2.73252006 | AZ66: 2.694138169 | BA66: 2.657354227 | BB66: 2.622060023 | BC66: 2.588157344 | BD66: 2.555556824 | BE66: 2.524176939 | BF66: 2.493943144 | BG66: 2.464787125 | BH66: 2.436646142 | BI66: 2.40946246 | BJ66: 2.383182843 | BK66: 2.357758116 | BL66: =BL77 -> 2.333142774 | BM66: 2.309294635 | BN66: 2.286174537 | BO66: 2.263746065 | BP66: 2.241975304 | BQ66: 2.22083063 | BR66: 2.200282507 | BS66: 2.180303318 | BT66: 2.160867203 | BU66: 2.141949923
B67: Phase 3, 1. Jan 2025-onwards | C67: =C82 -> 29.85587527 | D67: =D82 -> 23.577514 | E67: 19.69105125 | F67: 16.94351241 | G67: 14.84614032 | H67: 13.16279058 | I67: 11.76322041 | J67: 10.56876218 | K67: 9.528630485 | L67: 9.095589575 | M67: 8.717461489 | N67: 8.38351469 | O67: 8.085744316 | P67: 7.818041135 | Q67: 7.575650563 | R67: 7.354809222 | S67: 7.152494015 | T67: 6.966244743 | U67: 6.794036061 | V67: 6.093064301 | W67: 5.574363859 | X67: 5.170413536 | Y67: 4.844235074 | Z67: 4.57364844 | AA67: 4.344433195 | AB67: 4.146994822 | AC67: 3.97459311 | AD67: 3.822335179 | AE67: 3.686571336 | AF67: 3.564516169 | AG67: 3.454001898 | AH67: 3.35331267 | AI67: 3.261070148 | AJ67: 3.176152644 | AK67: 3.097636732 | AL67: 3.024754334 | AM67: 2.956860633 | AN67: 2.893409743 | AO67: 2.833935996 | AP67: 2.778039389 | AQ67: 2.725374133 | AR67: 2.675639548 | AS67: 2.628572767 | AT67: 2.583942829 | AU67: 2.541545863 | AV67: 2.501201134 | AW67: 2.462747767 | AX67: 2.426042031 | AY67: 2.390955053 | AZ67: 2.357370898 | BA67: 2.325184949 | BB67: 2.29430252 | BC67: 2.264637676 | BD67: 2.236112221 | BE67: 2.208654821 | BF67: 2.182200251 | BG67: 2.156688734 | BH67: 2.132065375 | BI67: 2.108279653 | BJ67: 2.085284988 | BK67: 2.063038352 | BL67: =BL82 -> 2.041499927 | BM67: 2.020632806 | BN67: 2.00040272 | BO67: 1.980777806 | BP67: 1.961728391 | BQ67: 1.943226802 | BR67: 1.925247194 | BS67: 1.907765403 | BT67: 1.890758803 | BU67: 1.874206183
A69: 10 | B69: Interpolation | C69: =IF(($C$60-$C$61=0),1,(C$63-$C$60)/($C$61-$C$60)*$A69) -> 0 | D69: =IF(($C$60-$C$61=0),1,(D$63-$C$60)/($C$61-$C$60)*$A69) -> 1.25 | E69: 2.5 | F69: 3.75 | G69: 5 | H69: 6.25 | I69: 7.5 | J69: 8.75 | K69: 10 | L69: 11.25 | M69: 12.5 | N69: 13.75 | O69: 15 | P69: 16.25 | Q69: 17.5 | R69: 18.75 | S69: 20 | T69: 21.25 | U69: 22.5 | V69: 28.75 | W69: 35 | X69: 41.25 | Y69: 47.5 | Z69: 53.75 | AA69: 60 | AB69: 66.25 | AC69: 72.5 | AD69: 78.75 | AE69: 85 | AF69: 91.25 | AG69: 97.5 | AH69: 103.75 | AI69: 110 | AJ69: 116.25 | AK69: 122.5 | AL69: 128.75 | AM69: 135 | AN69: 141.25 | AO69: 147.5 | AP69: 153.75 | AQ69: 160 | AR69: 166.25 | AS69: 172.5 | AT69: 178.75 | AU69: 185 | AV69: 191.25 | AW69: 197.5 | AX69: 203.75 | AY69: 210 | AZ69: 216.25 | BA69: 222.5 | BB69: 228.75 | BC69: 235 | BD69: 241.25 | BE69: 247.5 | BF69: 253.75 | BG69: 260 | BH69: 266.25 | BI69: 272.5 | BJ69: 278.75 | BK69: 285 | BL69: 291.25 | BM69: 297.5 | BN69: 303.75 | BO69: 310 | BP69: =IF(($C$60-$C$61=0),1,(BP$63-$C$60)/($C$61-$C$60)*$A69) -> 316.25 | BQ69: 322.5 | BR69: 328.75 | BS69: 335 | BT69: 341.25 | BU69: 347.5
A70: Phase 1 | B70: Reduction | C70: =IF(C$63<$C$61,C$69,$A69) -> 0 | D70: =IF(D$63<$C$61,D$69,$A69) -> 1.25 | E70: 2.5 | F70: 3.75 | G70: 5 | H70: 6.25 | I70: 7.5 | J70: 8.75 | K70: 10 | L70: 10 | M70: 10 | N70: 10 | O70: 10 | P70: 10 | Q70: 10 | R70: 10 | S70: 10 | T70: 10 | U70: 10 | V70: 10 | W70: 10 | X70: 10 | Y70: 10 | Z70: 10 | AA70: 10 | AB70: 10 | AC70: 10 | AD70: 10 | AE70: 10 | AF70: 10 | AG70: 10 | AH70: 10 | AI70: 10 | AJ70: 10 | AK70: 10 | AL70: 10 | AM70: 10 | AN70: 10 | AO70: 10 | AP70: 10 | AQ70: 10 | AR70: 10 | AS70: 10 | AT70: 10 | AU70: 10 | AV70: 10 | AW70: 10 | AX70: 10 | AY70: 10 | AZ70: 10 | BA70: 10 | BB70: 10 | BC70: 10 | BD70: 10 | BE70: 10 | BF70: 10 | BG70: 10 | BH70: 10 | BI70: 10 | BJ70: 10 | BK70: 10 | BL70: =IF(BL$63<$C$61,BL$69,$A69) -> 10 | BM70: 10 | BN70: 10 | BO70: 10 | BP70: 10 | BQ70: 10 | BR70: 10 | BS70: 10 | BT70: 10 | BU70: 10
B71: Calculated reduction | C71: =IF(C$63<$C$60,0,C$70) -> 0 | D71: =IF(D$63<$C$60,0,D$70) -> 1.25 | E71: 2.5 | F71: 3.75 | G71: 5 | H71: 6.25 | I71: 7.5 | J71: 8.75 | K71: 10 | L71: 10 | M71: 10 | N71: 10 | O71: 10 | P71: 10 | Q71: 10 | R71: 10 | S71: 10 | T71: 10 | U71: 10 | V71: 10 | W71: 10 | X71: 10 | Y71: 10 | Z71: 10 | AA71: 10 | AB71: 10 | AC71: 10 | AD71: 10 | AE71: 10 | AF71: 10 | AG71: 10 | AH71: 10 | AI71: 10 | AJ71: 10 | AK71: 10 | AL71: 10 | AM71: 10 | AN71: 10 | AO71: 10 | AP71: 10 | AQ71: 10 | AR71: 10 | AS71: 10 | AT71: 10 | AU71: 10 | AV71: 10 | AW71: 10 | AX71: 10 | AY71: 10 | AZ71: 10 | BA71: 10 | BB71: 10 | BC71: 10 | BD71: 10 | BE71: 10 | BF71: 10 | BG71: 10 | BH71: 10 | BI71: 10 | BJ71: 10 | BK71: 10 | BL71: 10 | BM71: 10 | BN71: 10 | BO71: 10 | BP71: =IF(BP$63<$C$60,0,BP$70) -> 10 | BQ71: 10 | BR71: 10 | BS71: 10 | BT71: 10 | BU71: 10
B72: Phase 1, 1. Jan 2015-31 dec. 2019 | C72: =$C$59*POWER((C$63),-$E$59)*(1-(C$71/100)) -> 29.85587527 | D72: =$C$59*POWER((D$63),-$E$59)*(1-(D$71/100)) -> 24.18991696 | E72: 20.7554324 | F72: 18.37535853 | G72: 16.59274507 | H72: 15.18783528 | I72: 14.03997274 | J72: 13.07660406 | K72: 12.25109634 | L72: 11.69432945 | M72: 11.20816477 | N72: 10.7788046 | O72: 10.39595698 | P72: 10.05176717 | Q72: 9.740122152 | R72: 9.456183285 | S72: 9.196063734 | T72: 8.956600383 | U72: 8.735189222 | V72: 7.833939816 | W72: 7.167039247 | X72: 6.647674547 | Y72: 6.228302238 | Z72: 5.880405137 | AA72: 5.585699823 | AB72: 5.331850485 | AC72: 5.110191142 | AD72: 4.914430945 | AE72: 4.739877432 | AF72: 4.58294936 | AG72: 4.440859583 | AH72: 4.311402004 | AI72: 4.192804477 | AJ72: 4.083624828 | AK72: 3.982675798 | AL72: 3.888969857 | AM72: 3.801677957 | AN72: 3.72009824 | AO72: 3.643631994 | AP72: 3.571764929 | AQ72: 3.504052457 | AR72: 3.44010799 | AS72: 3.379593558 | AT72: 3.322212209 | AU72: 3.267701824 | AV72: 3.215830029 | AW72: 3.166389987 | AX72: 3.119196898 | AY72: 3.074085068 | AZ72: 3.03090544 | BA72: 2.989523506 | BB72: 2.949817525 | BC72: 2.911677012 | BD72: 2.875001427 | BE72: 2.839699056 | BF72: 2.805686037 | BG72: 2.772885515 | BH72: 2.74122691 | BI72: 2.710645268 | BJ72: 2.681080699 | BK72: 2.652477881 | BL72: 2.624785621 | BM72: 2.597956464 | BN72: 2.571946354 | BO72: 2.546714323 | BP72: =$C$59*POWER((BP$63),-$E$59)*(1-(BP$71/100)) -> 2.522222217 | BQ72: 2.498434459 | BR72: 2.475317821 | BS72: 2.452841232 | BT72: 2.430975603 | BU72: 2.409693664
A74: 20 | B74: Interpolation | C74: =IF(($C$60-$C$61=0),1,(C$63-$C$60)/($C$61-$C$60)*$A74) -> 0 | D74: =IF(($C$60-$C$61=0),1,(D$63-$C$60)/($C$61-$C$60)*$A74) -> 2.5 | E74: 5 | F74: 7.5 | G74: 10 | H74: 12.5 | I74: 15 | J74: 17.5 | K74: 20 | L74: 22.5 | M74: 25 | N74: 27.5 | O74: 30 | P74: 32.5 | Q74: 35 | R74: 37.5 | S74: 40 | T74: 42.5 | U74: 45 | V74: 57.5 | W74: 70 | X74: 82.5 | Y74: 95 | Z74: 107.5 | AA74: 120 | AB74: 132.5 | AC74: 145 | AD74: 157.5 | AE74: 170 | AF74: 182.5 | AG74: 195 | AH74: 207.5 | AI74: 220 | AJ74: 232.5 | AK74: 245 | AL74: 257.5 | AM74: 270 | AN74: 282.5 | AO74: 295 | AP74: 307.5 | AQ74: 320 | AR74: 332.5 | AS74: 345 | AT74: 357.5 | AU74: 370 | AV74: 382.5 | AW74: 395 | AX74: 407.5 | AY74: 420 | AZ74: 432.5 | BA74: 445 | BB74: 457.5 | BC74: 470 | BD74: 482.5 | BE74: 495 | BF74: 507.5 | BG74: 520 | BH74: 532.5 | BI74: 545 | BJ74: 557.5 | BK74: 570 | BL74: 582.5 | BM74: 595 | BN74: 607.5 | BO74: 620 | BP74: =IF(($C$60-$C$61=0),1,(BP$63-$C$60)/($C$61-$C$60)*$A74) -> 632.5 | BQ74: 645 | BR74: 657.5 | BS74: 670 | BT74: 682.5 | BU74: 695
A75: Phase 2 | B75: Reduction | C75: =IF(C$63<$C$61,C$74,$A74) -> 0 | D75: =IF(D$63<$C$61,D$74,$A74) -> 2.5 | E75: 5 | F75: 7.5 | G75: 10 | H75: 12.5 | I75: 15 | J75: 17.5 | K75: 20 | L75: 20 | M75: 20 | N75: 20 | O75: 20 | P75: 20 | Q75: 20 | R75: 20 | S75: 20 | T75: 20 | U75: 20 | V75: 20 | W75: 20 | X75: 20 | Y75: 20 | Z75: 20 | AA75: 20 | AB75: 20 | AC75: 20 | AD75: 20 | AE75: 20 | AF75: 20 | AG75: 20 | AH75: 20 | AI75: 20 | AJ75: 20 | AK75: 20 | AL75: 20 | AM75: 20 | AN75: 20 | AO75: 20 | AP75: 20 | AQ75: 20 | AR75: 20 | AS75: 20 | AT75: 20 | AU75: 20 | AV75: 20 | AW75: 20 | AX75: 20 | AY75: 20 | AZ75: 20 | BA75: 20 | BB75: 20 | BC75: 20 | BD75: 20 | BE75: 20 | BF75: 20 | BG75: 20 | BH75: 20 | BI75: 20 | BJ75: 20 | BK75: 20 | BL75: =IF(BL$63<$C$61,BL$74,$A74) -> 20 | BM75: 20 | BN75: 20 | BO75: 20 | BP75: 20 | BQ75: 20 | BR75: 20 | BS75: 20 | BT75: 20 | BU75: 20
B76: Calculated reduction | C76: =IF(C$63<$C$60,0,C$75) -> 0 | D76: =IF(D$63<$C$60,0,D$75) -> 2.5 | E76: 5 | F76: 7.5 | G76: 10 | H76: 12.5 | I76: 15 | J76: 17.5 | K76: 20 | L76: 20 | M76: 20 | N76: 20 | O76: 20 | P76: 20 | Q76: 20 | R76: 20 | S76: 20 | T76: 20 | U76: 20 | V76: 20 | W76: 20 | X76: 20 | Y76: 20 | Z76: 20 | AA76: 20 | AB76: 20 | AC76: 20 | AD76: 20 | AE76: 20 | AF76: 20 | AG76: 20 | AH76: 20 | AI76: 20 | AJ76: 20 | AK76: 20 | AL76: 20 | AM76: 20 | AN76: 20 | AO76: 20 | AP76: 20 | AQ76: 20 | AR76: 20 | AS76: 20 | AT76: 20 | AU76: 20 | AV76: 20 | AW76: 20 | AX76: 20 | AY76: 20 | AZ76: 20 | BA76: 20 | BB76: 20 | BC76: 20 | BD76: 20 | BE76: 20 | BF76: 20 | BG76: 20 | BH76: 20 | BI76: 20 | BJ76: 20 | BK76: 20 | BL76: 20 | BM76: 20 | BN76: 20 | BO76: 20 | BP76: =IF(BP$63<$C$60,0,BP$75) -> 20 | BQ76: 20 | BR76: 20 | BS76: 20 | BT76: 20 | BU76: 20
B77: Phase 2, 1. Jan 2020-31 dec. 2024 | C77: =$C$59*POWER((C$63),-$E$59)*(1-(C$76/100)) -> 29.85587527 | D77: =$C$59*POWER((D$63),-$E$59)*(1-(D$76/100)) -> 23.88371548 | E77: 20.22324182 | F77: 17.65943547 | G77: 15.71944269 | H77: 14.17531293 | I77: 12.90159657 | J77: 11.82268312 | K77: 10.88986341 | L77: 10.39495951 | M77: 9.962813131 | N77: 9.581159645 | O77: 9.240850647 | P77: 8.934904154 | Q77: 8.657886357 | R77: 8.405496253 | S77: 8.174278874 | T77: 7.961422563 | U77: 7.764612641 | V77: 6.963502058 | W77: 6.370701553 | X77: 5.909044042 | Y77: 5.536268656 | Z77: 5.227026788 | AA77: 4.965066509 | AB77: 4.739422654 | AC77: 4.542392126 | AD77: 4.368383062 | AE77: 4.213224384 | AF77: 4.073732764 | AG77: 3.947430741 | AH77: 3.832357337 | AI77: 3.726937313 | AJ77: 3.629888736 | AK77: 3.540156265 | AL77: 3.456862096 | AM77: 3.379269295 | AN77: 3.306753992 | AO77: 3.238783995 | AP77: 3.174902159 | AQ77: 3.114713295 | AR77: 3.057873769 | AS77: 3.004083162 | AT77: 2.953077519 | AU77: 2.904623844 | AV77: 2.858515581 | AW77: 2.814568877 | AX77: 2.772619464 | AY77: 2.73252006 | AZ77: 2.694138169 | BA77: 2.657354227 | BB77: 2.622060023 | BC77: 2.588157344 | BD77: 2.555556824 | BE77: 2.524176939 | BF77: 2.493943144 | BG77: 2.464787125 | BH77: 2.436646142 | BI77: 2.40946246 | BJ77: 2.383182843 | BK77: 2.357758116 | BL77: 2.333142774 | BM77: 2.309294635 | BN77: 2.286174537 | BO77: 2.263746065 | BP77: =$C$59*POWER((BP$63),-$E$59)*(1-(BP$76/100)) -> 2.241975304 | BQ77: 2.22083063 | BR77: 2.200282507 | BS77: 2.180303318 | BT77: 2.160867203 | BU77: 2.141949923
A79: 30 | B79: Interpolation | C79: =IF(($C$60-$C$61=0),1,(C$63-$C$60)/($C$61-$C$60)*$A79) -> 0 | D79: =IF(($C$60-$C$61=0),1,(D$63-$C$60)/($C$61-$C$60)*$A79) -> 3.75 | E79: 7.5 | F79: 11.25 | G79: 15 | H79: 18.75 | I79: 22.5 | J79: 26.25 | K79: 30 | L79: 33.75 | M79: 37.5 | N79: 41.25 | O79: 45 | P79: 48.75 | Q79: 52.5 | R79: 56.25 | S79: 60 | T79: 63.75 | U79: 67.5 | V79: 86.25 | W79: 105 | X79: 123.75 | Y79: 142.5 | Z79: 161.25 | AA79: 180 | AB79: 198.75 | AC79: 217.5 | AD79: 236.25 | AE79: 255 | AF79: 273.75 | AG79: 292.5 | AH79: 311.25 | AI79: 330 | AJ79: 348.75 | AK79: 367.5 | AL79: 386.25 | AM79: 405 | AN79: 423.75 | AO79: 442.5 | AP79: 461.25 | AQ79: 480 | AR79: 498.75 | AS79: 517.5 | AT79: 536.25 | AU79: 555 | AV79: 573.75 | AW79: 592.5 | AX79: 611.25 | AY79: 630 | AZ79: 648.75 | BA79: 667.5 | BB79: 686.25 | BC79: 705 | BD79: 723.75 | BE79: 742.5 | BF79: 761.25 | BG79: 780 | BH79: 798.75 | BI79: 817.5 | BJ79: 836.25 | BK79: 855 | BL79: 873.75 | BM79: 892.5 | BN79: 911.25 | BO79: 930 | BP79: =IF(($C$60-$C$61=0),1,(BP$63-$C$60)/($C$61-$C$60)*$A79) -> 948.75 | BQ79: 967.5 | BR79: 986.25 | BS79: 1005 | BT79: 1023.75 | BU79: 1042.5
A80: Phase 2 | B80: Reduction | C80: =IF(C$63<$C$61,C$79,$A79) -> 0 | D80: =IF(D$63<$C$61,D$79,$A79) -> 3.75 | E80: 7.5 | F80: 11.25 | G80: 15 | H80: 18.75 | I80: 22.5 | J80: 26.25 | K80: 30 | L80: 30 | M80: 30 | N80: 30 | O80: 30 | P80: 30 | Q80: 30 | R80: 30 | S80: 30 | T80: 30 | U80: 30 | V80: 30 | W80: 30 | X80: 30 | Y80: 30 | Z80: 30 | AA80: 30 | AB80: 30 | AC80: 30 | AD80: 30 | AE80: 30 | AF80: 30 | AG80: 30 | AH80: 30 | AI80: 30 | AJ80: 30 | AK80: 30 | AL80: 30 | AM80: 30 | AN80: 30 | AO80: 30 | AP80: 30 | AQ80: 30 | AR80: 30 | AS80: 30 | AT80: 30 | AU80: 30 | AV80: 30 | AW80: 30 | AX80: 30 | AY80: 30 | AZ80: 30 | BA80: 30 | BB80: 30 | BC80: 30 | BD80: 30 | BE80: 30 | BF80: 30 | BG80: 30 | BH80: 30 | BI80: 30 | BJ80: 30 | BK80: 30 | BL80: =IF(BL$63<$C$61,BL$79,$A79) -> 30 | BM80: 30 | BN80: 30 | BO80: 30 | BP80: 30 | BQ80: 30 | BR80: 30 | BS80: 30 | BT80: 30 | BU80: 30
B81: Calculated reduction | C81: =IF(C$63<$C$60,0,C$80) -> 0 | D81: =IF(D$63<$C$60,0,D$80) -> 3.75 | E81: 7.5 | F81: 11.25 | G81: 15 | H81: 18.75 | I81: 22.5 | J81: 26.25 | K81: 30 | L81: 30 | M81: 30 | N81: 30 | O81: 30 | P81: 30 | Q81: 30 | R81: 30 | S81: 30 | T81: 30 | U81: 30 | V81: 30 | W81: 30 | X81: 30 | Y81: 30 | Z81: 30 | AA81: 30 | AB81: 30 | AC81: 30 | AD81: 30 | AE81: 30 | AF81: 30 | AG81: 30 | AH81: 30 | AI81: 30 | AJ81: 30 | AK81: 30 | AL81: 30 | AM81: 30 | AN81: 30 | AO81: 30 | AP81: 30 | AQ81: 30 | AR81: 30 | AS81: 30 | AT81: 30 | AU81: 30 | AV81: 30 | AW81: 30 | AX81: 30 | AY81: 30 | AZ81: 30 | BA81: 30 | BB81: 30 | BC81: 30 | BD81: 30 | BE81: 30 | BF81: 30 | BG81: 30 | BH81: 30 | BI81: 30 | BJ81: 30 | BK81: 30 | BL81: 30 | BM81: 30 | BN81: 30 | BO81: 30 | BP81: =IF(BP$63<$C$60,0,BP$80) -> 30 | BQ81: 30 | BR81: 30 | BS81: 30 | BT81: 30 | BU81: 30
B82: Phase 3, 1. Jan 2025-onwards | C82: =$C$59*POWER((C$63),-$E$59)*(1-(C$81/100)) -> 29.85587527 | D82: =$C$59*POWER((D$63),-$E$59)*(1-(D$81/100)) -> 23.577514 | E82: 19.69105125 | F82: 16.94351241 | G82: 14.84614032 | H82: 13.16279058 | I82: 11.76322041 | J82: 10.56876218 | K82: 9.528630485 | L82: 9.095589575 | M82: 8.717461489 | N82: 8.38351469 | O82: 8.085744316 | P82: 7.818041135 | Q82: 7.575650563 | R82: 7.354809222 | S82: 7.152494015 | T82: 6.966244743 | U82: 6.794036061 | V82: 6.093064301 | W82: 5.574363859 | X82: 5.170413536 | Y82: 4.844235074 | Z82: 4.57364844 | AA82: 4.344433195 | AB82: 4.146994822 | AC82: 3.97459311 | AD82: 3.822335179 | AE82: 3.686571336 | AF82: 3.564516169 | AG82: 3.454001898 | AH82: 3.35331267 | AI82: 3.261070148 | AJ82: 3.176152644 | AK82: 3.097636732 | AL82: 3.024754334 | AM82: 2.956860633 | AN82: 2.893409743 | AO82: 2.833935996 | AP82: 2.778039389 | AQ82: 2.725374133 | AR82: 2.675639548 | AS82: 2.628572767 | AT82: 2.583942829 | AU82: 2.541545863 | AV82: 2.501201134 | AW82: 2.462747767 | AX82: 2.426042031 | AY82: 2.390955053 | AZ82: 2.357370898 | BA82: 2.325184949 | BB82: 2.29430252 | BC82: 2.264637676 | BD82: 2.236112221 | BE82: 2.208654821 | BF82: 2.182200251 | BG82: 2.156688734 | BH82: 2.132065375 | BI82: 2.108279653 | BJ82: 2.085284988 | BK82: 2.063038352 | BL82: 2.041499927 | BM82: 2.020632806 | BN82: 2.00040272 | BO82: 1.980777806 | BP82: =$C$59*POWER((BP$63),-$E$59)*(1-(BP$81/100)) -> 1.961728391 | BQ82: 1.943226802 | BR82: 1.925247194 | BS82: 1.907765403 | BT82: 1.890758803 | BU82: 1.874206183
B85: =B9 -> Container ships
B86: a | C86: =C9 -> 174.22 | D86: c | E86: =E9 -> 0.201
B87: Min DWT | C87: =I9 -> 10000
B88: Max DWT | C88: =J9 -> 15000
B90: DWT | C90: =C$21 -> 2000 | D90: =D$21 -> 3000 | E90: 4000 | F90: 5000 | G90: 6000 | H90: 7000 | I90: 8000 | J90: 9000 | K90: 10000 | L90: 11000 | M90: 12000 | N90: 13000 | O90: 14000 | P90: 15000 | Q90: 16000 | R90: 17000 | S90: 18000 | T90: 19000 | U90: 20000 | V90: 25000 | W90: 30000 | X90: 35000 | Y90: 40000 | Z90: 45000 | AA90: 50000 | AB90: 55000 | AC90: 60000 | AD90: 65000 | AE90: 70000 | AF90: 75000 | AG90: 80000 | AH90: 85000 | AI90: 90000 | AJ90: 95000 | AK90: 100000 | AL90: 105000 | AM90: 110000 | AN90: 115000 | AO90: 120000 | AP90: 125000 | AQ90: 130000 | AR90: 135000 | AS90: 140000 | AT90: 145000 | AU90: 150000 | AV90: 155000 | AW90: 160000 | AX90: 165000 | AY90: 170000 | AZ90: 175000 | BA90: 180000 | BB90: 185000 | BC90: 190000 | BD90: 195000 | BE90: 200000 | BF90: 205000 | BG90: 210000 | BH90: 215000 | BI90: 220000 | BJ90: 225000 | BK90: 230000 | BL90: 235000 | BM90: 240000 | BN90: 245000 | BO90: 250000 | BP90: =BP$21 -> 255000 | BQ90: 260000 | BR90: 265000 | BS90: 270000 | BT90: 275000 | BU90: 280000
B91: Phase 0, 1. Jan 2013-31 dec. 2014 | C91: =$C$9*POWER(C$90,-$E$9) -> 37.80863342 | D91: =$C$9*POWER(D$90,-$E$9) -> 34.84950688 | E91: 32.89152056 | F91: 31.44886951 | G91: 30.31723625 | H91: 29.39228184 | I91: 28.61389124 | J91: 27.94443061 | K91: 27.35886078 | L91: 26.83972611 | M91: 26.37439942 | N91: 25.95346785 | O91: 25.56973777 | P91: 25.21759504 | Q91: 24.89257893 | R91: 24.59108983 | S91: 24.31018344 | T91: 24.0474226 | U91: 23.80076851 | V91: 22.75684585 | W91: 21.93798005 | X91: 21.26866998 | Y91: 20.70541555 | Z91: 20.2209844 | AA91: 19.7972578 | AB91: 19.42160463 | AC91: 19.08488767 | AD91: 18.78029564 | AE91: 18.50262315 | AF91: 18.24780769 | AG91: 18.01262145 | AH91: 17.79445968 | AI91: 17.59119185 | AJ91: 17.4010544 | AK91: 17.22257202 | AL91: 17.05449878 | AM91: 16.89577353 | AN91: 16.7454855 | AO91: 16.6028475 | AP91: 16.46717485 | AQ91: 16.33786848 | AR91: 16.21440147 | AS91: 16.09630802 | AT91: 15.9831745 | AU91: 15.874632 | AV91: 15.77035022 | AW91: 15.67003234 | AX91: 15.57341069 | AY91: 15.48024309 | AZ91: 15.39030978 | BA91: 15.30341078 | BB91: 15.21936357 | BC91: 15.13800121 | BD91: 15.05917057 | BE91: 14.98273093 | BF91: 14.90855265 | BG91: 14.83651606 | BH91: 14.76651051 | BI91: 14.69843346 | BJ91: 14.63218971 | BK91: 14.56769078 | BL91: 14.50485425 | BM91: 14.44360323 | BN91: 14.38386593 | BO91: 14.32557516 | BP91: =$C$9*POWER(BP$90,-$E$9) -> 14.268668 | BQ91: 14.21308543 | BR91: 14.15877201 | BS91: 14.10567563 | BT91: 14.05374723 | BU91: 14.00294055
B92: Phase 1, 1. Jan 2015-31 dec. 2019 | C92: =C99 -> 37.80863342 | D92: =D99 -> 34.84950688 | E92: 32.89152056 | F92: 31.44886951 | G92: 30.31723625 | H92: 29.39228184 | I92: 28.61389124 | J92: 27.94443061 | K92: 27.35886078 | L92: 26.30293159 | M92: 25.31942344 | N92: 24.39625978 | O92: 23.52415875 | P92: 22.69583554 | Q92: 22.40332104 | R92: 22.13198084 | S92: 21.87916509 | T92: 21.64268034 | U92: 21.42069166 | V92: 20.48116126 | W92: 19.74418204 | X92: 19.14180298 | Y92: 18.634874 | Z92: 18.19888596 | AA92: 17.81753202 | AB92: 17.47944417 | AC92: 17.1763989 | AD92: 16.90226608 | AE92: 16.65236083 | AF92: 16.42302693 | AG92: 16.2113593 | AH92: 16.01501371 | AI92: 15.83207266 | AJ92: 15.66094896 | AK92: 15.50031481 | AL92: 15.3490489 | AM92: 15.20619618 | AN92: 15.07093695 | AO92: 14.94256275 | AP92: 14.82045736 | AQ92: 14.70408163 | AR92: 14.59296132 | AS92: 14.48667722 | AT92: 14.38485705 | AU92: 14.2871688 | AV92: 14.1933152 | AW92: 14.10302911 | AX92: 14.01606962 | AY92: 13.93221878 | AZ92: 13.85127881 | BA92: 13.7730697 | BB92: 13.69742722 | BC92: 13.62420109 | BD92: 13.55325352 | BE92: 13.48445784 | BF92: 13.41769738 | BG92: 13.35286446 | BH92: 13.28985946 | BI92: 13.22859011 | BJ92: 13.16897074 | BK92: 13.1109217 | BL92: =BL99 -> 13.05436882 | BM92: 12.99924291 | BN92: 12.94547934 | BO92: 12.89301765 | BP92: 12.8418012 | BQ92: 12.79177689 | BR92: 12.74289481 | BS92: 12.69510807 | BT92: 12.6483725 | BU92: 12.6026465
B93: Phase 2, 1. Jan 2020-31 dec. 2024 | C93: =C104 -> 37.80863342 | D93: =D104 -> 34.84950688 | E93: 32.89152056 | F93: 31.44886951 | G93: 30.31723625 | H93: 29.39228184 | I93: 28.61389124 | J93: 27.94443061 | K93: 27.35886078 | L93: 25.76613707 | M93: 24.26444747 | N93: 22.83905171 | O93: 21.47857973 | P93: 20.17407603 | Q93: 19.91406314 | R93: 19.67287186 | S93: 19.44814675 | T93: 19.23793808 | U93: 19.0406148 | V93: 18.20547668 | W93: 17.55038404 | X93: 17.01493598 | Y93: 16.56433244 | Z93: 16.17678752 | AA93: 15.83780624 | AB93: 15.5372837 | AC93: 15.26791013 | AD93: 15.02423651 | AE93: 14.80209852 | AF93: 14.59824616 | AG93: 14.41009716 | AH93: 14.23556774 | AI93: 14.07295348 | AJ93: 13.92084352 | AK93: 13.77805761 | AL93: 13.64359902 | AM93: 13.51661883 | AN93: 13.3963884 | AO93: 13.282278 | AP93: 13.17373988 | AQ93: 13.07029478 | AR93: 12.97152117 | AS93: 12.87704642 | AT93: 12.7865396 | AU93: 12.6997056 | AV93: 12.61628018 | AW93: 12.53602588 | AX93: 12.45872855 | AY93: 12.38419447 | AZ93: 12.31224783 | BA93: 12.24272862 | BB93: 12.17549086 | BC93: 12.11040097 | BD93: 12.04733646 | BE93: 11.98618475 | BF93: 11.92684212 | BG93: 11.86921285 | BH93: 11.81320841 | BI93: 11.75874676 | BJ93: 11.70575177 | BK93: 11.65415262 | BL93: =BL104 -> 11.6038834 | BM93: 11.55488259 | BN93: 11.50709274 | BO93: 11.46046013 | BP93: 11.4149344 | BQ93: 11.37046834 | BR93: 11.32701761 | BS93: 11.28454051 | BT93: 11.24299778 | BU93: 11.20235244
B94: Phase 3, 1. Jan 2025-onwards | C94: =C109 -> 37.80863342 | D94: =D109 -> 34.84950688 | E94: 32.89152056 | F94: 31.44886951 | G94: 30.31723625 | H94: 29.39228184 | I94: 28.61389124 | J94: 27.94443061 | K94: 27.35886078 | L94: 25.22934254 | M94: 23.20947149 | N94: 21.28184364 | O94: 19.43300071 | P94: 17.65231653 | Q94: 17.42480525 | R94: 17.21376288 | S94: 17.0171284 | T94: 16.83319582 | U94: 16.66053795 | V94: 15.92979209 | W94: 15.35658603 | X94: 14.88806899 | Y94: 14.49379089 | Z94: 14.15468908 | AA94: 13.85808046 | AB94: 13.59512324 | AC94: 13.35942137 | AD94: 13.14620695 | AE94: 12.9518362 | AF94: 12.77346539 | AG94: 12.60883501 | AH94: 12.45612177 | AI94: 12.31383429 | AJ94: 12.18073808 | AK94: 12.05580041 | AL94: 11.93814915 | AM94: 11.82704147 | AN94: 11.72183985 | AO94: 11.62199325 | AP94: 11.52702239 | AQ94: 11.43650793 | AR94: 11.35008103 | AS94: 11.26741562 | AT94: 11.18822215 | AU94: 11.1122424 | AV94: 11.03924516 | AW94: 10.96902264 | AX94: 10.90138748 | AY94: 10.83617016 | AZ94: 10.77321685 | BA94: 10.71238755 | BB94: 10.6535545 | BC94: 10.59660085 | BD94: 10.5414194 | BE94: 10.48791165 | BF94: 10.43598685 | BG94: 10.38556125 | BH94: 10.33655736 | BI94: 10.28890342 | BJ94: 10.2425328 | BK94: 10.19738355 | BL94: =BL109 -> 10.15339797 | BM94: 10.11052226 | BN94: 10.06870615 | BO94: 10.02790261 | BP94: 9.988067603 | BQ94: 9.949159801 | BR94: 9.911140409 | BS94: 9.873972943 | BT94: 9.837623058 | BU94: 9.802058387
A96: 10 | B96: Interpolation | C96: =IF(($C$87-$C$88=0),1,(C$90-$C$87)/($C$88-$C$87)*$A96) -> -16 | D96: =IF(($C$87-$C$88=0),1,(D$90-$C$87)/($C$88-$C$87)*$A96) -> -14 | E96: -12 | F96: -10 | G96: -8 | H96: -6 | I96: -4 | J96: -2 | K96: 0 | L96: 2 | M96: 4 | N96: 6 | O96: 8 | P96: 10 | Q96: 12 | R96: 14 | S96: 16 | T96: 18 | U96: 20 | V96: 30 | W96: 40 | X96: 50 | Y96: 60 | Z96: 70 | AA96: 80 | AB96: 90 | AC96: 100 | AD96: 110 | AE96: 120 | AF96: 130 | AG96: 140 | AH96: 150 | AI96: 160 | AJ96: 170 | AK96: 180 | AL96: 190 | AM96: 200 | AN96: 210 | AO96: 220 | AP96: 230 | AQ96: 240 | AR96: 250 | AS96: 260 | AT96: 270 | AU96: 280 | AV96: 290 | AW96: 300 | AX96: 310 | AY96: 320 | AZ96: 330 | BA96: 340 | BB96: 350 | BC96: 360 | BD96: 370 | BE96: 380 | BF96: 390 | BG96: 400 | BH96: 410 | BI96: 420 | BJ96: 430 | BK96: 440 | BL96: 450 | BM96: 460 | BN96: 470 | BO96: 480 | BP96: =IF(($C$87-$C$88=0),1,(BP$90-$C$87)/($C$88-$C$87)*$A96) -> 490 | BQ96: 500 | BR96: 510 | BS96: 520 | BT96: 530 | BU96: 540
A97: Phase 1 | B97: Reduction | C97: =IF(C$90<$C$88,C$96,$A96) -> -16 | D97: =IF(D$90<$C$88,D$96,$A96) -> -14 | E97: -12 | F97: -10 | G97: -8 | H97: -6 | I97: -4 | J97: -2 | K97: 0 | L97: 2 | M97: 4 | N97: 6 | O97: 8 | P97: 10 | Q97: 10 | R97: 10 | S97: 10 | T97: 10 | U97: 10 | V97: 10 | W97: 10 | X97: 10 | Y97: 10 | Z97: 10 | AA97: 10 | AB97: 10 | AC97: 10 | AD97: 10 | AE97: 10 | AF97: 10 | AG97: 10 | AH97: 10 | AI97: 10 | AJ97: 10 | AK97: 10 | AL97: 10 | AM97: 10 | AN97: 10 | AO97: 10 | AP97: 10 | AQ97: 10 | AR97: 10 | AS97: 10 | AT97: 10 | AU97: 10 | AV97: 10 | AW97: 10 | AX97: 10 | AY97: 10 | AZ97: 10 | BA97: 10 | BB97: 10 | BC97: 10 | BD97: 10 | BE97: 10 | BF97: 10 | BG97: 10 | BH97: 10 | BI97: 10 | BJ97: 10 | BK97: 10 | BL97: =IF(BL$90<$C$88,BL$96,$A96) -> 10 | BM97: 10 | BN97: 10 | BO97: 10 | BP97: 10 | BQ97: 10 | BR97: 10 | BS97: 10 | BT97: 10 | BU97: 10
B98: Calculated reduction | C98: =IF(C$90<$C$87,0,C$97) -> 0 | D98: =IF(D$90<$C$87,0,D$97) -> 0 | E98: 0 | F98: 0 | G98: 0 | H98: 0 | I98: 0 | J98: 0 | K98: 0 | L98: 2 | M98: 4 | N98: 6 | O98: 8 | P98: 10 | Q98: 10 | R98: 10 | S98: 10 | T98: 10 | U98: 10 | V98: 10 | W98: 10 | X98: 10 | Y98: 10 | Z98: 10 | AA98: 10 | AB98: 10 | AC98: 10 | AD98: 10 | AE98: 10 | AF98: 10 | AG98: 10 | AH98: 10 | AI98: 10 | AJ98: 10 | AK98: 10 | AL98: 10 | AM98: 10 | AN98: 10 | AO98: 10 | AP98: 10 | AQ98: 10 | AR98: 10 | AS98: 10 | AT98: 10 | AU98: 10 | AV98: 10 | AW98: 10 | AX98: 10 | AY98: 10 | AZ98: 10 | BA98: 10 | BB98: 10 | BC98: 10 | BD98: 10 | BE98: 10 | BF98: 10 | BG98: 10 | BH98: 10 | BI98: 10 | BJ98: 10 | BK98: 10 | BL98: 10 | BM98: 10 | BN98: 10 | BO98: 10 | BP98: =IF(BP$90<$C$87,0,BP$97) -> 10 | BQ98: 10 | BR98: 10 | BS98: 10 | BT98: 10 | BU98: 10
B99: Phase 1, 1. Jan 2015-31 dec. 2019 | C99: =$C$86*POWER((C$90),-$E$86)*(1-(C$98/100)) -> 37.80863342 | D99: =$C$86*POWER((D$90),-$E$86)*(1-(D$98/100)) -> 34.84950688 | E99: 32.89152056 | F99: 31.44886951 | G99: 30.31723625 | H99: 29.39228184 | I99: 28.61389124 | J99: 27.94443061 | K99: 27.35886078 | L99: 26.30293159 | M99: 25.31942344 | N99: 24.39625978 | O99: 23.52415875 | P99: 22.69583554 | Q99: 22.40332104 | R99: 22.13198084 | S99: 21.87916509 | T99: 21.64268034 | U99: 21.42069166 | V99: 20.48116126 | W99: 19.74418204 | X99: 19.14180298 | Y99: 18.634874 | Z99: 18.19888596 | AA99: 17.81753202 | AB99: 17.47944417 | AC99: 17.1763989 | AD99: 16.90226608 | AE99: 16.65236083 | AF99: 16.42302693 | AG99: 16.2113593 | AH99: 16.01501371 | AI99: 15.83207266 | AJ99: 15.66094896 | AK99: 15.50031481 | AL99: 15.3490489 | AM99: 15.20619618 | AN99: 15.07093695 | AO99: 14.94256275 | AP99: 14.82045736 | AQ99: 14.70408163 | AR99: 14.59296132 | AS99: 14.48667722 | AT99: 14.38485705 | AU99: 14.2871688 | AV99: 14.1933152 | AW99: 14.10302911 | AX99: 14.01606962 | AY99: 13.93221878 | AZ99: 13.85127881 | BA99: 13.7730697 | BB99: 13.69742722 | BC99: 13.62420109 | BD99: 13.55325352 | BE99: 13.48445784 | BF99: 13.41769738 | BG99: 13.35286446 | BH99: 13.28985946 | BI99: 13.22859011 | BJ99: 13.16897074 | BK99: 13.1109217 | BL99: 13.05436882 | BM99: 12.99924291 | BN99: 12.94547934 | BO99: 12.89301765 | BP99: =$C$86*POWER((BP$90),-$E$86)*(1-(BP$98/100)) -> 12.8418012 | BQ99: 12.79177689 | BR99: 12.74289481 | BS99: 12.69510807 | BT99: 12.6483725 | BU99: 12.6026465
A101: 20 | B101: Interpolation | C101: =IF(($C$87-$C$88=0),1,(C$90-$C$87)/($C$88-$C$87)*$A101) -> -32 | D101: =IF(($C$87-$C$88=0),1,(D$90-$C$87)/($C$88-$C$87)*$A101) -> -28 | E101: -24 | F101: -20 | G101: -16 | H101: -12 | I101: -8 | J101: -4 | K101: 0 | L101: 4 | M101: 8 | N101: 12 | O101: 16 | P101: 20 | Q101: 24 | R101: 28 | S101: 32 | T101: 36 | U101: 40 | V101: 60 | W101: 80 | X101: 100 | Y101: 120 | Z101: 140 | AA101: 160 | AB101: 180 | AC101: 200 | AD101: 220 | AE101: 240 | AF101: 260 | AG101: 280 | AH101: 300 | AI101: 320 | AJ101: 340 | AK101: 360 | AL101: 380 | AM101: 400 | AN101: 420 | AO101: 440 | AP101: 460 | AQ101: 480 | AR101: 500 | AS101: 520 | AT101: 540 | AU101: 560 | AV101: 580 | AW101: 600 | AX101: 620 | AY101: 640 | AZ101: 660 | BA101: 680 | BB101: 700 | BC101: 720 | BD101: 740 | BE101: 760 | BF101: 780 | BG101: 800 | BH101: 820 | BI101: 840 | BJ101: 860 | BK101: 880 | BL101: 900 | BM101: 920 | BN101: 940 | BO101: 960 | BP101: =IF(($C$87-$C$88=0),1,(BP$90-$C$87)/($C$88-$C$87)*$A101) -> 980 | BQ101: 1000 | BR101: 1020 | BS101: 1040 | BT101: 1060 | BU101: 1080
A102: Phase 2 | B102: Reduction | C102: =IF(C$90<$C$88,C$101,$A101) -> -32 | D102: =IF(D$90<$C$88,D$101,$A101) -> -28 | E102: -24 | F102: -20 | G102: -16 | H102: -12 | I102: -8 | J102: -4 | K102: 0 | L102: 4 | M102: 8 | N102: 12 | O102: 16 | P102: 20 | Q102: 20 | R102: 20 | S102: 20 | T102: 20 | U102: 20 | V102: 20 | W102: 20 | X102: 20 | Y102: 20 | Z102: 20 | AA102: 20 | AB102: 20 | AC102: 20 | AD102: 20 | AE102: 20 | AF102: 20 | AG102: 20 | AH102: 20 | AI102: 20 | AJ102: 20 | AK102: 20 | AL102: 20 | AM102: 20 | AN102: 20 | AO102: 20 | AP102: 20 | AQ102: 20 | AR102: 20 | AS102: 20 | AT102: 20 | AU102: 20 | AV102: 20 | AW102: 20 | AX102: 20 | AY102: 20 | AZ102: 20 | BA102: 20 | BB102: 20 | BC102: 20 | BD102: 20 | BE102: 20 | BF102: 20 | BG102: 20 | BH102: 20 | BI102: 20 | BJ102: 20 | BK102: 20 | BL102: =IF(BL$90<$C$88,BL$101,$A101) -> 20 | BM102: 20 | BN102: 20 | BO102: 20 | BP102: 20 | BQ102: 20 | BR102: 20 | BS102: 20 | BT102: 20 | BU102: 20
B103: Calculated reduction | C103: =IF(C$63<$C$87,0,C$102) -> 0 | D103: =IF(D$63<$C$87,0,D$102) -> 0 | E103: 0 | F103: 0 | G103: 0 | H103: 0 | I103: 0 | J103: 0 | K103: 0 | L103: 4 | M103: 8 | N103: 12 | O103: 16 | P103: 20 | Q103: 20 | R103: 20 | S103: 20 | T103: 20 | U103: 20 | V103: 20 | W103: 20 | X103: 20 | Y103: 20 | Z103: 20 | AA103: 20 | AB103: 20 | AC103: 20 | AD103: 20 | AE103: 20 | AF103: 20 | AG103: 20 | AH103: 20 | AI103: 20 | AJ103: 20 | AK103: 20 | AL103: 20 | AM103: 20 | AN103: 20 | AO103: 20 | AP103: 20 | AQ103: 20 | AR103: 20 | AS103: 20 | AT103: 20 | AU103: 20 | AV103: 20 | AW103: 20 | AX103: 20 | AY103: 20 | AZ103: 20 | BA103: 20 | BB103: 20 | BC103: 20 | BD103: 20 | BE103: 20 | BF103: 20 | BG103: 20 | BH103: 20 | BI103: 20 | BJ103: 20 | BK103: 20 | BL103: 20 | BM103: 20 | BN103: 20 | BO103: 20 | BP103: =IF(BP$63<$C$87,0,BP$102) -> 20 | BQ103: 20 | BR103: 20 | BS103: 20 | BT103: 20 | BU103: 20
B104: Phase 2, 1. Jan 2020-31 dec. 2024 | C104: =$C$86*POWER((C$90),-$E$86)*(1-(C$103/100)) -> 37.80863342 | D104: =$C$86*POWER((D$90),-$E$86)*(1-(D$103/100)) -> 34.84950688 | E104: 32.89152056 | F104: 31.44886951 | G104: 30.31723625 | H104: 29.39228184 | I104: 28.61389124 | J104: 27.94443061 | K104: 27.35886078 | L104: 25.76613707 | M104: 24.26444747 | N104: 22.83905171 | O104: 21.47857973 | P104: 20.17407603 | Q104: 19.91406314 | R104: 19.67287186 | S104: 19.44814675 | T104: 19.23793808 | U104: 19.0406148 | V104: 18.20547668 | W104: 17.55038404 | X104: 17.01493598 | Y104: 16.56433244 | Z104: 16.17678752 | AA104: 15.83780624 | AB104: 15.5372837 | AC104: 15.26791013 | AD104: 15.02423651 | AE104: 14.80209852 | AF104: 14.59824616 | AG104: 14.41009716 | AH104: 14.23556774 | AI104: 14.07295348 | AJ104: 13.92084352 | AK104: 13.77805761 | AL104: 13.64359902 | AM104: 13.51661883 | AN104: 13.3963884 | AO104: 13.282278 | AP104: 13.17373988 | AQ104: 13.07029478 | AR104: 12.97152117 | AS104: 12.87704642 | AT104: 12.7865396 | AU104: 12.6997056 | AV104: 12.61628018 | AW104: 12.53602588 | AX104: 12.45872855 | AY104: 12.38419447 | AZ104: 12.31224783 | BA104: 12.24272862 | BB104: 12.17549086 | BC104: 12.11040097 | BD104: 12.04733646 | BE104: 11.98618475 | BF104: 11.92684212 | BG104: 11.86921285 | BH104: 11.81320841 | BI104: 11.75874676 | BJ104: 11.70575177 | BK104: 11.65415262 | BL104: 11.6038834 | BM104: 11.55488259 | BN104: 11.50709274 | BO104: 11.46046013 | BP104: =$C$86*POWER((BP$90),-$E$86)*(1-(BP$103/100)) -> 11.4149344 | BQ104: 11.37046834 | BR104: 11.32701761 | BS104: 11.28454051 | BT104: 11.24299778 | BU104: 11.20235244
A106: 30 | B106: Interpolation | C106: =IF(($C$87-$C$88=0),1,(C$90-$C$87)/($C$88-$C$87)*$A106) -> -48 | D106: =IF(($C$87-$C$88=0),1,(D$90-$C$87)/($C$88-$C$87)*$A106) -> -42 | E106: -36 | F106: -30 | G106: -24 | H106: -18 | I106: -12 | J106: -6 | K106: 0 | L106: 6 | M106: 12 | N106: 18 | O106: 24 | P106: 30 | Q106: 36 | R106: 42 | S106: 48 | T106: 54 | U106: 60 | V106: 90 | W106: 120 | X106: 150 | Y106: 180 | Z106: 210 | AA106: 240 | AB106: 270 | AC106: 300 | AD106: 330 | AE106: 360 | AF106: 390 | AG106: 420 | AH106: 450 | AI106: 480 | AJ106: 510 | AK106: 540 | AL106: 570 | AM106: 600 | AN106: 630 | AO106: 660 | AP106: 690 | AQ106: 720 | AR106: 750 | AS106: 780 | AT106: 810 | AU106: 840 | AV106: 870 | AW106: 900 | AX106: 930 | AY106: 960 | AZ106: 990 | BA106: 1020 | BB106: 1050 | BC106: 1080 | BD106: 1110 | BE106: 1140 | BF106: 1170 | BG106: 1200 | BH106: 1230 | BI106: 1260 | BJ106: 1290 | BK106: 1320 | BL106: 1350 | BM106: 1380 | BN106: 1410 | BO106: 1440 | BP106: =IF(($C$87-$C$88=0),1,(BP$90-$C$87)/($C$88-$C$87)*$A106) -> 1470 | BQ106: 1500 | BR106: 1530 | BS106: 1560 | BT106: 1590 | BU106: 1620
A107: Phase 2 | B107: Reduction | C107: =IF(C$90<$C$88,C$106,$A106) -> -48 | D107: =IF(D$90<$C$88,D$106,$A106) -> -42 | E107: -36 | F107: -30 | G107: -24 | H107: -18 | I107: -12 | J107: -6 | K107: 0 | L107: 6 | M107: 12 | N107: 18 | O107: 24 | P107: 30 | Q107: 30 | R107: 30 | S107: 30 | T107: 30 | U107: 30 | V107: 30 | W107: 30 | X107: 30 | Y107: 30 | Z107: 30 | AA107: 30 | AB107: 30 | AC107: 30 | AD107: 30 | AE107: 30 | AF107: 30 | AG107: 30 | AH107: 30 | AI107: 30 | AJ107: 30 | AK107: 30 | AL107: 30 | AM107: 30 | AN107: 30 | AO107: 30 | AP107: 30 | AQ107: 30 | AR107: 30 | AS107: 30 | AT107: 30 | AU107: 30 | AV107: 30 | AW107: 30 | AX107: 30 | AY107: 30 | AZ107: 30 | BA107: 30 | BB107: 30 | BC107: 30 | BD107: 30 | BE107: 30 | BF107: 30 | BG107: 30 | BH107: 30 | BI107: 30 | BJ107: 30 | BK107: 30 | BL107: =IF(BL$90<$C$88,BL$106,$A106) -> 30 | BM107: 30 | BN107: 30 | BO107: 30 | BP107: 30 | BQ107: 30 | BR107: 30 | BS107: 30 | BT107: 30 | BU107: 30
B108: Calculated reduction | C108: =IF(C$90<$C$87,0,C$107) -> 0 | D108: =IF(D$90<$C$87,0,D$107) -> 0 | E108: 0 | F108: 0 | G108: 0 | H108: 0 | I108: 0 | J108: 0 | K108: 0 | L108: 6 | M108: 12 | N108: 18 | O108: 24 | P108: 30 | Q108: 30 | R108: 30 | S108: 30 | T108: 30 | U108: 30 | V108: 30 | W108: 30 | X108: 30 | Y108: 30 | Z108: 30 | AA108: 30 | AB108: 30 | AC108: 30 | AD108: 30 | AE108: 30 | AF108: 30 | AG108: 30 | AH108: 30 | AI108: 30 | AJ108: 30 | AK108: 30 | AL108: 30 | AM108: 30 | AN108: 30 | AO108: 30 | AP108: 30 | AQ108: 30 | AR108: 30 | AS108: 30 | AT108: 30 | AU108: 30 | AV108: 30 | AW108: 30 | AX108: 30 | AY108: 30 | AZ108: 30 | BA108: 30 | BB108: 30 | BC108: 30 | BD108: 30 | BE108: 30 | BF108: 30 | BG108: 30 | BH108: 30 | BI108: 30 | BJ108: 30 | BK108: 30 | BL108: 30 | BM108: 30 | BN108: 30 | BO108: 30 | BP108: =IF(BP$90<$C$87,0,BP$107) -> 30 | BQ108: 30 | BR108: 30 | BS108: 30 | BT108: 30 | BU108: 30
B109: Phase 3, 1. Jan 2025-onwards | C109: =$C$86*POWER((C$90),-$E$86)*(1-(C$108/100)) -> 37.80863342 | D109: =$C$86*POWER((D$90),-$E$86)*(1-(D$108/100)) -> 34.84950688 | E109: 32.89152056 | F109: 31.44886951 | G109: 30.31723625 | H109: 29.39228184 | I109: 28.61389124 | J109: 27.94443061 | K109: 27.35886078 | L109: 25.22934254 | M109: 23.20947149 | N109: 21.28184364 | O109: 19.43300071 | P109: 17.65231653 | Q109: 17.42480525 | R109: 17.21376288 | S109: 17.0171284 | T109: 16.83319582 | U109: 16.66053795 | V109: 15.92979209 | W109: 15.35658603 | X109: 14.88806899 | Y109: 14.49379089 | Z109: 14.15468908 | AA109: 13.85808046 | AB109: 13.59512324 | AC109: 13.35942137 | AD109: 13.14620695 | AE109: 12.9518362 | AF109: 12.77346539 | AG109: 12.60883501 | AH109: 12.45612177 | AI109: 12.31383429 | AJ109: 12.18073808 | AK109: 12.05580041 | AL109: 11.93814915 | AM109: 11.82704147 | AN109: 11.72183985 | AO109: 11.62199325 | AP109: 11.52702239 | AQ109: 11.43650793 | AR109: 11.35008103 | AS109: 11.26741562 | AT109: 11.18822215 | AU109: 11.1122424 | AV109: 11.03924516 | AW109: 10.96902264 | AX109: 10.90138748 | AY109: 10.83617016 | AZ109: 10.77321685 | BA109: 10.71238755 | BB109: 10.6535545 | BC109: 10.59660085 | BD109: 10.5414194 | BE109: 10.48791165 | BF109: 10.43598685 | BG109: 10.38556125 | BH109: 10.33655736 | BI109: 10.28890342 | BJ109: 10.2425328 | BK109: 10.19738355 | BL109: 10.15339797 | BM109: 10.11052226 | BN109: 10.06870615 | BO109: 10.02790261 | BP109: =$C$86*POWER((BP$90),-$E$86)*(1-(BP$108/100)) -> 9.988067603 | BQ109: 9.949159801 | BR109: 9.911140409 | BS109: 9.873972943 | BT109: 9.837623058 | BU109: 9.802058387
B112: =B10 -> Ro-Ro ships
B113: a | C113: =C10 -> 1405.15 | D113: c | E113: =E10 -> 0.498
B114: Min DWT | C114: =I10 -> 1000
B115: Max DWT | C115: =J10 -> 2000
B117: DWT | C117: =C$21 -> 2000 | D117: =D$21 -> 3000 | E117: 4000 | F117: 5000 | G117: 6000 | H117: 7000 | I117: 8000 | J117: 9000 | K117: 10000 | L117: 11000 | M117: 12000 | N117: 13000 | O117: 14000 | P117: 15000 | Q117: 16000 | R117: 17000 | S117: 18000 | T117: 19000 | U117: 20000 | V117: 25000 | W117: 30000 | X117: 35000 | Y117: 40000 | Z117: 45000 | AA117: 50000 | AB117: 55000 | AC117: 60000 | AD117: 65000 | AE117: 70000 | AF117: 75000 | AG117: 80000 | AH117: 85000 | AI117: 90000 | AJ117: 95000 | AK117: 100000 | AL117: 105000 | AM117: 110000 | AN117: 115000 | AO117: 120000 | AP117: 125000 | AQ117: 130000 | AR117: 135000 | AS117: 140000 | AT117: 145000 | AU117: 150000 | AV117: 155000 | AW117: 160000 | AX117: 165000 | AY117: 170000 | AZ117: 175000 | BA117: 180000 | BB117: 185000 | BC117: 190000 | BD117: 195000 | BE117: 200000 | BF117: 205000 | BG117: 210000 | BH117: 215000 | BI117: 220000 | BJ117: 225000 | BK117: 230000 | BL117: 235000 | BM117: 240000 | BN117: 245000 | BO117: 250000 | BP117: =BP$21 -> 255000 | BQ117: 260000 | BR117: 265000 | BS117: 270000 | BT117: 275000 | BU117: 280000
B118: Phase 0, 1. Jan 2013-31 dec. 2014 | C118: =$C$10*POWER(C$117,-$E$10) -> 31.90140054 | D118: =$C$10*POWER(D$117,-$E$10) -> 26.06851564 | E118: 22.58898994 | F118: 20.21322571 | G118: 18.45879578 | H118: 17.09479369 | I118: 15.99498636 | J118: 15.08377057 | K118: 14.31273689 | L118: 13.64926075 | M118: 13.0704466 | N118: 12.55968937 | O118: 12.10461347 | P118: 11.69578135 | Q118: 11.32585341 | R118: 10.98902408 | S118: 10.6806327 | T118: 10.39688869 | U118: 10.13467322 | V118: 9.068773672 | W118: 8.281639141 | X118: 7.669672181 | Y118: 7.176237643 | Z118: 6.76741572 | AA118: 6.421487264 | AB118: 6.123815087 | AC118: 5.864126969 | AD118: 5.634972957 | AE118: 5.430800681 | AF118: 5.247375927 | AG118: 5.081405744 | AH118: 4.93028543 | AI118: 4.791923961 | AJ118: 4.664620669 | AK118: 4.54697627 | AL118: 4.437827497 | AM118: 4.336198257 | AN118: 4.241262604 | AO118: 4.15231629 | AP118: 4.068754641 | AQ118: 3.990055148 | AR118: 3.915763654 | AS118: 3.845483267 | AT118: 3.778865397 | AU118: 3.715602451 | AV118: 3.655421838 | AW118: 3.598081003 | AX118: 3.543363307 | AY118: 3.491074565 | AZ118: 3.441040146 | BA118: 3.393102508 | BB118: 3.347119107 | BC118: 3.30296061 | BD118: 3.26050936 | BE118: 3.219658056 | BF118: 3.180308609 | BG118: 3.14237115 | BH118: 3.105763164 | BI118: 3.070408733 | BJ118: 3.036237876 | BK118: 3.003185963 | BL118: 2.971193199 | BM118: 2.940204171 | BN118: 2.910167442 | BO118: 2.881035193 | BP118: =$C$10*POWER(BP$117,-$E$10) -> 2.8527629 | BQ118: 2.825309049 | BR118: 2.79863488 | BS118: 2.772704155 | BT118: 2.747482951 | BU118: 2.722939476
B119: Phase 1, 1. Jan 2015-31 dec. 2019 | C119: =C126 -> 30.30633051 | D119: =D126 -> 24.76508986 | E119: 21.45954044 | F119: 19.20256443 | G119: 17.53585599 | H119: 16.240054 | I119: 15.19523705 | J119: 14.32958204 | K119: 13.59710004 | L119: 12.96679772 | M119: 12.41692427 | N119: 11.9317049 | O119: 11.4993828 | P119: 11.11099228 | Q119: 10.75956074 | R119: 10.43957287 | S119: 10.14660106 | T119: 9.877044257 | U119: 9.627939557 | V119: 8.615334988 | W119: 7.867557183 | X119: 7.286188572 | Y119: 6.817425761 | Z119: 6.429044934 | AA119: 6.100412901 | AB119: 5.817624332 | AC119: 5.570920621 | AD119: 5.353224309 | AE119: 5.159260647 | AF119: 4.98500713 | AG119: 4.827335457 | AH119: 4.683771159 | AI119: 4.552327763 | AJ119: 4.431389635 | AK119: 4.319627457 | AL119: 4.215936123 | AM119: 4.119388344 | AN119: 4.029199473 | AO119: 3.944700476 | AP119: 3.865316909 | AQ119: 3.790552391 | AR119: 3.719975472 | AS119: 3.653209104 | AT119: 3.589922127 | AU119: 3.529822329 | AV119: 3.472650746 | AW119: 3.418176953 | AX119: 3.366195141 | AY119: 3.316520837 | AZ119: 3.268988139 | BA119: 3.223447383 | BB119: 3.179763152 | BC119: 3.137812579 | BD119: 3.097483892 | BE119: 3.058675153 | BF119: 3.021293179 | BG119: 2.985252593 | BH119: 2.950475006 | BI119: 2.916888297 | BJ119: 2.884425983 | BK119: 2.853026665 | BL119: =BL126 -> 2.822633539 | BM119: 2.793193963 | BN119: 2.76465907 | BO119: 2.736983433 | BP119: 2.710124755 | BQ119: 2.684043596 | BR119: 2.658703136 | BS119: 2.634068947 | BT119: 2.610108804 | BU119: 2.586792502
B120: Phase 2, 1. Jan 2020-31 dec. 2024 | C120: =C131 -> 25.52112043 | D120: =D131 -> 20.85481251 | E120: 18.07119195 | F120: 16.17058057 | G120: 14.76703663 | H120: 13.67583495 | I120: 12.79598909 | J120: 12.06701646 | K120: 11.45018951 | L120: 10.9194086 | M120: 10.45635728 | N120: 10.04775149 | O120: 9.683690777 | P120: 9.356625081 | Q120: 9.06068273 | R120: 8.791219261 | S120: 8.544506159 | T120: 8.317510953 | U120: 8.107738574 | V120: 7.255018938 | W120: 6.625311312 | X120: 6.135737745 | Y120: 5.740990114 | Z120: 5.413932576 | AA120: 5.137189812 | AB120: 4.899052069 | AC120: 4.691301576 | AD120: 4.507978365 | AE120: 4.344640545 | AF120: 4.197900741 | AG120: 4.065124595 | AH120: 3.944228344 | AI120: 3.833539169 | AJ120: 3.731696535 | AK120: 3.637581016 | AL120: 3.550261998 | AM120: 3.468958605 | AN120: 3.393010083 | AO120: 3.321853032 | AP120: 3.255003712 | AQ120: 3.192044118 | AR120: 3.132610924 | AS120: 3.076386614 | AT120: 3.023092317 | AU120: 2.972481961 | AV120: 2.92433747 | AW120: 2.878464803 | AX120: 2.834690645 | AY120: 2.792859652 | AZ120: 2.752832117 | BA120: 2.714482006 | BB120: 2.677695286 | BC120: 2.642368488 | BD120: 2.608407488 | BE120: 2.575726445 | BF120: 2.544246888 | BG120: 2.51389692 | BH120: 2.484610531 | BI120: 2.456326987 | BJ120: 2.428990301 | BK120: 2.40254877 | BL120: =BL131 -> 2.376954559 | BM120: 2.352163337 | BN120: 2.328133954 | BO120: 2.304828154 | BP120: 2.28221032 | BQ120: 2.260247239 | BR120: 2.238907904 | BS120: 2.218163324 | BT120: 2.197986361 | BU120: 2.17835158
B121: Phase 3, 1. Jan 2025-onwards | C121: =C136 -> 22.33098038 | D121: =D136 -> 18.24796095 | E121: 15.81229296 | F121: 14.149258 | G121: 12.92115705 | H121: 11.96635558 | I121: 11.19649046 | J121: 10.5586394 | K121: 10.01891582 | L121: 9.554482527 | M121: 9.149312622 | N121: 8.791782556 | O121: 8.47322943 | P121: 8.187046946 | Q121: 7.928097389 | R121: 7.692316853 | S121: 7.476442889 | T121: 7.277822084 | U121: 7.094271253 | V121: 6.34814157 | W121: 5.797147398 | X121: 5.368770527 | Y121: 5.02336635 | Z121: 4.737191004 | AA121: 4.495041085 | AB121: 4.286670561 | AC121: 4.104888879 | AD121: 3.94448107 | AE121: 3.801560477 | AF121: 3.673163149 | AG121: 3.556984021 | AH121: 3.451199801 | AI121: 3.354346773 | AJ121: 3.265234468 | AK121: 3.182883389 | AL121: 3.106479248 | AM121: 3.03533878 | AN121: 2.968883823 | AO121: 2.906621403 | AP121: 2.848128248 | AQ121: 2.793038604 | AR121: 2.741034558 | AS121: 2.691838287 | AT121: 2.645205778 | AU121: 2.600921716 | AV121: 2.558795287 | AW121: 2.518656702 | AX121: 2.480354315 | AY121: 2.443752195 | AZ121: 2.408728102 | BA121: 2.375171756 | BB121: 2.342983375 | BC121: 2.312072427 | BD121: 2.282356552 | BE121: 2.253760639 | BF121: 2.226216027 | BG121: 2.199659805 | BH121: 2.174034215 | BI121: 2.149286113 | BJ121: 2.125366514 | BK121: 2.102230174 | BL121: =BL136 -> 2.079835239 | BM121: 2.05814292 | BN121: 2.03711721 | BO121: 2.016724635 | BP121: 1.99693403 | BQ121: 1.977716334 | BR121: 1.959044416 | BS121: 1.940892908 | BT121: 1.923238066 | BU121: 1.906057633
A123: =$F$10 -> 5 | B123: Interpolation | C123: =IF(($C$114-$C$115=0),1,(C$117-$C$114)/($C$115-$C$114)*$A123) -> 5 | D123: =IF(($C$114-$C$115=0),1,(D$117-$C$114)/($C$115-$C$114)*$A123) -> 10 | E123: 15 | F123: 20 | G123: 25 | H123: 30 | I123: 35 | J123: 40 | K123: 45 | L123: 50 | M123: 55 | N123: 60 | O123: 65 | P123: 70 | Q123: 75 | R123: 80 | S123: 85 | T123: 90 | U123: 95 | V123: 120 | W123: 145 | X123: 170 | Y123: 195 | Z123: 220 | AA123: 245 | AB123: 270 | AC123: 295 | AD123: 320 | AE123: 345 | AF123: 370 | AG123: 395 | AH123: 420 | AI123: 445 | AJ123: 470 | AK123: 495 | AL123: 520 | AM123: 545 | AN123: 570 | AO123: 595 | AP123: 620 | AQ123: 645 | AR123: 670 | AS123: 695 | AT123: 720 | AU123: 745 | AV123: 770 | AW123: 795 | AX123: 820 | AY123: 845 | AZ123: 870 | BA123: 895 | BB123: 920 | BC123: 945 | BD123: 970 | BE123: 995 | BF123: 1020 | BG123: 1045 | BH123: 1070 | BI123: 1095 | BJ123: 1120 | BK123: 1145 | BL123: 1170 | BM123: 1195 | BN123: 1220 | BO123: 1245 | BP123: =IF(($C$114-$C$115=0),1,(BP$117-$C$114)/($C$115-$C$114)*$A123) -> 1270 | BQ123: 1295 | BR123: 1320 | BS123: 1345 | BT123: 1370 | BU123: 1395
A124: Phase 1 | B124: Reduction | C124: =IF(C$117<$C$115,C$123,$A123) -> 5 | D124: =IF(D$117<$C$115,D$123,$A123) -> 5 | E124: 5 | F124: 5 | G124: 5 | H124: 5 | I124: 5 | J124: 5 | K124: 5 | L124: 5 | M124: 5 | N124: 5 | O124: 5 | P124: 5 | Q124: 5 | R124: 5 | S124: 5 | T124: 5 | U124: 5 | V124: 5 | W124: 5 | X124: 5 | Y124: 5 | Z124: 5 | AA124: 5 | AB124: 5 | AC124: 5 | AD124: 5 | AE124: 5 | AF124: 5 | AG124: 5 | AH124: 5 | AI124: 5 | AJ124: 5 | AK124: 5 | AL124: 5 | AM124: 5 | AN124: 5 | AO124: 5 | AP124: 5 | AQ124: 5 | AR124: 5 | AS124: 5 | AT124: 5 | AU124: 5 | AV124: 5 | AW124: 5 | AX124: 5 | AY124: 5 | AZ124: 5 | BA124: 5 | BB124: 5 | BC124: 5 | BD124: 5 | BE124: 5 | BF124: 5 | BG124: 5 | BH124: 5 | BI124: 5 | BJ124: 5 | BK124: 5 | BL124: =IF(BL$117<$C$115,BL$123,$A123) -> 5 | BM124: 5 | BN124: 5 | BO124: 5 | BP124: 5 | BQ124: 5 | BR124: 5 | BS124: 5 | BT124: 5 | BU124: 5
B125: Calculated reduction | C125: =IF(C$117<$C$114,0,C$124) -> 5 | D125: =IF(D$117<$C$114,0,D$124) -> 5 | E125: 5 | F125: 5 | G125: 5 | H125: 5 | I125: 5 | J125: 5 | K125: 5 | L125: 5 | M125: 5 | N125: 5 | O125: 5 | P125: 5 | Q125: 5 | R125: 5 | S125: 5 | T125: 5 | U125: 5 | V125: 5 | W125: 5 | X125: 5 | Y125: 5 | Z125: 5 | AA125: 5 | AB125: 5 | AC125: 5 | AD125: 5 | AE125: 5 | AF125: 5 | AG125: 5 | AH125: 5 | AI125: 5 | AJ125: 5 | AK125: 5 | AL125: 5 | AM125: 5 | AN125: 5 | AO125: 5 | AP125: 5 | AQ125: 5 | AR125: 5 | AS125: 5 | AT125: 5 | AU125: 5 | AV125: 5 | AW125: 5 | AX125: 5 | AY125: 5 | AZ125: 5 | BA125: 5 | BB125: 5 | BC125: 5 | BD125: 5 | BE125: 5 | BF125: 5 | BG125: 5 | BH125: 5 | BI125: 5 | BJ125: 5 | BK125: 5 | BL125: 5 | BM125: 5 | BN125: 5 | BO125: 5 | BP125: =IF(BP$117<$C$114,0,BP$124) -> 5 | BQ125: 5 | BR125: 5 | BS125: 5 | BT125: 5 | BU125: 5
B126: Phase 1, 1. Jan 2015-31 dec. 2019 | C126: =$C$113*POWER((C$117),-$E$113)*(1-(C$125/100)) -> 30.30633051 | D126: =$C$113*POWER((D$117),-$E$113)*(1-(D$125/100)) -> 24.76508986 | E126: 21.45954044 | F126: 19.20256443 | G126: 17.53585599 | H126: 16.240054 | I126: 15.19523705 | J126: 14.32958204 | K126: 13.59710004 | L126: 12.96679772 | M126: 12.41692427 | N126: 11.9317049 | O126: 11.4993828 | P126: 11.11099228 | Q126: 10.75956074 | R126: 10.43957287 | S126: 10.14660106 | T126: 9.877044257 | U126: 9.627939557 | V126: 8.615334988 | W126: 7.867557183 | X126: 7.286188572 | Y126: 6.817425761 | Z126: 6.429044934 | AA126: 6.100412901 | AB126: 5.817624332 | AC126: 5.570920621 | AD126: 5.353224309 | AE126: 5.159260647 | AF126: 4.98500713 | AG126: 4.827335457 | AH126: 4.683771159 | AI126: 4.552327763 | AJ126: 4.431389635 | AK126: 4.319627457 | AL126: 4.215936123 | AM126: 4.119388344 | AN126: 4.029199473 | AO126: 3.944700476 | AP126: 3.865316909 | AQ126: 3.790552391 | AR126: 3.719975472 | AS126: 3.653209104 | AT126: 3.589922127 | AU126: 3.529822329 | AV126: 3.472650746 | AW126: 3.418176953 | AX126: 3.366195141 | AY126: 3.316520837 | AZ126: 3.268988139 | BA126: 3.223447383 | BB126: 3.179763152 | BC126: 3.137812579 | BD126: 3.097483892 | BE126: 3.058675153 | BF126: 3.021293179 | BG126: 2.985252593 | BH126: 2.950475006 | BI126: 2.916888297 | BJ126: 2.884425983 | BK126: 2.853026665 | BL126: 2.822633539 | BM126: 2.793193963 | BN126: 2.76465907 | BO126: 2.736983433 | BP126: =$C$113*POWER((BP$117),-$E$113)*(1-(BP$125/100)) -> 2.710124755 | BQ126: 2.684043596 | BR126: 2.658703136 | BS126: 2.634068947 | BT126: 2.610108804 | BU126: 2.586792502
A128: =$G$10 -> 20 | B128: Interpolation | C128: =IF(($C$114-$C$115=0),1,(C$117-$C$114)/($C$115-$C$114)*$A128) -> 20 | D128: =IF(($C$114-$C$115=0),1,(D$117-$C$114)/($C$115-$C$114)*$A128) -> 40 | E128: 60 | F128: 80 | G128: 100 | H128: 120 | I128: 140 | J128: 160 | K128: 180 | L128: 200 | M128: 220 | N128: 240 | O128: 260 | P128: 280 | Q128: 300 | R128: 320 | S128: 340 | T128: 360 | U128: 380 | V128: 480 | W128: 580 | X128: 680 | Y128: 780 | Z128: 880 | AA128: 980 | AB128: 1080 | AC128: 1180 | AD128: 1280 | AE128: 1380 | AF128: 1480 | AG128: 1580 | AH128: 1680 | AI128: 1780 | AJ128: 1880 | AK128: 1980 | AL128: 2080 | AM128: 2180 | AN128: 2280 | AO128: 2380 | AP128: 2480 | AQ128: 2580 | AR128: 2680 | AS128: 2780 | AT128: 2880 | AU128: 2980 | AV128: 3080 | AW128: 3180 | AX128: 3280 | AY128: 3380 | AZ128: 3480 | BA128: 3580 | BB128: 3680 | BC128: 3780 | BD128: 3880 | BE128: 3980 | BF128: 4080 | BG128: 4180 | BH128: 4280 | BI128: 4380 | BJ128: 4480 | BK128: 4580 | BL128: 4680 | BM128: 4780 | BN128: 4880 | BO128: 4980 | BP128: =IF(($C$114-$C$115=0),1,(BP$117-$C$114)/($C$115-$C$114)*$A128) -> 5080 | BQ128: 5180 | BR128: 5280 | BS128: 5380 | BT128: 5480 | BU128: 5580
A129: Phase 2 | B129: Reduction | C129: =IF(C$117<$C$115,C$128,$A128) -> 20 | D129: =IF(D$117<$C$115,D$128,$A128) -> 20 | E129: 20 | F129: 20 | G129: 20 | H129: 20 | I129: 20 | J129: 20 | K129: 20 | L129: 20 | M129: 20 | N129: 20 | O129: 20 | P129: 20 | Q129: 20 | R129: 20 | S129: 20 | T129: 20 | U129: 20 | V129: 20 | W129: 20 | X129: 20 | Y129: 20 | Z129: 20 | AA129: 20 | AB129: 20 | AC129: 20 | AD129: 20 | AE129: 20 | AF129: 20 | AG129: 20 | AH129: 20 | AI129: 20 | AJ129: 20 | AK129: 20 | AL129: 20 | AM129: 20 | AN129: 20 | AO129: 20 | AP129: 20 | AQ129: 20 | AR129: 20 | AS129: 20 | AT129: 20 | AU129: 20 | AV129: 20 | AW129: 20 | AX129: 20 | AY129: 20 | AZ129: 20 | BA129: 20 | BB129: 20 | BC129: 20 | BD129: 20 | BE129: 20 | BF129: 20 | BG129: 20 | BH129: 20 | BI129: 20 | BJ129: 20 | BK129: 20 | BL129: =IF(BL$117<$C$115,BL$128,$A128) -> 20 | BM129: 20 | BN129: 20 | BO129: 20 | BP129: 20 | BQ129: 20 | BR129: 20 | BS129: 20 | BT129: 20 | BU129: 20
B130: Calculated reduction | C130: =IF(C$63<$C$114,0,C$129) -> 20 | D130: =IF(D$63<$C$114,0,D$129) -> 20 | E130: 20 | F130: 20 | G130: 20 | H130: 20 | I130: 20 | J130: 20 | K130: 20 | L130: 20 | M130: 20 | N130: 20 | O130: 20 | P130: 20 | Q130: 20 | R130: 20 | S130: 20 | T130: 20 | U130: 20 | V130: 20 | W130: 20 | X130: 20 | Y130: 20 | Z130: 20 | AA130: 20 | AB130: 20 | AC130: 20 | AD130: 20 | AE130: 20 | AF130: 20 | AG130: 20 | AH130: 20 | AI130: 20 | AJ130: 20 | AK130: 20 | AL130: 20 | AM130: 20 | AN130: 20 | AO130: 20 | AP130: 20 | AQ130: 20 | AR130: 20 | AS130: 20 | AT130: 20 | AU130: 20 | AV130: 20 | AW130: 20 | AX130: 20 | AY130: 20 | AZ130: 20 | BA130: 20 | BB130: 20 | BC130: 20 | BD130: 20 | BE130: 20 | BF130: 20 | BG130: 20 | BH130: 20 | BI130: 20 | BJ130: 20 | BK130: 20 | BL130: 20 | BM130: 20 | BN130: 20 | BO130: 20 | BP130: =IF(BP$63<$C$114,0,BP$129) -> 20 | BQ130: 20 | BR130: 20 | BS130: 20 | BT130: 20 | BU130: 20
B131: Phase 2, 1. Jan 2020-31 dec. 2024 | C131: =$C$113*POWER((C$117),-$E$113)*(1-(C$130/100)) -> 25.52112043 | D131: =$C$113*POWER((D$117),-$E$113)*(1-(D$130/100)) -> 20.85481251 | E131: 18.07119195 | F131: 16.17058057 | G131: 14.76703663 | H131: 13.67583495 | I131: 12.79598909 | J131: 12.06701646 | K131: 11.45018951 | L131: 10.9194086 | M131: 10.45635728 | N131: 10.04775149 | O131: 9.683690777 | P131: 9.356625081 | Q131: 9.06068273 | R131: 8.791219261 | S131: 8.544506159 | T131: 8.317510953 | U131: 8.107738574 | V131: 7.255018938 | W131: 6.625311312 | X131: 6.135737745 | Y131: 5.740990114 | Z131: 5.413932576 | AA131: 5.137189812 | AB131: 4.899052069 | AC131: 4.691301576 | AD131: 4.507978365 | AE131: 4.344640545 | AF131: 4.197900741 | AG131: 4.065124595 | AH131: 3.944228344 | AI131: 3.833539169 | AJ131: 3.731696535 | AK131: 3.637581016 | AL131: 3.550261998 | AM131: 3.468958605 | AN131: 3.393010083 | AO131: 3.321853032 | AP131: 3.255003712 | AQ131: 3.192044118 | AR131: 3.132610924 | AS131: 3.076386614 | AT131: 3.023092317 | AU131: 2.972481961 | AV131: 2.92433747 | AW131: 2.878464803 | AX131: 2.834690645 | AY131: 2.792859652 | AZ131: 2.752832117 | BA131: 2.714482006 | BB131: 2.677695286 | BC131: 2.642368488 | BD131: 2.608407488 | BE131: 2.575726445 | BF131: 2.544246888 | BG131: 2.51389692 | BH131: 2.484610531 | BI131: 2.456326987 | BJ131: 2.428990301 | BK131: 2.40254877 | BL131: 2.376954559 | BM131: 2.352163337 | BN131: 2.328133954 | BO131: 2.304828154 | BP131: =$C$113*POWER((BP$117),-$E$113)*(1-(BP$130/100)) -> 2.28221032 | BQ131: 2.260247239 | BR131: 2.238907904 | BS131: 2.218163324 | BT131: 2.197986361 | BU131: 2.17835158
A133: =$H$10 -> 30 | B133: Interpolation | C133: =IF(($C$114-$C$115=0),1,(C$117-$C$114)/($C$115-$C$114)*$A133) -> 30 | D133: =IF(($C$114-$C$115=0),1,(D$117-$C$114)/($C$115-$C$114)*$A133) -> 60 | E133: 90 | F133: 120 | G133: 150 | H133: 180 | I133: 210 | J133: 240 | K133: 270 | L133: 300 | M133: 330 | N133: 360 | O133: 390 | P133: 420 | Q133: 450 | R133: 480 | S133: 510 | T133: 540 | U133: 570 | V133: 720 | W133: 870 | X133: 1020 | Y133: 1170 | Z133: 1320 | AA133: 1470 | AB133: 1620 | AC133: 1770 | AD133: 1920 | AE133: 2070 | AF133: 2220 | AG133: 2370 | AH133: 2520 | AI133: 2670 | AJ133: 2820 | AK133: 2970 | AL133: 3120 | AM133: 3270 | AN133: 3420 | AO133: 3570 | AP133: 3720 | AQ133: 3870 | AR133: 4020 | AS133: 4170 | AT133: 4320 | AU133: 4470 | AV133: 4620 | AW133: 4770 | AX133: 4920 | AY133: 5070 | AZ133: 5220 | BA133: 5370 | BB133: 5520 | BC133: 5670 | BD133: 5820 | BE133: 5970 | BF133: 6120 | BG133: 6270 | BH133: 6420 | BI133: 6570 | BJ133: 6720 | BK133: 6870 | BL133: 7020 | BM133: 7170 | BN133: 7320 | BO133: 7470 | BP133: =IF(($C$114-$C$115=0),1,(BP$117-$C$114)/($C$115-$C$114)*$A133) -> 7620 | BQ133: 7770 | BR133: 7920 | BS133: 8070 | BT133: 8220 | BU133: 8370
A134: Phase 2 | B134: Reduction | C134: =IF(C$117<$C$115,C$133,$A133) -> 30 | D134: =IF(D$117<$C$115,D$133,$A133) -> 30 | E134: 30 | F134: 30 | G134: 30 | H134: 30 | I134: 30 | J134: 30 | K134: 30 | L134: 30 | M134: 30 | N134: 30 | O134: 30 | P134: 30 | Q134: 30 | R134: 30 | S134: 30 | T134: 30 | U134: 30 | V134: 30 | W134: 30 | X134: 30 | Y134: 30 | Z134: 30 | AA134: 30 | AB134: 30 | AC134: 30 | AD134: 30 | AE134: 30 | AF134: 30 | AG134: 30 | AH134: 30 | AI134: 30 | AJ134: 30 | AK134: 30 | AL134: 30 | AM134: 30 | AN134: 30 | AO134: 30 | AP134: 30 | AQ134: 30 | AR134: 30 | AS134: 30 | AT134: 30 | AU134: 30 | AV134: 30 | AW134: 30 | AX134: 30 | AY134: 30 | AZ134: 30 | BA134: 30 | BB134: 30 | BC134: 30 | BD134: 30 | BE134: 30 | BF134: 30 | BG134: 30 | BH134: 30 | BI134: 30 | BJ134: 30 | BK134: 30 | BL134: =IF(BL$117<$C$115,BL$133,$A133) -> 30 | BM134: 30 | BN134: 30 | BO134: 30 | BP134: 30 | BQ134: 30 | BR134: 30 | BS134: 30 | BT134: 30 | BU134: 30
B135: Calculated reduction | C135: =IF(C$117<$C$114,0,C$134) -> 30 | D135: =IF(D$117<$C$114,0,D$134) -> 30 | E135: 30 | F135: 30 | G135: 30 | H135: 30 | I135: 30 | J135: 30 | K135: 30 | L135: 30 | M135: 30 | N135: 30 | O135: 30 | P135: 30 | Q135: 30 | R135: 30 | S135: 30 | T135: 30 | U135: 30 | V135: 30 | W135: 30 | X135: 30 | Y135: 30 | Z135: 30 | AA135: 30 | AB135: 30 | AC135: 30 | AD135: 30 | AE135: 30 | AF135: 30 | AG135: 30 | AH135: 30 | AI135: 30 | AJ135: 30 | AK135: 30 | AL135: 30 | AM135: 30 | AN135: 30 | AO135: 30 | AP135: 30 | AQ135: 30 | AR135: 30 | AS135: 30 | AT135: 30 | AU135: 30 | AV135: 30 | AW135: 30 | AX135: 30 | AY135: 30 | AZ135: 30 | BA135: 30 | BB135: 30 | BC135: 30 | BD135: 30 | BE135: 30 | BF135: 30 | BG135: 30 | BH135: 30 | BI135: 30 | BJ135: 30 | BK135: 30 | BL135: 30 | BM135: 30 | BN135: 30 | BO135: 30 | BP135: =IF(BP$117<$C$114,0,BP$134) -> 30 | BQ135: 30 | BR135: 30 | BS135: 30 | BT135: 30 | BU135: 30
B136: Phase 3, 1. Jan 2025-onwards | C136: =$C$113*POWER((C$117),-$E$113)*(1-(C$135/100)) -> 22.33098038 | D136: =$C$113*POWER((D$117),-$E$113)*(1-(D$135/100)) -> 18.24796095 | E136: 15.81229296 | F136: 14.149258 | G136: 12.92115705 | H136: 11.96635558 | I136: 11.19649046 | J136: 10.5586394 | K136: 10.01891582 | L136: 9.554482527 | M136: 9.149312622 | N136: 8.791782556 | O136: 8.47322943 | P136: 8.187046946 | Q136: 7.928097389 | R136: 7.692316853 | S136: 7.476442889 | T136: 7.277822084 | U136: 7.094271253 | V136: 6.34814157 | W136: 5.797147398 | X136: 5.368770527 | Y136: 5.02336635 | Z136: 4.737191004 | AA136: 4.495041085 | AB136: 4.286670561 | AC136: 4.104888879 | AD136: 3.94448107 | AE136: 3.801560477 | AF136: 3.673163149 | AG136: 3.556984021 | AH136: 3.451199801 | AI136: 3.354346773 | AJ136: 3.265234468 | AK136: 3.182883389 | AL136: 3.106479248 | AM136: 3.03533878 | AN136: 2.968883823 | AO136: 2.906621403 | AP136: 2.848128248 | AQ136: 2.793038604 | AR136: 2.741034558 | AS136: 2.691838287 | AT136: 2.645205778 | AU136: 2.600921716 | AV136: 2.558795287 | AW136: 2.518656702 | AX136: 2.480354315 | AY136: 2.443752195 | AZ136: 2.408728102 | BA136: 2.375171756 | BB136: 2.342983375 | BC136: 2.312072427 | BD136: 2.282356552 | BE136: 2.253760639 | BF136: 2.226216027 | BG136: 2.199659805 | BH136: 2.174034215 | BI136: 2.149286113 | BJ136: 2.125366514 | BK136: 2.102230174 | BL136: 2.079835239 | BM136: 2.05814292 | BN136: 2.03711721 | BO136: 2.016724635 | BP136: =$C$113*POWER((BP$117),-$E$113)*(1-(BP$135/100)) -> 1.99693403 | BQ136: 1.977716334 | BR136: 1.959044416 | BS136: 1.940892908 | BT136: 1.923238066 | BU136: 1.906057633
B139: =B11 -> General cargo vessels
B140: a | C140: =C11 -> 107.48 | D140: c | E140: =E11 -> 0.216
B141: Min DWT | C141: =I11 -> 3000
B142: Max DWT | C142: =J11 -> 15000
B144: DWT | C144: =C$21 -> 2000 | D144: =D$21 -> 3000 | E144: 4000 | F144: 5000 | G144: 6000 | H144: 7000 | I144: 8000 | J144: 9000 | K144: 10000 | L144: 11000 | M144: 12000 | N144: 13000 | O144: 14000 | P144: 15000 | Q144: 16000 | R144: 17000 | S144: 18000 | T144: 19000 | U144: 20000 | V144: 25000 | W144: 30000 | X144: 35000 | Y144: 40000 | Z144: 45000 | AA144: 50000 | AB144: 55000 | AC144: 60000 | AD144: 65000 | AE144: 70000 | AF144: 75000 | AG144: 80000 | AH144: 85000 | AI144: 90000 | AJ144: 95000 | AK144: 100000 | AL144: 105000 | AM144: 110000 | AN144: 115000 | AO144: 120000 | AP144: 125000 | AQ144: 130000 | AR144: 135000 | AS144: 140000 | AT144: 145000 | AU144: 150000 | AV144: 155000 | AW144: 160000 | AX144: 165000 | AY144: 170000 | AZ144: 175000 | BA144: 180000 | BB144: 185000 | BC144: 190000 | BD144: 195000 | BE144: 200000 | BF144: 205000 | BG144: 210000 | BH144: 215000 | BI144: 220000 | BJ144: 225000 | BK144: 230000 | BL144: 235000 | BM144: 240000 | BN144: 245000 | BO144: 250000 | BP144: =BP$21 -> 255000 | BQ144: 260000 | BR144: 265000 | BS144: 270000 | BT144: 275000 | BU144: 280000
B145: Phase 0, 1. Jan 2013-31 dec. 2014 | C145: =$C$11*POWER(C$144,-$E$11) -> 20.81158603 | D145: =$C$11*POWER(D$144,-$E$11) -> 19.06643366 | E145: 17.9177181 | F145: 17.07458421 | G145: 16.41523059 | H145: 15.87765939 | I145: 15.42624486 | J145: 15.03873393 | K145: 14.70034942 | L145: 14.40080726 | M145: 14.13267945 | N145: 13.89043651 | O145: 13.66985796 | P145: 13.46765386 | Q145: 13.28121299 | R145: 13.10843035 | S145: 12.94758577 | T145: 12.79725665 | U145: 12.6562539 | V145: 12.06070281 | W145: 11.59496566 | X145: 11.21525003 | Y145: 10.89639152 | Z145: 10.62267158 | AA145: 10.38365229 | AB145: 10.17206945 | AC145: 9.982676273 | AD145: 9.811566975 | AE145: 9.655760413 | AF145: 9.512932712 | AG145: 9.381239437 | AH145: 9.259193706 | AI145: 9.145580478 | AJ145: 9.039394887 | AK145: 8.939797012 | AL145: 8.846078096 | AM145: 8.75763494 | AN145: 8.673950197 | AO145: 8.594577035 | AP145: 8.519127046 | AQ145: 8.447260623 | AR145: 8.378679222 | AS145: 8.31311909 | AT145: 8.250346134 | AU145: 8.190151697 | AV145: 8.132349053 | AW145: 8.076770479 | AX145: 8.023264798 | AY145: 7.971695306 | AZ145: 7.921938002 | BA145: 7.873880089 | BB145: 7.827418681 | BC145: 7.782459691 | BD145: 7.738916872 | BE145: 7.696710981 | BF145: 7.655769051 | BG145: 7.616023757 | BH145: 7.577412855 | BI145: 7.539878693 | BJ145: 7.503367776 | BK145: 7.467830382 | BL145: 7.433220218 | BM145: 7.399494122 | BN145: 7.366611786 | BO145: 7.334535516 | BP145: =$C$11*POWER(BP$144,-$E$11) -> 7.303230012 | BQ145: 7.272662177 | BR145: 7.242800935 | BS145: 7.213617076 | BT145: 7.185083108 | BU145: 7.157173133
B146: Phase 1, 1. Jan 2015-31 dec. 2019 | C146: =C153 -> 20.81158603 | D146: =D153 -> 19.06643366 | E146: 17.76840379 | F146: 16.79000781 | G146: 16.00484982 | H146: 15.34840408 | I146: 14.78348466 | J146: 14.28679723 | K146: 13.84282903 | L146: 13.44075344 | M146: 13.07272849 | N146: 12.73290013 | O146: 12.41678765 | P146: 12.12088847 | Q146: 11.95309169 | R146: 11.79758731 | S146: 11.65282719 | T146: 11.51753099 | U146: 11.39062851 | V146: 10.85463252 | W146: 10.43546909 | X146: 10.09372503 | Y146: 9.80675237 | Z146: 9.560404425 | AA146: 9.345287062 | AB146: 9.154862508 | AC146: 8.984408646 | AD146: 8.830410277 | AE146: 8.690184371 | AF146: 8.561639441 | AG146: 8.443115493 | AH146: 8.333274335 | AI146: 8.23102243 | AJ146: 8.135455398 | AK146: 8.045817311 | AL146: 7.961470287 | AM146: 7.881871446 | AN146: 7.806555177 | AO146: 7.735119332 | AP146: 7.667214342 | AQ146: 7.602534561 | AR146: 7.5408113 | AS146: 7.481807181 | AT146: 7.425311521 | AU146: 7.371136528 | AV146: 7.319114148 | AW146: 7.269093431 | AX146: 7.220938318 | AY146: 7.174525775 | AZ146: 7.129744202 | BA146: 7.08649208 | BB146: 7.044676813 | BC146: 7.004213722 | BD146: 6.965025185 | BE146: 6.927039883 | BF146: 6.890192146 | BG146: 6.854421381 | BH146: 6.81967157 | BI146: 6.785890824 | BJ146: 6.753030999 | BK146: 6.721047344 | BL146: 6.689898197 | BM146: 6.65954471 | BN146: 6.629950608 | BO146: 6.601081964 | BP146: =BP153 -> 6.572907011 | BQ146: 6.545395959 | BR146: 6.518520842 | BS146: 6.492255368 | BT146: 6.466574798 | BU146: 6.44145582
B147: Phase 2, 1. Jan 2020-31 dec. 2024 | C147: =C158 -> 20.81158603 | D147: =D158 -> 19.06643366 | E147: 17.61908947 | F147: 16.5054314 | G147: 15.59446906 | H147: 14.81914876 | I147: 14.14072445 | J147: 13.53486054 | K147: 12.98530865 | L147: 12.48069962 | M147: 12.01277753 | N147: 11.57536376 | O147: 11.16371734 | P147: 10.77412309 | Q147: 10.62497039 | R147: 10.48674428 | S147: 10.35806862 | T147: 10.23780532 | U147: 10.12500312 | V147: 9.648562244 | W147: 9.275972528 | X147: 8.972200026 | Y147: 8.717113218 | Z147: 8.498137267 | AA147: 8.306921833 | AB147: 8.137655563 | AC147: 7.986141019 | AD147: 7.84925358 | AE147: 7.72460833 | AF147: 7.61034617 | AG147: 7.504991549 | AH147: 7.407354965 | AI147: 7.316464382 | AJ147: 7.23151591 | AK147: 7.151837609 | AL147: 7.076862477 | AM147: 7.006107952 | AN147: 6.939160158 | AO147: 6.875661628 | AP147: 6.815301637 | AQ147: 6.757808498 | AR147: 6.702943378 | AS147: 6.650495272 | AT147: 6.600276907 | AU147: 6.552121358 | AV147: 6.505879242 | AW147: 6.461416383 | AX147: 6.418611839 | AY147: 6.377356245 | AZ147: 6.337550402 | BA147: 6.299104071 | BB147: 6.261934945 | BC147: 6.225967753 | BD147: 6.191133498 | BE147: 6.157368785 | BF147: 6.124615241 | BG147: 6.092819006 | BH147: 6.061930284 | BI147: 6.031902955 | BJ147: 6.002694221 | BK147: 5.974264305 | BL147: 5.946576175 | BM147: 5.919595298 | BN147: 5.893289429 | BO147: 5.867628413 | BP147: =BP158 -> 5.84258401 | BQ147: 5.818129742 | BR147: 5.794240748 | BS147: 5.77089366 | BT147: 5.748066487 | BU147: 5.725738506
B148: Phase 3, 1. Jan 2025-onwards | C148: =C163 -> 20.81158603 | D148: =D163 -> 19.06643366 | E148: 17.46977515 | F148: 16.220855 | G148: 15.18408829 | H148: 14.28989345 | I148: 13.49796425 | J148: 12.78292384 | K148: 12.12778827 | L148: 11.52064581 | M148: 10.95282657 | N148: 10.41782738 | O148: 9.910647023 | P148: 9.427357702 | Q148: 9.296849093 | R148: 9.175901243 | S148: 9.063310039 | T148: 8.958079657 | U148: 8.85937773 | V148: 8.442491964 | W148: 8.116475962 | X148: 7.850675023 | Y148: 7.627474065 | Z148: 7.435870108 | AA148: 7.268556604 | AB148: 7.120448618 | AC148: 6.987873391 | AD148: 6.868096882 | AE148: 6.759032289 | AF148: 6.659052899 | AG148: 6.566867606 | AH148: 6.481435594 | AI148: 6.401906334 | AJ148: 6.327576421 | AK148: 6.257857908 | AL148: 6.192254668 | AM148: 6.130344458 | AN148: 6.071765138 | AO148: 6.016203925 | AP148: 5.963388932 | AQ148: 5.913082436 | AR148: 5.865075455 | AS148: 5.819183363 | AT148: 5.775242294 | AU148: 5.733106188 | AV148: 5.692644337 | AW148: 5.653739335 | AX148: 5.616285359 | AY148: 5.580186714 | AZ148: 5.545356601 | BA148: 5.511716062 | BB148: 5.479193077 | BC148: 5.447721784 | BD148: 5.417241811 | BE148: 5.387697687 | BF148: 5.359038336 | BG148: 5.33121663 | BH148: 5.304188999 | BI148: 5.277915085 | BJ148: 5.252357443 | BK148: 5.227481267 | BL148: 5.203254153 | BM148: 5.179645886 | BN148: 5.15662825 | BO148: 5.134174861 | BP148: =BP163 -> 5.112261009 | BQ148: 5.090863524 | BR148: 5.069960655 | BS148: 5.049531953 | BT148: 5.029558176 | BU148: 5.010021193
A150: =$F$11 -> 10 | B150: Interpolation | C150: =IF(($C$141-$C$142=0),1,(C$144-$C$141)/($C$142-$C$141)*$A150) -> -0.8333333333 | D150: =IF(($C$141-$C$142=0),1,(D$144-$C$141)/($C$142-$C$141)*$A150) -> 0 | E150: 0.8333333333 | F150: 1.666666667 | G150: 2.5 | H150: 3.333333333 | I150: 4.166666667 | J150: 5 | K150: 5.833333333 | L150: 6.666666667 | M150: 7.5 | N150: 8.333333333 | O150: 9.166666667 | P150: 10 | Q150: 10.83333333 | R150: 11.66666667 | S150: 12.5 | T150: 13.33333333 | U150: 14.16666667 | V150: 18.33333333 | W150: 22.5 | X150: 26.66666667 | Y150: 30.83333333 | Z150: 35 | AA150: 39.16666667 | AB150: 43.33333333 | AC150: 47.5 | AD150: 51.66666667 | AE150: 55.83333333 | AF150: 60 | AG150: 64.16666667 | AH150: 68.33333333 | AI150: 72.5 | AJ150: 76.66666667 | AK150: 80.83333333 | AL150: 85 | AM150: 89.16666667 | AN150: 93.33333333 | AO150: 97.5 | AP150: 101.6666667 | AQ150: 105.8333333 | AR150: 110 | AS150: 114.1666667 | AT150: 118.3333333 | AU150: 122.5 | AV150: 126.6666667 | AW150: 130.8333333 | AX150: 135 | AY150: 139.1666667 | AZ150: 143.3333333 | BA150: 147.5 | BB150: 151.6666667 | BC150: 155.8333333 | BD150: 160 | BE150: 164.1666667 | BF150: 168.3333333 | BG150: 172.5 | BH150: 176.6666667 | BI150: 180.8333333 | BJ150: 185 | BK150: 189.1666667 | BL150: 193.3333333 | BM150: 197.5 | BN150: 201.6666667 | BO150: 205.8333333 | BP150: =IF(($C$141-$C$142=0),1,(BP$144-$C$141)/($C$142-$C$141)*$A150) -> 210 | BQ150: 214.1666667 | BR150: 218.3333333 | BS150: 222.5 | BT150: 226.6666667 | BU150: 230.8333333
A151: Phase 1 | B151: Reduction | C151: =IF(C$144<$C$142,C$150,$A150) -> -0.8333333333 | D151: =IF(D$144<$C$142,D$150,$A150) -> 0 | E151: 0.8333333333 | F151: 1.666666667 | G151: 2.5 | H151: 3.333333333 | I151: 4.166666667 | J151: 5 | K151: 5.833333333 | L151: 6.666666667 | M151: 7.5 | N151: 8.333333333 | O151: 9.166666667 | P151: 10 | Q151: 10 | R151: 10 | S151: 10 | T151: 10 | U151: 10 | V151: 10 | W151: 10 | X151: 10 | Y151: 10 | Z151: 10 | AA151: 10 | AB151: 10 | AC151: 10 | AD151: 10 | AE151: 10 | AF151: 10 | AG151: 10 | AH151: 10 | AI151: 10 | AJ151: 10 | AK151: 10 | AL151: 10 | AM151: 10 | AN151: 10 | AO151: 10 | AP151: 10 | AQ151: 10 | AR151: 10 | AS151: 10 | AT151: 10 | AU151: 10 | AV151: 10 | AW151: 10 | AX151: 10 | AY151: 10 | AZ151: 10 | BA151: 10 | BB151: 10 | BC151: 10 | BD151: 10 | BE151: 10 | BF151: 10 | BG151: 10 | BH151: 10 | BI151: 10 | BJ151: 10 | BK151: 10 | BL151: 10 | BM151: 10 | BN151: 10 | BO151: 10 | BP151: =IF(BP$144<$C$142,BP$150,$A150) -> 10 | BQ151: 10 | BR151: 10 | BS151: 10 | BT151: 10 | BU151: 10
B152: Calculated reduction | C152: =IF(C$144<$C$141,0,C$151) -> 0 | D152: =IF(D$144<$C$141,0,D$151) -> 0 | E152: 0.8333333333 | F152: 1.666666667 | G152: 2.5 | H152: 3.333333333 | I152: 4.166666667 | J152: 5 | K152: 5.833333333 | L152: 6.666666667 | M152: 7.5 | N152: 8.333333333 | O152: 9.166666667 | P152: =IF(P$144<$C$141,0,P$151) -> 10 | Q152: 10 | R152: 10 | S152: 10 | T152: 10 | U152: 10 | V152: 10 | W152: 10 | X152: 10 | Y152: 10 | Z152: 10 | AA152: 10 | AB152: 10 | AC152: 10 | AD152: 10 | AE152: 10 | AF152: 10 | AG152: 10 | AH152: 10 | AI152: 10 | AJ152: 10 | AK152: 10 | AL152: 10 | AM152: 10 | AN152: 10 | AO152: 10 | AP152: 10 | AQ152: 10 | AR152: 10 | AS152: 10 | AT152: 10 | AU152: 10 | AV152: 10 | AW152: 10 | AX152: 10 | AY152: 10 | AZ152: 10 | BA152: 10 | BB152: 10 | BC152: 10 | BD152: 10 | BE152: 10 | BF152: 10 | BG152: 10 | BH152: 10 | BI152: 10 | BJ152: 10 | BK152: 10 | BL152: 10 | BM152: 10 | BN152: 10 | BO152: 10 | BP152: =IF(BP$144<$C$141,0,BP$151) -> 10 | BQ152: 10 | BR152: 10 | BS152: 10 | BT152: 10 | BU152: 10
B153: Phase 1, 1. Jan 2015-31 dec. 2019 | C153: =$C$140*POWER((C$144),-$E$140)*(1-(C$152/100)) -> 20.81158603 | D153: =$C$140*POWER((D$144),-$E$140)*(1-(D$152/100)) -> 19.06643366 | E153: 17.76840379 | F153: 16.79000781 | G153: 16.00484982 | H153: 15.34840408 | I153: 14.78348466 | J153: 14.28679723 | K153: 13.84282903 | L153: 13.44075344 | M153: 13.07272849 | N153: 12.73290013 | O153: 12.41678765 | P153: 12.12088847 | Q153: 11.95309169 | R153: 11.79758731 | S153: 11.65282719 | T153: 11.51753099 | U153: 11.39062851 | V153: 10.85463252 | W153: 10.43546909 | X153: 10.09372503 | Y153: 9.80675237 | Z153: 9.560404425 | AA153: 9.345287062 | AB153: 9.154862508 | AC153: 8.984408646 | AD153: 8.830410277 | AE153: 8.690184371 | AF153: 8.561639441 | AG153: 8.443115493 | AH153: 8.333274335 | AI153: 8.23102243 | AJ153: 8.135455398 | AK153: 8.045817311 | AL153: 7.961470287 | AM153: 7.881871446 | AN153: 7.806555177 | AO153: 7.735119332 | AP153: 7.667214342 | AQ153: 7.602534561 | AR153: 7.5408113 | AS153: 7.481807181 | AT153: 7.425311521 | AU153: 7.371136528 | AV153: 7.319114148 | AW153: 7.269093431 | AX153: 7.220938318 | AY153: 7.174525775 | AZ153: 7.129744202 | BA153: 7.08649208 | BB153: 7.044676813 | BC153: 7.004213722 | BD153: 6.965025185 | BE153: 6.927039883 | BF153: 6.890192146 | BG153: 6.854421381 | BH153: 6.81967157 | BI153: 6.785890824 | BJ153: 6.753030999 | BK153: 6.721047344 | BL153: 6.689898197 | BM153: 6.65954471 | BN153: 6.629950608 | BO153: 6.601081964 | BP153: =$C$140*POWER((BP$144),-$E$140)*(1-(BP$152/100)) -> 6.572907011 | BQ153: 6.545395959 | BR153: 6.518520842 | BS153: 6.492255368 | BT153: 6.466574798 | BU153: 6.44145582
A155: =$G$11 -> 20 | B155: Interpolation | C155: =IF(($C$141-$C$142=0),1,(C$144-$C$141)/($C$142-$C$141)*$A155) -> -1.666666667 | D155: =IF(($C$141-$C$142=0),1,(D$144-$C$141)/($C$142-$C$141)*$A155) -> 0 | E155: 1.666666667 | F155: 3.333333333 | G155: 5 | H155: 6.666666667 | I155: 8.333333333 | J155: 10 | K155: 11.66666667 | L155: 13.33333333 | M155: 15 | N155: 16.66666667 | O155: 18.33333333 | P155: 20 | Q155: 21.66666667 | R155: 23.33333333 | S155: 25 | T155: 26.66666667 | U155: 28.33333333 | V155: 36.66666667 | W155: 45 | X155: 53.33333333 | Y155: 61.66666667 | Z155: 70 | AA155: 78.33333333 | AB155: 86.66666667 | AC155: 95 | AD155: 103.3333333 | AE155: 111.6666667 | AF155: 120 | AG155: 128.3333333 | AH155: 136.6666667 | AI155: 145 | AJ155: 153.3333333 | AK155: 161.6666667 | AL155: 170 | AM155: 178.3333333 | AN155: 186.6666667 | AO155: 195 | AP155: 203.3333333 | AQ155: 211.6666667 | AR155: 220 | AS155: 228.3333333 | AT155: 236.6666667 | AU155: 245 | AV155: 253.3333333 | AW155: 261.6666667 | AX155: 270 | AY155: 278.3333333 | AZ155: 286.6666667 | BA155: 295 | BB155: 303.3333333 | BC155: 311.6666667 | BD155: 320 | BE155: 328.3333333 | BF155: 336.6666667 | BG155: 345 | BH155: 353.3333333 | BI155: 361.6666667 | BJ155: 370 | BK155: 378.3333333 | BL155: 386.6666667 | BM155: 395 | BN155: 403.3333333 | BO155: 411.6666667 | BP155: =IF(($C$141-$C$142=0),1,(BP$144-$C$141)/($C$142-$C$141)*$A155) -> 420 | BQ155: 428.3333333 | BR155: 436.6666667 | BS155: 445 | BT155: 453.3333333 | BU155: 461.6666667
A156: Phase 2 | B156: Reduction | C156: =IF(C$144<$C$142,C$155,$A155) -> -1.666666667 | D156: =IF(D$144<$C$142,D$155,$A155) -> 0 | E156: 1.666666667 | F156: 3.333333333 | G156: 5 | H156: 6.666666667 | I156: 8.333333333 | J156: 10 | K156: 11.66666667 | L156: 13.33333333 | M156: 15 | N156: 16.66666667 | O156: 18.33333333 | P156: 20 | Q156: 20 | R156: 20 | S156: 20 | T156: 20 | U156: 20 | V156: 20 | W156: 20 | X156: 20 | Y156: 20 | Z156: 20 | AA156: 20 | AB156: 20 | AC156: 20 | AD156: 20 | AE156: 20 | AF156: 20 | AG156: 20 | AH156: 20 | AI156: 20 | AJ156: 20 | AK156: 20 | AL156: 20 | AM156: 20 | AN156: 20 | AO156: 20 | AP156: 20 | AQ156: 20 | AR156: 20 | AS156: 20 | AT156: 20 | AU156: 20 | AV156: 20 | AW156: 20 | AX156: 20 | AY156: 20 | AZ156: 20 | BA156: 20 | BB156: 20 | BC156: 20 | BD156: 20 | BE156: 20 | BF156: 20 | BG156: 20 | BH156: 20 | BI156: 20 | BJ156: 20 | BK156: 20 | BL156: 20 | BM156: 20 | BN156: 20 | BO156: 20 | BP156: =IF(BP$144<$C$142,BP$155,$A155) -> 20 | BQ156: 20 | BR156: 20 | BS156: 20 | BT156: 20 | BU156: 20
B157: Calculated reduction | C157: =IF(C$144<$C$141,0,C$156) -> 0 | D157: =IF(D$144<$C$141,0,D$156) -> 0 | E157: 1.666666667 | F157: 3.333333333 | G157: 5 | H157: 6.666666667 | I157: 8.333333333 | J157: 10 | K157: 11.66666667 | L157: 13.33333333 | M157: 15 | N157: 16.66666667 | O157: 18.33333333 | P157: 20 | Q157: 20 | R157: 20 | S157: 20 | T157: 20 | U157: 20 | V157: 20 | W157: 20 | X157: 20 | Y157: 20 | Z157: 20 | AA157: 20 | AB157: 20 | AC157: 20 | AD157: 20 | AE157: 20 | AF157: 20 | AG157: 20 | AH157: 20 | AI157: 20 | AJ157: 20 | AK157: 20 | AL157: 20 | AM157: 20 | AN157: 20 | AO157: 20 | AP157: 20 | AQ157: 20 | AR157: 20 | AS157: 20 | AT157: 20 | AU157: 20 | AV157: 20 | AW157: 20 | AX157: 20 | AY157: 20 | AZ157: 20 | BA157: 20 | BB157: 20 | BC157: 20 | BD157: 20 | BE157: 20 | BF157: 20 | BG157: 20 | BH157: 20 | BI157: 20 | BJ157: 20 | BK157: 20 | BL157: 20 | BM157: 20 | BN157: 20 | BO157: 20 | BP157: =IF(BP$144<$C$141,0,BP$156) -> 20 | BQ157: 20 | BR157: 20 | BS157: 20 | BT157: 20 | BU157: 20
B158: Phase 2, 1. Jan 2020-31 dec. 2024 | C158: =$C$140*POWER((C$144),-$E$140)*(1-(C$157/100)) -> 20.81158603 | D158: =$C$140*POWER((D$144),-$E$140)*(1-(D$157/100)) -> 19.06643366 | E158: 17.61908947 | F158: 16.5054314 | G158: 15.59446906 | H158: 14.81914876 | I158: 14.14072445 | J158: 13.53486054 | K158: 12.98530865 | L158: 12.48069962 | M158: 12.01277753 | N158: 11.57536376 | O158: 11.16371734 | P158: 10.77412309 | Q158: 10.62497039 | R158: 10.48674428 | S158: 10.35806862 | T158: 10.23780532 | U158: 10.12500312 | V158: 9.648562244 | W158: 9.275972528 | X158: 8.972200026 | Y158: 8.717113218 | Z158: 8.498137267 | AA158: 8.306921833 | AB158: 8.137655563 | AC158: 7.986141019 | AD158: 7.84925358 | AE158: 7.72460833 | AF158: 7.61034617 | AG158: 7.504991549 | AH158: 7.407354965 | AI158: 7.316464382 | AJ158: 7.23151591 | AK158: 7.151837609 | AL158: 7.076862477 | AM158: 7.006107952 | AN158: 6.939160158 | AO158: 6.875661628 | AP158: 6.815301637 | AQ158: 6.757808498 | AR158: 6.702943378 | AS158: 6.650495272 | AT158: 6.600276907 | AU158: 6.552121358 | AV158: 6.505879242 | AW158: 6.461416383 | AX158: 6.418611839 | AY158: 6.377356245 | AZ158: 6.337550402 | BA158: 6.299104071 | BB158: 6.261934945 | BC158: 6.225967753 | BD158: 6.191133498 | BE158: 6.157368785 | BF158: 6.124615241 | BG158: 6.092819006 | BH158: 6.061930284 | BI158: 6.031902955 | BJ158: 6.002694221 | BK158: 5.974264305 | BL158: 5.946576175 | BM158: 5.919595298 | BN158: 5.893289429 | BO158: 5.867628413 | BP158: =$C$140*POWER((BP$144),-$E$140)*(1-(BP$157/100)) -> 5.84258401 | BQ158: 5.818129742 | BR158: 5.794240748 | BS158: 5.77089366 | BT158: 5.748066487 | BU158: 5.725738506
A160: =$H$11 -> 30 | B160: Interpolation | C160: =IF(($C$141-$C$142=0),1,(C$144-$C$141)/($C$142-$C$141)*$A160) -> -2.5 | D160: =IF(($C$141-$C$142=0),1,(D$144-$C$141)/($C$142-$C$141)*$A160) -> 0 | E160: 2.5 | F160: 5 | G160: 7.5 | H160: 10 | I160: 12.5 | J160: 15 | K160: 17.5 | L160: 20 | M160: 22.5 | N160: 25 | O160: 27.5 | P160: 30 | Q160: 32.5 | R160: 35 | S160: 37.5 | T160: 40 | U160: 42.5 | V160: 55 | W160: 67.5 | X160: 80 | Y160: 92.5 | Z160: 105 | AA160: 117.5 | AB160: 130 | AC160: 142.5 | AD160: 155 | AE160: 167.5 | AF160: 180 | AG160: 192.5 | AH160: 205 | AI160: 217.5 | AJ160: 230 | AK160: 242.5 | AL160: 255 | AM160: 267.5 | AN160: 280 | AO160: 292.5 | AP160: 305 | AQ160: 317.5 | AR160: 330 | AS160: 342.5 | AT160: 355 | AU160: 367.5 | AV160: 380 | AW160: 392.5 | AX160: 405 | AY160: 417.5 | AZ160: 430 | BA160: 442.5 | BB160: 455 | BC160: 467.5 | BD160: 480 | BE160: 492.5 | BF160: 505 | BG160: 517.5 | BH160: 530 | BI160: 542.5 | BJ160: 555 | BK160: 567.5 | BL160: 580 | BM160: 592.5 | BN160: 605 | BO160: 617.5 | BP160: =IF(($C$141-$C$142=0),1,(BP$144-$C$141)/($C$142-$C$141)*$A160) -> 630 | BQ160: 642.5 | BR160: 655 | BS160: 667.5 | BT160: 680 | BU160: 692.5
A161: Phase 2 | B161: Reduction | C161: =IF(C$144<$C$142,C$160,$A160) -> -2.5 | D161: =IF(D$144<$C$142,D$160,$A160) -> 0 | E161: 2.5 | F161: 5 | G161: 7.5 | H161: 10 | I161: 12.5 | J161: 15 | K161: 17.5 | L161: 20 | M161: 22.5 | N161: 25 | O161: 27.5 | P161: 30 | Q161: 30 | R161: 30 | S161: 30 | T161: 30 | U161: 30 | V161: 30 | W161: 30 | X161: 30 | Y161: 30 | Z161: 30 | AA161: 30 | AB161: 30 | AC161: 30 | AD161: 30 | AE161: 30 | AF161: 30 | AG161: 30 | AH161: 30 | AI161: 30 | AJ161: 30 | AK161: 30 | AL161: 30 | AM161: 30 | AN161: 30 | AO161: 30 | AP161: 30 | AQ161: 30 | AR161: 30 | AS161: 30 | AT161: 30 | AU161: 30 | AV161: 30 | AW161: 30 | AX161: 30 | AY161: 30 | AZ161: 30 | BA161: 30 | BB161: 30 | BC161: 30 | BD161: 30 | BE161: 30 | BF161: 30 | BG161: 30 | BH161: 30 | BI161: 30 | BJ161: 30 | BK161: 30 | BL161: 30 | BM161: 30 | BN161: 30 | BO161: 30 | BP161: =IF(BP$144<$C$142,BP$160,$A160) -> 30 | BQ161: 30 | BR161: 30 | BS161: 30 | BT161: 30 | BU161: 30
B162: Calculated reduction | C162: =IF(C$144<$C$141,0,C$161) -> 0 | D162: =IF(D$144<$C$141,0,D$161) -> 0 | E162: 2.5 | F162: 5 | G162: 7.5 | H162: 10 | I162: 12.5 | J162: 15 | K162: 17.5 | L162: 20 | M162: 22.5 | N162: 25 | O162: 27.5 | P162: 30 | Q162: 30 | R162: 30 | S162: 30 | T162: 30 | U162: 30 | V162: 30 | W162: 30 | X162: 30 | Y162: 30 | Z162: 30 | AA162: 30 | AB162: 30 | AC162: 30 | AD162: 30 | AE162: 30 | AF162: 30 | AG162: 30 | AH162: 30 | AI162: 30 | AJ162: 30 | AK162: 30 | AL162: 30 | AM162: 30 | AN162: 30 | AO162: 30 | AP162: 30 | AQ162: 30 | AR162: 30 | AS162: 30 | AT162: 30 | AU162: 30 | AV162: 30 | AW162: 30 | AX162: 30 | AY162: 30 | AZ162: 30 | BA162: 30 | BB162: 30 | BC162: 30 | BD162: 30 | BE162: 30 | BF162: 30 | BG162: 30 | BH162: 30 | BI162: 30 | BJ162: 30 | BK162: 30 | BL162: 30 | BM162: 30 | BN162: 30 | BO162: 30 | BP162: =IF(BP$144<$C$141,0,BP$161) -> 30 | BQ162: 30 | BR162: 30 | BS162: 30 | BT162: 30 | BU162: 30
B163: Phase 3, 1. Jan 2025-onwards | C163: =$C$140*POWER((C$144),-$E$140)*(1-(C$162/100)) -> 20.81158603 | D163: =$C$140*POWER((D$144),-$E$140)*(1-(D$162/100)) -> 19.06643366 | E163: 17.46977515 | F163: 16.220855 | G163: 15.18408829 | H163: 14.28989345 | I163: 13.49796425 | J163: 12.78292384 | K163: 12.12778827 | L163: 11.52064581 | M163: 10.95282657 | N163: 10.41782738 | O163: 9.910647023 | P163: 9.427357702 | Q163: 9.296849093 | R163: 9.175901243 | S163: 9.063310039 | T163: 8.958079657 | U163: 8.85937773 | V163: 8.442491964 | W163: 8.116475962 | X163: 7.850675023 | Y163: 7.627474065 | Z163: 7.435870108 | AA163: 7.268556604 | AB163: 7.120448618 | AC163: 6.987873391 | AD163: 6.868096882 | AE163: 6.759032289 | AF163: 6.659052899 | AG163: 6.566867606 | AH163: 6.481435594 | AI163: 6.401906334 | AJ163: 6.327576421 | AK163: 6.257857908 | AL163: 6.192254668 | AM163: 6.130344458 | AN163: 6.071765138 | AO163: 6.016203925 | AP163: 5.963388932 | AQ163: 5.913082436 | AR163: 5.865075455 | AS163: 5.819183363 | AT163: 5.775242294 | AU163: 5.733106188 | AV163: 5.692644337 | AW163: 5.653739335 | AX163: 5.616285359 | AY163: 5.580186714 | AZ163: 5.545356601 | BA163: 5.511716062 | BB163: 5.479193077 | BC163: 5.447721784 | BD163: 5.417241811 | BE163: 5.387697687 | BF163: 5.359038336 | BG163: 5.33121663 | BH163: 5.304188999 | BI163: 5.277915085 | BJ163: 5.252357443 | BK163: 5.227481267 | BL163: 5.203254153 | BM163: 5.179645886 | BN163: 5.15662825 | BO163: 5.134174861 | BP163: =$C$140*POWER((BP$144),-$E$140)*(1-(BP$162/100)) -> 5.112261009 | BQ163: 5.090863524 | BR163: 5.069960655 | BS163: 5.049531953 | BT163: 5.029558176 | BU163: 5.010021193
B166: =B12 -> Passenger vessels
B167: a | C167: =C12 -> 170.84 | D167: c | E167: =E12 -> 0.214
B168: Min GT | C168: =I12 -> 25000
B169: Max GT | C169: =J12 -> 30000
B171: GT | C171: =C$21 -> 2000 | D171: =D$21 -> 3000 | E171: 4000 | F171: 5000 | G171: 6000 | H171: 7000 | I171: 8000 | J171: 9000 | K171: 10000 | L171: 11000 | M171: 12000 | N171: 13000 | O171: 14000 | P171: 15000 | Q171: 16000 | R171: 17000 | S171: 18000 | T171: 19000 | U171: 20000 | V171: 25000 | W171: 30000 | X171: 35000 | Y171: 40000 | Z171: 45000 | AA171: 50000 | AB171: 55000 | AC171: 60000 | AD171: 65000 | AE171: 70000 | AF171: 75000 | AG171: 80000 | AH171: 85000 | AI171: 90000 | AJ171: 95000 | AK171: 100000 | AL171: 105000 | AM171: 110000 | AN171: 115000 | AO171: 120000 | AP171: 125000 | AQ171: 130000 | AR171: 135000 | AS171: 140000 | AT171: 145000 | AU171: 150000 | AV171: 155000 | AW171: 160000 | AX171: 165000 | AY171: 170000 | AZ171: 175000 | BA171: 180000 | BB171: 185000 | BC171: 190000 | BD171: 195000 | BE171: 200000 | BF171: 205000 | BG171: 210000 | BH171: 215000 | BI171: 220000 | BJ171: 225000 | BK171: 230000 | BL171: 235000 | BM171: 240000 | BN171: 245000 | BO171: 250000 | BP171: =BP$21 -> 255000 | BQ171: 260000 | BR171: 265000 | BS171: 270000 | BT171: 275000 | BU171: 280000
B172: Phase 0, 1. Jan 2013-31 dec. 2014 | C172: =$C$12*POWER(C$171,-$E$12) -> 33.58683987 | D172: =$C$12*POWER(D$171,-$E$12) -> 30.79538332 | E172: 28.95667719 | F172: 27.60641306 | G172: 26.55004094 | H172: 25.68849033 | I172: 24.96481232 | J172: 24.34342413 | K172: 23.80069082 | L172: 23.32016013 | M172: 22.88994642 | N172: 22.50120028 | O172: 22.14716612 | P172: 21.82257694 | Q172: 21.5232518 | R172: 21.2458198 | S172: 20.98752598 | T172: 20.74609165 | U172: 20.51961196 | V172: 19.56277234 | W172: 18.81419384 | X172: 18.20367198 | Y172: 17.690851 | Z172: 17.25051578 | AA172: 16.8659179 | AB172: 16.52539873 | AC172: 16.22053578 | AD172: 15.94505804 | AE172: 15.6941783 | AF172: 15.4641642 | AG172: 15.25205299 | AH172: 15.05545595 | AI172: 14.87242083 | AJ172: 14.70133288 | AK172: 14.54084224 | AL172: 14.38980977 | AM172: 14.24726585 | AN172: 14.11237879 | AO172: 13.98443022 | AP172: 13.8627956 | AQ172: 13.74692886 | AR172: 13.6363499 | AS172: 13.53063451 | AT172: 13.4294062 | AU172: 13.33232934 | AV172: 13.23910356 | AW172: 13.14945904 | AX172: 13.06315256 | AY172: 12.97996417 | AZ172: 12.89969436 | BA172: 12.82216162 | BB172: 12.74720038 | BC172: 12.67465924 | BD172: 12.60439939 | BE172: 12.53629328 | BF172: 12.47022348 | BG172: 12.40608161 | BH172: 12.34376748 | BI172: 12.28318829 | BJ172: 12.2242579 | BK172: 12.16689628 | BL172: 12.11102889 | BM172: 12.05658624 | BN172: 12.00350342 | BO172: 11.95171975 | BP172: =$C$12*POWER(BP$171,-$E$12) -> 11.90117837 | BQ172: 11.85182598 | BR172: 11.80361256 | BS172: 11.75649104 | BT172: 11.71041716 | BU172: 11.66534921
B173: Phase 1, 1. Jan 2015-31 dec. 2019 | C173: =C180 -> 33.58683987 | D173: =D180 -> 30.79538332 | E173: 28.95667719 | F173: 27.60641306 | G173: 26.55004094 | H173: 25.68849033 | I173: 24.96481232 | J173: 24.34342413 | K173: 23.80069082 | L173: 23.32016013 | M173: 22.88994642 | N173: 22.50120028 | O173: 22.14716612 | P173: 21.82257694 | Q173: 21.5232518 | R173: 21.2458198 | S173: 20.98752598 | T173: 20.74609165 | U173: 20.51961196 | V173: 19.56277234 | W173: 17.87348415 | X173: 17.29348839 | Y173: 16.80630845 | Z173: 16.38798999 | AA173: 16.022622 | AB173: 15.6991288 | AC173: 15.40950899 | AD173: 15.14780514 | AE173: 14.90946938 | AF173: 14.69095599 | AG173: 14.48945034 | AH173: 14.30268316 | AI173: 14.12879979 | AJ173: 13.96626623 | AK173: 13.81380013 | AL173: 13.67031928 | AM173: 13.53490256 | AN173: 13.40675985 | AO173: 13.28520871 | AP173: 13.16965582 | AQ173: 13.05958242 | AR173: 12.9545324 | AS173: 12.85410279 | AT173: 12.75793589 | AU173: 12.66571288 | AV173: 12.57714838 | AW173: 12.49198608 | AX173: 12.40999493 | AY173: 12.33096596 | AZ173: 12.25470964 | BA173: 12.18105354 | BB173: 12.10984036 | BC173: 12.04092628 | BD173: 11.97417942 | BE173: 11.90947862 | BF173: 11.8467123 | BG173: 11.78577753 | BH173: 11.72657911 | BI173: 11.66902887 | BJ173: 11.61304501 | BK173: 11.55855147 | BL173: 11.50547745 | BM173: 11.45375693 | BN173: 11.40332825 | BO173: 11.35413376 | BP173: =BP180 -> 11.30611945 | BQ173: 11.25923469 | BR173: 11.21343193 | BS173: 11.16866649 | BT173: 11.1248963 | BU173: 11.08208175
B174: Phase 2, 1. Jan 2020-31 dec. 2024 | C174: =C185 -> 33.58683987 | D174: =D185 -> 30.79538332 | E174: 28.95667719 | F174: 27.60641306 | G174: 26.55004094 | H174: 25.68849033 | I174: 24.96481232 | J174: 24.34342413 | K174: 23.80069082 | L174: 23.32016013 | M174: 22.88994642 | N174: 22.50120028 | O174: 22.14716612 | P174: 21.82257694 | Q174: 21.5232518 | R174: 21.2458198 | S174: 20.98752598 | T174: 20.74609165 | U174: 20.51961196 | V174: 19.56277234 | W174: 15.05135507 | X174: 14.56293759 | Y174: 14.1526808 | Z174: 13.80041263 | AA174: 13.49273432 | AB174: 13.22031899 | AC174: 12.97642862 | AD174: 12.75604643 | AE174: 12.55534264 | AF174: 12.37133136 | AG174: 12.20164239 | AH174: 12.04436476 | AI174: 11.89793666 | AJ174: 11.7610663 | AK174: 11.6326738 | AL174: 11.51184782 | AM174: 11.39781268 | AN174: 11.28990303 | AO174: 11.18754417 | AP174: 11.09023648 | AQ174: 10.99754309 | AR174: 10.90907992 | AS174: 10.82450761 | AT174: 10.74352496 | AU174: 10.66586347 | AV174: 10.59128285 | AW174: 10.51956723 | AX174: 10.45052204 | AY174: 10.38397133 | AZ174: 10.31975549 | BA174: 10.25772929 | BB174: 10.19776031 | BC174: 10.13972739 | BD174: 10.08351951 | BE174: 10.02903462 | BF174: 9.976178782 | BG174: 9.924865287 | BH174: 9.875013984 | BI174: 9.826550628 | BJ174: 9.779406322 | BK174: 9.733517025 | BL174: 9.688823115 | BM174: 9.645268993 | BN174: 9.60280274 | BO174: 9.561375797 | BP174: =BP185 -> 9.520942693 | BQ174: 9.481460788 | BR174: 9.442890046 | BS174: 9.405192832 | BT174: 9.368333729 | BU174: 9.332279364
B175: Phase 3, 1. Jan 2025-onwards | C175: =C190 -> 33.58683987 | D175: =D190 -> 30.79538332 | E175: 28.95667719 | F175: 27.60641306 | G175: 26.55004094 | H175: 25.68849033 | I175: 24.96481232 | J175: 24.34342413 | K175: 23.80069082 | L175: 23.32016013 | M175: 22.88994642 | N175: 22.50120028 | O175: 22.14716612 | P175: 21.82257694 | Q175: 21.5232518 | R175: 21.2458198 | S175: 20.98752598 | T175: 20.74609165 | U175: 20.51961196 | V175: 19.56277234 | W175: 13.16993569 | X175: 12.74257039 | Y175: 12.3835957 | Z175: 12.07536105 | AA175: 11.80614253 | AB175: 11.56777911 | AC175: 11.35437504 | AD175: 11.16154063 | AE175: 10.98592481 | AF175: 10.82491494 | AG175: 10.67643709 | AH175: 10.53881917 | AI175: 10.41069458 | AJ175: 10.29093301 | AK175: 10.17858957 | AL175: 10.07286684 | AM175: 9.973086094 | AN175: 9.878665155 | AO175: 9.789101151 | AP175: 9.703956923 | AQ175: 9.622850205 | AR175: 9.545444927 | AS175: 9.471444159 | AT175: 9.400584343 | AU175: 9.33263054 | AV175: 9.267372492 | AW175: 9.204621325 | AX175: 9.144206789 | AY175: 9.085974918 | AZ175: 9.02978605 | BA175: 8.975513132 | BB175: 8.923040268 | BC175: 8.872261469 | BD175: 8.823079571 | BE175: 8.775405296 | BF175: 8.729156434 | BG175: 8.684257126 | BH175: 8.640637236 | BI175: 8.5982318 | BJ175: 8.556980531 | BK175: 8.516827397 | BL175: 8.477720225 | BM175: 8.439610369 | BN175: 8.402452397 | BO175: 8.366203822 | BP175: =BP190 -> 8.330824857 | BQ175: 8.296278189 | BR175: 8.26252879 | BS175: 8.229543728 | BT175: 8.197292013 | BU175: 8.165744444
A177: =$F$12 -> 5 | B177: Interpolation | C177: =IF(($C$168-$C$169=0),1,(C$171-$C$168)/($C$169-$C$168)*$A177) -> -23 | D177: =IF(($C$168-$C$169=0),1,(D$171-$C$168)/($C$169-$C$168)*$A177) -> -22 | E177: -21 | F177: -20 | G177: -19 | H177: -18 | I177: -17 | J177: -16 | K177: -15 | L177: -14 | M177: -13 | N177: -12 | O177: -11 | P177: -10 | Q177: -9 | R177: -8 | S177: -7 | T177: -6 | U177: -5 | V177: 0 | W177: 5 | X177: 10 | Y177: 15 | Z177: 20 | AA177: 25 | AB177: 30 | AC177: 35 | AD177: 40 | AE177: 45 | AF177: 50 | AG177: 55 | AH177: 60 | AI177: 65 | AJ177: 70 | AK177: 75 | AL177: 80 | AM177: 85 | AN177: 90 | AO177: 95 | AP177: 100 | AQ177: 105 | AR177: 110 | AS177: 115 | AT177: 120 | AU177: 125 | AV177: 130 | AW177: 135 | AX177: 140 | AY177: 145 | AZ177: 150 | BA177: 155 | BB177: 160 | BC177: 165 | BD177: 170 | BE177: 175 | BF177: 180 | BG177: 185 | BH177: 190 | BI177: 195 | BJ177: 200 | BK177: 205 | BL177: 210 | BM177: 215 | BN177: 220 | BO177: 225 | BP177: =IF(($C$168-$C$169=0),1,(BP$171-$C$168)/($C$169-$C$168)*$A177) -> 230 | BQ177: 235 | BR177: 240 | BS177: 245 | BT177: 250 | BU177: 255
A178: Phase 1 | B178: Reduction | C178: =IF(C$171<$C$169,C$177,$A177) -> -23 | D178: =IF(D$171<$C$169,D$177,$A177) -> -22 | E178: -21 | F178: -20 | G178: -19 | H178: -18 | I178: -17 | J178: -16 | K178: -15 | L178: -14 | M178: -13 | N178: -12 | O178: -11 | P178: -10 | Q178: -9 | R178: -8 | S178: -7 | T178: -6 | U178: -5 | V178: 0 | W178: 5 | X178: 5 | Y178: 5 | Z178: 5 | AA178: 5 | AB178: 5 | AC178: 5 | AD178: 5 | AE178: 5 | AF178: 5 | AG178: 5 | AH178: 5 | AI178: 5 | AJ178: 5 | AK178: 5 | AL178: 5 | AM178: 5 | AN178: 5 | AO178: 5 | AP178: 5 | AQ178: 5 | AR178: 5 | AS178: 5 | AT178: 5 | AU178: 5 | AV178: 5 | AW178: 5 | AX178: 5 | AY178: 5 | AZ178: 5 | BA178: 5 | BB178: 5 | BC178: 5 | BD178: 5 | BE178: 5 | BF178: 5 | BG178: 5 | BH178: 5 | BI178: 5 | BJ178: 5 | BK178: 5 | BL178: 5 | BM178: 5 | BN178: 5 | BO178: 5 | BP178: =IF(BP$171<$C$169,BP$177,$A177) -> 5 | BQ178: 5 | BR178: 5 | BS178: 5 | BT178: 5 | BU178: 5
B179: Calculated reduction | C179: =IF(C$171<$C$168,0,C$178) -> 0 | D179: =IF(D$171<$C$168,0,D$178) -> 0 | E179: 0 | F179: 0 | G179: 0 | H179: 0 | I179: 0 | J179: 0 | K179: 0 | L179: 0 | M179: 0 | N179: 0 | O179: 0 | P179: 0 | Q179: 0 | R179: 0 | S179: 0 | T179: 0 | U179: 0 | V179: 0 | W179: 5 | X179: 5 | Y179: 5 | Z179: 5 | AA179: 5 | AB179: 5 | AC179: 5 | AD179: 5 | AE179: 5 | AF179: 5 | AG179: 5 | AH179: 5 | AI179: 5 | AJ179: 5 | AK179: 5 | AL179: 5 | AM179: 5 | AN179: 5 | AO179: 5 | AP179: 5 | AQ179: 5 | AR179: 5 | AS179: 5 | AT179: 5 | AU179: 5 | AV179: 5 | AW179: 5 | AX179: 5 | AY179: 5 | AZ179: 5 | BA179: 5 | BB179: 5 | BC179: 5 | BD179: 5 | BE179: 5 | BF179: 5 | BG179: 5 | BH179: 5 | BI179: 5 | BJ179: 5 | BK179: 5 | BL179: 5 | BM179: 5 | BN179: 5 | BO179: 5 | BP179: =IF(BP$171<$C$168,0,BP$178) -> 5 | BQ179: 5 | BR179: 5 | BS179: 5 | BT179: 5 | BU179: 5
B180: Phase 1, 1. Jan 2015-31 dec. 2019 | C180: =$C$167*POWER((C$171),-$E$167)*(1-(C$179/100)) -> 33.58683987 | D180: =$C$167*POWER((D$171),-$E$167)*(1-(D$179/100)) -> 30.79538332 | E180: 28.95667719 | F180: 27.60641306 | G180: 26.55004094 | H180: 25.68849033 | I180: 24.96481232 | J180: 24.34342413 | K180: 23.80069082 | L180: 23.32016013 | M180: 22.88994642 | N180: 22.50120028 | O180: 22.14716612 | P180: 21.82257694 | Q180: 21.5232518 | R180: 21.2458198 | S180: 20.98752598 | T180: 20.74609165 | U180: 20.51961196 | V180: 19.56277234 | W180: 17.87348415 | X180: 17.29348839 | Y180: 16.80630845 | Z180: 16.38798999 | AA180: 16.022622 | AB180: 15.6991288 | AC180: 15.40950899 | AD180: 15.14780514 | AE180: 14.90946938 | AF180: 14.69095599 | AG180: 14.48945034 | AH180: 14.30268316 | AI180: 14.12879979 | AJ180: 13.96626623 | AK180: 13.81380013 | AL180: 13.67031928 | AM180: 13.53490256 | AN180: 13.40675985 | AO180: 13.28520871 | AP180: 13.16965582 | AQ180: 13.05958242 | AR180: 12.9545324 | AS180: 12.85410279 | AT180: 12.75793589 | AU180: 12.66571288 | AV180: 12.57714838 | AW180: 12.49198608 | AX180: 12.40999493 | AY180: 12.33096596 | AZ180: 12.25470964 | BA180: 12.18105354 | BB180: 12.10984036 | BC180: 12.04092628 | BD180: 11.97417942 | BE180: 11.90947862 | BF180: 11.8467123 | BG180: 11.78577753 | BH180: 11.72657911 | BI180: 11.66902887 | BJ180: 11.61304501 | BK180: 11.55855147 | BL180: 11.50547745 | BM180: 11.45375693 | BN180: 11.40332825 | BO180: 11.35413376 | BP180: =$C$167*POWER((BP$171),-$E$167)*(1-(BP$179/100)) -> 11.30611945 | BQ180: 11.25923469 | BR180: 11.21343193 | BS180: 11.16866649 | BT180: 11.1248963 | BU180: 11.08208175
A182: =$G$12 -> 20 | B182: Interpolation | C182: =IF(($C$168-$C$169=0),1,(C$171-$C$168)/($C$169-$C$168)*$A182) -> -92 | D182: =IF(($C$168-$C$169=0),1,(D$171-$C$168)/($C$169-$C$168)*$A182) -> -88 | E182: -84 | F182: -80 | G182: -76 | H182: -72 | I182: -68 | J182: -64 | K182: -60 | L182: -56 | M182: -52 | N182: -48 | O182: -44 | P182: -40 | Q182: -36 | R182: -32 | S182: -28 | T182: -24 | U182: -20 | V182: 0 | W182: 20 | X182: 40 | Y182: 60 | Z182: 80 | AA182: 100 | AB182: 120 | AC182: 140 | AD182: 160 | AE182: 180 | AF182: 200 | AG182: 220 | AH182: 240 | AI182: 260 | AJ182: 280 | AK182: 300 | AL182: 320 | AM182: 340 | AN182: 360 | AO182: 380 | AP182: 400 | AQ182: 420 | AR182: 440 | AS182: 460 | AT182: 480 | AU182: 500 | AV182: 520 | AW182: 540 | AX182: 560 | AY182: 580 | AZ182: 600 | BA182: 620 | BB182: 640 | BC182: 660 | BD182: 680 | BE182: 700 | BF182: 720 | BG182: 740 | BH182: 760 | BI182: 780 | BJ182: 800 | BK182: 820 | BL182: 840 | BM182: 860 | BN182: 880 | BO182: 900 | BP182: =IF(($C$168-$C$169=0),1,(BP$171-$C$168)/($C$169-$C$168)*$A182) -> 920 | BQ182: 940 | BR182: 960 | BS182: 980 | BT182: 1000 | BU182: 1020
A183: Phase 2 | B183: Reduction | C183: =IF(C$171<$C$169,C$182,$A182) -> -92 | D183: =IF(D$171<$C$169,D$182,$A182) -> -88 | E183: -84 | F183: -80 | G183: -76 | H183: -72 | I183: -68 | J183: -64 | K183: -60 | L183: -56 | M183: -52 | N183: -48 | O183: -44 | P183: -40 | Q183: -36 | R183: -32 | S183: -28 | T183: -24 | U183: -20 | V183: 0 | W183: 20 | X183: 20 | Y183: 20 | Z183: 20 | AA183: 20 | AB183: 20 | AC183: 20 | AD183: 20 | AE183: 20 | AF183: 20 | AG183: 20 | AH183: 20 | AI183: 20 | AJ183: 20 | AK183: 20 | AL183: 20 | AM183: 20 | AN183: 20 | AO183: 20 | AP183: 20 | AQ183: 20 | AR183: 20 | AS183: 20 | AT183: 20 | AU183: 20 | AV183: 20 | AW183: 20 | AX183: 20 | AY183: 20 | AZ183: 20 | BA183: 20 | BB183: 20 | BC183: 20 | BD183: 20 | BE183: 20 | BF183: 20 | BG183: 20 | BH183: 20 | BI183: 20 | BJ183: 20 | BK183: 20 | BL183: 20 | BM183: 20 | BN183: 20 | BO183: 20 | BP183: =IF(BP$171<$C$169,BP$182,$A182) -> 20 | BQ183: 20 | BR183: 20 | BS183: 20 | BT183: 20 | BU183: 20
B184: Calculated reduction | C184: =IF(C$171<$C$168,0,C$183) -> 0 | D184: =IF(D$171<$C$168,0,D$183) -> 0 | E184: 0 | F184: 0 | G184: 0 | H184: 0 | I184: 0 | J184: 0 | K184: 0 | L184: 0 | M184: 0 | N184: 0 | O184: 0 | P184: 0 | Q184: 0 | R184: 0 | S184: 0 | T184: 0 | U184: 0 | V184: 0 | W184: 20 | X184: 20 | Y184: 20 | Z184: 20 | AA184: 20 | AB184: 20 | AC184: 20 | AD184: 20 | AE184: 20 | AF184: 20 | AG184: 20 | AH184: 20 | AI184: 20 | AJ184: 20 | AK184: 20 | AL184: 20 | AM184: 20 | AN184: 20 | AO184: 20 | AP184: 20 | AQ184: 20 | AR184: 20 | AS184: 20 | AT184: 20 | AU184: 20 | AV184: 20 | AW184: 20 | AX184: 20 | AY184: 20 | AZ184: 20 | BA184: 20 | BB184: 20 | BC184: 20 | BD184: 20 | BE184: 20 | BF184: 20 | BG184: 20 | BH184: 20 | BI184: 20 | BJ184: 20 | BK184: 20 | BL184: 20 | BM184: 20 | BN184: 20 | BO184: 20 | BP184: =IF(BP$171<$C$168,0,BP$183) -> 20 | BQ184: 20 | BR184: 20 | BS184: 20 | BT184: 20 | BU184: 20
B185: Phase 2, 1. Jan 2020-31 dec. 2024 | C185: =$C$167*POWER((C$171),-$E$167)*(1-(C$184/100)) -> 33.58683987 | D185: =$C$167*POWER((D$171),-$E$167)*(1-(D$184/100)) -> 30.79538332 | E185: 28.95667719 | F185: 27.60641306 | G185: 26.55004094 | H185: 25.68849033 | I185: 24.96481232 | J185: 24.34342413 | K185: 23.80069082 | L185: 23.32016013 | M185: 22.88994642 | N185: 22.50120028 | O185: 22.14716612 | P185: 21.82257694 | Q185: 21.5232518 | R185: 21.2458198 | S185: 20.98752598 | T185: 20.74609165 | U185: 20.51961196 | V185: 19.56277234 | W185: 15.05135507 | X185: 14.56293759 | Y185: 14.1526808 | Z185: 13.80041263 | AA185: 13.49273432 | AB185: 13.22031899 | AC185: 12.97642862 | AD185: 12.75604643 | AE185: 12.55534264 | AF185: 12.37133136 | AG185: 12.20164239 | AH185: 12.04436476 | AI185: 11.89793666 | AJ185: 11.7610663 | AK185: 11.6326738 | AL185: 11.51184782 | AM185: 11.39781268 | AN185: 11.28990303 | AO185: 11.18754417 | AP185: 11.09023648 | AQ185: 10.99754309 | AR185: 10.90907992 | AS185: 10.82450761 | AT185: 10.74352496 | AU185: 10.66586347 | AV185: 10.59128285 | AW185: 10.51956723 | AX185: 10.45052204 | AY185: 10.38397133 | AZ185: 10.31975549 | BA185: 10.25772929 | BB185: 10.19776031 | BC185: 10.13972739 | BD185: 10.08351951 | BE185: 10.02903462 | BF185: 9.976178782 | BG185: 9.924865287 | BH185: 9.875013984 | BI185: 9.826550628 | BJ185: 9.779406322 | BK185: 9.733517025 | BL185: 9.688823115 | BM185: 9.645268993 | BN185: 9.60280274 | BO185: 9.561375797 | BP185: =$C$167*POWER((BP$171),-$E$167)*(1-(BP$184/100)) -> 9.520942693 | BQ185: 9.481460788 | BR185: 9.442890046 | BS185: 9.405192832 | BT185: 9.368333729 | BU185: 9.332279364
A187: =$H$12 -> 30 | B187: Interpolation | C187: =IF(($C$168-$C$169=0),1,(C$171-$C$168)/($C$169-$C$168)*$A187) -> -138 | D187: =IF(($C$168-$C$169=0),1,(D$171-$C$168)/($C$169-$C$168)*$A187) -> -132 | E187: -126 | F187: -120 | G187: -114 | H187: -108 | I187: -102 | J187: -96 | K187: -90 | L187: -84 | M187: -78 | N187: -72 | O187: -66 | P187: -60 | Q187: -54 | R187: -48 | S187: -42 | T187: -36 | U187: -30 | V187: 0 | W187: 30 | X187: 60 | Y187: 90 | Z187: 120 | AA187: 150 | AB187: 180 | AC187: 210 | AD187: 240 | AE187: 270 | AF187: 300 | AG187: 330 | AH187: 360 | AI187: 390 | AJ187: 420 | AK187: 450 | AL187: 480 | AM187: 510 | AN187: 540 | AO187: 570 | AP187: 600 | AQ187: 630 | AR187: 660 | AS187: 690 | AT187: 720 | AU187: 750 | AV187: 780 | AW187: 810 | AX187: 840 | AY187: 870 | AZ187: 900 | BA187: 930 | BB187: 960 | BC187: 990 | BD187: 1020 | BE187: 1050 | BF187: 1080 | BG187: 1110 | BH187: 1140 | BI187: 1170 | BJ187: 1200 | BK187: 1230 | BL187: 1260 | BM187: 1290 | BN187: 1320 | BO187: 1350 | BP187: =IF(($C$168-$C$169=0),1,(BP$171-$C$168)/($C$169-$C$168)*$A187) -> 1380 | BQ187: 1410 | BR187: 1440 | BS187: 1470 | BT187: 1500 | BU187: 1530
A188: Phase 2 | B188: Reduction | C188: =IF(C$171<$C$169,C$187,$A187) -> -138 | D188: =IF(D$171<$C$169,D$187,$A187) -> -132 | E188: -126 | F188: -120 | G188: -114 | H188: -108 | I188: -102 | J188: -96 | K188: -90 | L188: -84 | M188: -78 | N188: -72 | O188: -66 | P188: -60 | Q188: -54 | R188: -48 | S188: -42 | T188: -36 | U188: -30 | V188: 0 | W188: 30 | X188: 30 | Y188: 30 | Z188: 30 | AA188: 30 | AB188: 30 | AC188: 30 | AD188: 30 | AE188: 30 | AF188: 30 | AG188: 30 | AH188: 30 | AI188: 30 | AJ188: 30 | AK188: 30 | AL188: 30 | AM188: 30 | AN188: 30 | AO188: 30 | AP188: 30 | AQ188: 30 | AR188: 30 | AS188: 30 | AT188: 30 | AU188: 30 | AV188: 30 | AW188: 30 | AX188: 30 | AY188: 30 | AZ188: 30 | BA188: 30 | BB188: 30 | BC188: 30 | BD188: 30 | BE188: 30 | BF188: 30 | BG188: 30 | BH188: 30 | BI188: 30 | BJ188: 30 | BK188: 30 | BL188: 30 | BM188: 30 | BN188: 30 | BO188: 30 | BP188: =IF(BP$171<$C$169,BP$187,$A187) -> 30 | BQ188: 30 | BR188: 30 | BS188: 30 | BT188: 30 | BU188: 30
B189: Calculated reduction | C189: =IF(C$171<$C$168,0,C$188) -> 0 | D189: =IF(D$171<$C$168,0,D$188) -> 0 | E189: 0 | F189: 0 | G189: 0 | H189: 0 | I189: 0 | J189: 0 | K189: 0 | L189: 0 | M189: 0 | N189: 0 | O189: 0 | P189: 0 | Q189: 0 | R189: 0 | S189: 0 | T189: 0 | U189: 0 | V189: 0 | W189: 30 | X189: 30 | Y189: 30 | Z189: 30 | AA189: 30 | AB189: 30 | AC189: 30 | AD189: 30 | AE189: 30 | AF189: 30 | AG189: 30 | AH189: 30 | AI189: 30 | AJ189: 30 | AK189: 30 | AL189: 30 | AM189: 30 | AN189: 30 | AO189: 30 | AP189: 30 | AQ189: 30 | AR189: 30 | AS189: 30 | AT189: 30 | AU189: 30 | AV189: 30 | AW189: 30 | AX189: 30 | AY189: 30 | AZ189: 30 | BA189: 30 | BB189: 30 | BC189: 30 | BD189: 30 | BE189: 30 | BF189: 30 | BG189: 30 | BH189: 30 | BI189: 30 | BJ189: 30 | BK189: 30 | BL189: 30 | BM189: 30 | BN189: 30 | BO189: 30 | BP189: =IF(BP$171<$C$168,0,BP$188) -> 30 | BQ189: 30 | BR189: 30 | BS189: 30 | BT189: 30 | BU189: 30
B190: Phase 3, 1. Jan 2025-onwards | C190: =$C$167*POWER((C$171),-$E$167)*(1-(C$189/100)) -> 33.58683987 | D190: =$C$167*POWER((D$171),-$E$167)*(1-(D$189/100)) -> 30.79538332 | E190: 28.95667719 | F190: 27.60641306 | G190: 26.55004094 | H190: 25.68849033 | I190: 24.96481232 | J190: 24.34342413 | K190: 23.80069082 | L190: 23.32016013 | M190: 22.88994642 | N190: 22.50120028 | O190: 22.14716612 | P190: 21.82257694 | Q190: 21.5232518 | R190: 21.2458198 | S190: 20.98752598 | T190: 20.74609165 | U190: 20.51961196 | V190: 19.56277234 | W190: 13.16993569 | X190: 12.74257039 | Y190: 12.3835957 | Z190: 12.07536105 | AA190: 11.80614253 | AB190: 11.56777911 | AC190: 11.35437504 | AD190: 11.16154063 | AE190: 10.98592481 | AF190: 10.82491494 | AG190: 10.67643709 | AH190: 10.53881917 | AI190: 10.41069458 | AJ190: 10.29093301 | AK190: 10.17858957 | AL190: 10.07286684 | AM190: 9.973086094 | AN190: 9.878665155 | AO190: 9.789101151 | AP190: 9.703956923 | AQ190: 9.622850205 | AR190: 9.545444927 | AS190: 9.471444159 | AT190: 9.400584343 | AU190: 9.33263054 | AV190: 9.267372492 | AW190: 9.204621325 | AX190: 9.144206789 | AY190: 9.085974918 | AZ190: 9.02978605 | BA190: 8.975513132 | BB190: 8.923040268 | BC190: 8.872261469 | BD190: 8.823079571 | BE190: 8.775405296 | BF190: 8.729156434 | BG190: 8.684257126 | BH190: 8.640637236 | BI190: 8.5982318 | BJ190: 8.556980531 | BK190: 8.516827397 | BL190: 8.477720225 | BM190: 8.439610369 | BN190: 8.402452397 | BO190: 8.366203822 | BP190: =$C$167*POWER((BP$171),-$E$167)*(1-(BP$189/100)) -> 8.330824857 | BQ190: 8.296278189 | BR190: 8.26252879 | BS190: 8.229543728 | BT190: 8.197292013 | BU190: 8.165744444
B193: =B13 -> Ro-Pax vessels
B194: a | C194: =C13 -> 752.16 | D194: c | E194: =E13 -> 0.381
B195: Min DWT | C195: =I13 -> 1000
B196: Max DWT | C196: =J13 -> 4000
B198: DWT | C198: =C$21 -> 2000 | D198: =D$21 -> 3000 | E198: 4000 | F198: 5000 | G198: 6000 | H198: 7000 | I198: 8000 | J198: 9000 | K198: 10000 | L198: 11000 | M198: 12000 | N198: 13000 | O198: 14000 | P198: 15000 | Q198: 16000 | R198: 17000 | S198: 18000 | T198: 19000 | U198: 20000 | V198: 25000 | W198: 30000 | X198: 35000 | Y198: 40000 | Z198: 45000 | AA198: 50000 | AB198: 55000 | AC198: 60000 | AD198: 65000 | AE198: 70000 | AF198: 75000 | AG198: 80000 | AH198: 85000 | AI198: 90000 | AJ198: 95000 | AK198: 100000 | AL198: 105000 | AM198: 110000 | AN198: 115000 | AO198: 120000 | AP198: 125000 | AQ198: 130000 | AR198: 135000 | AS198: 140000 | AT198: 145000 | AU198: 150000 | AV198: 155000 | AW198: 160000 | AX198: 165000 | AY198: 170000 | AZ198: 175000 | BA198: 180000 | BB198: 185000 | BC198: 190000 | BD198: 195000 | BE198: 200000 | BF198: 205000 | BG198: 210000 | BH198: 215000 | BI198: 220000 | BJ198: 225000 | BK198: 230000 | BL198: 235000 | BM198: 240000 | BN198: 245000 | BO198: 250000 | BP198: =BP$21 -> 255000 | BQ198: 260000 | BR198: 265000 | BS198: 270000 | BT198: 275000 | BU198: 280000
B199: Phase 0, 1. Jan 2013-31 dec. 2014 | C199: =$C$13*POWER(C$198,-$E$13) -> 41.55447555 | D199: =$C$13*POWER(D$198,-$E$13) -> 35.60631551 | E199: 31.90989515 | F199: 29.30911211 | G199: 27.34227251 | H199: 25.78266944 | I199: 24.50377234 | J199: 23.42846514 | K199: 22.50661769 | L199: 21.70399201 | M199: 20.99627146 | N199: 20.36562847 | O199: 19.79864426 | P199: 19.28499205 | Q199: 18.8165726 | R199: 18.38692882 | S199: 17.99083868 | T199: 17.62402547 | U199: 17.28294729 | V199: 15.87431853 | W199: 14.80904442 | X199: 13.96433661 | Y199: 13.27166397 | Z199: 12.68925912 | AA199: 12.18997071 | AB199: 11.75525486 | AC199: 11.37194125 | AD199: 11.03037418 | AE199: 10.72328579 | AF199: 10.44508293 | AG199: 10.19137891 | AH199: 9.95867646 | AI199: 9.744147239 | AJ199: 9.545474905 | AK199: 9.360741104 | AL199: 9.188341136 | AM199: 9.026920565 | AN199: 8.87532687 | AO199: 8.732572081 | AP199: 8.597803572 | AQ199: 8.470280969 | AR199: 8.349357714 | AS199: 8.234466219 | AT199: 8.125105804 | AU199: 8.020832816 | AV199: 7.921252493 | AW199: 7.826012198 | AX199: 7.734795771 | AY199: 7.64731879 | AZ199: 7.563324558 | BA199: 7.4825807 | BB199: 7.404876255 | BC199: 7.330019194 | BD199: 7.257834268 | BE199: 7.18816116 | BF199: 7.120852874 | BG199: 7.055774339 | BH199: 6.992801182 | BI199: 6.931818654 | BJ199: 6.872720691 | BK199: 6.815409077 | BL199: 6.759792708 | BM199: 6.705786941 | BN199: 6.653313011 | BO199: 6.602297512 | BP199: =$C$13*POWER(BP$198,-$E$13) -> 6.552671934 | BQ199: 6.50437225 | BR199: 6.457338541 | BS199: 6.411514661 | BT199: 6.366847937 | BU199: 6.323288892
B200: Phase 1, 1. Jan 2015-31 dec. 2019 | C200: =C207 -> 40.86190095 | D200: =D207 -> 34.41943832 | E200: 30.31440039 | F200: 27.84365651 | G200: 25.97515889 | H200: 24.49353597 | I200: 23.27858372 | J200: 22.25704188 | K200: 21.38128681 | L200: 20.61879241 | M200: 19.94645789 | N200: 19.34734704 | O200: 18.80871204 | P200: 18.32074245 | Q200: 17.87574397 | R200: 17.46758238 | S200: 17.09129675 | T200: 16.7428242 | U200: 16.41879993 | V200: 15.0806026 | W200: 14.0685922 | X200: 13.26611978 | Y200: 12.60808077 | Z200: 12.05479617 | AA200: 11.58047218 | AB200: 11.16749211 | AC200: 10.80334419 | AD200: 10.47885547 | AE200: 10.1871215 | AF200: 9.922828784 | AG200: 9.681809966 | AH200: 9.460742637 | AI200: 9.256939877 | AJ200: 9.06820116 | AK200: 8.892704049 | AL200: 8.728924079 | AM200: 8.575574537 | AN200: 8.431560526 | AO200: 8.295943477 | AP200: 8.167913394 | AQ200: 8.04676692 | AR200: 7.931889828 | AS200: 7.822742908 | AT200: 7.718850513 | AU200: 7.619791176 | AV200: 7.525189869 | AW200: 7.434711588 | AX200: 7.348055982 | AY200: 7.264952851 | AZ200: 7.18515833 | BA200: 7.108451665 | BB200: 7.034632443 | BC200: 6.963518235 | BD200: 6.894942555 | BE200: 6.828753102 | BF200: 6.76481023 | BG200: 6.702985622 | BH200: 6.643161123 | BI200: 6.585227721 | BJ200: 6.529084657 | BK200: 6.474638623 | BL200: 6.421803073 | BM200: 6.370497594 | BN200: 6.320647361 | BO200: 6.272182636 | BP200: =BP207 -> 6.225038337 | BQ200: 6.179153637 | BR200: 6.134471614 | BS200: 6.090938928 | BT200: 6.04850554 | BU200: 6.007124448
B201: Phase 2, 1. Jan 2020-31 dec. 2024 | C201: =C212 -> 38.78417718 | D201: =D212 -> 30.85880677 | E201: 25.52791612 | F201: 23.44728969 | G201: 21.87381801 | H201: 20.62613555 | I201: 19.60301787 | J201: 18.74277211 | K201: 18.00529415 | L201: 17.3631936 | M201: 16.79701717 | N201: 16.29250277 | O201: 15.8389154 | P201: 15.42799364 | Q201: 15.05325808 | R201: 14.70954306 | S201: 14.39267095 | T201: 14.09922038 | U201: 13.82635783 | V201: 12.69945483 | W201: 11.84723554 | X201: 11.17146929 | Y201: 10.61733118 | Z201: 10.1514073 | AA201: 9.75197657 | AB201: 9.404203885 | AC201: 9.097553002 | AD201: 8.824299341 | AE201: 8.57862863 | AF201: 8.356066345 | AG201: 8.153103129 | AH201: 7.966941168 | AI201: 7.795317791 | AJ201: 7.636379924 | AK201: 7.488592883 | AL201: 7.350672909 | AM201: 7.221536452 | AN201: 7.100261496 | AO201: 6.986057665 | AP201: 6.878242858 | AQ201: 6.776224775 | AR201: 6.679486171 | AS201: 6.587572975 | AT201: 6.500084643 | AU201: 6.416666253 | AV201: 6.337001995 | AW201: 6.260809758 | AX201: 6.187836617 | AY201: 6.117855032 | AZ201: 6.050659647 | BA201: 5.98606456 | BB201: 5.923901004 | BC201: 5.864015355 | BD201: 5.806267415 | BE201: 5.750528928 | BF201: 5.696682299 | BG201: 5.644619471 | BH201: 5.594240945 | BI201: 5.545454923 | BJ201: 5.498176553 | BK201: 5.452327261 | BL201: 5.407834166 | BM201: 5.364629553 | BN201: 5.322650409 | BO201: 5.281838009 | BP201: =BP212 -> 5.242137547 | BQ201: 5.2034978 | BR201: 5.165870832 | BS201: 5.129211729 | BT201: 5.09347835 | BU201: 5.058631114
B202: Phase 3, 1. Jan 2025-onwards | C202: =C217 -> 37.39902799 | D202: =D217 -> 28.48505241 | E202: 22.3369266 | F202: 20.51637848 | G202: 19.13959076 | H202: 18.04786861 | I202: 17.15264064 | J202: 16.3999256 | K202: 15.75463238 | L202: 15.1927944 | M202: 14.69739002 | N202: 14.25593993 | O202: 13.85905098 | P202: 13.49949443 | Q202: 13.17160082 | R202: 12.87085017 | S202: 12.59358708 | T202: 12.33681783 | U202: 12.0980631 | V202: 11.11202297 | W202: 10.36633109 | X202: 9.775035627 | Y202: 9.29016478 | Z202: 8.882481387 | AA202: 8.532979499 | AB202: 8.228678399 | AC202: 7.960358877 | AD202: 7.721261923 | AE202: 7.506300052 | AF202: 7.311558051 | AG202: 7.133965238 | AH202: 6.971073522 | AI202: 6.820903067 | AJ202: 6.681832434 | AK202: 6.552518773 | AL202: 6.431838795 | AM202: 6.318844396 | AN202: 6.212728809 | AO202: 6.112800457 | AP202: 6.018462501 | AQ202: 5.929196678 | AR202: 5.8445504 | AS202: 5.764126353 | AT202: 5.687574063 | AU202: 5.614582971 | AV202: 5.544876745 | AW202: 5.478208538 | AX202: 5.41435704 | AY202: 5.353123153 | AZ202: 5.294327191 | BA202: 5.23780649 | BB202: 5.183413379 | BC202: 5.131013436 | BD202: 5.080483988 | BE202: 5.031712812 | BF202: 4.984597012 | BG202: 4.939042037 | BH202: 4.894960827 | BI202: 4.852273058 | BJ202: 4.810904484 | BK202: 4.770786354 | BL202: 4.731854896 | BM202: 4.694050859 | BN202: 4.657319108 | BO202: 4.621608258 | BP202: =BP217 -> 4.586870354 | BQ202: 4.553060575 | BR202: 4.520136978 | BS202: 4.488060263 | BT202: 4.456793556 | BU202: 4.426302225
A204: =$F$13 -> 5 | B204: Interpolation | C204: =IF(($C$195-$C$196=0),1,(C$198-$C$195)/($C$196-$C$195)*$A204) -> 1.666666667 | D204: =IF(($C$195-$C$196=0),1,(D$198-$C$195)/($C$196-$C$195)*$A204) -> 3.333333333 | E204: 5 | F204: 6.666666667 | G204: 8.333333333 | H204: 10 | I204: 11.66666667 | J204: 13.33333333 | K204: 15 | L204: 16.66666667 | M204: 18.33333333 | N204: 20 | O204: 21.66666667 | P204: 23.33333333 | Q204: 25 | R204: 26.66666667 | S204: 28.33333333 | T204: 30 | U204: 31.66666667 | V204: 40 | W204: 48.33333333 | X204: 56.66666667 | Y204: 65 | Z204: 73.33333333 | AA204: 81.66666667 | AB204: 90 | AC204: 98.33333333 | AD204: 106.6666667 | AE204: 115 | AF204: 123.3333333 | AG204: 131.6666667 | AH204: 140 | AI204: 148.3333333 | AJ204: 156.6666667 | AK204: 165 | AL204: 173.3333333 | AM204: 181.6666667 | AN204: 190 | AO204: 198.3333333 | AP204: 206.6666667 | AQ204: 215 | AR204: 223.3333333 | AS204: 231.6666667 | AT204: 240 | AU204: 248.3333333 | AV204: 256.6666667 | AW204: 265 | AX204: 273.3333333 | AY204: 281.6666667 | AZ204: 290 | BA204: 298.3333333 | BB204: 306.6666667 | BC204: 315 | BD204: 323.3333333 | BE204: 331.6666667 | BF204: 340 | BG204: 348.3333333 | BH204: 356.6666667 | BI204: 365 | BJ204: 373.3333333 | BK204: 381.6666667 | BL204: 390 | BM204: 398.3333333 | BN204: 406.6666667 | BO204: 415 | BP204: =IF(($C$195-$C$196=0),1,(BP$198-$C$195)/($C$196-$C$195)*$A204) -> 423.3333333 | BQ204: 431.6666667 | BR204: 440 | BS204: 448.3333333 | BT204: 456.6666667 | BU204: 465
A205: Phase 1 | B205: Reduction | C205: =IF(C$198<$C$196,C$204,$A204) -> 1.666666667 | D205: =IF(D$198<$C$196,D$204,$A204) -> 3.333333333 | E205: 5 | F205: 5 | G205: 5 | H205: 5 | I205: 5 | J205: 5 | K205: 5 | L205: 5 | M205: 5 | N205: 5 | O205: 5 | P205: 5 | Q205: 5 | R205: 5 | S205: 5 | T205: 5 | U205: 5 | V205: 5 | W205: 5 | X205: 5 | Y205: 5 | Z205: 5 | AA205: 5 | AB205: 5 | AC205: 5 | AD205: 5 | AE205: 5 | AF205: 5 | AG205: 5 | AH205: 5 | AI205: 5 | AJ205: 5 | AK205: 5 | AL205: 5 | AM205: 5 | AN205: 5 | AO205: 5 | AP205: 5 | AQ205: 5 | AR205: 5 | AS205: 5 | AT205: 5 | AU205: 5 | AV205: 5 | AW205: 5 | AX205: 5 | AY205: 5 | AZ205: 5 | BA205: 5 | BB205: 5 | BC205: 5 | BD205: 5 | BE205: 5 | BF205: 5 | BG205: 5 | BH205: 5 | BI205: 5 | BJ205: 5 | BK205: 5 | BL205: 5 | BM205: 5 | BN205: 5 | BO205: 5 | BP205: =IF(BP$198<$C$196,BP$204,$A204) -> 5 | BQ205: 5 | BR205: 5 | BS205: 5 | BT205: 5 | BU205: 5
B206: Calculated reduction | C206: =IF(C$198<$C$195,0,C$205) -> 1.666666667 | D206: =IF(D$198<$C$195,0,D$205) -> 3.333333333 | E206: 5 | F206: 5 | G206: 5 | H206: 5 | I206: 5 | J206: 5 | K206: 5 | L206: 5 | M206: 5 | N206: 5 | O206: 5 | P206: 5 | Q206: 5 | R206: 5 | S206: 5 | T206: 5 | U206: 5 | V206: 5 | W206: 5 | X206: 5 | Y206: 5 | Z206: 5 | AA206: 5 | AB206: 5 | AC206: 5 | AD206: 5 | AE206: 5 | AF206: 5 | AG206: 5 | AH206: 5 | AI206: 5 | AJ206: 5 | AK206: 5 | AL206: 5 | AM206: 5 | AN206: 5 | AO206: 5 | AP206: 5 | AQ206: 5 | AR206: 5 | AS206: 5 | AT206: 5 | AU206: 5 | AV206: 5 | AW206: 5 | AX206: 5 | AY206: 5 | AZ206: 5 | BA206: 5 | BB206: 5 | BC206: 5 | BD206: 5 | BE206: 5 | BF206: 5 | BG206: 5 | BH206: 5 | BI206: 5 | BJ206: 5 | BK206: 5 | BL206: 5 | BM206: 5 | BN206: 5 | BO206: 5 | BP206: =IF(BP$198<$C$195,0,BP$205) -> 5 | BQ206: 5 | BR206: 5 | BS206: 5 | BT206: 5 | BU206: 5
B207: Phase 1, 1. Jan 2015-31 dec. 2019 | C207: =$C$194*POWER((C$198),-$E$194)*(1-(C$206/100)) -> 40.86190095 | D207: =$C$194*POWER((D$198),-$E$194)*(1-(D$206/100)) -> 34.41943832 | E207: 30.31440039 | F207: 27.84365651 | G207: 25.97515889 | H207: 24.49353597 | I207: 23.27858372 | J207: 22.25704188 | K207: 21.38128681 | L207: 20.61879241 | M207: 19.94645789 | N207: 19.34734704 | O207: 18.80871204 | P207: 18.32074245 | Q207: 17.87574397 | R207: 17.46758238 | S207: 17.09129675 | T207: 16.7428242 | U207: 16.41879993 | V207: 15.0806026 | W207: 14.0685922 | X207: 13.26611978 | Y207: 12.60808077 | Z207: 12.05479617 | AA207: 11.58047218 | AB207: 11.16749211 | AC207: 10.80334419 | AD207: 10.47885547 | AE207: 10.1871215 | AF207: 9.922828784 | AG207: 9.681809966 | AH207: 9.460742637 | AI207: 9.256939877 | AJ207: 9.06820116 | AK207: 8.892704049 | AL207: 8.728924079 | AM207: 8.575574537 | AN207: 8.431560526 | AO207: 8.295943477 | AP207: 8.167913394 | AQ207: 8.04676692 | AR207: 7.931889828 | AS207: 7.822742908 | AT207: 7.718850513 | AU207: 7.619791176 | AV207: 7.525189869 | AW207: 7.434711588 | AX207: 7.348055982 | AY207: 7.264952851 | AZ207: 7.18515833 | BA207: 7.108451665 | BB207: 7.034632443 | BC207: 6.963518235 | BD207: 6.894942555 | BE207: 6.828753102 | BF207: 6.76481023 | BG207: 6.702985622 | BH207: 6.643161123 | BI207: 6.585227721 | BJ207: 6.529084657 | BK207: 6.474638623 | BL207: 6.421803073 | BM207: 6.370497594 | BN207: 6.320647361 | BO207: 6.272182636 | BP207: =$C$194*POWER((BP$198),-$E$194)*(1-(BP$206/100)) -> 6.225038337 | BQ207: 6.179153637 | BR207: 6.134471614 | BS207: 6.090938928 | BT207: 6.04850554 | BU207: 6.007124448
A209: =$G$13 -> 20 | B209: Interpolation | C209: =IF(($C$195-$C$196=0),1,(C$198-$C$195)/($C$196-$C$195)*$A209) -> 6.666666667 | D209: =IF(($C$195-$C$196=0),1,(D$198-$C$195)/($C$196-$C$195)*$A209) -> 13.33333333 | E209: 20 | F209: 26.66666667 | G209: 33.33333333 | H209: 40 | I209: 46.66666667 | J209: 53.33333333 | K209: 60 | L209: 66.66666667 | M209: 73.33333333 | N209: 80 | O209: 86.66666667 | P209: 93.33333333 | Q209: 100 | R209: 106.6666667 | S209: 113.3333333 | T209: 120 | U209: 126.6666667 | V209: 160 | W209: 193.3333333 | X209: 226.6666667 | Y209: 260 | Z209: 293.3333333 | AA209: 326.6666667 | AB209: 360 | AC209: 393.3333333 | AD209: 426.6666667 | AE209: 460 | AF209: 493.3333333 | AG209: 526.6666667 | AH209: 560 | AI209: 593.3333333 | AJ209: 626.6666667 | AK209: 660 | AL209: 693.3333333 | AM209: 726.6666667 | AN209: 760 | AO209: 793.3333333 | AP209: 826.6666667 | AQ209: 860 | AR209: 893.3333333 | AS209: 926.6666667 | AT209: 960 | AU209: 993.3333333 | AV209: 1026.666667 | AW209: 1060 | AX209: 1093.333333 | AY209: 1126.666667 | AZ209: 1160 | BA209: 1193.333333 | BB209: 1226.666667 | BC209: 1260 | BD209: 1293.333333 | BE209: 1326.666667 | BF209: 1360 | BG209: 1393.333333 | BH209: 1426.666667 | BI209: 1460 | BJ209: 1493.333333 | BK209: 1526.666667 | BL209: 1560 | BM209: 1593.333333 | BN209: 1626.666667 | BO209: 1660 | BP209: =IF(($C$195-$C$196=0),1,(BP$198-$C$195)/($C$196-$C$195)*$A209) -> 1693.333333 | BQ209: 1726.666667 | BR209: 1760 | BS209: 1793.333333 | BT209: 1826.666667 | BU209: 1860
A210: Phase 2 | B210: Reduction | C210: =IF(C$198<$C$196,C$209,$A209) -> 6.666666667 | D210: =IF(D$198<$C$196,D$209,$A209) -> 13.33333333 | E210: 20 | F210: 20 | G210: 20 | H210: 20 | I210: 20 | J210: 20 | K210: 20 | L210: 20 | M210: 20 | N210: 20 | O210: 20 | P210: 20 | Q210: 20 | R210: 20 | S210: 20 | T210: 20 | U210: 20 | V210: 20 | W210: 20 | X210: 20 | Y210: 20 | Z210: 20 | AA210: 20 | AB210: 20 | AC210: 20 | AD210: 20 | AE210: 20 | AF210: 20 | AG210: 20 | AH210: 20 | AI210: 20 | AJ210: 20 | AK210: 20 | AL210: 20 | AM210: 20 | AN210: 20 | AO210: 20 | AP210: 20 | AQ210: 20 | AR210: 20 | AS210: 20 | AT210: 20 | AU210: 20 | AV210: 20 | AW210: 20 | AX210: 20 | AY210: 20 | AZ210: 20 | BA210: 20 | BB210: 20 | BC210: 20 | BD210: 20 | BE210: 20 | BF210: 20 | BG210: 20 | BH210: 20 | BI210: 20 | BJ210: 20 | BK210: 20 | BL210: 20 | BM210: 20 | BN210: 20 | BO210: 20 | BP210: =IF(BP$198<$C$196,BP$209,$A209) -> 20 | BQ210: 20 | BR210: 20 | BS210: 20 | BT210: 20 | BU210: 20
B211: Calculated reduction | C211: =IF(C$198<$C$195,0,C$210) -> 6.666666667 | D211: =IF(D$198<$C$195,0,D$210) -> 13.33333333 | E211: 20 | F211: 20 | G211: 20 | H211: 20 | I211: 20 | J211: 20 | K211: 20 | L211: 20 | M211: 20 | N211: 20 | O211: 20 | P211: 20 | Q211: 20 | R211: 20 | S211: 20 | T211: 20 | U211: 20 | V211: 20 | W211: 20 | X211: 20 | Y211: 20 | Z211: 20 | AA211: 20 | AB211: 20 | AC211: 20 | AD211: 20 | AE211: 20 | AF211: 20 | AG211: 20 | AH211: 20 | AI211: 20 | AJ211: 20 | AK211: 20 | AL211: 20 | AM211: 20 | AN211: 20 | AO211: 20 | AP211: 20 | AQ211: 20 | AR211: 20 | AS211: 20 | AT211: 20 | AU211: 20 | AV211: 20 | AW211: 20 | AX211: 20 | AY211: 20 | AZ211: 20 | BA211: 20 | BB211: 20 | BC211: 20 | BD211: 20 | BE211: 20 | BF211: 20 | BG211: 20 | BH211: 20 | BI211: 20 | BJ211: 20 | BK211: 20 | BL211: 20 | BM211: 20 | BN211: 20 | BO211: 20 | BP211: =IF(BP$198<$C$195,0,BP$210) -> 20 | BQ211: 20 | BR211: 20 | BS211: 20 | BT211: 20 | BU211: 20
B212: Phase 2, 1. Jan 2020-31 dec. 2024 | C212: =$C$194*POWER((C$198),-$E$194)*(1-(C$211/100)) -> 38.78417718 | D212: =$C$194*POWER((D$198),-$E$194)*(1-(D$211/100)) -> 30.85880677 | E212: 25.52791612 | F212: 23.44728969 | G212: 21.87381801 | H212: 20.62613555 | I212: 19.60301787 | J212: 18.74277211 | K212: 18.00529415 | L212: 17.3631936 | M212: 16.79701717 | N212: 16.29250277 | O212: 15.8389154 | P212: 15.42799364 | Q212: 15.05325808 | R212: 14.70954306 | S212: 14.39267095 | T212: 14.09922038 | U212: 13.82635783 | V212: 12.69945483 | W212: 11.84723554 | X212: 11.17146929 | Y212: 10.61733118 | Z212: 10.1514073 | AA212: 9.75197657 | AB212: 9.404203885 | AC212: 9.097553002 | AD212: 8.824299341 | AE212: 8.57862863 | AF212: 8.356066345 | AG212: 8.153103129 | AH212: 7.966941168 | AI212: 7.795317791 | AJ212: 7.636379924 | AK212: 7.488592883 | AL212: 7.350672909 | AM212: 7.221536452 | AN212: 7.100261496 | AO212: 6.986057665 | AP212: 6.878242858 | AQ212: 6.776224775 | AR212: 6.679486171 | AS212: 6.587572975 | AT212: 6.500084643 | AU212: 6.416666253 | AV212: 6.337001995 | AW212: 6.260809758 | AX212: 6.187836617 | AY212: 6.117855032 | AZ212: 6.050659647 | BA212: 5.98606456 | BB212: 5.923901004 | BC212: 5.864015355 | BD212: 5.806267415 | BE212: 5.750528928 | BF212: 5.696682299 | BG212: 5.644619471 | BH212: 5.594240945 | BI212: 5.545454923 | BJ212: 5.498176553 | BK212: 5.452327261 | BL212: 5.407834166 | BM212: 5.364629553 | BN212: 5.322650409 | BO212: 5.281838009 | BP212: =$C$194*POWER((BP$198),-$E$194)*(1-(BP$211/100)) -> 5.242137547 | BQ212: 5.2034978 | BR212: 5.165870832 | BS212: 5.129211729 | BT212: 5.09347835 | BU212: 5.058631114
A214: =$H$13 -> 30 | B214: Interpolation | C214: =IF(($C$195-$C$196=0),1,(C$198-$C$195)/($C$196-$C$195)*$A214) -> 10 | D214: =IF(($C$195-$C$196=0),1,(D$198-$C$195)/($C$196-$C$195)*$A214) -> 20 | E214: 30 | F214: 40 | G214: 50 | H214: 60 | I214: 70 | J214: 80 | K214: 90 | L214: 100 | M214: 110 | N214: 120 | O214: 130 | P214: 140 | Q214: 150 | R214: 160 | S214: 170 | T214: 180 | U214: 190 | V214: 240 | W214: 290 | X214: 340 | Y214: 390 | Z214: 440 | AA214: 490 | AB214: 540 | AC214: 590 | AD214: 640 | AE214: 690 | AF214: 740 | AG214: 790 | AH214: 840 | AI214: 890 | AJ214: 940 | AK214: 990 | AL214: 1040 | AM214: 1090 | AN214: 1140 | AO214: 1190 | AP214: 1240 | AQ214: 1290 | AR214: 1340 | AS214: 1390 | AT214: 1440 | AU214: 1490 | AV214: 1540 | AW214: 1590 | AX214: 1640 | AY214: 1690 | AZ214: 1740 | BA214: 1790 | BB214: 1840 | BC214: 1890 | BD214: 1940 | BE214: 1990 | BF214: 2040 | BG214: 2090 | BH214: 2140 | BI214: 2190 | BJ214: 2240 | BK214: 2290 | BL214: 2340 | BM214: 2390 | BN214: 2440 | BO214: 2490 | BP214: =IF(($C$195-$C$196=0),1,(BP$198-$C$195)/($C$196-$C$195)*$A214) -> 2540 | BQ214: 2590 | BR214: 2640 | BS214: 2690 | BT214: 2740 | BU214: 2790
A215: Phase 2 | B215: Reduction | C215: =IF(C$198<$C$196,C$214,$A214) -> 10 | D215: =IF(D$198<$C$196,D$214,$A214) -> 20 | E215: 30 | F215: 30 | G215: 30 | H215: 30 | I215: 30 | J215: 30 | K215: 30 | L215: 30 | M215: 30 | N215: 30 | O215: 30 | P215: 30 | Q215: 30 | R215: 30 | S215: 30 | T215: 30 | U215: 30 | V215: 30 | W215: 30 | X215: 30 | Y215: 30 | Z215: 30 | AA215: 30 | AB215: 30 | AC215: 30 | AD215: 30 | AE215: 30 | AF215: 30 | AG215: 30 | AH215: 30 | AI215: 30 | AJ215: 30 | AK215: 30 | AL215: 30 | AM215: 30 | AN215: 30 | AO215: 30 | AP215: 30 | AQ215: 30 | AR215: 30 | AS215: 30 | AT215: 30 | AU215: 30 | AV215: 30 | AW215: 30 | AX215: 30 | AY215: 30 | AZ215: 30 | BA215: 30 | BB215: 30 | BC215: 30 | BD215: 30 | BE215: 30 | BF215: 30 | BG215: 30 | BH215: 30 | BI215: 30 | BJ215: 30 | BK215: 30 | BL215: 30 | BM215: 30 | BN215: 30 | BO215: 30 | BP215: =IF(BP$198<$C$196,BP$214,$A214) -> 30 | BQ215: 30 | BR215: 30 | BS215: 30 | BT215: 30 | BU215: 30
B216: Calculated reduction | C216: =IF(C$198<$C$195,0,C$215) -> 10 | D216: =IF(D$198<$C$195,0,D$215) -> 20 | E216: 30 | F216: 30 | G216: 30 | H216: 30 | I216: 30 | J216: 30 | K216: 30 | L216: 30 | M216: 30 | N216: 30 | O216: 30 | P216: 30 | Q216: 30 | R216: 30 | S216: 30 | T216: 30 | U216: 30 | V216: 30 | W216: 30 | X216: 30 | Y216: 30 | Z216: 30 | AA216: 30 | AB216: 30 | AC216: 30 | AD216: 30 | AE216: 30 | AF216: 30 | AG216: 30 | AH216: 30 | AI216: 30 | AJ216: 30 | AK216: 30 | AL216: 30 | AM216: 30 | AN216: 30 | AO216: 30 | AP216: 30 | AQ216: 30 | AR216: 30 | AS216: 30 | AT216: 30 | AU216: 30 | AV216: 30 | AW216: 30 | AX216: 30 | AY216: 30 | AZ216: 30 | BA216: 30 | BB216: 30 | BC216: 30 | BD216: 30 | BE216: 30 | BF216: 30 | BG216: 30 | BH216: 30 | BI216: 30 | BJ216: 30 | BK216: 30 | BL216: 30 | BM216: 30 | BN216: 30 | BO216: 30 | BP216: =IF(BP$198<$C$195,0,BP$215) -> 30 | BQ216: 30 | BR216: 30 | BS216: 30 | BT216: 30 | BU216: 30
B217: Phase 3, 1. Jan 2025-onwards | C217: =$C$194*POWER((C$198),-$E$194)*(1-(C$216/100)) -> 37.39902799 | D217: =$C$194*POWER((D$198),-$E$194)*(1-(D$216/100)) -> 28.48505241 | E217: 22.3369266 | F217: 20.51637848 | G217: 19.13959076 | H217: 18.04786861 | I217: 17.15264064 | J217: 16.3999256 | K217: 15.75463238 | L217: 15.1927944 | M217: 14.69739002 | N217: 14.25593993 | O217: 13.85905098 | P217: 13.49949443 | Q217: 13.17160082 | R217: 12.87085017 | S217: 12.59358708 | T217: 12.33681783 | U217: 12.0980631 | V217: 11.11202297 | W217: 10.36633109 | X217: 9.775035627 | Y217: 9.29016478 | Z217: 8.882481387 | AA217: 8.532979499 | AB217: 8.228678399 | AC217: 7.960358877 | AD217: 7.721261923 | AE217: 7.506300052 | AF217: 7.311558051 | AG217: 7.133965238 | AH217: 6.971073522 | AI217: 6.820903067 | AJ217: 6.681832434 | AK217: 6.552518773 | AL217: 6.431838795 | AM217: 6.318844396 | AN217: 6.212728809 | AO217: 6.112800457 | AP217: 6.018462501 | AQ217: 5.929196678 | AR217: 5.8445504 | AS217: 5.764126353 | AT217: 5.687574063 | AU217: 5.614582971 | AV217: 5.544876745 | AW217: 5.478208538 | AX217: 5.41435704 | AY217: 5.353123153 | AZ217: 5.294327191 | BA217: 5.23780649 | BB217: 5.183413379 | BC217: 5.131013436 | BD217: 5.080483988 | BE217: 5.031712812 | BF217: 4.984597012 | BG217: 4.939042037 | BH217: 4.894960827 | BI217: 4.852273058 | BJ217: 4.810904484 | BK217: 4.770786354 | BL217: 4.731854896 | BM217: 4.694050859 | BN217: 4.657319108 | BO217: 4.621608258 | BP217: =$C$194*POWER((BP$198),-$E$194)*(1-(BP$216/100)) -> 4.586870354 | BQ217: 4.553060575 | BR217: 4.520136978 | BS217: 4.488060263 | BT217: 4.456793556 | BU217: 4.426302225
B220: =B14 -> Cruise vessels
B221: a | C221: =C14 -> 170.84 | D221: c | E221: =E14 -> 0.214
B222: Min GT | C222: =I14 -> 25000
B223: Max GT | C223: =J14 -> 30000
B225: GT | C225: =C$21 -> 2000 | D225: =D$21 -> 3000 | E225: 4000 | F225: 5000 | G225: 6000 | H225: 7000 | I225: 8000 | J225: 9000 | K225: 10000 | L225: 11000 | M225: 12000 | N225: 13000 | O225: 14000 | P225: 15000 | Q225: 16000 | R225: 17000 | S225: 18000 | T225: 19000 | U225: 20000 | V225: 25000 | W225: 30000 | X225: 35000 | Y225: 40000 | Z225: 45000 | AA225: 50000 | AB225: 55000 | AC225: 60000 | AD225: 65000 | AE225: 70000 | AF225: 75000 | AG225: 80000 | AH225: 85000 | AI225: 90000 | AJ225: 95000 | AK225: 100000 | AL225: 105000 | AM225: 110000 | AN225: 115000 | AO225: 120000 | AP225: 125000 | AQ225: 130000 | AR225: 135000 | AS225: 140000 | AT225: 145000 | AU225: 150000 | AV225: 155000 | AW225: 160000 | AX225: 165000 | AY225: 170000 | AZ225: 175000 | BA225: 180000 | BB225: 185000 | BC225: 190000 | BD225: 195000 | BE225: 200000 | BF225: 205000 | BG225: 210000 | BH225: 215000 | BI225: 220000 | BJ225: 225000 | BK225: 230000 | BL225: 235000 | BM225: 240000 | BN225: 245000 | BO225: 250000 | BP225: =BP$21 -> 255000 | BQ225: 260000 | BR225: 265000 | BS225: 270000 | BT225: 275000 | BU225: 280000
B226: Phase 0, 1. Jan 2013-31 dec. 2014 | C226: =$C$14*POWER(C$225,-$E$14) -> 33.58683987 | D226: =$C$14*POWER(D$225,-$E$14) -> 30.79538332 | E226: 28.95667719 | F226: 27.60641306 | G226: 26.55004094 | H226: 25.68849033 | I226: 24.96481232 | J226: 24.34342413 | K226: 23.80069082 | L226: 23.32016013 | M226: 22.88994642 | N226: 22.50120028 | O226: 22.14716612 | P226: 21.82257694 | Q226: 21.5232518 | R226: 21.2458198 | S226: 20.98752598 | T226: 20.74609165 | U226: 20.51961196 | V226: 19.56277234 | W226: 18.81419384 | X226: 18.20367198 | Y226: 17.690851 | Z226: 17.25051578 | AA226: 16.8659179 | AB226: 16.52539873 | AC226: 16.22053578 | AD226: 15.94505804 | AE226: 15.6941783 | AF226: 15.4641642 | AG226: 15.25205299 | AH226: 15.05545595 | AI226: 14.87242083 | AJ226: 14.70133288 | AK226: 14.54084224 | AL226: 14.38980977 | AM226: 14.24726585 | AN226: 14.11237879 | AO226: 13.98443022 | AP226: 13.8627956 | AQ226: 13.74692886 | AR226: 13.6363499 | AS226: 13.53063451 | AT226: 13.4294062 | AU226: 13.33232934 | AV226: 13.23910356 | AW226: 13.14945904 | AX226: 13.06315256 | AY226: 12.97996417 | AZ226: 12.89969436 | BA226: 12.82216162 | BB226: 12.74720038 | BC226: 12.67465924 | BD226: 12.60439939 | BE226: 12.53629328 | BF226: 12.47022348 | BG226: 12.40608161 | BH226: 12.34376748 | BI226: 12.28318829 | BJ226: 12.2242579 | BK226: 12.16689628 | BL226: 12.11102889 | BM226: 12.05658624 | BN226: 12.00350342 | BO226: 11.95171975 | BP226: =$C$14*POWER(BP$225,-$E$14) -> 11.90117837 | BQ226: 11.85182598 | BR226: 11.80361256 | BS226: 11.75649104 | BT226: 11.71041716 | BU226: 11.66534921
B227: Phase 1, 1. Jan 2015-31 dec. 2019 | C227: =C234 -> 33.58683987 | D227: =D234 -> 30.79538332 | E227: 28.95667719 | F227: 27.60641306 | G227: 26.55004094 | H227: 25.68849033 | I227: 24.96481232 | J227: 24.34342413 | K227: 23.80069082 | L227: 23.32016013 | M227: 22.88994642 | N227: 22.50120028 | O227: 22.14716612 | P227: 21.82257694 | Q227: 21.5232518 | R227: 21.2458198 | S227: 20.98752598 | T227: 20.74609165 | U227: 20.51961196 | V227: 19.56277234 | W227: 17.87348415 | X227: 17.29348839 | Y227: 16.80630845 | Z227: 16.38798999 | AA227: 16.022622 | AB227: 15.6991288 | AC227: 15.40950899 | AD227: 15.14780514 | AE227: 14.90946938 | AF227: 14.69095599 | AG227: 14.48945034 | AH227: 14.30268316 | AI227: 14.12879979 | AJ227: 13.96626623 | AK227: 13.81380013 | AL227: 13.67031928 | AM227: 13.53490256 | AN227: 13.40675985 | AO227: 13.28520871 | AP227: 13.16965582 | AQ227: 13.05958242 | AR227: 12.9545324 | AS227: 12.85410279 | AT227: 12.75793589 | AU227: 12.66571288 | AV227: 12.57714838 | AW227: 12.49198608 | AX227: 12.40999493 | AY227: 12.33096596 | AZ227: 12.25470964 | BA227: 12.18105354 | BB227: 12.10984036 | BC227: 12.04092628 | BD227: 11.97417942 | BE227: 11.90947862 | BF227: 11.8467123 | BG227: 11.78577753 | BH227: 11.72657911 | BI227: 11.66902887 | BJ227: 11.61304501 | BK227: 11.55855147 | BL227: 11.50547745 | BM227: 11.45375693 | BN227: 11.40332825 | BO227: 11.35413376 | BP227: =BP234 -> 11.30611945 | BQ227: 11.25923469 | BR227: 11.21343193 | BS227: 11.16866649 | BT227: 11.1248963 | BU227: 11.08208175
B228: Phase 2, 1. Jan 2020-31 dec. 2024 | C228: =C239 -> 33.58683987 | D228: =D239 -> 30.79538332 | E228: 28.95667719 | F228: 27.60641306 | G228: 26.55004094 | H228: 25.68849033 | I228: 24.96481232 | J228: 24.34342413 | K228: 23.80069082 | L228: 23.32016013 | M228: 22.88994642 | N228: 22.50120028 | O228: 22.14716612 | P228: 21.82257694 | Q228: 21.5232518 | R228: 21.2458198 | S228: 20.98752598 | T228: 20.74609165 | U228: 20.51961196 | V228: 19.56277234 | W228: 15.05135507 | X228: 14.56293759 | Y228: 14.1526808 | Z228: 13.80041263 | AA228: 13.49273432 | AB228: 13.22031899 | AC228: 12.97642862 | AD228: 12.75604643 | AE228: 12.55534264 | AF228: 12.37133136 | AG228: 12.20164239 | AH228: 12.04436476 | AI228: 11.89793666 | AJ228: 11.7610663 | AK228: 11.6326738 | AL228: 11.51184782 | AM228: 11.39781268 | AN228: 11.28990303 | AO228: 11.18754417 | AP228: 11.09023648 | AQ228: 10.99754309 | AR228: 10.90907992 | AS228: 10.82450761 | AT228: 10.74352496 | AU228: 10.66586347 | AV228: 10.59128285 | AW228: 10.51956723 | AX228: 10.45052204 | AY228: 10.38397133 | AZ228: 10.31975549 | BA228: 10.25772929 | BB228: 10.19776031 | BC228: 10.13972739 | BD228: 10.08351951 | BE228: 10.02903462 | BF228: 9.976178782 | BG228: 9.924865287 | BH228: 9.875013984 | BI228: 9.826550628 | BJ228: 9.779406322 | BK228: 9.733517025 | BL228: 9.688823115 | BM228: 9.645268993 | BN228: 9.60280274 | BO228: 9.561375797 | BP228: =BP239 -> 9.520942693 | BQ228: 9.481460788 | BR228: 9.442890046 | BS228: 9.405192832 | BT228: 9.368333729 | BU228: 9.332279364
B229: Phase 3, 1. Jan 2025-onwards | C229: =C244 -> 33.58683987 | D229: =D244 -> 30.79538332 | E229: 28.95667719 | F229: 27.60641306 | G229: 26.55004094 | H229: 25.68849033 | I229: 24.96481232 | J229: 24.34342413 | K229: 23.80069082 | L229: 23.32016013 | M229: 22.88994642 | N229: 22.50120028 | O229: 22.14716612 | P229: 21.82257694 | Q229: 21.5232518 | R229: 21.2458198 | S229: 20.98752598 | T229: 20.74609165 | U229: 20.51961196 | V229: 19.56277234 | W229: 13.16993569 | X229: 12.74257039 | Y229: 12.3835957 | Z229: 12.07536105 | AA229: 11.80614253 | AB229: 11.56777911 | AC229: 11.35437504 | AD229: 11.16154063 | AE229: 10.98592481 | AF229: 10.82491494 | AG229: 10.67643709 | AH229: 10.53881917 | AI229: 10.41069458 | AJ229: 10.29093301 | AK229: 10.17858957 | AL229: 10.07286684 | AM229: 9.973086094 | AN229: 9.878665155 | AO229: 9.789101151 | AP229: 9.703956923 | AQ229: 9.622850205 | AR229: 9.545444927 | AS229: 9.471444159 | AT229: 9.400584343 | AU229: 9.33263054 | AV229: 9.267372492 | AW229: 9.204621325 | AX229: 9.144206789 | AY229: 9.085974918 | AZ229: 9.02978605 | BA229: 8.975513132 | BB229: 8.923040268 | BC229: 8.872261469 | BD229: 8.823079571 | BE229: 8.775405296 | BF229: 8.729156434 | BG229: 8.684257126 | BH229: 8.640637236 | BI229: 8.5982318 | BJ229: 8.556980531 | BK229: 8.516827397 | BL229: 8.477720225 | BM229: 8.439610369 | BN229: 8.402452397 | BO229: 8.366203822 | BP229: =BP244 -> 8.330824857 | BQ229: 8.296278189 | BR229: 8.26252879 | BS229: 8.229543728 | BT229: 8.197292013 | BU229: 8.165744444
A231: =$F$14 -> 5 | B231: Interpolation | C231: =IF(($C$222-$C$223=0),1,(C$225-$C$222)/($C$223-$C$222)*$A231) -> -23 | D231: =IF(($C$222-$C$223=0),1,(D$225-$C$222)/($C$223-$C$222)*$A231) -> -22 | E231: -21 | F231: -20 | G231: -19 | H231: -18 | I231: -17 | J231: -16 | K231: -15 | L231: -14 | M231: -13 | N231: -12 | O231: -11 | P231: -10 | Q231: -9 | R231: -8 | S231: -7 | T231: -6 | U231: -5 | V231: 0 | W231: 5 | X231: 10 | Y231: 15 | Z231: 20 | AA231: 25 | AB231: 30 | AC231: 35 | AD231: 40 | AE231: 45 | AF231: 50 | AG231: 55 | AH231: 60 | AI231: 65 | AJ231: 70 | AK231: 75 | AL231: 80 | AM231: 85 | AN231: 90 | AO231: 95 | AP231: 100 | AQ231: 105 | AR231: 110 | AS231: 115 | AT231: 120 | AU231: 125 | AV231: 130 | AW231: 135 | AX231: 140 | AY231: 145 | AZ231: 150 | BA231: 155 | BB231: 160 | BC231: 165 | BD231: 170 | BE231: 175 | BF231: 180 | BG231: 185 | BH231: 190 | BI231: 195 | BJ231: 200 | BK231: 205 | BL231: 210 | BM231: 215 | BN231: 220 | BO231: 225 | BP231: =IF(($C$222-$C$223=0),1,(BP$225-$C$222)/($C$223-$C$222)*$A231) -> 230 | BQ231: 235 | BR231: 240 | BS231: 245 | BT231: 250 | BU231: 255
A232: Phase 1 | B232: Reduction | C232: =IF(C$225<$C$223,C$231,$A231) -> -23 | D232: =IF(D$225<$C$223,D$231,$A231) -> -22 | E232: -21 | F232: -20 | G232: -19 | H232: -18 | I232: -17 | J232: -16 | K232: -15 | L232: -14 | M232: -13 | N232: -12 | O232: -11 | P232: -10 | Q232: -9 | R232: -8 | S232: -7 | T232: -6 | U232: -5 | V232: 0 | W232: 5 | X232: 5 | Y232: 5 | Z232: 5 | AA232: 5 | AB232: 5 | AC232: 5 | AD232: 5 | AE232: 5 | AF232: 5 | AG232: 5 | AH232: 5 | AI232: 5 | AJ232: 5 | AK232: 5 | AL232: 5 | AM232: 5 | AN232: 5 | AO232: 5 | AP232: 5 | AQ232: 5 | AR232: 5 | AS232: 5 | AT232: 5 | AU232: 5 | AV232: 5 | AW232: 5 | AX232: 5 | AY232: 5 | AZ232: 5 | BA232: 5 | BB232: 5 | BC232: 5 | BD232: 5 | BE232: 5 | BF232: 5 | BG232: 5 | BH232: 5 | BI232: 5 | BJ232: 5 | BK232: 5 | BL232: 5 | BM232: 5 | BN232: 5 | BO232: 5 | BP232: =IF(BP$225<$C$223,BP$231,$A231) -> 5 | BQ232: 5 | BR232: 5 | BS232: 5 | BT232: 5 | BU232: 5
B233: Calculated reduction | C233: =IF(C$225<$C$222,0,C$232) -> 0 | D233: =IF(D$225<$C$222,0,D$232) -> 0 | E233: 0 | F233: 0 | G233: 0 | H233: 0 | I233: 0 | J233: 0 | K233: 0 | L233: 0 | M233: 0 | N233: 0 | O233: 0 | P233: 0 | Q233: 0 | R233: 0 | S233: 0 | T233: 0 | U233: 0 | V233: 0 | W233: 5 | X233: 5 | Y233: 5 | Z233: 5 | AA233: 5 | AB233: 5 | AC233: 5 | AD233: 5 | AE233: 5 | AF233: 5 | AG233: 5 | AH233: 5 | AI233: 5 | AJ233: 5 | AK233: 5 | AL233: 5 | AM233: 5 | AN233: 5 | AO233: 5 | AP233: 5 | AQ233: 5 | AR233: 5 | AS233: 5 | AT233: 5 | AU233: 5 | AV233: 5 | AW233: 5 | AX233: 5 | AY233: 5 | AZ233: 5 | BA233: 5 | BB233: 5 | BC233: 5 | BD233: 5 | BE233: 5 | BF233: 5 | BG233: 5 | BH233: 5 | BI233: 5 | BJ233: 5 | BK233: 5 | BL233: 5 | BM233: 5 | BN233: 5 | BO233: 5 | BP233: =IF(BP$225<$C$222,0,BP$232) -> 5 | BQ233: 5 | BR233: 5 | BS233: 5 | BT233: 5 | BU233: 5
B234: Phase 1, 1. Jan 2015-31 dec. 2019 | C234: =$C$221*POWER((C$225),-$E$221)*(1-(C$233/100)) -> 33.58683987 | D234: =$C$221*POWER((D$225),-$E$221)*(1-(D$233/100)) -> 30.79538332 | E234: 28.95667719 | F234: 27.60641306 | G234: 26.55004094 | H234: 25.68849033 | I234: 24.96481232 | J234: 24.34342413 | K234: 23.80069082 | L234: 23.32016013 | M234: 22.88994642 | N234: 22.50120028 | O234: 22.14716612 | P234: 21.82257694 | Q234: 21.5232518 | R234: 21.2458198 | S234: 20.98752598 | T234: 20.74609165 | U234: 20.51961196 | V234: 19.56277234 | W234: 17.87348415 | X234: 17.29348839 | Y234: 16.80630845 | Z234: 16.38798999 | AA234: 16.022622 | AB234: 15.6991288 | AC234: 15.40950899 | AD234: 15.14780514 | AE234: 14.90946938 | AF234: 14.69095599 | AG234: 14.48945034 | AH234: 14.30268316 | AI234: 14.12879979 | AJ234: 13.96626623 | AK234: 13.81380013 | AL234: 13.67031928 | AM234: 13.53490256 | AN234: 13.40675985 | AO234: 13.28520871 | AP234: 13.16965582 | AQ234: 13.05958242 | AR234: 12.9545324 | AS234: 12.85410279 | AT234: 12.75793589 | AU234: 12.66571288 | AV234: 12.57714838 | AW234: 12.49198608 | AX234: 12.40999493 | AY234: 12.33096596 | AZ234: 12.25470964 | BA234: 12.18105354 | BB234: 12.10984036 | BC234: 12.04092628 | BD234: 11.97417942 | BE234: 11.90947862 | BF234: 11.8467123 | BG234: 11.78577753 | BH234: 11.72657911 | BI234: 11.66902887 | BJ234: 11.61304501 | BK234: 11.55855147 | BL234: 11.50547745 | BM234: 11.45375693 | BN234: 11.40332825 | BO234: 11.35413376 | BP234: =$C$221*POWER((BP$225),-$E$221)*(1-(BP$233/100)) -> 11.30611945 | BQ234: 11.25923469 | BR234: 11.21343193 | BS234: 11.16866649 | BT234: 11.1248963 | BU234: 11.08208175
A236: =$G$14 -> 20 | B236: Interpolation | C236: =IF(($C$222-$C$223=0),1,(C$225-$C$222)/($C$223-$C$222)*$A236) -> -92 | D236: =IF(($C$222-$C$223=0),1,(D$225-$C$222)/($C$223-$C$222)*$A236) -> -88 | E236: -84 | F236: -80 | G236: -76 | H236: -72 | I236: -68 | J236: -64 | K236: -60 | L236: -56 | M236: -52 | N236: -48 | O236: -44 | P236: -40 | Q236: -36 | R236: -32 | S236: -28 | T236: -24 | U236: -20 | V236: 0 | W236: 20 | X236: 40 | Y236: 60 | Z236: 80 | AA236: 100 | AB236: 120 | AC236: 140 | AD236: 160 | AE236: 180 | AF236: 200 | AG236: 220 | AH236: 240 | AI236: 260 | AJ236: 280 | AK236: 300 | AL236: 320 | AM236: 340 | AN236: 360 | AO236: 380 | AP236: 400 | AQ236: 420 | AR236: 440 | AS236: 460 | AT236: 480 | AU236: 500 | AV236: 520 | AW236: 540 | AX236: 560 | AY236: 580 | AZ236: 600 | BA236: 620 | BB236: 640 | BC236: 660 | BD236: 680 | BE236: 700 | BF236: 720 | BG236: 740 | BH236: 760 | BI236: 780 | BJ236: 800 | BK236: 820 | BL236: 840 | BM236: 860 | BN236: 880 | BO236: 900 | BP236: =IF(($C$222-$C$223=0),1,(BP$225-$C$222)/($C$223-$C$222)*$A236) -> 920 | BQ236: 940 | BR236: 960 | BS236: 980 | BT236: 1000 | BU236: 1020
A237: Phase 2 | B237: Reduction | C237: =IF(C$225<$C$223,C$236,$A236) -> -92 | D237: =IF(D$225<$C$223,D$236,$A236) -> -88 | E237: -84 | F237: -80 | G237: -76 | H237: -72 | I237: -68 | J237: -64 | K237: -60 | L237: -56 | M237: -52 | N237: -48 | O237: -44 | P237: -40 | Q237: -36 | R237: -32 | S237: -28 | T237: -24 | U237: -20 | V237: 0 | W237: 20 | X237: 20 | Y237: 20 | Z237: 20 | AA237: 20 | AB237: 20 | AC237: 20 | AD237: 20 | AE237: 20 | AF237: 20 | AG237: 20 | AH237: 20 | AI237: 20 | AJ237: 20 | AK237: 20 | AL237: 20 | AM237: 20 | AN237: 20 | AO237: 20 | AP237: 20 | AQ237: 20 | AR237: 20 | AS237: 20 | AT237: 20 | AU237: 20 | AV237: 20 | AW237: 20 | AX237: 20 | AY237: 20 | AZ237: 20 | BA237: 20 | BB237: 20 | BC237: 20 | BD237: 20 | BE237: 20 | BF237: 20 | BG237: 20 | BH237: 20 | BI237: 20 | BJ237: 20 | BK237: 20 | BL237: 20 | BM237: 20 | BN237: 20 | BO237: 20 | BP237: =IF(BP$225<$C$223,BP$236,$A236) -> 20 | BQ237: 20 | BR237: 20 | BS237: 20 | BT237: 20 | BU237: 20
B238: Calculated reduction | C238: =IF(C$225<$C$222,0,C$237) -> 0 | D238: =IF(D$225<$C$222,0,D$237) -> 0 | E238: 0 | F238: 0 | G238: 0 | H238: 0 | I238: 0 | J238: 0 | K238: 0 | L238: 0 | M238: 0 | N238: 0 | O238: 0 | P238: 0 | Q238: 0 | R238: 0 | S238: 0 | T238: 0 | U238: 0 | V238: 0 | W238: 20 | X238: 20 | Y238: 20 | Z238: 20 | AA238: 20 | AB238: 20 | AC238: 20 | AD238: 20 | AE238: 20 | AF238: 20 | AG238: 20 | AH238: 20 | AI238: 20 | AJ238: 20 | AK238: 20 | AL238: 20 | AM238: 20 | AN238: 20 | AO238: 20 | AP238: 20 | AQ238: 20 | AR238: 20 | AS238: 20 | AT238: 20 | AU238: 20 | AV238: 20 | AW238: 20 | AX238: 20 | AY238: 20 | AZ238: 20 | BA238: 20 | BB238: 20 | BC238: 20 | BD238: 20 | BE238: 20 | BF238: 20 | BG238: 20 | BH238: 20 | BI238: 20 | BJ238: 20 | BK238: 20 | BL238: 20 | BM238: 20 | BN238: 20 | BO238: 20 | BP238: =IF(BP$225<$C$222,0,BP$237) -> 20 | BQ238: 20 | BR238: 20 | BS238: 20 | BT238: 20 | BU238: 20
B239: Phase 2, 1. Jan 2020-31 dec. 2024 | C239: =$C$221*POWER((C$225),-$E$221)*(1-(C$238/100)) -> 33.58683987 | D239: =$C$221*POWER((D$225),-$E$221)*(1-(D$238/100)) -> 30.79538332 | E239: 28.95667719 | F239: 27.60641306 | G239: 26.55004094 | H239: 25.68849033 | I239: 24.96481232 | J239: 24.34342413 | K239: 23.80069082 | L239: 23.32016013 | M239: 22.88994642 | N239: 22.50120028 | O239: 22.14716612 | P239: 21.82257694 | Q239: 21.5232518 | R239: 21.2458198 | S239: 20.98752598 | T239: 20.74609165 | U239: 20.51961196 | V239: 19.56277234 | W239: 15.05135507 | X239: 14.56293759 | Y239: 14.1526808 | Z239: 13.80041263 | AA239: 13.49273432 | AB239: 13.22031899 | AC239: 12.97642862 | AD239: 12.75604643 | AE239: 12.55534264 | AF239: 12.37133136 | AG239: 12.20164239 | AH239: 12.04436476 | AI239: 11.89793666 | AJ239: 11.7610663 | AK239: 11.6326738 | AL239: 11.51184782 | AM239: 11.39781268 | AN239: 11.28990303 | AO239: 11.18754417 | AP239: 11.09023648 | AQ239: 10.99754309 | AR239: 10.90907992 | AS239: 10.82450761 | AT239: 10.74352496 | AU239: 10.66586347 | AV239: 10.59128285 | AW239: 10.51956723 | AX239: 10.45052204 | AY239: 10.38397133 | AZ239: 10.31975549 | BA239: 10.25772929 | BB239: 10.19776031 | BC239: 10.13972739 | BD239: 10.08351951 | BE239: 10.02903462 | BF239: 9.976178782 | BG239: 9.924865287 | BH239: 9.875013984 | BI239: 9.826550628 | BJ239: 9.779406322 | BK239: 9.733517025 | BL239: 9.688823115 | BM239: 9.645268993 | BN239: 9.60280274 | BO239: 9.561375797 | BP239: =$C$221*POWER((BP$225),-$E$221)*(1-(BP$238/100)) -> 9.520942693 | BQ239: 9.481460788 | BR239: 9.442890046 | BS239: 9.405192832 | BT239: 9.368333729 | BU239: 9.332279364
A241: =$H$14 -> 30 | B241: Interpolation | C241: =IF(($C$222-$C$223=0),1,(C$225-$C$222)/($C$223-$C$222)*$A241) -> -138 | D241: =IF(($C$222-$C$223=0),1,(D$225-$C$222)/($C$223-$C$222)*$A241) -> -132 | E241: -126 | F241: -120 | G241: -114 | H241: -108 | I241: -102 | J241: -96 | K241: -90 | L241: -84 | M241: -78 | N241: -72 | O241: -66 | P241: -60 | Q241: -54 | R241: -48 | S241: -42 | T241: -36 | U241: -30 | V241: 0 | W241: 30 | X241: 60 | Y241: 90 | Z241: 120 | AA241: 150 | AB241: 180 | AC241: 210 | AD241: 240 | AE241: 270 | AF241: 300 | AG241: 330 | AH241: 360 | AI241: 390 | AJ241: 420 | AK241: 450 | AL241: 480 | AM241: 510 | AN241: 540 | AO241: 570 | AP241: 600 | AQ241: 630 | AR241: 660 | AS241: 690 | AT241: 720 | AU241: 750 | AV241: 780 | AW241: 810 | AX241: 840 | AY241: 870 | AZ241: 900 | BA241: 930 | BB241: 960 | BC241: 990 | BD241: 1020 | BE241: 1050 | BF241: 1080 | BG241: 1110 | BH241: 1140 | BI241: 1170 | BJ241: 1200 | BK241: 1230 | BL241: 1260 | BM241: 1290 | BN241: 1320 | BO241: 1350 | BP241: =IF(($C$222-$C$223=0),1,(BP$225-$C$222)/($C$223-$C$222)*$A241) -> 1380 | BQ241: 1410 | BR241: 1440 | BS241: 1470 | BT241: 1500 | BU241: 1530
A242: Phase 2 | B242: Reduction | C242: =IF(C$225<$C$223,C$241,$A241) -> -138 | D242: =IF(D$225<$C$223,D$241,$A241) -> -132 | E242: -126 | F242: -120 | G242: -114 | H242: -108 | I242: -102 | J242: -96 | K242: -90 | L242: -84 | M242: -78 | N242: -72 | O242: -66 | P242: -60 | Q242: -54 | R242: -48 | S242: -42 | T242: -36 | U242: -30 | V242: 0 | W242: 30 | X242: 30 | Y242: 30 | Z242: 30 | AA242: 30 | AB242: 30 | AC242: 30 | AD242: 30 | AE242: 30 | AF242: 30 | AG242: 30 | AH242: 30 | AI242: 30 | AJ242: 30 | AK242: 30 | AL242: 30 | AM242: 30 | AN242: 30 | AO242: 30 | AP242: 30 | AQ242: 30 | AR242: 30 | AS242: 30 | AT242: 30 | AU242: 30 | AV242: 30 | AW242: 30 | AX242: 30 | AY242: 30 | AZ242: 30 | BA242: 30 | BB242: 30 | BC242: 30 | BD242: 30 | BE242: 30 | BF242: 30 | BG242: 30 | BH242: 30 | BI242: 30 | BJ242: 30 | BK242: 30 | BL242: 30 | BM242: 30 | BN242: 30 | BO242: 30 | BP242: =IF(BP$225<$C$223,BP$241,$A241) -> 30 | BQ242: 30 | BR242: 30 | BS242: 30 | BT242: 30 | BU242: 30
B243: Calculated reduction | C243: =IF(C$225<$C$222,0,C$242) -> 0 | D243: =IF(D$225<$C$222,0,D$242) -> 0 | E243: 0 | F243: 0 | G243: 0 | H243: 0 | I243: 0 | J243: 0 | K243: 0 | L243: 0 | M243: 0 | N243: 0 | O243: 0 | P243: 0 | Q243: 0 | R243: 0 | S243: 0 | T243: 0 | U243: 0 | V243: 0 | W243: 30 | X243: 30 | Y243: 30 | Z243: 30 | AA243: 30 | AB243: 30 | AC243: 30 | AD243: 30 | AE243: 30 | AF243: 30 | AG243: 30 | AH243: 30 | AI243: 30 | AJ243: 30 | AK243: 30 | AL243: 30 | AM243: 30 | AN243: 30 | AO243: 30 | AP243: 30 | AQ243: 30 | AR243: 30 | AS243: 30 | AT243: 30 | AU243: 30 | AV243: 30 | AW243: 30 | AX243: 30 | AY243: 30 | AZ243: 30 | BA243: 30 | BB243: 30 | BC243: 30 | BD243: 30 | BE243: 30 | BF243: 30 | BG243: 30 | BH243: 30 | BI243: 30 | BJ243: 30 | BK243: 30 | BL243: 30 | BM243: 30 | BN243: 30 | BO243: 30 | BP243: =IF(BP$225<$C$222,0,BP$242) -> 30 | BQ243: 30 | BR243: 30 | BS243: 30 | BT243: 30 | BU243: 30
B244: Phase 3, 1. Jan 2025-onwards | C244: =$C$221*POWER((C$225),-$E$221)*(1-(C$243/100)) -> 33.58683987 | D244: =$C$221*POWER((D$225),-$E$221)*(1-(D$243/100)) -> 30.79538332 | E244: 28.95667719 | F244: 27.60641306 | G244: 26.55004094 | H244: 25.68849033 | I244: 24.96481232 | J244: 24.34342413 | K244: 23.80069082 | L244: 23.32016013 | M244: 22.88994642 | N244: 22.50120028 | O244: 22.14716612 | P244: 21.82257694 | Q244: 21.5232518 | R244: 21.2458198 | S244: 20.98752598 | T244: 20.74609165 | U244: 20.51961196 | V244: 19.56277234 | W244: 13.16993569 | X244: 12.74257039 | Y244: 12.3835957 | Z244: 12.07536105 | AA244: 11.80614253 | AB244: 11.56777911 | AC244: 11.35437504 | AD244: 11.16154063 | AE244: 10.98592481 | AF244: 10.82491494 | AG244: 10.67643709 | AH244: 10.53881917 | AI244: 10.41069458 | AJ244: 10.29093301 | AK244: 10.17858957 | AL244: 10.07286684 | AM244: 9.973086094 | AN244: 9.878665155 | AO244: 9.789101151 | AP244: 9.703956923 | AQ244: 9.622850205 | AR244: 9.545444927 | AS244: 9.471444159 | AT244: 9.400584343 | AU244: 9.33263054 | AV244: 9.267372492 | AW244: 9.204621325 | AX244: 9.144206789 | AY244: 9.085974918 | AZ244: 9.02978605 | BA244: 8.975513132 | BB244: 8.923040268 | BC244: 8.872261469 | BD244: 8.823079571 | BE244: 8.775405296 | BF244: 8.729156434 | BG244: 8.684257126 | BH244: 8.640637236 | BI244: 8.5982318 | BJ244: 8.556980531 | BK244: 8.516827397 | BL244: 8.477720225 | BM244: 8.439610369 | BN244: 8.402452397 | BO244: 8.366203822 | BP244: =$C$221*POWER((BP$225),-$E$221)*(1-(BP$243/100)) -> 8.330824857 | BQ244: 8.296278189 | BR244: 8.26252879 | BS244: 8.229543728 | BT244: 8.197292013 | BU244: 8.165744444
B247: =B15 -> Chemical tankers
B248: a | C248: =C15 -> 1218.8 | D248: c | E248: =E15 -> 0.488
B249: Min DWT | C249: =I15 -> 2000
B250: Max DWT | C250: =J15 -> 10000
B252: DWT | C252: =C$21 -> 2000 | D252: =D$21 -> 3000 | E252: 4000 | F252: 5000 | G252: 6000 | H252: 7000 | I252: 8000 | J252: 9000 | K252: 10000 | L252: 11000 | M252: 12000 | N252: 13000 | O252: 14000 | P252: 15000 | Q252: 16000 | R252: 17000 | S252: 18000 | T252: 19000 | U252: 20000 | V252: 25000 | W252: 30000 | X252: 35000 | Y252: 40000 | Z252: 45000 | AA252: 50000 | AB252: 55000 | AC252: 60000 | AD252: 65000 | AE252: 70000 | AF252: 75000 | AG252: 80000 | AH252: 85000 | AI252: 90000 | AJ252: 95000 | AK252: 100000 | AL252: 105000 | AM252: 110000 | AN252: 115000 | AO252: 120000 | AP252: 125000 | AQ252: 130000 | AR252: 135000 | AS252: 140000 | AT252: 145000 | AU252: 150000 | AV252: 155000 | AW252: 160000 | AX252: 165000 | AY252: 170000 | AZ252: 175000 | BA252: 180000 | BB252: 185000 | BC252: 190000 | BD252: 195000 | BE252: 200000 | BF252: 205000 | BG252: 210000 | BH252: 215000 | BI252: 220000 | BJ252: 225000 | BK252: 230000 | BL252: 235000 | BM252: 240000 | BN252: 245000 | BO252: 250000 | BP252: =BP$21 -> 255000 | BQ252: 260000 | BR252: 265000 | BS252: 270000 | BT252: 275000 | BU252: 280000
B253: Phase 0, 1. Jan 2013-31 dec. 2014 | C253: =$C$15*POWER(C$252,-$E$15) -> 29.85587527 | D253: =$C$15*POWER(D$252,-$E$15) -> 24.49611844 | E253: 21.28762297 | F253: 19.09128159 | G253: 17.46604744 | H253: 16.20035764 | I253: 15.17834891 | J253: 14.33052499 | K253: 13.61232926 | L253: 12.99369939 | M253: 12.45351641 | N253: 11.97644956 | O253: 11.55106331 | P253: 11.16863019 | Q253: 10.82235795 | R253: 10.50687032 | S253: 10.21784859 | T253: 9.951778204 | U253: 9.705765802 | V253: 8.704377573 | W253: 7.963376941 | X253: 7.386305052 | Y253: 6.92033582 | Z253: 6.533783485 | AA253: 6.206333136 | AB253: 5.924278317 | AC253: 5.677990157 | AD253: 5.460478828 | AE253: 5.26653048 | AF253: 5.092165955 | AG253: 4.934288426 | AH253: 4.790446671 | AI253: 4.658671641 | AJ253: 4.53736092 | AK253: 4.425195332 | AL253: 4.321077619 | AM253: 4.224086618 | AN253: 4.133442489 | AO253: 4.048479994 | AP253: 3.968627699 | AQ253: 3.893391619 | AR253: 3.822342211 | AS253: 3.755103953 | AT253: 3.691346899 | AU253: 3.630779805 | AV253: 3.573144477 | AW253: 3.518211096 | AX253: 3.465774331 | AY253: 3.415650075 | AZ253: 3.367672711 | BA253: 3.321692784 | BB253: 3.277575028 | BC253: 3.23519668 | BD253: 3.19444603 | BE253: 3.155221174 | BF253: 3.11742893 | BG253: 3.080983906 | BH253: 3.045807678 | BI253: 3.011828075 | BJ253: 2.978978554 | BK253: 2.947197646 | BL253: 2.916428467 | BM253: 2.886618294 | BN253: 2.857718171 | BO253: 2.829682581 | BP253: =$C$15*POWER(BP$252,-$E$15) -> 2.802469131 | BQ253: 2.776038288 | BR253: 2.750353134 | BS253: 2.725379147 | BT253: 2.701084004 | BU253: 2.677437404
B254: Phase 1, 1. Jan 2015-31 dec. 2019 | C254: =C261 -> 29.85587527 | D254: =D261 -> 24.18991696 | E254: 20.7554324 | F254: 18.37535853 | G254: 16.59274507 | H254: 15.18783528 | I254: 14.03997274 | J254: 13.07660406 | K254: 12.25109634 | L254: 11.69432945 | M254: 11.20816477 | N254: 10.7788046 | O254: 10.39595698 | P254: 10.05176717 | Q254: 9.740122152 | R254: 9.456183285 | S254: 9.196063734 | T254: 8.956600383 | U254: 8.735189222 | V254: 7.833939816 | W254: 7.167039247 | X254: 6.647674547 | Y254: 6.228302238 | Z254: 5.880405137 | AA254: 5.585699823 | AB254: 5.331850485 | AC254: 5.110191142 | AD254: 4.914430945 | AE254: 4.739877432 | AF254: 4.58294936 | AG254: 4.440859583 | AH254: 4.311402004 | AI254: 4.192804477 | AJ254: 4.083624828 | AK254: 3.982675798 | AL254: 3.888969857 | AM254: 3.801677957 | AN254: 3.72009824 | AO254: 3.643631994 | AP254: 3.571764929 | AQ254: 3.504052457 | AR254: 3.44010799 | AS254: 3.379593558 | AT254: 3.322212209 | AU254: 3.267701824 | AV254: 3.215830029 | AW254: 3.166389987 | AX254: 3.119196898 | AY254: 3.074085068 | AZ254: 3.03090544 | BA254: 2.989523506 | BB254: 2.949817525 | BC254: 2.911677012 | BD254: 2.875001427 | BE254: 2.839699056 | BF254: 2.805686037 | BG254: 2.772885515 | BH254: 2.74122691 | BI254: 2.710645268 | BJ254: 2.681080699 | BK254: 2.652477881 | BL254: 2.624785621 | BM254: 2.597956464 | BN254: 2.571946354 | BO254: 2.546714323 | BP254: =BP261 -> 2.522222217 | BQ254: 2.498434459 | BR254: 2.475317821 | BS254: 2.452841232 | BT254: 2.430975603 | BU254: 2.409693664
B255: Phase 2, 1. Jan 2020-31 dec. 2024 | C255: =C266 -> 29.85587527 | D255: =D266 -> 23.88371548 | E255: 20.22324182 | F255: 17.65943547 | G255: 15.71944269 | H255: 14.17531293 | I255: 12.90159657 | J255: 11.82268312 | K255: 10.88986341 | L255: 10.39495951 | M255: 9.962813131 | N255: 9.581159645 | O255: 9.240850647 | P255: 8.934904154 | Q255: 8.657886357 | R255: 8.405496253 | S255: 8.174278874 | T255: 7.961422563 | U255: 7.764612641 | V255: 6.963502058 | W255: 6.370701553 | X255: 5.909044042 | Y255: 5.536268656 | Z255: 5.227026788 | AA255: 4.965066509 | AB255: 4.739422654 | AC255: 4.542392126 | AD255: 4.368383062 | AE255: 4.213224384 | AF255: 4.073732764 | AG255: 3.947430741 | AH255: 3.832357337 | AI255: 3.726937313 | AJ255: 3.629888736 | AK255: 3.540156265 | AL255: 3.456862096 | AM255: 3.379269295 | AN255: 3.306753992 | AO255: 3.238783995 | AP255: 3.174902159 | AQ255: 3.114713295 | AR255: 3.057873769 | AS255: 3.004083162 | AT255: 2.953077519 | AU255: 2.904623844 | AV255: 2.858515581 | AW255: 2.814568877 | AX255: 2.772619464 | AY255: 2.73252006 | AZ255: 2.694138169 | BA255: 2.657354227 | BB255: 2.622060023 | BC255: 2.588157344 | BD255: 2.555556824 | BE255: 2.524176939 | BF255: 2.493943144 | BG255: 2.464787125 | BH255: 2.436646142 | BI255: 2.40946246 | BJ255: 2.383182843 | BK255: 2.357758116 | BL255: 2.333142774 | BM255: 2.309294635 | BN255: 2.286174537 | BO255: 2.263746065 | BP255: =BP266 -> 2.241975304 | BQ255: 2.22083063 | BR255: 2.200282507 | BS255: 2.180303318 | BT255: 2.160867203 | BU255: 2.141949923
... 34 more rows

Sheet List (hidden)
A1: Ship type
A2: =VLOOKUP(Type,List!$D$3:$E$28,2,FALSE)&" "&Dashboard!E12 -> Bulker 100000-199999 Dwt | J2: Crude oil tankers | K2: Dry bulk carriers | L2: Container ships | M2: Ro-Ro ships | N2: General cargo vessels | O2: Passenger vessels | P2: Ro-Pax vessels | Q2: Cruise vessels | R2: Chemical tankers | S2: Product tankers
A3: Crude oil tankers | B3: Crude <10000 Dwt | D3: Crude oil tankers | E3: Crude | F3: <10000 Dwt | H3: Chemical tankers | I3: Chemical | J3: <10000 Dwt | K3: <10000 Dwt | L3: <1000 TEU | M3: <2000 lm | N3: <5000 Dwt <100 TEU | O3: >=25 knots | P3: >=25 knots | Q3: <2000 Gt | R3: <5000 Dwt | S3: <5000 Dwt
A4: Crude oil tankers | B4: Crude 10000-59999 Dwt | D4: Crude oil tankers | E4: Crude | F4: 10000-59999 Dwt | H4: Container ships | I4: Container | J4: 10000-59999 Dwt | K4: 10000-34999 Dwt | L4: 1000-1999 TEU | M4: >=2000 lm | N4: 5000-9999 Dwt <100 TEU | O4: <25 knots | P4: <25 knots | Q4: 2000-9999 Gt | R4: 5000-9999 Dwt | S4: 5000-9999 Dwt
A5: Crude oil tankers | B5: Crude 60000-79999 Dwt | D5: Crude oil tankers | E5: Crude | F5: 60000-79999 Dwt | H5: Crude oil tankers | I5: CrudeOilTankers | J5: 60000-79999 Dwt | K5: 35000-59999 Dwt | L5: 2000-2999 TEU | N5: >10000 dwt <100 TEU | Q5: 10000-59999 Gt | R5: 10000-19999 Dwt | S5: 10000-19999 Dwt
A6: Crude oil tankers | B6: Crude 80000-119999 Dwt | D6: Crude oil tankers | E6: Crude | F6: 80000-119999 Dwt | H6: Cruise vessels | I6: Cruise | J6: 80000-119999 Dwt | K6: 60000-99999 Dwt | L6: 3000-4999 TEU | N6: <5000 Dwt >=100 TEU | Q6: 60000-99999 Gt | R6: >20000 Dwt | S6: 20000-59999 Dwt
A7: Crude oil tankers | B7: Crude 120000-199999 Dwt | D7: Crude oil tankers | E7: Crude | F7: 120000-199999 Dwt | H7: Dry bulk carriers | I7: DryBulk | J7: 120000-199999 Dwt | K7: 100000-199999 Dwt | L7: 5000-7999 TEU | N7: 5000-9999 Dwt >=100 TEU | Q7: >100000 Gt | S7: >60000 Dwt
A8: Crude oil tankers | B8: Crude >200000 Dwt | D8: Crude oil tankers | E8: Crude | F8: >200000 Dwt | H8: General cargo vessels | I8: GeneralCargo | J8: >200000 Dwt | K8: >200000 Dwt | L8: >8000 TEU | N8: >10000 Dwt >=100 TEU
A9: Dry bulk | B9: Bulker <10000 Dwt | D9: Dry bulk carriers | E9: Bulker | F9: <10000 Dwt | H9: Passenger vessels | I9: Passenger
A10: Dry bulk | B10: Bulker 10000-34999 Dwt | D10: Dry bulk carriers | E10: Bulker | F10: 10000-34999 Dwt | H10: Product tankers | I10: Product
A11: Dry bulk | B11: Bulker 35000-59999 Dwt | D11: Dry bulk carriers | E11: Bulker | F11: 35000-59999 Dwt | H11: Ro-Pax vessels | I11: Ropax
A12: Dry bulk | B12: Bulker 60000-99999 Dwt | D12: Dry bulk carriers | E12: Bulker | F12: 60000-99999 Dwt | H12: Ro-Ro ships | I12: RoRo
A13: Dry bulk | B13: Bulker 100000-199999 Dwt | D13: Dry bulk carriers | E13: Bulker | F13: 100000-199999 Dwt
A14: Dry bulk | B14: Bulker >200000 Dwt | D14: Dry bulk carriers | E14: Bulker | F14: >200000 Dwt
A15: Container | B15: Container <1000 TEU | D15: Container ships | E15: Container | F15: <1000 TEU | H15: Container
A16: Container | B16: Container 1000-1999 TEU | D16: Container ships | E16: Container | F16: 1000-1999 TEU | H16: Crude oil tanker
A17: Container | B17: Container 2000-2999 TEU | D17: Container ships | E17: Container | F17: 2000-2999 TEU | H17: Dry bulk
A18: Container | B18: Container 3000-4999 TEU | D18: Container ships | E18: Container | F18: 3000-4999 TEU | H18: RoRo
A19: Container | B19: Container 5000-7999 TEU | D19: Container ships | E19: Container | F19: 5000-7999 TEU
A20: Container | B20: Container >8000 TEU | D20: Container ships | E20: Container | F20: >8000 TEU
A21: RoRo | B21: Roro <2000 lm | D21: Ro-Ro ships | E21: RoRo | F21: <2000 lm
A22: RoRo | B22: Roro >=2000 lm | D22: Ro-Ro ships | E22: RoRo | F22: >=2000 lm
D23: Chemical tankers | E23: Chemical
D24: Product tankers | E24: Product
D25: General cargo vessels | E25: General Cargo
D26: Passenger vessels | E26: Passenger
D27: Ro-Pax vessels | E27: Ropax
D28: Cruise vessels | E28: Cruise
A43: Standard 2015 vessel | B43: Cargo [ton] | C43: Distance [nm] AIS | D43: Avg size [DWT]/[GT] | E43: Utilization | F43: Adjustment factor (laden vs. ballast | G43: Calibrating factor | H43: Transport work 1 year [ton x nm] | I43: Fuel cons. AIS [ton] | J43: Apply EEDI?
A44: Crude <10000 Dwt | B44: 10000 | C44: 33344.29124 | D44: 5000 | E44: 0.5 | F44: 0.3 | G44: 1 | H44: =C44*D44*E44*F44*G44 -> 25008218.43 | I44: 690.8717175 | J44: 1
A45: Crude 10000-59999 Dwt | B45: 59999 | C45: 59114.10331 | D45: 35000 | E45: 0.5 | F45: 0.3 | G45: 1 | H45: =C45*D45*E45*F45*G45 -> 310349042.4 | I45: 2541.88183 | J45: 1
A46: Crude 60000-79999 Dwt | B46: 79999 | C46: 85960.29705 | D46: 70000 | E46: 0.5 | F46: 0.3 | G46: 1 | H46: 902583119.1 | I46: 3969.76957 | J46: 1
A47: Crude 80000-119999 Dwt | B47: 119999 | C47: 78425.84184 | D47: 100000 | E47: 0.5 | F47: 0.3 | G47: 1 | H47: 1176387628 | I47: 3946.031118 | J47: 1
A48: Crude 120000-199999 Dwt | B48: 199999 | C48: 75283.68424 | D48: 160000 | E48: 0.5 | F48: 0.3 | G48: 1 | H48: 1806808422 | I48: 3871.284336 | J48: 1
A49: Crude >200000 Dwt | B49: 200000 | C49: 97398.01515 | D49: 250000 | E49: 0.5 | F49: 0.3 | G49: 1 | H49: 3652425568 | I49: 9186.268931 | J49: 1
A50: Product <5000 Dwt | B50: 5000 | C50: 43072.47634 | D50: 2500 | E50: 0.5 | F50: 0.3 | G50: 1 | H50: 16152178.63 | I50: 890.9963719 | J50: 1
A51: Product 5000-9999 Dwt | B51: 9999 | C51: 50586.13227 | D51: 7500 | E51: 0.5 | F51: 0.3 | G51: 1 | H51: 56909398.8 | I51: 1483.759307 | J51: 1
A52: Product 10000-19999 Dwt | B52: 19999 | C52: 61695.53603 | D52: 15000 | E52: 0.5 | F52: 0.3 | G52: 1 | H52: 138814956.1 | I52: 2146.466229 | J52: 1
A53: Product 20000-59999 Dwt | B53: 59999 | C53: 138103.7182 | D53: 35000 | E53: 0.5 | F53: 0.3 | G53: 1 | H53: 725044520.6 | I53: 3530.340135 | J53: 1
A54: Product >60000 Dwt | B54: 60000 | C54: 59259.79344 | D54: 70000 | E54: 0.5 | F54: 0.3 | G54: 1 | H54: 622227831.1 | I54: 4105.247358 | J54: 1
A55: Chemical <5000 Dwt | B55: 5000 | C55: 43072.47634 | D55: 2500 | E55: 0.5 | F55: 0.3 | G55: 1 | H55: 16152178.63 | I55: 890.9963719 | J55: 1
A56: Chemical 5000-9999 Dwt | B56: 9999 | C56: 50586.13227 | D56: 7500 | E56: 0.5 | F56: 0.3 | G56: 1 | H56: 56909398.8 | I56: 1483.759307 | J56: 1
A57: Chemical 10000-19999 Dwt | B57: 19999 | C57: 61695.53603 | D57: 15000 | E57: 0.5 | F57: 0.3 | G57: 1 | H57: 138814956.1 | I57: 2146.466229 | J57: 1
A58: Chemical >20000 Dwt | B58: 20000 | C58: 136646.2575 | D58: 30000 | E58: 0.5 | F58: 0.3 | G58: 1 | H58: 614908158.6 | I58: 3541.01846 | J58: 1
A59: Bulker <10000 Dwt | B59: 10000 | C59: 51093.79934 | D59: 5000 | E59: 0.5 | F59: 0.3 | G59: 1 | H59: 38320349.5 | I59: 809.1092115 | J59: 0
A60: Bulker 10000-34999 Dwt | B60: 34999 | C60: 62324.4942 | D60: 22500 | E60: 0.5 | F60: 0.3 | G60: 1 | H60: 210345167.9 | I60: 1946.361842 | J60: 1
A61: Bulker 35000-59999 Dwt | B61: 59999 | C61: 117113.4574 | D61: 47500 | E61: 0.5 | F61: 0.3 | G61: 1 | H61: 834433383.6 | I61: 2539.005002 | J61: 1
A62: Bulker 60000-99999 Dwt | B62: 99999 | C62: 112426.6248 | D62: 75000 | E62: 0.5 | F62: 0.3 | G62: 1 | H62: 1264799529 | I62: 3449.176924 | J62: 1
A63: Bulker 100000-199999 Dwt | B63: 199999 | C63: 99484.54223 | D63: 150000 | E63: 0.5 | F63: 0.3 | G63: 1 | H63: 2238402200 | I63: 5406.9847 | J63: 1
A64: Bulker >200000 Dwt | B64: 200000 | C64: 80519.78123 | D64: 250000 | E64: 0.5 | F64: 0.3 | G64: 1 | H64: 3019491796 | I64: 6984.68257 | J64: 1
A65: General Cargo <5000 Dwt <100 TEU | B65: 5000 | C65: 81085.62537 | D65: 2500 | E65: 0.5 | F65: 0.3 | G65: 1 | H65: 30407109.51 | I65: 584.2673878 | J65: 0
A66: General Cargo 5000-9999 Dwt <100 TEU | B66: 9999 | C66: 88258.78226 | D66: 7500 | E66: 0.5 | F66: 0.3 | G66: 1 | H66: 99291130.05 | I66: 1645.966866 | J66: 1
A67: General Cargo >10000 dwt <100 TEU | B67: 1000 | C67: 112095.7695 | D67: 15000 | E67: 0.5 | F67: 0.3 | G67: 1 | H67: 252215481.4 | I67: 3928.108714 | J67: 1
A68: General Cargo <5000 Dwt >=100 TEU | B68: 5000 | C68: 81085.62537 | D68: 2500 | E68: 0.5 | F68: 0.3 | G68: 1 | H68: 30407109.51 | I68: 584.2673878 | J68: 1
A69: General Cargo 5000-9999 Dwt >=100 TEU | B69: 9999 | C69: 88258.78226 | D69: 7500 | E69: 0.5 | F69: 0.3 | G69: 1 | H69: 99291130.05 | I69: 1645.966866 | J69: 1
A70: General Cargo >10000 Dwt >=100 TEU | B70: 1000 | C70: 112095.7695 | D70: 15000 | E70: 0.5 | F70: 0.3 | G70: 1 | H70: 252215481.4 | I70: 3928.108714 | J70: 1
A71: Container <1000 TEU | B71: 1000 | C71: 85887.12679 | D71: 7500 | E71: 0.5 | F71: 0.3 | G71: 1 | H71: 96623017.64 | I71: 1974.845317 | J71: 0
A72: Container 1000-1999 TEU | B72: 1999 | C72: 126379.6681 | D72: 20000 | E72: 0.5 | F72: 0.3 | G72: 1 | H72: 379139004.3 | I72: 3777.051968 | J72: 1
A73: Container 2000-2999 TEU | B73: 2999 | C73: 114164.6475 | D73: 40000 | E73: 0.5 | F73: 0.3 | G73: 1 | H73: 684987884.8 | I73: 5828.368034 | J73: 1
A74: Container 3000-4999 TEU | B74: 4999 | C74: 175075.5022 | D74: 60000 | E74: 0.5 | F74: 0.3 | G74: 1 | H74: 1575679520 | I74: 7632.586304 | J74: 1
A75: Container 5000-7999 TEU | B75: 7999 | C75: 236486.3219 | D75: 90000 | E75: 0.5 | F75: 0.3 | G75: 1 | H75: 3192565346 | I75: 11768.7669 | J75: 1
A76: Container >8000 TEU | B76: 8000 | C76: 238238.8893 | D76: 120000 | E76: 0.5 | F76: 0.3 | G76: 1 | H76: 4288300008 | I76: 15008.59754 | J76: 1
A77: Passenger >=25 knots | C77: 125762.5719 | D77: 500 | E77: 0.5 | F77: 0.3 | G77: 1 | H77: =C77*D77*E77*F77*G77 -> 9432192.891 | I77: 985.1666882 | J77: 0
A78: Passenger <25 knots | C78: 23167.59932 | D78: 1000 | E78: 0.5 | F78: 0.3 | G78: 1 | H78: =C78*D78*E78*F78*G78 -> 3475139.898 | I78: 314.0398188 | J78: 1
A79: Ropax >=25 knots | C79: 75176.40888 | D79: 17000 | E79: 0.5 | F79: 0.3 | G79: 1 | H79: 191699842.6 | I79: 9291.853689 | J79: 1
A80: Ropax <25 knots | C80: 50231.24837 | D80: 11000 | E80: 0.5 | F80: 0.3 | G80: 1 | H80: 82881559.8 | I80: 3292.178262 | J80: 1
A81: Cruise <2000 Gt | B81: 2000 | C81: 20090.38418 | D81: 1000 | E81: 0.5 | F81: 0.3 | G81: 1 | H81: 3013557.627 | I81: 287.0748627 | J81: 0
A82: Cruise 2000-9999 Gt | B82: 9999 | C82: 55864.14078 | D82: 6000 | E82: 0.5 | F82: 0.3 | G82: 1 | H82: 50277726.71 | I82: 1533.223308 | J82: 0
A83: Cruise 10000-59999 Gt | B83: 59999 | C83: 116474.0735 | D83: 35000 | E83: 0.5 | F83: 0.3 | G83: 1 | H83: 611488885.7 | I83: 6415.198701 | J83: 1
A84: Cruise 60000-99999 Gt | B84: 99999 | C84: 104079.7328 | D84: 80000 | E84: 0.5 | F84: 0.3 | G84: 1 | H84: 1248956793 | I84: 20987.69503 | J84: 1
A85: Cruise >100000 Gt | B85: 100000 | C85: 119181.3104 | D85: 150000 | E85: 0.5 | F85: 0.3 | G85: 1 | H85: 2681579484 | I85: 28751.52813 | J85: 1
A86: Roro <2000 lm | B86: 1000 | C86: 33108.78518 | D86: 4000 | E86: 0.5 | F86: 0.3 | G86: 1 | H86: 19865271.11 | I86: 1150.99984 | J86: 1
A87: Roro >=2000 lm | B87: 3000 | C87: 119346.0071 | D87: 12000 | E87: 0.5 | F87: 0.3 | G87: 1 | H87: 214822812.7 | I87: 5934.726351 | J87: 1
A89: Sailed distance in filter | B89: =VLOOKUP(A2,$A$44:$H$87,3,FALSE) -> 99484.54223
A91: Measures | D91: EEOI binary [0,1] | E91: EEDI binary [0,1] | F91: Technical / Operational [T/O] | G91: Unceirtanty Categories | H91: Dummy | I91: Unceirtanty Ranges
A92: 1 | B92: Kite | C92: Kite | D92: 1 | E92: 1 | F92: =IF(E92=0,"O","T") -> T | G92: H | H92: =B92 -> Kite | I92: > 30 %
A93: 2 | B93: Fixed sails or wings | C93: Fixed sails or wings | D93: 1 | E93: 1 | F93: T | G93: H | H93: Fixed sails or wings | I93: > 30 %
A94: 3 | B94: Solar Panel | C94: Solar Panel | D94: 1 | E94: 1 | F94: T | G94: H | H94: Solar Panel | I94: > 30 %
A95: 4 | B95: Electronic engine control | C95: Electronic engine control | D95: 1 | E95: 1 | F95: T | G95: L | H95: Electronic engine control | I95: < 10 %
A96: 5 | B96: Waste heat recovery | C96: Waste heat recovery | D96: 1 | E96: 1 | F96: T | G96: L | H96: Waste heat recovery | I96: < 10 %
A97: 6 | B97: Hull coating condition | C97: Hull coating condition | D97: 1 | E97: 0 | F97: O | G97: L | H97: Hull coating condition | I97: < 10 %
A98: 7 | B98: Air cavity lubrication | C98: Air cavity lubrication | D98: 1 | E98: 1 | F98: T | G98: M | H98: Air cavity lubrication | I98: 10-30 %
A99: 8 | B99: Contra-rotating propeller | C99: Contra-rotating propeller | D99: 1 | E99: 1 | F99: T | G99: M | H99: Contra-rotating propeller | I99: 10-30 %
A100: 9 | B100: Propulsion efficiency devices | C100: Propulsion efficiency devices | D100: 1 | E100: 1 | F100: =IF(E100=0,"O","T*") -> T* | G100: L | H100: Propulsion efficiency devices | I100: < 10 %
A101: 10 | B101: Frequency converters | C101: Frequency converters | D101: 1 | E101: 1 | F101: T | G101: M | H101: Frequency converters | I101: 10-30 %
A102: 11 | B102: EGB on AE | C102: EGB on AE | D102: 1 | E102: 1 | F102: T | G102: L | H102: EGB on AE | I102: < 10 %
A103: 12 | B103: Light systems | C103: Light systems | D103: 1 | E103: 1 | F103: T | G103: L | H103: Light systems | I103: < 10 %
A104: 13 | B104: Trim&draft optimisation | C104: Trim&draft optimisation | D104: 1 | E104: 0 | F104: O | G104: L | H104: Trim&draft optimisation | I104: < 10 %
A105: 14 | B105: Weather routing | C105: Weather routing | D105: 1 | E105: 0 | F105: O | G105: M | H105: Weather routing | I105: 10-30 %
A106: 15 | B106: Voyage execution | C106: Voyage execution | D106: 1 | E106: 0 | F106: O | G106: M | H106: Voyage execution | I106: 10-30 %
A107: 16 | B107: Steam plant op impr | C107: Steam plant op impr | D107: 1 | E107: 0 | F107: O | G107: L | H107: Steam plant op impr | I107: < 10 %
A108: 17 | B108: Propeller efficiency | C108: Propeller efficiency | D108: 1 | E108: 0 | F108: O | G108: L | H108: Propeller efficiency | I108: < 10 %

Sheet Front page (hidden)
B4: Cost efficient Abatement Screning Tool
B6: Model version: | D6: 1
B7: Date: | D7: December 2010
E11: Startup | I11: Catch
I12: MACC
I13: ΔEmissions
I14: ΔCost
E18: User input
E19: User measures
E20: Financial
E21: Engine operational profile
E22: Scenarios
E25: Other input | G25: Calculations | I25: Results
E26: Engine data | G26: Emissions | I26: Economic
E27: Abatement control | G27: Fuel consumption | I27: Environmental
E28: Fuel charateristics | G28: Costs
E29: Ship parameters
E32: Measure input
E33: Cost
E34: Effect
E35: Lifetime

Sheet Todo (hidden)

Sheet Startup (hidden)
C4: Select ship type | D4: =List!A2 -> Bulker 100000-199999 Dwt
C5: Selected abatament | D5: CO2
C12: Potential abatements | D12: Applicable to ship type? | E12: Already installed? | F12: Include? | G12: Catch ($/ton) | H12: CO2 reduction | I12: ="Accumulated reduction per "&Catch!M2&" years (kton CO2)" -> Accumulated reduction per 25 years (kton CO2) | J12: Initial investment ($) | K12: Acc. Investment ($) | L12: Payback time per measure | M12: Accumulated payback time
B13: 1 | C13: Trim&draft optimisation | D13: =IF(OR($C13="",ISERROR(INDIRECT(CONCATENATE("'",$C13,"'",VLOOKUP($D$12,Abatecontrol,2,FALSE))))),"",IF(HLOOKUP(VLOOKUP($D$12,Abatecontrol,3,FALSE),INDIRECT(CONCATENATE("'",$C13,"'",VLOOKUP($D$12,Abatecontrol,2,FALSE))),MATCH($D$4,Shiptypes,0)+1,FALSE)=1,"Yes","No")) -> Yes | E13: No | F13: Yes | G13: =IF(OR(C13="",Catch!R8=""),"",Catch!R8) -> -75.04896767 | H13: =IF(OR(C13="",Catch!N8=""),"",Catch!N8) -> 0.004599398588 | I13: =IF(OR(C13="",Catch!P8=""),"",TEXT(Catch!P8,"0")&" ("&TEXT(SUM($H$13:H13),"0"&RIGHT(LEFT(H13,2),1)&"0%")&")") -> 2 (0,5%) | J13: =IF(OR(L13="",F13="No"),"",HLOOKUP(C13,INDIRECT(REPLACE('Calculation template'!$B$6,9,1,"")),11,FALSE)) -> 25000 | K13: =IF(OR(L13="",F13="No"),"",SUM($J$13:J13)) -> 25000 | L13: =IF(OR(C13="",Catch!K8=""),"",Catch!K8) -> 2 | M13: =IF(OR(C13="",Catch!L8=""),"",Catch!L8) -> 2 | R13: Steam Plant Improvements
B14: 2 | C14: Voyage execution | D14: Yes | E14: No | F14: Yes | G14: =IF(OR(C14="",Catch!R9=""),"",Catch!R9) -> -68.51868246 | H14: =IF(OR(C14="",Catch!N9=""),"",Catch!N9) -> 0.01026892391 | I14: =IF(OR(C14="",Catch!P9=""),"",TEXT(Catch!P9,"0")&" ("&TEXT(SUM($H$13:H14),"0"&RIGHT(LEFT(H14,2),1)&"0%")&")") -> 6 (1,5%) | J14: =IF(OR(L14="",F14="No"),"",HLOOKUP(C14,INDIRECT(REPLACE('Calculation template'!$B$6,9,1,"")),11,FALSE)) -> 10000 | K14: =IF(OR(L14="",F14="No"),"",SUM($J$13:J14)) -> 35000 | L14: =IF(OR(C14="",Catch!K9=""),"",Catch!K9) -> 1 | M14: =IF(OR(C14="",Catch!L9=""),"",Catch!L9) -> 1 | R14: Voyage Execution
B15: 3 | C15: Propulsion efficiency devices | D15: Yes | E15: No | F15: Yes | G15: =IF(OR(C15="",Catch!R10=""),"",Catch!R10) -> -61.64370022 | H15: =IF(OR(C15="",Catch!N10=""),"",Catch!N10) -> 0.01167033 | I15: =IF(OR(C15="",Catch!P10=""),"",TEXT(Catch!P10,"0")&" ("&TEXT(SUM($H$13:H15),"0"&RIGHT(LEFT(H15,2),1)&"0%")&")") -> 11 (2,7%) | J15: =IF(OR(L15="",F15="No"),"",HLOOKUP(C15,INDIRECT(REPLACE('Calculation template'!$B$6,9,1,"")),11,FALSE)) -> 107092.4678 | K15: =IF(OR(L15="",F15="No"),"",SUM($J$13:J15)) -> 142092.4678 | L15: =IF(OR(C15="",Catch!K10=""),"",Catch!K10) -> 4 | M15: =IF(OR(C15="",Catch!L10=""),"",Catch!L10) -> 2 | R15: Trim/Draft Optimization
B16: 4 | C16: Light systems | D16: Yes | E16: No | F16: Yes | G16: =IF(OR(C16="",Catch!R11=""),"",Catch!R11) -> -43.30833213 | H16: =IF(OR(C16="",Catch!N11=""),"",Catch!N11) -> 0.005275667383 | I16: =IF(OR(C16="",Catch!P11=""),"",TEXT(Catch!P11,"0")&" ("&TEXT(SUM($H$13:H16),"0"&RIGHT(LEFT(H16,2),1)&"0%")&")") -> 14 (3,2%) | J16: =IF(OR(L16="",F16="No"),"",HLOOKUP(C16,INDIRECT(REPLACE('Calculation template'!$B$6,9,1,"")),11,FALSE)) -> 100000 | K16: =IF(OR(L16="",F16="No"),"",SUM($J$13:J16)) -> 242092.4678 | L16: =IF(OR(C16="",Catch!K11=""),"",Catch!K11) -> 8 | M16: =IF(OR(C16="",Catch!L11=""),"",Catch!L11) -> 3 | R16: Propulsion Efficiency Devices
B17: 5 | C17: Weather routing | D17: Yes | E17: No | F17: Yes | G17: =IF(OR(C17="",Catch!R12=""),"",Catch!R12) -> -42.28202166 | H17: =IF(OR(C17="",Catch!N12=""),"",Catch!N12) -> 0.0028008792 | I17: =IF(OR(C17="",Catch!P12=""),"",TEXT(Catch!P12,"0")&" ("&TEXT(SUM($H$13:H17),"0"&RIGHT(LEFT(H17,2),1)&"0%")&")") -> 15 (3,5%) | J17: =IF(OR(L17="",F17="No"),"",HLOOKUP(C17,INDIRECT(REPLACE('Calculation template'!$B$6,9,1,"")),11,FALSE)) -> 15000 | K17: =IF(OR(L17="",F17="No"),"",SUM($J$13:J17)) -> 257092.4678 | L17: =IF(OR(C17="",Catch!K12=""),"",Catch!K12) -> 3 | M17: =IF(OR(C17="",Catch!L12=""),"",Catch!L12) -> 3 | R17: Frequency Converters
B18: 6 | C18: Frequency converters | D18: Yes | E18: No | F18: Yes | G18: =IF(OR(C18="",Catch!R13=""),"",Catch!R13) -> -20.31041052 | H18: =IF(OR(C18="",Catch!N13=""),"",Catch!N13) -> 0.02057510279 | I18: =IF(OR(C18="",Catch!P13=""),"",TEXT(Catch!P13,"0")&" ("&TEXT(SUM($H$13:H18),"0"&RIGHT(LEFT(H18,2),1)&"0%")&")") -> 24 (5,5%) | J18: =IF(OR(L18="",F18="No"),"",HLOOKUP(C18,INDIRECT(REPLACE('Calculation template'!$B$6,9,1,"")),11,FALSE)) -> 533902.1956 | K18: =IF(OR(L18="",F18="No"),"",SUM($J$13:J18)) -> 790994.6634 | L18: =IF(OR(C18="",Catch!K13=""),"",Catch!K13) -> 14 | M18: =IF(OR(C18="",Catch!L13=""),"",Catch!L13) -> 6 | R18: Propeller Condition
B19: 7 | C19: Propeller efficiency | D19: Yes | E19: No | F19: Yes | G19: =IF(OR(C19="",Catch!R14=""),"",Catch!R14) -> 11.5778997 | H19: =IF(OR(C19="",Catch!N14=""),"",Catch!N14) -> 0.002178683892 | I19: =IF(OR(C19="",Catch!P14=""),"",TEXT(Catch!P14,"0")&" ("&TEXT(SUM($H$13:H19),"0"&RIGHT(LEFT(H19,2),1)&"0%")&")") -> 24 (5,7%) | J19: =IF(OR(L19="",F19="No"),"",HLOOKUP(C19,INDIRECT(REPLACE('Calculation template'!$B$6,9,1,"")),11,FALSE)) -> 8000 | K19: =IF(OR(L19="",F19="No"),"",SUM($J$13:J19)) -> 798994.6634 | L19: =IF(OR(C19="",Catch!K14=""),"",Catch!K14) -> 25+ | M19: =IF(OR(C19="",Catch!L14=""),"",Catch!L14) -> 6 | R19: Contra-Rotating Propeller
B20: 8 | C20: Air cavity lubrication | D20: Yes | E20: No | F20: Yes | G20: =IF(OR(C20="",Catch!R15=""),"",Catch!R15) -> 74.47456454 | H20: =IF(OR(C20="",Catch!N15=""),"",Catch!N15) -> 0.0275108357 | I20: =IF(OR(C20="",Catch!P15=""),"",TEXT(Catch!P15,"0")&" ("&TEXT(SUM($H$13:H20),"0"&RIGHT(LEFT(H20,2),1)&"0%")&")") -> 36 (8,5%) | J20: =IF(OR(L20="",F20="No"),"",HLOOKUP(C20,INDIRECT(REPLACE('Calculation template'!$B$6,9,1,"")),11,FALSE)) -> 1786339.286 | K20: =IF(OR(L20="",F20="No"),"",SUM($J$13:J20)) -> 2585333.949 | L20: =IF(OR(C20="",Catch!K15=""),"",Catch!K15) -> 25+ | M20: =IF(OR(C20="",Catch!L15=""),"",Catch!L15) -> 21 | R20: Air Cavity Lubrication
B21: 9 | C21: Contra-rotating propeller | D21: Yes | E21: No | F21: Yes | G21: =IF(OR(C21="",Catch!R16=""),"",Catch!R16) -> 135.2322415 | H21: =IF(OR(C21="",Catch!N16=""),"",Catch!N16) -> 0.01733182649 | I21: =IF(OR(C21="",Catch!P16=""),"",TEXT(Catch!P16,"0")&" ("&TEXT(SUM($H$13:H21),"0"&RIGHT(LEFT(H21,2),1)&"0%")&")") -> 44 (10,2%) | J21: =IF(OR(L21="",F21="No"),"",HLOOKUP(C21,INDIRECT(REPLACE('Calculation template'!$B$6,9,1,"")),11,FALSE)) -> 1070924.678 | K21: =IF(OR(L21="",F21="No"),"",SUM($J$13:J21)) -> 3656258.627 | L21: =IF(OR(C21="",Catch!K16=""),"",Catch!K16) -> 25+ | M21: =IF(OR(C21="",Catch!L16=""),"",Catch!L16) -> 25+ | R21: Efficient Lighting System
B22: 10 | C22: EGB on AE | D22: Yes | E22: No | F22: Yes | G22: =IF(OR(C22="",Catch!R17=""),"",Catch!R17) -> 146.2123096 | H22: =IF(OR(C22="",Catch!N17=""),"",Catch!N17) -> 0.001851759251 | I22: =IF(OR(C22="",Catch!P17=""),"",TEXT(Catch!P17,"0")&" ("&TEXT(SUM($H$13:H22),"0"&RIGHT(LEFT(H22,2),1)&"0%")&")") -> 44 (10,4%) | J22: =IF(OR(L22="",F22="No"),"",HLOOKUP(C22,INDIRECT(REPLACE('Calculation template'!$B$6,9,1,"")),11,FALSE)) -> 69292.93503 | K22: =IF(OR(L22="",F22="No"),"",SUM($J$13:J22)) -> 3725551.562 | L22: =IF(OR(C22="",Catch!K17=""),"",Catch!K17) -> 25+ | M22: =IF(OR(C22="",Catch!L17=""),"",Catch!L17) -> 25+ | R22: Electronic Engine Control
B23: 11 | C23: Kite | D23: Yes | E23: No | F23: Yes | G23: =IF(OR(C23="",Catch!R18=""),"",Catch!R18) -> 337.894147 | H23: =IF(OR(C23="",Catch!N18=""),"",Catch!N18) -> 0.0215633574 | I23: =IF(OR(C23="",Catch!P18=""),"",TEXT(Catch!P18,"0")&" ("&TEXT(SUM($H$13:H23),"0"&RIGHT(LEFT(H23,2),1)&"0%")&")") -> 54 (12,6%) | J23: =IF(OR(L23="",F23="No"),"",HLOOKUP(C23,INDIRECT(REPLACE('Calculation template'!$B$6,9,1,"")),11,FALSE)) -> 1886625 | K23: =IF(OR(L23="",F23="No"),"",SUM($J$13:J23)) -> 5612176.562 | L23: =IF(OR(C23="",Catch!K18=""),"",Catch!K18) -> 25+ | M23: =IF(OR(C23="",Catch!L18=""),"",Catch!L18) -> 25+ | R23: Weather Routing
B24: 12 | C24: Hull coating condition | D24: Yes | E24: No | F24: Yes | G24: =IF(OR(C24="",Catch!R19=""),"",Catch!R19) -> 557.873355 | H24: =IF(OR(C24="",Catch!N19=""),"",Catch!N19) -> 0.004174046747 | I24: =IF(OR(C24="",Catch!P19=""),"",TEXT(Catch!P19,"0")&" ("&TEXT(SUM($H$13:H24),"0"&RIGHT(LEFT(H24,2),1)&"0%")&")") -> 55 (13,0%) | J24: =IF(OR(L24="",F24="No"),"",HLOOKUP(C24,INDIRECT(REPLACE('Calculation template'!$B$6,9,1,"")),11,FALSE)) -> 429367.9615 | K24: =IF(OR(L24="",F24="No"),"",SUM($J$13:J24)) -> 6041544.523 | L24: =IF(OR(C24="",Catch!K19=""),"",Catch!K19) -> 25+ | M24: =IF(OR(C24="",Catch!L19=""),"",Catch!L19) -> 25+ | R24: Exhaust Gas Boilers
B25: 13 | C25: Solar Panel | D25: Yes | E25: No | F25: Yes | G25: =IF(OR(C25="",Catch!R20=""),"",Catch!R20) -> 3055.404783 | H25: =IF(OR(C25="",Catch!N20=""),"",Catch!N20) -> 0.001716832852 | I25: =IF(OR(C25="",Catch!P20=""),"",TEXT(Catch!P20,"0")&" ("&TEXT(SUM($H$13:H25),"0"&RIGHT(LEFT(H25,2),1)&"0%")&")") -> 56 (13,2%) | J25: =IF(OR(L25="",F25="No"),"",HLOOKUP(C25,INDIRECT(REPLACE('Calculation template'!$B$6,9,1,"")),11,FALSE)) -> 1370000 | K25: =IF(OR(L25="",F25="No"),"",SUM($J$13:J25)) -> 7411544.523 | L25: =IF(OR(C25="",Catch!K20=""),"",Catch!K20) -> 25+ | M25: =IF(OR(C25="",Catch!L20=""),"",Catch!L20) -> 25+ | R25: Kite
B26: 14 | C26: Waste heat recovery | D26: Yes | E26: No | F26: Yes | G26: =IF(OR(C26="",Catch!R21=""),"",Catch!R21) -> 3097.426736 | H26: =IF(OR(C26="",Catch!N21=""),"",Catch!N21) -> 0.006135848719 | I26: =IF(OR(C26="",Catch!P21=""),"",TEXT(Catch!P21,"0")&" ("&TEXT(SUM($H$13:H26),"0"&RIGHT(LEFT(H26,2),1)&"0%")&")") -> 59 (13,8%) | J26: =IF(OR(L26="",F26="No"),"",HLOOKUP(C26,INDIRECT(REPLACE('Calculation template'!$B$6,9,1,"")),11,FALSE)) -> 8209246.779 | K26: =IF(OR(L26="",F26="No"),"",SUM($J$13:J26)) -> 15620791.3 | L26: =IF(OR(C26="",Catch!K21=""),"",Catch!K21) -> 25+ | M26: =IF(OR(C26="",Catch!L21=""),"",Catch!L21) -> 25+ | R26: Hull Coating Condition
B27: 15 | C27: Steam plant op impr | D27: No | E27: No | F27: No | G27: =IF(OR(C27="",Catch!R22=""),"",Catch!R22) ->  | H27: =IF(OR(C27="",Catch!N22=""),"",Catch!N22) ->  | I27: =IF(OR(C27="",Catch!P22=""),"",TEXT(Catch!P22,"0")&" ("&TEXT(SUM($H$13:H27),"0"&RIGHT(LEFT(H27,2),1)&"0%")&")") ->  | J27: =IF(OR(L27="",F27="No"),"",HLOOKUP(C27,INDIRECT(REPLACE('Calculation template'!$B$6,9,1,"")),11,FALSE)) ->  | K27: =IF(OR(L27="",F27="No"),"",SUM($J$13:J27)) ->  | L27: =IF(OR(C27="",Catch!K22=""),"",Catch!K22) ->  | M27: =IF(OR(C27="",Catch!L22=""),"",Catch!L22) ->  | R27: Fixed Sails or Wings
B28: 16 | C28: Electronic engine control | D28: No | E28: No | F28: No | G28: =IF(OR(C28="",Catch!R23=""),"",Catch!R23) ->  | H28: =IF(OR(C28="",Catch!N23=""),"",Catch!N23) ->  | I28: =IF(OR(C28="",Catch!P23=""),"",TEXT(Catch!P23,"0")&" ("&TEXT(SUM($H$13:H28),"0"&RIGHT(LEFT(H28,2),1)&"0%")&")") ->  | J28: =IF(OR(L28="",F28="No"),"",HLOOKUP(C28,INDIRECT(REPLACE('Calculation template'!$B$6,9,1,"")),11,FALSE)) ->  | K28: =IF(OR(L28="",F28="No"),"",SUM($J$13:J28)) ->  | L28: =IF(OR(C28="",Catch!K23=""),"",Catch!K23) ->  | M28: =IF(OR(C28="",Catch!L23=""),"",Catch!L23) ->  | R28: Waste Heat Recovery
B29: 17 | C29: Fixed sails or wings | D29: No | E29: No | F29: No | G29: =IF(OR(C29="",Catch!R24=""),"",Catch!R24) ->  | H29: =IF(OR(C29="",Catch!N24=""),"",Catch!N24) ->  | I29: =IF(OR(C29="",Catch!P24=""),"",TEXT(Catch!P24,"0")&" ("&TEXT(SUM($H$13:H29),"0"&RIGHT(LEFT(H29,2),1)&"0%")&")") ->  | J29: =IF(OR(L29="",F29="No"),"",HLOOKUP(C29,INDIRECT(REPLACE('Calculation template'!$B$6,9,1,"")),11,FALSE)) ->  | K29: =IF(OR(L29="",F29="No"),"",SUM($J$13:J29)) ->  | L29: =IF(OR(C29="",Catch!K24=""),"",Catch!K24) ->  | M29: =IF(OR(C29="",Catch!L24=""),"",Catch!L24) ->  | R29: Solar Panels
B30: 18 | G30: =IF(OR(C30="",Catch!R25=""),"",Catch!R25) ->  | H30: =IF(OR(C30="",Catch!N25=""),"",Catch!N25) ->  | I30: =IF(OR(C30="",Catch!P25=""),"",TEXT(Catch!P25,"0")&" ("&TEXT(SUM($H$13:H30),"0"&RIGHT(LEFT(H30,2),1)&"0%")&")") ->  | J30: =IF(OR(L30="",F30="No"),"",HLOOKUP(C30,INDIRECT(REPLACE('Calculation template'!$B$6,9,1,"")),11,FALSE)) ->  | K30: =IF(OR(L30="",F30="No"),"",SUM($J$13:J30)) ->  | L30: =IF(OR(C30="",Catch!K25=""),"",Catch!K25) ->  | M30: =IF(OR(C30="",Catch!L25=""),"",Catch!L25) -> 
B31: 19 | G31: =IF(OR(C31="",Catch!R26=""),"",Catch!R26) ->  | H31: =IF(OR(C31="",Catch!N26=""),"",Catch!N26) ->  | I31: =IF(OR(C31="",Catch!P26=""),"",TEXT(Catch!P26,"0")&" ("&TEXT(SUM($H$13:H31),"0"&RIGHT(LEFT(H31,2),1)&"0%")&")") ->  | J31: =IF(OR(L31="",F31="No"),"",HLOOKUP(C31,INDIRECT(REPLACE('Calculation template'!$B$6,9,1,"")),11,FALSE)) ->  | K31: =IF(OR(L31="",F31="No"),"",SUM($J$13:J31)) ->  | L31: =IF(OR(C31="",Catch!K26=""),"",Catch!K26) ->  | M31: =IF(OR(C31="",Catch!L26=""),"",Catch!L26) -> 
B32: 20 | G32: =IF(OR(C32="",Catch!R27=""),"",Catch!R27) ->  | H32: =IF(OR(C32="",Catch!N27=""),"",Catch!N27) ->  | I32: =IF(OR(C32="",Catch!P27=""),"",TEXT(Catch!P27,"0")&" ("&TEXT(SUM($H$13:H32),"0"&RIGHT(LEFT(H32,2),1)&"0%")&")") ->  | J32: =IF(OR(L32="",F32="No"),"",HLOOKUP(C32,INDIRECT(REPLACE('Calculation template'!$B$6,9,1,"")),11,FALSE)) ->  | K32: =IF(OR(L32="",F32="No"),"",SUM($J$13:J32)) ->  | L32: =IF(OR(C32="",Catch!K27=""),"",Catch!K27) ->  | M32: =IF(OR(C32="",Catch!L27=""),"",Catch!L27) -> 
D45: ="Marginal abatement cost curve, Baseline: "&TEXT(BaselineCO2/Catch!P5,"##,#")&" ktons" -> Marginal abatement cost curve, Baseline: 425,9 ktons | I45: ="Marginal abatement cost curve, Baseline: "&TEXT(BaselineCO2/Catch!$M$2/Catch!P5,"##,#")&" ktons" -> Marginal abatement cost curve, Baseline: 17, ktons

Sheet Calc (hidden)
C1: =Catch!C1 -> CO2
D2: =Catch!D2 -> CO2 emission | E2: =Catch!E2 -> Cost level | G2: Fuel AIS | H2: =VLOOKUP(Q2,List!$A$44:$I$87,9,FALSE) -> 5406.9847 | I2: tons | J2: Transport work | K2: =VLOOKUP(List!A2,List!$A$44:$H$87,8,FALSE) -> 2238402200 | P2: Selected vessel | Q2: =List!A2 -> Bulker 100000-199999 Dwt | V2: =Catch!L2 -> NPV time | W2: =Catch!M2 -> 25 | X2: =Catch!N2 -> Years
C3: =Catch!C3 -> Baseline | D3: =Catch!D3 -> 369917.2231 | E3: =Catch!E3 -> -44649206.9 | G3: Fuel calc baseline | H3: =SUM('Calculation baseline'!C303:C314) -> 25491.3067 | I3: tons | J3: Required EEDI | K3: ='EEDI calculation'!C27 -> 2.939863973 | L3: =IF(Calc!K3=-1,"No EEDI required","Δ EEDI") -> Δ EEDI | M3: =Catch!H3 -> Payback time | N3: =Catch!I3 -> 25+ | O3: =Catch!J3 -> years | P3: Sailed distance | Q3: =VLOOKUP(Q2,List!$A$44:$H$87,3,FALSE) -> 99484.54223 | R3: nm | V3: =Catch!L3 -> Discount rate | W3: =Catch!M3 -> 0.08
C4: =Catch!C4 -> Calculation | D4: =Catch!D4 -> 367303.749 | E4: =Catch!E4 -> -52744251.37 | J4: Attained EEDI | K4: =MIN(R8:R27) -> 2.599284144 | P4: Avg. Vessel size | Q4: =VLOOKUP(Q2,List!$A$44:$H$87,4,FALSE) -> 150000 | R4: tons | V4: =Catch!L4 -> No of measures | W4: =Catch!M4 -> 14 | BX4: =TRANSPOSE($C$8:$C$24) -> Trim&draft optimisation | BY4: Voyage execution | BZ4: Propulsion efficiency devices | CA4: Light systems | CB4: Weather routing | CC4: Frequency converters | CD4: Propeller efficiency | CE4: Air cavity lubrication | CF4: Contra-rotating propeller | CG4: EGB on AE | CH4: Kite | CI4: Hull coating condition | CJ4: Solar Panel | CK4: Waste heat recovery | CL4: 0 | CM4: 0 | CN4: 0
V5: =Catch!L5 -> Already installed | W5: =Catch!M5 -> 0 | Z5: =Catch!P5 -> 1000 | BX5: =IF(BX4=0,"",BW5+1) -> 1 | BY5: 2 | BZ5: 3 | CA5: 4 | CB5: 5 | CC5: 6 | CD5: 7 | CE5: 8 | CF5: 9 | CG5: 10 | CH5: 11 | CI5: 12 | CJ5: 13 | CK5: 14
B6: General | G6: =Catch!G6 -> Baseline | N6: =Catch!I6 -> Measure | W6: DIFFERENCE | AM6: DUMMY FOR DASHBOARD | AS6: Dummy for MACC | AZ6: MACC CO2 | BH6: MACC EEOI | BP6: MACC EEDI | BX6: SERIES EEOI | CP6: SERIES EEDI
C7: Potential abatements | D7: Already installed | E7: Include | F7: Control | G7: CO2 [tons/year] | H7: Fuel [tons/year] | I7: EEOI binary [0,1] | J7: EEDI binary [0,1] | K7: EEDI [g CO2/ton nm] | L7: EEOI [g CO2/ton nm] | M7: NPV [USD over 25 years] | N7: =G7 -> CO2 [tons/year] | O7: =H7 -> Fuel [tons/year] | P7: EEOI binary [0,1] | Q7: EEDI binary [0,1] | R7: EEDI [g CO2/ton nm] | S7: EEOI [g CO2/ton nm] | T7: NPV [USD over 25 years] | U7: Payback measure [years] | V7: Payback total [years] | W7: ΔCO2 [tons/year] | X7: ΔCO2 [%] | Y7: ΔNPV [USD over 25 years] | Z7: ΔCO2 Cumulative [tons/lifetime] | AA7: ΔCO2 Cumulative [tons/year] | AB7: Catch [USD/ton CO2] | AC7: ΔFuel [tons/year] | AD7: ΔFuel [%] | AE7: ΔEEDI [g CO2/ton nm] | AF7: ΔEEDI [%] | AG7: ΔEEOI [g CO2/ton nm] | AH7: ΔEEOI [%] | AI7: CAPEX [USD] | AJ7: CAPEX Cumulative [USD] | AK7: Cumulative CO2 | AL7: Cumulative CO2 | AM7: Catch | AN7: Unceirtanty | AO7: Optimal EEDI | AP7: Optimal EEOI | AQ7: Optimal Fuel | AS7: Dummy for MACC | AT7: =Z7 -> ΔCO2 Cumulative [tons/lifetime] | AU7: =AA7 -> ΔCO2 Cumulative [tons/year] | AV7: ΔEEOI Cumulative/year | AW7: ΔEEDI Cumulative/year | AX7: =AM7 -> Catch | AY7: ΔNPV [USD/year] | AZ7: Steps | BA7: CO2 cumulative 25 years | BB7: CO2 cumulative 1 year | BC7: Catch | BD7: Separator | BE7: Filling | BF7: Measure | BG7: =$BH$1008/COUNT($AZ$8:$AZ$1008) -> 0.0999000999 | BH7: Steps | BI7: =AV7 -> ΔEEOI Cumulative/year | BJ7: Catch | BK7: Separator | BL7: Filling | BM7: Measure | BO7: =$BP$1008/COUNT($AZ$8:$AZ$1008) -> 0.0999000999 | BP7: Steps | BQ7: =AW7 -> ΔEEDI Cumulative/year | BR7: Catch | BS7: Separator | BT7: Filling | BU7: Measure | BX7: =IF(BX4=0,"",BW7+1) -> 1 | BY7: =IF(BY4=0,"",BX7+1) -> 2 | BZ7: 3 | CA7: 4 | CB7: 5 | CC7: 6 | CD7: 7 | CE7: 8 | CF7: 9 | CG7: 10 | CH7: 11 | CI7: 12 | CJ7: 13 | CK7: 14 | CP7: =TRANSPOSE($C$8:$C$24) -> Trim&draft optimisation | CQ7: Voyage execution | CR7: Propulsion efficiency devices | CS7: Light systems | CT7: Weather routing | CU7: Frequency converters | CV7: Propeller efficiency | CW7: Air cavity lubrication | CX7: Contra-rotating propeller | CY7: EGB on AE | CZ7: Kite | DA7: Hull coating condition | DB7: Solar Panel | DC7: Waste heat recovery | DD7: 0 | DE7: 0 | DF7: 0 | EA7: =W7 -> ΔCO2 [tons/year] | EB7: Savings [USD/year] | EC7: Operational costs [USD/year] | ED7: Net savings [USD/year]
B8: =Catch!B8 -> 1 | C8: =IF(Startup!F13="Yes",Catch!C8,0) -> Trim&draft optimisation | D8: =Catch!D8 -> No | E8: =Catch!E8 -> Yes | F8: =Catch!F8 -> Yes | G8: =IF(C8=0,"",Catch!G8/$W$2) -> 17037.40879 | H8: =IF(C8=0,"",SUM('Calculation template'!C303:C314)) -> 5406.9847 | I8: =IFERROR(VLOOKUP(C8,List!$B$91:$E$108,3,FALSE),"") -> 1 | J8: =IFERROR(VLOOKUP(C8,List!$B$91:$E$108,4,FALSE),"") -> 0 | K8: =IF(OR(C8=0,$K$3=-1),"",IF(J8=0,K3,K3)) -> 2.939863973 | L8: =IF(C8=0,"",G8/$K$2*10^6) -> 7.611415316 | M8: =Catch!H8 -> -37401491.79 | N8: =IF(C8=0,"",G8*Catch!I8/Catch!G8) -> 16959.04696 | O8: =IF(C8=0,"",H8/G8*N8) -> 5382.115822 | P8: =I8 -> 1 | Q8: =J8 -> 0 | R8: =IF(OR(C8=0,$K$3=-1),"",IF(Q8=0,K8,K8*S8/L8)) -> 2.939863973 | S8: =IF(C8=0,"",N8/$K$2*10^6) -> 7.576407384 | T8: =Catch!J8 -> -37254467.42 | U8: =Catch!K8 -> 2 | V8: =Catch!L8 -> 2 | W8: =IFERROR(G8-N8,"") -> 78.36183394 | X8: =IFERROR(W8/G8,"") -> 0.004599398588 | Y8: =IFERROR(M8-T8,"") -> -147024.3685 | Z8: =IFERROR(AA8*$W$2,"") -> 1959.045848 | AA8: =IFERROR(SUM($W$8:W8),"") -> 78.36183394 | AB8: =IFERROR(IF(ABS(W8)<0.001,Y8/0.1,Y8/(W8*$W$2)),"") -> -75.04896767 | AC8: =IFERROR(H8-O8,"") -> 24.8688778 | AD8: =IFERROR(AC8/H8,"") -> 0.004599398588 | AE8: =IFERROR(IF(Q8=0,0,K8-R8),"") -> 0 | AF8: =IFERROR(IF(Q8=0,"n/a",AE8/K8),"") -> n/a | AG8: =IFERROR(L8-S8,"") -> 0.03500793286 | AH8: =IFERROR(AG8/L8,"") -> 0.004599398588 | AI8: =IFERROR(HLOOKUP($C8,MeasuresA,11,FALSE),"") -> 25000 | AJ8: =IFERROR(AI8,"") -> 25000 | AK8: =IFERROR(Catch!V8,"") -> 0 | AL8: =IFERROR(Catch!W8,"") -> 0 | AM8: =Catch!X8 -> -75.04896767 | AO8: =R8 -> 2.939863973 | AP8: =S8 -> 7.576407384 | AQ8: =O8 -> 5382.115822 | AS8: =C8 -> Trim&draft optimisation | AT8: 0 | AU8: 0 | AV8: 0 | AW8: 0 | AX8: =AM8 -> -75.04896767 | AY8: =Y8*$W$3/(1-(1+$W$3)^-$W$2) -> -13773.06334 | AZ8: 0 | BA8: =$BA$1008/$AZ$1008*AZ8 -> 0 | BB8: =$BB$1008/$AZ$1008*AZ8 -> 0 | BC8: =VLOOKUP(BA8,$AT$8:$AX$22,5,TRUE) -> -75.04896767 | BD8: =IF(BC6<>BC8,BC8,0) -> -75.04896767 | BE8: =IF(BD8=0,BC8,0) -> 0 | BF8: =IF(BE8=0,"",VLOOKUP(BE8,$AM$7:$AS$23,7,TRUE)) ->  | BH8: =BG7 -> 0.0999000999 | BI8: =$BI$1008/$BH$1008*BH8 -> 0.001046691213 | BJ8: =VLOOKUP(BI8,$AV$8:$AX$22,3,TRUE) -> -75.04896767 | BK8: =IF(BJ6<>BJ8,BJ8,0) -> -75.04896767 | BL8: =IF(BK8=0,BJ8,0) -> 0 | BM8: =IF(BL8=0,"",VLOOKUP(BL8,$AM$7:$AS$23,7,TRUE)) ->  | BP8: =BO7 -> 0.0999000999 | BQ8: =$BQ$1008/$BP$1008*BP8 -> 0.0003402395894 | BR8: =VLOOKUP(BQ8,$AW$8:$AX$22,2,TRUE) -> -61.64370022 | BS8: =IF(BR6<>BR8,BR8,0) -> -61.64370022 | BT8: =IF(BS8=0,BR8,0) -> 0 | BU8: =IF(BT8=0,"",VLOOKUP(BT8,$AM$7:$AS$23,7,TRUE)) ->  | BX8: =SUMIFS($BJ8,$BM8,BX$4) -> 0 | BY8: 0 | BZ8: 0 | CA8: 0 | CB8: 0 | CC8: 0 | CD8: 0 | CE8: 0 | CF8: 0 | CG8: 0 | CH8: =SUMIFS($BJ8,$BM8,CH$4) -> 0 | CI8: 0 | CJ8: 0 | CK8: 0 | CL8: 0 | CM8: 0 | CN8: 0 | CP8: =SUMIFS($BR8,$BU8,CP$7) -> 0 | CQ8: =SUMIFS($BR8,$BU8,CQ$7) -> 0 | CR8: 0 | CS8: 0 | CT8: 0 | CU8: 0 | CV8: 0 | CW8: 0 | CX8: 0 | CY8: 0 | CZ8: 0 | DA8: 0 | DB8: 0 | DC8: 0 | DD8: 0 | DE8: 0 | DF8: 0 | EA8: =W8 -> 78.36183394 | EB8: =EA8/3.114*Dashboard!$E$14 -> 15098.61926 | EC8: =INDIRECT("'"&C8&"'!"&ADDRESS( MATCH($Q$2,INDIRECT("'"&C8&"'!B:B"),0),12)) -> 0 | ED8: =EB8-EC8 -> 15098.61926
B9: =Catch!B9 -> 2 | C9: =IF(Startup!F14="Yes",Catch!C9,0) -> Voyage execution | D9: =Catch!D9 -> No | E9: =Catch!E9 -> Yes | F9: =Catch!F9 -> Yes | G9: =IF(C9=0,"",Catch!G9/$W$2) -> 16959.04696 | H9: =IF(C9=0,"",G9/G8*H8) -> 5382.115822 | I9: =IFERROR(VLOOKUP(C9,List!$B$91:$E$108,3,FALSE),"") -> 1 | J9: =IFERROR(VLOOKUP(C9,List!$B$91:$E$108,4,FALSE),"") -> 0 | K9: =IF(OR(C9=0,$K$3=-1),"",IF(J9=0,K8,K8*L9/L8)) -> 2.939863973 | L9: =IF(C9=0,"",G9/$K$2*10^6) -> 7.576407384 | M9: =Catch!H9 -> -37254467.42 | N9: =IF(C9=0,"",G9*Catch!I9/Catch!G9) -> 16784.0911 | O9: =IF(C9=0,"",H9/G9*N9) -> 5326.591908 | P9: =I9 -> 1 | Q9: 0 | R9: =IF(OR(C9=0,$K$3=-1),"",IF(Q9=0,R8,R8*S9/L9)) -> 2.939863973 | S9: =IF(C9=0,"",N9/$K$2*10^6) -> 7.498246339 | T9: =Catch!J9 -> -36954773.81 | U9: =Catch!K9 -> 1 | V9: =Catch!L9 -> 1 | W9: =IFERROR(G9-N9,"") -> 174.9558546 | X9: =IFERROR(W9/G9,"") -> 0.01031637303 | Y9: =IFERROR(M9-T9,"") -> -299693.6161 | Z9: =IFERROR(AA9*$W$2,"") -> 6332.942213 | AA9: =IFERROR(SUM($W$8:W9),"") -> 253.3176885 | AB9: =IFERROR(IF(ABS(W9)<0.001,Y9/0.1,Y9/(W9*$W$2)),"") -> -68.51868246 | AC9: =IFERROR(H9-O9,"") -> 55.52391449 | AD9: =IFERROR(AC9/H9,"") -> 0.01031637303 | AE9: =IFERROR(IF(Q9=0,0,R8-R9),"") -> 0 | AF9: =IFERROR(IF(Q9=0,"n/a",AE9/R9),"") -> n/a | AG9: =IFERROR(L9-S9,"") -> 0.07816104477 | AH9: =IFERROR(AG9/L9,"") -> 0.01031637303 | AI9: 10000 | AJ9: =IFERROR(AI9+AJ8,"") -> 35000 | AK9: =IFERROR(Catch!V9,"") -> 1.959045848 | AL9: =IFERROR(Catch!W9,"") -> 0.07836183394 | AM9: =Catch!X9 -> -68.51868246 | AO9: =R9 -> 2.939863973 | AP9: =S9 -> 7.498246339 | AQ9: =O9 -> 5326.591908 | AS9: =C9 -> Voyage execution | AT9: =Z8 -> 1959.045848 | AU9: =AA8 -> 78.36183394 | AV9: =SUM($AG$8:AG8) -> 0.03500793286 | AW9: =SUM($AE$8:AE8) -> 0 | AX9: =AM9 -> -68.51868246 | AY9: =Y9*$W$3/(1-(1+$W$3)^-$W$2) -> -28074.93205 | AZ9: 0.5 | BA9: 58.63147076 | BB9: 2.34525883 | BC9: =VLOOKUP(BA9,$AT$8:$AX$22,5,TRUE) -> -75.04896767 | BD9: =IF(BC8<>BC9,BC9,0) -> 0 | BE9: =IF(BD9=0,BC9,0) -> -75.04896767 | BF9: =IF(BE9=0,"",VLOOKUP(BE9,$AM$7:$AS$23,7,TRUE)) -> Trim&draft optimisation | BH9: =BH8+$BG$7 -> 0.1998001998 | BI9: =$BI$1008/$BH$1008*BH9 -> 0.002093382427 | BJ9: =VLOOKUP(BI9,$AV$8:$AX$22,3,TRUE) -> -75.04896767 | BK9: =IF(BJ7<>BJ9,BJ9,0) -> -75.04896767 | BL9: =IF(BK9=0,BJ9,0) -> 0 | BM9: =IF(BL9=0,"",VLOOKUP(BL9,$AM$7:$AS$23,7,TRUE)) ->  | BP9: =BP8+$BO$7 -> 0.1998001998 | BQ9: =$BQ$1008/$BP$1008*BP9 -> 0.0006804791787 | BR9: =VLOOKUP(BQ9,$AW$8:$AX$22,2,TRUE) -> -61.64370022 | BS9: =IF(BR7<>BR9,BR9,0) -> -61.64370022 | BT9: =IF(BS9=0,BR9,0) -> 0 | BU9: =IF(BT9=0,"",VLOOKUP(BT9,$AM$7:$AS$23,7,TRUE)) ->  | BX9: 0 | BY9: 0 | BZ9: 0 | CA9: 0 | CB9: 0 | CC9: 0 | CD9: 0 | CE9: 0 | CF9: 0 | CG9: 0 | CH9: 0 | CI9: 0 | CJ9: 0 | CK9: 0 | CL9: 0 | CM9: 0 | CN9: 0 | CP9: =SUMIFS($BR9,$BU9,CP$7) -> 0 | CQ9: 0 | CR9: 0 | CS9: 0 | CT9: 0 | CU9: 0 | CV9: 0 | CW9: 0 | CX9: 0 | CY9: 0 | CZ9: 0 | DA9: 0 | DB9: 0 | DC9: 0 | DD9: 0 | DE9: 0 | DF9: 0 | EA9: 174.9558546 | EB9: =EA9/3.114*Dashboard!$E$14 -> 33710.18393 | EC9: =INDIRECT("'"&C9&"'!"&ADDRESS( MATCH($Q$2,INDIRECT("'"&C9&"'!B:B"),0),12)) -> 5000 | ED9: =EB9-EC9 -> 28710.18393
B10: =Catch!B10 -> 3 | C10: =IF(Startup!F15="Yes",Catch!C10,0) -> Propulsion efficiency devices | D10: =Catch!D10 -> No | E10: =Catch!E10 -> Yes | F10: =Catch!F10 -> Yes | G10: =IF(C10=0,"",Catch!G10/$W$2) -> 16784.0911 | H10: =IF(C10=0,"",G10/G9*H9) -> 5326.591908 | I10: =IFERROR(VLOOKUP(C10,List!$B$91:$E$108,3,FALSE),"") -> 1 | J10: =IFERROR(VLOOKUP(C10,List!$B$91:$E$108,4,FALSE),"") -> 1 | K10: =IF(OR(C10=0,$K$3=-1),"",IF(J10=0,K9,K9*L10/L9)) -> 2.90953524 | L10: 7.498246339 | M10: =Catch!H10 -> -36954773.81 | N10: =IF(C10=0,"",G10*Catch!I10/Catch!G10) -> 16585.25892 | O10: =IF(C10=0,"",H10/G10*N10) -> 5263.490612 | P10: 1 | Q10: 1 | R10: =IF(OR(C10=0,$K$3=-1),"",IF(Q10=0,R9,R9*S10/L10)) -> 2.905036971 | S10: 7.40941861 | T10: =Catch!J10 -> -36648355.02 | U10: =Catch!K10 -> 4 | V10: =Catch!L10 -> 2 | W10: =IFERROR(G10-N10,"") -> 198.832183 | X10: =IFERROR(W10/G10,"") -> 0.0118464671 | Y10: =IFERROR(M10-T10,"") -> -306418.787 | Z10: =IFERROR(AA10*$W$2,"") -> 11303.74679 | AA10: =IFERROR(SUM($W$8:W10),"") -> 452.1498715 | AB10: -61.64370022 | AC10: =IFERROR(H10-O10,"") -> 63.10129577 | AD10: =IFERROR(AC10/H10,"") -> 0.0118464671 | AE10: =IFERROR(IF(Q10=0,0,R9-R10),"") -> 0.03482700182 | AF10: =IFERROR(IF(Q10=0,"n/a",AE10/R10),"") -> 0.01198848833 | AG10: =IFERROR(L10-S10,"") -> 0.08882772853 | AH10: =IFERROR(AG10/L10,"") -> 0.0118464671 | AI10: 107092.4678 | AJ10: =IFERROR(AI10+AJ9,"") -> 142092.4678 | AK10: =IFERROR(Catch!V10,"") -> 6.332942213 | AL10: =IFERROR(Catch!W10,"") -> 0.2533176885 | AM10: =Catch!X10 -> -61.64370022 | AO10: 2.905036971 | AP10: 7.40941861 | AQ10: 5263.490612 | AS10: Propulsion efficiency devices | AT10: =Z9 -> 6332.942213 | AU10: =AA9 -> 253.3176885 | AV10: =SUM($AG$8:AG9) -> 0.1131689776 | AW10: =SUM($AE$8:AE9) -> 0 | AX10: =AM10 -> -61.64370022 | AY10: -28704.93784 | AZ10: 1 | BA10: 117.2629415 | BB10: 4.690517661 | BC10: -75.04896767 | BD10: =IF(BC9<>BC10,BC10,0) -> 0 | BE10: =IF(BD10=0,BC10,0) -> -75.04896767 | BF10: Trim&draft optimisation | BH10: =BH9+$BG$7 -> 0.2997002997 | BI10: 0.00314007364 | BJ10: -75.04896767 | BK10: 0 | BL10: -75.04896767 | BM10: Trim&draft optimisation | BP10: =BP9+$BO$7 -> 0.2997002997 | BQ10: 0.001020718768 | BR10: -61.64370022 | BS10: 0 | BT10: -61.64370022 | BU10: Propulsion efficiency devices | BX10: -75.04896767 | BY10: 0 | BZ10: 0 | CA10: 0 | CB10: 0 | CC10: 0 | CD10: 0 | CE10: 0 | CF10: 0 | CG10: 0 | CH10: 0 | CI10: 0 | CJ10: 0 | CK10: 0 | CL10: 0 | CM10: 0 | CN10: 0 | CP10: 0 | CQ10: 0 | CR10: -61.64370022 | CS10: 0 | CT10: 0 | CU10: 0 | CV10: 0 | CW10: 0 | CX10: 0 | CY10: 0 | CZ10: 0 | DA10: 0 | DB10: 0 | DC10: 0 | DD10: 0 | DE10: 0 | DF10: 0 | EA10: 198.832183 | EB10: =EA10/3.114*Dashboard!$E$14 -> 38310.63256 | EC10: 0 | ED10: 38310.63256
B11: =Catch!B11 -> 4 | C11: =IF(Startup!F16="Yes",Catch!C11,0) -> Light systems | D11: =Catch!D11 -> No | E11: =Catch!E11 -> Yes | F11: =Catch!F11 -> Yes | G11: =IF(C11=0,"",Catch!G11/$W$2) -> 16585.25892 | H11: 5263.490612 | I11: =IFERROR(VLOOKUP(C11,List!$B$91:$E$108,3,FALSE),"") -> 1 | J11: =IFERROR(VLOOKUP(C11,List!$B$91:$E$108,4,FALSE),"") -> 1 | K11: 2.875067526 | L11: 7.40941861 | M11: =Catch!H11 -> -36648355.02 | N11: =IF(C11=0,"",G11*Catch!I11/Catch!G11) -> 16495.37522 | O11: 5234.965159 | P11: 1 | Q11: 1 | R11: 2.889293142 | S11: 7.369263315 | T11: =Catch!J11 -> -36551037.19 | U11: =Catch!K11 -> 8 | V11: =Catch!L11 -> 3 | W11: 89.88370184 | X11: 0.005419493436 | Y11: -97317.83031 | Z11: 13550.83933 | AA11: =IFERROR(SUM($W$8:W11),"") -> 542.0335733 | AB11: -43.30833213 | AC11: 28.52545282 | AD11: 0.005419493436 | AE11: 0.0157438288 | AF11: 0.005449024388 | AG11: 0.04015529552 | AH11: 0.005419493436 | AI11: 100000 | AJ11: 242092.4678 | AK11: =IFERROR(Catch!V11,"") -> 11.30374679 | AL11: =IFERROR(Catch!W11,"") -> 0.4521498715 | AM11: =Catch!X11 -> -43.30833213 | AO11: 2.889293142 | AP11: 7.369263315 | AQ11: 5234.965159 | AS11: Light systems | AT11: 11303.74679 | AU11: 452.1498715 | AV11: =SUM($AG$8:AG10) -> 0.2019967062 | AW11: =SUM($AE$8:AE10) -> 0.03482700182 | AX11: -43.30833213 | AY11: -9116.615523 | AZ11: 1.5 | BA11: 175.8944123 | BB11: 7.035776491 | BC11: -75.04896767 | BD11: 0 | BE11: -75.04896767 | BF11: Trim&draft optimisation | BH11: 0.3996003996 | BI11: 0.004186764853 | BJ11: -75.04896767 | BK11: 0 | BL11: -75.04896767 | BM11: Trim&draft optimisation | BP11: 0.3996003996 | BQ11: 0.001360958357 | BR11: -61.64370022 | BS11: 0 | BT11: -61.64370022 | BU11: Propulsion efficiency devices | BX11: -75.04896767 | BY11: 0 | BZ11: 0 | CA11: 0 | CB11: 0 | CC11: 0 | CD11: 0 | CE11: 0 | CF11: 0 | CG11: 0 | CH11: 0 | CI11: 0 | CJ11: 0 | CK11: 0 | CL11: 0 | CM11: 0 | CN11: 0 | CP11: 0 | CQ11: 0 | CR11: -61.64370022 | CS11: 0 | CT11: 0 | CU11: 0 | CV11: 0 | CW11: 0 | CX11: 0 | CY11: 0 | CZ11: 0 | DA11: 0 | DB11: 0 | DC11: 0 | DD11: 0 | DE11: 0 | DF11: 0 | EA11: 89.88370184 | EB11: =EA11/3.114*Dashboard!$E$14 -> 17318.63234 | EC11: 0 | ED11: 17318.63234
B12: =Catch!B12 -> 5 | C12: =IF(Startup!F17="Yes",Catch!C12,0) -> Weather routing | D12: =Catch!D12 -> No | E12: =Catch!E12 -> Yes | F12: =Catch!F12 -> Yes | G12: =IF(C12=0,"",Catch!G12/$W$2) -> 16495.37522 | H12: 5234.965159 | I12: =IFERROR(VLOOKUP(C12,List!$B$91:$E$108,3,FALSE),"") -> 1 | J12: =IFERROR(VLOOKUP(C12,List!$B$91:$E$108,4,FALSE),"") -> 0 | K12: 2.875067526 | L12: 7.369263315 | M12: =Catch!H12 -> -36551037.19 | N12: =IF(C12=0,"",G12*Catch!I12/Catch!G12) -> 16447.65549 | O12: 5219.820848 | P12: 1 | Q12: 0 | R12: 2.889293142 | S12: 7.34794466 | T12: =Catch!J12 -> -36500595.03 | U12: =Catch!K12 -> 3 | V12: =Catch!L12 -> 3 | W12: 47.71972391 | X12: 0.002892915334 | Y12: -50442.16 | Z12: 14743.83243 | AA12: =IFERROR(SUM($W$8:W12),"") -> 589.7532972 | AB12: -42.28202166 | AC12: 15.14431098 | AD12: 0.002892915334 | AE12: 0 | AF12: n/a | AG12: 0.02131865485 | AH12: 0.002892915334 | AI12: 15000 | AJ12: 257092.4678 | AK12: =IFERROR(Catch!V12,"") -> 13.55083933 | AL12: =IFERROR(Catch!W12,"") -> 0.5420335733 | AM12: =Catch!X12 -> -42.28202166 | AO12: 2.889293142 | AP12: 7.34794466 | AQ12: 5219.820848 | AS12: Weather routing | AT12: 13550.83933 | AU12: 542.0335733 | AV12: =SUM($AG$8:AG11) -> 0.2421520017 | AW12: =SUM($AE$8:AE11) -> 0.05057083062 | AX12: -42.28202166 | AY12: -4725.359962 | AZ12: 2 | BA12: 234.525883 | BB12: 9.381035322 | BC12: -75.04896767 | BD12: 0 | BE12: -75.04896767 | BF12: Trim&draft optimisation | BH12: 0.4995004995 | BI12: 0.005233456066 | BJ12: -75.04896767 | BK12: 0 | BL12: -75.04896767 | BM12: Trim&draft optimisation | BP12: 0.4995004995 | BQ12: 0.001701197947 | BR12: -61.64370022 | BS12: 0 | BT12: -61.64370022 | BU12: Propulsion efficiency devices | BX12: -75.04896767 | BY12: 0 | BZ12: 0 | CA12: 0 | CB12: 0 | CC12: 0 | CD12: 0 | CE12: 0 | CF12: 0 | CG12: 0 | CH12: 0 | CI12: 0 | CJ12: 0 | CK12: 0 | CL12: 0 | CM12: 0 | CN12: 0 | CP12: 0 | CQ12: 0 | CR12: -61.64370022 | CS12: 0 | CT12: 0 | CU12: 0 | CV12: 0 | CW12: 0 | CX12: 0 | CY12: 0 | CZ12: 0 | DA12: 0 | DB12: 0 | DC12: 0 | DD12: 0 | DE12: 0 | DF12: 0 | EA12: 47.71972391 | EB12: =EA12/3.114*Dashboard!$E$14 -> 9194.551813 | EC12: 3000 | ED12: 6194.551813
B13: =Catch!B13 -> 6 | C13: =IF(Startup!F18="Yes",Catch!C13,0) -> Frequency converters | D13: =Catch!D13 -> No | E13: =Catch!E13 -> Yes | F13: =Catch!F13 -> Yes | G13: =IF(C13=0,"",Catch!G13/$W$2) -> 16447.65549 | H13: 5219.820848 | I13: =IFERROR(VLOOKUP(C13,List!$B$91:$E$108,3,FALSE),"") -> 1 | J13: =IFERROR(VLOOKUP(C13,List!$B$91:$E$108,4,FALSE),"") -> 1 | K13: 2.866750199 | L13: 7.34794466 | M13: =Catch!H13 -> -36500595.03 | N13: =IF(C13=0,"",G13*Catch!I13/Catch!G13) -> 16097.10906 | O13: 5108.571582 | P13: 1 | Q13: 1 | R13: 2.827714067 | S13: 7.191339007 | T13: =Catch!J13 -> -36322601.48 | U13: =Catch!K13 -> 14 | V13: =Catch!L13 -> 6 | W13: 350.5464372 | X13: 0.02131285139 | Y13: -177993.5512 | Z13: 23507.49336 | AA13: =IFERROR(SUM($W$8:W13),"") -> 940.2997344 | AB13: -20.31041052 | AC13: 111.249266 | AD13: 0.02131285139 | AE13: 0.06157907536 | AF13: 0.02177698095 | AG13: 0.1566056525 | AH13: 0.02131285139 | AI13: 533902.1956 | AJ13: 790994.6634 | AK13: =IFERROR(Catch!V13,"") -> 14.74383243 | AL13: =IFERROR(Catch!W13,"") -> 0.5897532972 | AM13: =Catch!X13 -> -20.31041052 | AO13: 2.827714067 | AP13: 7.191339007 | AQ13: 5108.571582 | AS13: Frequency converters | AT13: 14743.83243 | AU13: 589.7532972 | AV13: =SUM($AG$8:AG12) -> 0.2634706565 | AW13: =SUM($AE$8:AE12) -> 0.05057083062 | AX13: -20.31041052 | AY13: -16674.21855 | AZ13: 2.5 | BA13: 293.1573538 | BB13: 11.72629415 | BC13: -75.04896767 | BD13: 0 | BE13: -75.04896767 | BF13: Trim&draft optimisation | BH13: 0.5994005994 | BI13: 0.00628014728 | BJ13: -75.04896767 | BK13: 0 | BL13: -75.04896767 | BM13: Trim&draft optimisation | BP13: 0.5994005994 | BQ13: 0.002041437536 | BR13: -61.64370022 | BS13: 0 | BT13: -61.64370022 | BU13: Propulsion efficiency devices | BX13: -75.04896767 | BY13: 0 | BZ13: 0 | CA13: 0 | CB13: 0 | CC13: 0 | CD13: 0 | CE13: 0 | CF13: 0 | CG13: 0 | CH13: 0 | CI13: 0 | CJ13: 0 | CK13: 0 | CL13: 0 | CM13: 0 | CN13: 0 | CP13: 0 | CQ13: 0 | CR13: -61.64370022 | CS13: 0 | CT13: 0 | CU13: 0 | CV13: 0 | CW13: 0 | CX13: 0 | CY13: 0 | CZ13: 0 | DA13: 0 | DB13: 0 | DC13: 0 | DD13: 0 | DE13: 0 | DF13: 0 | EA13: 350.5464372 | EB13: =EA13/3.114*Dashboard!$E$14 -> 67542.66612 | EC13: 5000 | ED13: 62542.66612
B14: =Catch!B14 -> 7 | C14: =IF(Startup!F19="Yes",Catch!C14,0) -> Propeller efficiency | D14: =Catch!D14 -> No | E14: =Catch!E14 -> Yes | F14: =Catch!F14 -> Yes | G14: =IF(C14=0,"",Catch!G14/$W$2) -> 16097.10906 | H14: 5108.571582 | I14: =IFERROR(VLOOKUP(C14,List!$B$91:$E$108,3,FALSE),"") -> 1 | J14: =IFERROR(VLOOKUP(C14,List!$B$91:$E$108,4,FALSE),"") -> 0 | K14: 2.866750199 | L14: 7.191339007 | M14: =Catch!H14 -> -36322601.48 | N14: =IF(C14=0,"",G14*Catch!I14/Catch!G14) -> 16059.98993 | O14: 5096.791472 | P14: 1 | Q14: 0 | R14: 2.827714067 | S14: 7.174756139 | T14: =Catch!J14 -> -36333345.52 | U14: =Catch!K14 -> 25+ | V14: =Catch!L14 -> 6 | W14: 37.1191281 | X14: 0.002305949967 | Y14: 10744.03855 | Z14: 24435.47156 | AA14: =IFERROR(SUM($W$8:W14),"") -> 977.4188625 | AB14: 11.5778997 | AC14: 11.78011047 | AD14: 0.002305949967 | AE14: 0 | AF14: n/a | AG14: 0.01658286795 | AH14: 0.002305949967 | AI14: 8000 | AJ14: 798994.6634 | AK14: =IFERROR(Catch!V14,"") -> 23.50749336 | AL14: =IFERROR(Catch!W14,"") -> 0.9402997344 | AM14: =Catch!X14 -> 11.5778997 | AO14: 2.827714067 | AP14: 7.174756139 | AQ14: 5096.791472 | AS14: Propeller efficiency | AT14: 23507.49336 | AU14: 940.2997344 | AV14: =SUM($AG$8:AG13) -> 0.4200763091 | AW14: =SUM($AE$8:AE13) -> 0.112149906 | AX14: 11.5778997 | AY14: 1006.488414 | AZ14: 3 | BA14: 351.7888246 | BB14: 14.07155298 | BC14: -75.04896767 | BD14: 0 | BE14: -75.04896767 | BF14: Trim&draft optimisation | BH14: 0.6993006993 | BI14: 0.007326838493 | BJ14: -75.04896767 | BK14: 0 | BL14: -75.04896767 | BM14: Trim&draft optimisation | BP14: 0.6993006993 | BQ14: 0.002381677126 | BR14: -61.64370022 | BS14: 0 | BT14: -61.64370022 | BU14: Propulsion efficiency devices | BX14: -75.04896767 | BY14: 0 | BZ14: 0 | CA14: 0 | CB14: 0 | CC14: 0 | CD14: 0 | CE14: 0 | CF14: 0 | CG14: 0 | CH14: 0 | CI14: 0 | CJ14: 0 | CK14: 0 | CL14: 0 | CM14: 0 | CN14: 0 | CP14: 0 | CQ14: 0 | CR14: -61.64370022 | CS14: 0 | CT14: 0 | CU14: 0 | CV14: 0 | CW14: 0 | CX14: 0 | CY14: 0 | CZ14: 0 | DA14: 0 | DB14: 0 | DC14: 0 | DD14: 0 | DE14: 0 | DF14: 0 | EA14: 37.1191281 | EB14: =EA14/3.114*Dashboard!$E$14 -> 7152.047803 | EC14: 0 | ED14: 7152.047803
B15: =Catch!B15 -> 8 | C15: =IF(Startup!F20="Yes",Catch!C15,0) -> Air cavity lubrication | D15: =Catch!D15 -> No | E15: =Catch!E15 -> Yes | F15: =Catch!F15 -> Yes | G15: =IF(C15=0,"",Catch!G15/$W$2) -> 16059.98993 | H15: 5096.791472 | I15: =IFERROR(VLOOKUP(C15,List!$B$91:$E$108,3,FALSE),"") -> 1 | J15: =IFERROR(VLOOKUP(C15,List!$B$91:$E$108,4,FALSE),"") -> 1 | K15: 2.860139617 | L15: 7.174756139 | M15: =Catch!H15 -> -36333345.52 | N15: =IF(C15=0,"",G15*Catch!I15/Catch!G15) -> 15591.27657 | O15: 4948.040804 | P15: 1 | Q15: 1 | R15: 2.745186783 | S15: 6.965359743 | T15: =Catch!J15 -> -37206026.09 | U15: =Catch!K15 -> 25+ | V15: =Catch!L15 -> 21 | W15: 468.7133539 | X15: 0.02918515865 | Y15: 872680.5731 | Z15: 36153.30541 | AA15: =IFERROR(SUM($W$8:W15),"") -> 1446.132216 | AB15: 74.47456454 | AC15: 148.7506677 | AD15: 0.02918515865 | AE15: 0.08252728365 | AF15: 0.03006253861 | AG15: 0.2093963962 | AH15: 0.02918515865 | AI15: 1786339.286 | AJ15: 2585333.949 | AK15: =IFERROR(Catch!V15,"") -> 24.43547156 | AL15: =IFERROR(Catch!W15,"") -> 0.9774188625 | AM15: =Catch!X15 -> 74.47456454 | AO15: 2.745186783 | AP15: 6.965359743 | AQ15: 4948.040804 | AS15: Air cavity lubrication | AT15: 24435.47156 | AU15: 977.4188625 | AV15: =SUM($AG$8:AG14) -> 0.436659177 | AW15: =SUM($AE$8:AE14) -> 0.112149906 | AX15: 74.47456454 | AY15: 81751.65059 | AZ15: 3.5 | BA15: 410.4202953 | BB15: 16.41681181 | BC15: -75.04896767 | BD15: 0 | BE15: -75.04896767 | BF15: Trim&draft optimisation | BH15: 0.7992007992 | BI15: 0.008373529706 | BJ15: -75.04896767 | BK15: 0 | BL15: -75.04896767 | BM15: Trim&draft optimisation | BP15: 0.7992007992 | BQ15: 0.002721916715 | BR15: -61.64370022 | BS15: 0 | BT15: -61.64370022 | BU15: Propulsion efficiency devices | BX15: -75.04896767 | BY15: 0 | BZ15: 0 | CA15: 0 | CB15: 0 | CC15: 0 | CD15: 0 | CE15: 0 | CF15: 0 | CG15: 0 | CH15: 0 | CI15: 0 | CJ15: 0 | CK15: 0 | CL15: 0 | CM15: 0 | CN15: 0 | CP15: 0 | CQ15: 0 | CR15: -61.64370022 | CS15: 0 | CT15: 0 | CU15: 0 | CV15: 0 | CW15: 0 | CX15: 0 | CY15: 0 | CZ15: 0 | DA15: 0 | DB15: 0 | DC15: 0 | DD15: 0 | DE15: 0 | DF15: 0 | EA15: 468.7133539 | EB15: =EA15/3.114*Dashboard!$E$14 -> 90310.85817 | EC15: 10000 | ED15: 80310.85817
B16: =Catch!B16 -> 9 | C16: =IF(Startup!F21="Yes",Catch!C16,0) -> Contra-rotating propeller | D16: =Catch!D16 -> No | E16: =Catch!E16 -> Yes | F16: =Catch!F16 -> Yes | G16: =IF(C16=0,"",Catch!G16/$W$2) -> 15591.27657 | H16: 4948.040804 | I16: =IFERROR(VLOOKUP(C16,List!$B$91:$E$108,3,FALSE),"") -> 1 | J16: =IFERROR(VLOOKUP(C16,List!$B$91:$E$108,4,FALSE),"") -> 1 | K16: 2.776665988 | L16: 6.965359743 | M16: =Catch!H16 -> -37206026.09 | N16: =IF(C16=0,"",G16*Catch!I16/Catch!G16) -> 15295.98716 | O16: 4854.327884 | P16: 1 | Q16: 1 | R16: 2.693194595 | S16: 6.833440014 | T16: =Catch!J16 -> -38204342.32 | U16: =Catch!K16 -> 25+ | V16: =Catch!L16 -> 25+ | W16: 295.289413 | X16: 0.01893939932 | Y16: 998316.2302 | Z16: 43535.54073 | AA16: =IFERROR(SUM($W$8:W16),"") -> 1741.421629 | AB16: 135.2322415 | AC16: 93.71292065 | AD16: 0.01893939932 | AE16: 0.0519921887 | AF16: 0.0193050249 | AG16: 0.1319197296 | AH16: 0.01893939932 | AI16: 1070924.678 | AJ16: 3656258.627 | AK16: =IFERROR(Catch!V16,"") -> 36.15330541 | AL16: =IFERROR(Catch!W16,"") -> 1.446132216 | AM16: =Catch!X16 -> 135.2322415 | AO16: 2.693194595 | AP16: 6.833440014 | AQ16: 4854.327884 | AS16: Contra-rotating propeller | AT16: 36153.30541 | AU16: 1446.132216 | AV16: =SUM($AG$8:AG15) -> 0.6460555732 | AW16: =SUM($AE$8:AE15) -> 0.1946771896 | AX16: 135.2322415 | AY16: 93521.04555 | AZ16: 4 | BA16: 469.0517661 | BB16: 18.76207064 | BC16: -75.04896767 | BD16: 0 | BE16: -75.04896767 | BF16: Trim&draft optimisation | BH16: 0.8991008991 | BI16: 0.009420220919 | BJ16: -75.04896767 | BK16: 0 | BL16: -75.04896767 | BM16: Trim&draft optimisation | BP16: 0.8991008991 | BQ16: 0.003062156304 | BR16: -61.64370022 | BS16: 0 | BT16: -61.64370022 | BU16: Propulsion efficiency devices | BX16: -75.04896767 | BY16: 0 | BZ16: 0 | CA16: 0 | CB16: 0 | CC16: 0 | CD16: 0 | CE16: 0 | CF16: 0 | CG16: 0 | CH16: 0 | CI16: 0 | CJ16: 0 | CK16: 0 | CL16: 0 | CM16: 0 | CN16: 0 | CP16: 0 | CQ16: 0 | CR16: -61.64370022 | CS16: 0 | CT16: 0 | CU16: 0 | CV16: 0 | CW16: 0 | CX16: 0 | CY16: 0 | CZ16: 0 | DA16: 0 | DB16: 0 | DC16: 0 | DD16: 0 | DE16: 0 | DF16: 0 | EA16: 295.289413 | EB16: =EA16/3.114*Dashboard!$E$14 -> 56895.84065 | EC16: 30000 | ED16: 26895.84065
B17: =Catch!B17 -> 10 | C17: =IF(Startup!F22="Yes",Catch!C17,0) -> EGB on AE | D17: =Catch!D17 -> No | E17: =Catch!E17 -> Yes | F17: =Catch!F17 -> Yes | G17: =IF(C17=0,"",Catch!G17/$W$2) -> 15295.98716 | H17: 4854.327884 | I17: =IFERROR(VLOOKUP(C17,List!$B$91:$E$108,3,FALSE),"") -> 1 | J17: =IFERROR(VLOOKUP(C17,List!$B$91:$E$108,4,FALSE),"") -> 1 | K17: 2.724077602 | L17: 6.833440014 | M17: =Catch!H17 -> -38204342.32 | N17: =IF(C17=0,"",G17*Catch!I17/Catch!G17) -> 15264.43798 | O17: 4844.31545 | P17: 1 | Q17: 1 | R17: 2.687639669 | S17: 6.819345505 | T17: =Catch!J17 -> -38319664.28 | U17: =Catch!K17 -> 25+ | V17: =Catch!L17 -> 25+ | W17: 31.54917935 | X17: 0.002062578833 | Y17: 115321.9594 | Z17: 44324.27022 | AA17: =IFERROR(SUM($W$8:W17),"") -> 1772.970809 | AB17: 146.2123096 | AC17: 10.01243394 | AD17: 0.002062578833 | AE17: 0.005554926164 | AF17: 0.002066841857 | AG17: 0.01409450873 | AH17: 0.002062578833 | AI17: 69292.93503 | AJ17: 3725551.562 | AK17: =IFERROR(Catch!V17,"") -> 43.53554073 | AL17: =IFERROR(Catch!W17,"") -> 1.741421629 | AM17: =Catch!X17 -> 146.2123096 | AO17: 2.687639669 | AP17: 6.819345505 | AQ17: 4844.31545 | AS17: EGB on AE | AT17: 43535.54073 | AU17: 1741.421629 | AV17: =SUM($AG$8:AG16) -> 0.7779753028 | AW17: =SUM($AE$8:AE16) -> 0.2466693783 | AX17: 146.2123096 | AY17: 10803.22036 | AZ17: 4.5 | BA17: 527.6832369 | BB17: 21.10732947 | BC17: -75.04896767 | BD17: 0 | BE17: -75.04896767 | BF17: Trim&draft optimisation | BH17: 0.999000999 | BI17: 0.01046691213 | BJ17: -75.04896767 | BK17: 0 | BL17: -75.04896767 | BM17: Trim&draft optimisation | BP17: 0.999000999 | BQ17: 0.003402395894 | BR17: -61.64370022 | BS17: 0 | BT17: -61.64370022 | BU17: Propulsion efficiency devices | BX17: -75.04896767 | BY17: 0 | BZ17: 0 | CA17: 0 | CB17: 0 | CC17: 0 | CD17: 0 | CE17: 0 | CF17: 0 | CG17: 0 | CH17: 0 | CI17: 0 | CJ17: 0 | CK17: 0 | CL17: 0 | CM17: 0 | CN17: 0 | CP17: 0 | CQ17: 0 | CR17: -61.64370022 | CS17: 0 | CT17: 0 | CU17: 0 | CV17: 0 | CW17: 0 | CX17: 0 | CY17: 0 | CZ17: 0 | DA17: 0 | DB17: 0 | DC17: 0 | DD17: 0 | DE17: 0 | DF17: 0 | EA17: 31.54917935 | EB17: =EA17/3.114*Dashboard!$E$14 -> 6078.839951 | EC17: 10000 | ED17: -3921.160049
B18: =Catch!B18 -> 11 | C18: =IF(Startup!F23="Yes",Catch!C18,0) -> Kite | D18: =Catch!D18 -> No | E18: =Catch!E18 -> Yes | F18: =Catch!F18 -> Yes | G18: =IF(C18=0,"",Catch!G18/$W$2) -> 15264.43798 | H18: 4844.31545 | I18: =IFERROR(VLOOKUP(C18,List!$B$91:$E$108,3,FALSE),"") -> 1 | J18: =IFERROR(VLOOKUP(C18,List!$B$91:$E$108,4,FALSE),"") -> 1 | K18: 2.718458977 | L18: 6.819345505 | M18: =Catch!H18 -> -38319664.28 | N18: =IF(C18=0,"",G18*Catch!I18/Catch!G18) -> 14897.05425 | O18: 4727.722706 | P18: 1 | Q18: 1 | R18: 2.622953691 | S18: 6.655217836 | T18: =Catch!J18 -> -41423084.62 | U18: =Catch!K18 -> 25+ | V18: =Catch!L18 -> 25+ | W18: 367.383735 | X18: 0.02406795032 | Y18: 3103420.344 | Z18: 53508.86359 | AA18: =IFERROR(SUM($W$8:W18),"") -> 2140.354544 | AB18: 337.894147 | AC18: 116.5927436 | AD18: 0.02406795032 | AE18: 0.06468597802 | AF18: 0.02466150213 | AG18: 0.1641276688 | AH18: 0.02406795032 | AI18: 1886625 | AJ18: 5612176.562 | AK18: =IFERROR(Catch!V18,"") -> 44.32427022 | AL18: =IFERROR(Catch!W18,"") -> 1.772970809 | AM18: =Catch!X18 -> 337.894147 | AO18: 2.622953691 | AP18: 6.655217836 | AQ18: 4727.722706 | AS18: Kite | AT18: 44324.27022 | AU18: 1772.970809 | AV18: =SUM($AG$8:AG17) -> 0.7920698115 | AW18: =SUM($AE$8:AE17) -> 0.2522243045 | AX18: 337.894147 | AY18: 290724.6287 | AZ18: 5 | BA18: 586.3147076 | BB18: 23.4525883 | BC18: -75.04896767 | BD18: 0 | BE18: -75.04896767 | BF18: Trim&draft optimisation | BH18: 1.098901099 | BI18: 0.01151360335 | BJ18: -75.04896767 | BK18: 0 | BL18: -75.04896767 | BM18: Trim&draft optimisation | BP18: 1.098901099 | BQ18: 0.003742635483 | BR18: -61.64370022 | BS18: 0 | BT18: -61.64370022 | BU18: Propulsion efficiency devices | BX18: =SUMIFS($BJ18,$BM18,BX$4) -> -75.04896767 | BY18: 0 | BZ18: 0 | CA18: 0 | CB18: 0 | CC18: 0 | CD18: 0 | CE18: 0 | CF18: 0 | CG18: 0 | CH18: =SUMIFS($BJ18,$BM18,CH$4) -> 0 | CI18: 0 | CJ18: 0 | CK18: 0 | CL18: 0 | CM18: 0 | CN18: 0 | CP18: 0 | CQ18: 0 | CR18: -61.64370022 | CS18: 0 | CT18: 0 | CU18: 0 | CV18: 0 | CW18: 0 | CX18: 0 | CY18: 0 | CZ18: 0 | DA18: 0 | DB18: 0 | DC18: 0 | DD18: 0 | DE18: 0 | DF18: 0 | EA18: 367.383735 | EB18: =EA18/3.114*Dashboard!$E$14 -> 70786.84682 | EC18: 175500 | ED18: -104713.1532
B19: =Catch!B19 -> 12 | C19: =IF(Startup!F24="Yes",Catch!C19,0) -> Hull coating condition | D19: =Catch!D19 -> No | E19: =Catch!E19 -> Yes | F19: =Catch!F19 -> Yes | G19: =IF(C19=0,"",Catch!G19/$W$2) -> 14897.05425 | H19: 4727.722706 | I19: =IFERROR(VLOOKUP(C19,List!$B$91:$E$108,3,FALSE),"") -> 1 | J19: =IFERROR(VLOOKUP(C19,List!$B$91:$E$108,4,FALSE),"") -> 0 | K19: 2.718458977 | L19: 6.655217836 | M19: =Catch!H19 -> -41423084.62 | N19: =IF(C19=0,"",G19*Catch!I19/Catch!G19) -> 14825.93931 | O19: 4705.153699 | P19: 1 | Q19: 0 | R19: 2.622953691 | S19: 6.623447433 | T19: =Catch!J19 -> -42414912.89 | U19: =Catch!K19 -> 25+ | V19: =Catch!L19 -> 25+ | W19: 71.11494074 | X19: 0.004773758595 | Y19: 991828.2646 | Z19: 55286.73711 | AA19: =IFERROR(SUM($W$8:W19),"") -> 2211.469484 | AB19: 557.873355 | AC19: 22.5690069 | AD19: 0.004773758595 | AE19: 0 | AF19: n/a | AG19: 0.03177040334 | AH19: 0.004773758595 | AI19: 429367.9615 | AJ19: 6041544.523 | AK19: =IFERROR(Catch!V19,"") -> 53.50886359 | AL19: =IFERROR(Catch!W19,"") -> 2.140354544 | AM19: =Catch!X19 -> 557.873355 | AO19: 2.622953691 | AP19: 6.623447433 | AQ19: 4705.153699 | AS19: Hull coating condition | AT19: 53508.86359 | AU19: 2140.354544 | AV19: =SUM($AG$8:AG18) -> 0.9561974803 | AW19: =SUM($AE$8:AE18) -> 0.3169102825 | AX19: 557.873355 | AY19: 92913.26086 | AZ19: 5.5 | BA19: 644.9461784 | BB19: 25.79784714 | BC19: -75.04896767 | BD19: 0 | BE19: -75.04896767 | BF19: Trim&draft optimisation | BH19: 1.198801199 | BI19: 0.01256029456 | BJ19: -75.04896767 | BK19: 0 | BL19: -75.04896767 | BM19: Trim&draft optimisation | BP19: 1.198801199 | BQ19: 0.004082875072 | BR19: -61.64370022 | BS19: 0 | BT19: -61.64370022 | BU19: Propulsion efficiency devices | BX19: -75.04896767 | BY19: 0 | BZ19: 0 | CA19: 0 | CB19: 0 | CC19: 0 | CD19: 0 | CE19: 0 | CF19: 0 | CG19: 0 | CH19: 0 | CI19: 0 | CJ19: 0 | CK19: 0 | CL19: 0 | CM19: 0 | CN19: 0 | CP19: 0 | CQ19: 0 | CR19: -61.64370022 | CS19: 0 | CT19: 0 | CU19: 0 | CV19: 0 | CW19: 0 | CX19: 0 | CY19: 0 | CZ19: 0 | DA19: 0 | DB19: 0 | DC19: 0 | DD19: 0 | DE19: 0 | DF19: 0 | EA19: 71.11494074 | EB19: =EA19/3.114*Dashboard!$E$14 -> 13702.30072 | EC19: 0 | ED19: 13702.30072
B20: =Catch!B20 -> 13 | C20: =IF(Startup!F25="Yes",Catch!C20,0) -> Solar Panel | D20: =Catch!D20 -> No | E20: =Catch!E20 -> Yes | F20: =Catch!F20 -> Yes | G20: =IF(C20=0,"",Catch!G20/$W$2) -> 14825.93931 | H20: 4705.153699 | I20: =IFERROR(VLOOKUP(C20,List!$B$91:$E$108,3,FALSE),"") -> 1 | J20: =IFERROR(VLOOKUP(C20,List!$B$91:$E$108,4,FALSE),"") -> 1 | K20: 2.705481711 | L20: 6.623447433 | M20: =Catch!H20 -> -42414912.89 | N20: =IF(C20=0,"",G20*Catch!I20/Catch!G20) -> 14796.68892 | O20: 4695.87081 | P20: 1 | Q20: 1 | R20: 2.617778814 | S20: 6.610379905 | T20: =Catch!J20 -> -44649206.9 | U20: =Catch!K20 -> 25+ | V20: =Catch!L20 -> 25+ | W20: 29.25038313 | X20: 0.00197291939 | Y20: 2234294.013 | Z20: 56017.99669 | AA20: =IFERROR(SUM($W$8:W20),"") -> 2240.719868 | AB20: 3055.404783 | AC20: 9.282888966 | AD20: 0.00197291939 | AE20: 0.005174876195 | AF20: 0.001976819496 | AG20: 0.01306752787 | AH20: 0.00197291939 | AI20: 1370000 | AJ20: 7411544.523 | AK20: =IFERROR(Catch!V20,"") -> 55.28673711 | AL20: =IFERROR(Catch!W20,"") -> 2.211469484 | AM20: =Catch!X20 -> 3055.404783 | AO20: 2.617778814 | AP20: 6.610379905 | AQ20: 4695.87081 | AS20: Solar Panel | AT20: 55286.73711 | AU20: 2211.469484 | AV20: =SUM($AG$8:AG19) -> 0.9879678837 | AW20: =SUM($AE$8:AE19) -> 0.3169102825 | AX20: 3055.404783 | AY20: 209305.9352 | AZ20: 6 | BA20: 703.5776491 | BB20: 28.14310597 | BC20: -75.04896767 | BD20: 0 | BE20: -75.04896767 | BF20: Trim&draft optimisation | BH20: 1.298701299 | BI20: 0.01360698577 | BJ20: -75.04896767 | BK20: 0 | BL20: -75.04896767 | BM20: Trim&draft optimisation | BP20: 1.298701299 | BQ20: 0.004423114662 | BR20: -61.64370022 | BS20: 0 | BT20: -61.64370022 | BU20: Propulsion efficiency devices | BX20: -75.04896767 | BY20: 0 | BZ20: 0 | CA20: 0 | CB20: 0 | CC20: 0 | CD20: 0 | CE20: 0 | CF20: 0 | CG20: 0 | CH20: 0 | CI20: 0 | CJ20: 0 | CK20: 0 | CL20: 0 | CM20: 0 | CN20: 0 | CP20: 0 | CQ20: 0 | CR20: -61.64370022 | CS20: 0 | CT20: 0 | CU20: 0 | CV20: 0 | CW20: 0 | CX20: 0 | CY20: 0 | CZ20: 0 | DA20: 0 | DB20: 0 | DC20: 0 | DD20: 0 | DE20: 0 | DF20: 0 | EA20: 29.25038313 | EB20: =EA20/3.114*Dashboard!$E$14 -> 5635.911971 | EC20: 0 | ED20: 5635.911971
B21: =Catch!B21 -> 14 | C21: =IF(Startup!F26="Yes",Catch!C21,0) -> Waste heat recovery | D21: =Catch!D21 -> No | E21: =Catch!E21 -> Yes | F21: =Catch!F21 -> Yes | G21: =IF(C21=0,"",Catch!G21/$W$2) -> 14796.68892 | H21: 4695.87081 | I21: =IFERROR(VLOOKUP(C21,List!$B$91:$E$108,3,FALSE),"") -> 1 | J21: =IFERROR(VLOOKUP(C21,List!$B$91:$E$108,4,FALSE),"") -> 1 | K21: 2.700144013 | L21: 6.610379905 | M21: =Catch!H21 -> -44649206.9 | N21: =IF(C21=0,"",G21*Catch!I21/Catch!G21) -> 14692.14996 | O21: 4662.69437 | P21: 1 | Q21: 1 | R21: 2.599284144 | S21: 6.563677412 | T21: =Catch!J21 -> -52744251.37 | U21: =Catch!K21 -> 25+ | V21: =Catch!L21 -> 25+ | W21: 104.5389629 | X21: 0.007065024036 | Y21: 8095044.466 | Z21: 58631.47076 | AA21: =IFERROR(SUM($W$8:W21),"") -> 2345.25883 | AB21: 3097.426736 | AC21: 33.17644014 | AD21: 0.007065024036 | AE21: 0.01849467024 | AF21: 0.007115293758 | AG21: 0.04670249292 | AH21: 0.007065024036 | AI21: 8209246.779 | AJ21: 15620791.3 | AK21: =IFERROR(Catch!V21,"") -> 56.01799669 | AL21: =IFERROR(Catch!W21,"") -> 2.240719868 | AM21: =Catch!X21 -> 3097.426736 | AO21: 2.599284144 | AP21: 6.563677412 | AQ21: 4662.69437 | AS21: Waste heat recovery | AT21: 56017.99669 | AU21: 2240.719868 | AV21: =SUM($AG$8:AG20) -> 1.001035412 | AW21: =SUM($AE$8:AE20) -> 0.3220851587 | AX21: 3097.426736 | AY21: 758333.882 | AZ21: 6.5 | BA21: 762.2091199 | BB21: 30.4883648 | BC21: -75.04896767 | BD21: 0 | BE21: -75.04896767 | BF21: Trim&draft optimisation | BH21: 1.398601399 | BI21: 0.01465367699 | BJ21: -75.04896767 | BK21: 0 | BL21: -75.04896767 | BM21: Trim&draft optimisation | BP21: 1.398601399 | BQ21: 0.004763354251 | BR21: -61.64370022 | BS21: 0 | BT21: -61.64370022 | BU21: Propulsion efficiency devices | BX21: -75.04896767 | BY21: 0 | BZ21: 0 | CA21: 0 | CB21: 0 | CC21: 0 | CD21: 0 | CE21: 0 | CF21: 0 | CG21: 0 | CH21: 0 | CI21: 0 | CJ21: 0 | CK21: 0 | CL21: 0 | CM21: 0 | CN21: 0 | CP21: 0 | CQ21: 0 | CR21: -61.64370022 | CS21: 0 | CT21: 0 | CU21: 0 | CV21: 0 | CW21: 0 | CX21: 0 | CY21: 0 | CZ21: 0 | DA21: 0 | DB21: 0 | DC21: 0 | DD21: 0 | DE21: 0 | DF21: 0 | EA21: 104.5389629 | EB21: =EA21/3.114*Dashboard!$E$14 -> 20142.38206 | EC21: 10000 | ED21: 10142.38206
B22: =Catch!B22 -> 15 | C22: =IF(Startup!F27="Yes",Catch!C22,0) -> 0 | D22: =Catch!D22 -> No | E22: =Catch!E22 -> No | F22: =Catch!F22 -> No | G22: =IF(C22=0,"",Catch!G22/$W$2) ->  | I22: =IFERROR(VLOOKUP(C22,List!$B$91:$E$108,3,FALSE),"") ->  | J22: =IFERROR(VLOOKUP(C22,List!$B$91:$E$108,4,FALSE),"") ->  | M22: =Catch!H22 -> 0 | N22: =IF(C22=0,"",G22*Catch!I22/Catch!G22) ->  | T22: =Catch!J22 -> 0 | U22: =Catch!K22 -> 0 | V22: =Catch!L22 -> 0 | Y22: 0 | Z22: 58631.47076 | AA22: =IFERROR(SUM($W$8:W22),"") -> 2345.25883 | AK22: =IFERROR(Catch!V22,"") -> 58.63147076 | AL22: =IFERROR(Catch!W22,"") -> 2.34525883 | AM22: =Catch!X22 ->  | AR22: =AM22 ->  | AS22: 0 | AT22: 58631.47076 | AU22: 2345.25883 | AV22: =SUM($AG$8:AG21) -> 1.047737904 | AW22: =SUM($AE$8:AE21) -> 0.340579829 | AY22: 0 | AZ22: 7 | BA22: 820.8405907 | BB22: 32.83362363 | BC22: -75.04896767 | BD22: 0 | BE22: -75.04896767 | BF22: Trim&draft optimisation | BH22: 1.498501499 | BI22: 0.0157003682 | BJ22: -75.04896767 | BK22: 0 | BL22: -75.04896767 | BM22: Trim&draft optimisation | BP22: 1.498501499 | BQ22: 0.00510359384 | BR22: -61.64370022 | BS22: 0 | BT22: -61.64370022 | BU22: Propulsion efficiency devices | BX22: -75.04896767 | BY22: 0 | BZ22: 0 | CA22: 0 | CB22: 0 | CC22: 0 | CD22: 0 | CE22: 0 | CF22: 0 | CG22: 0 | CH22: 0 | CI22: 0 | CJ22: 0 | CK22: 0 | CL22: 0 | CM22: 0 | CN22: 0 | CP22: 0 | CQ22: 0 | CR22: -61.64370022 | CS22: 0 | CT22: 0 | CU22: 0 | CV22: 0 | CW22: 0 | CX22: 0 | CY22: 0 | CZ22: 0 | DA22: 0 | DB22: 0 | DC22: 0 | DD22: 0 | DE22: 0 | DF22: 0 | EB22: =EA22/3.114*Dashboard!$E$14 -> 
B23: =Catch!B23 -> 16 | C23: =IF(Startup!F28="Yes",Catch!C23,0) -> 0 | D23: =Catch!D23 -> No | E23: =Catch!E23 -> No | F23: =Catch!F23 -> No | G23: =IF(C23=0,"",Catch!G23/$W$2) ->  | I23: =IFERROR(VLOOKUP(C23,List!$B$91:$E$108,3,FALSE),"") ->  | J23: =IFERROR(VLOOKUP(C23,List!$B$91:$E$108,4,FALSE),"") ->  | M23: =Catch!H23 -> 0 | N23: =IF(C23=0,"",G23*Catch!I23/Catch!G23) ->  | T23: =Catch!J23 -> 0 | U23: =Catch!K23 -> 0 | V23: =Catch!L23 -> 0 | Y23: 0 | Z23: 58631.47076 | AA23: =IFERROR(SUM($W$8:W23),"") -> 2345.25883 | AK23: =IFERROR(Catch!V23,"") ->  | AL23: =IFERROR(Catch!W23,"") ->  | AM23: =Catch!X23 ->  | AR23: =AM23 ->  | AS23: 0 | AT23: 58631.47076 | AU23: 2345.25883 | AV23: =SUM($AG$8:AG22) -> 1.047737904 | AW23: =SUM($AE$8:AE22) -> 0.340579829 | AY23: 0 | AZ23: 7.5 | BA23: 879.4720614 | BB23: 35.17888246 | BC23: -75.04896767 | BD23: 0 | BE23: -75.04896767 | BF23: Trim&draft optimisation | BH23: 1.598401598 | BI23: 0.01674705941 | BJ23: -75.04896767 | BK23: 0 | BL23: -75.04896767 | BM23: Trim&draft optimisation | BP23: 1.598401598 | BQ23: 0.00544383343 | BR23: -61.64370022 | BS23: 0 | BT23: -61.64370022 | BU23: Propulsion efficiency devices | BX23: -75.04896767 | BY23: 0 | BZ23: 0 | CA23: 0 | CB23: 0 | CC23: 0 | CD23: 0 | CE23: 0 | CF23: 0 | CG23: 0 | CH23: 0 | CI23: 0 | CJ23: 0 | CK23: 0 | CL23: 0 | CM23: 0 | CN23: 0 | CP23: 0 | CQ23: 0 | CR23: -61.64370022 | CS23: 0 | CT23: 0 | CU23: 0 | CV23: 0 | CW23: 0 | CX23: 0 | CY23: 0 | CZ23: 0 | DA23: 0 | DB23: 0 | DC23: 0 | DD23: 0 | DE23: 0 | DF23: =SUMIFS($BR23,$BU23,DF$7) -> 0 | EB23: =EA23/3.114*Dashboard!$E$14 -> 
B24: =Catch!B24 -> 17 | C24: =IF(Startup!F29="Yes",Catch!C24,0) -> 0 | D24: =Catch!D24 -> No | E24: =Catch!E24 -> No | F24: =Catch!F24 -> No | G24: =IF(C24=0,"",Catch!G24/$W$2) ->  | I24: =IFERROR(VLOOKUP(C24,List!$B$91:$E$108,3,FALSE),"") ->  | J24: =IFERROR(VLOOKUP(C24,List!$B$91:$E$108,4,FALSE),"") ->  | M24: =Catch!H24 -> 0 | N24: =IF(C24=0,"",G24*Catch!I24/Catch!G24) ->  | T24: =Catch!J24 -> 0 | U24: =Catch!K24 -> 0 | V24: =Catch!L24 -> 0 | Y24: 0 | Z24: 58631.47076 | AA24: =IFERROR(SUM($W$8:W24),"") -> 2345.25883 | AK24: =IFERROR(Catch!V24,"") ->  | AL24: =IFERROR(Catch!W24,"") ->  | AM24: =Catch!X24 ->  | AT24: 58631.47076 | AU24: 2345.25883 | AV24: =SUM($AG$8:AG23) -> 1.047737904 | AW24: =SUM($AE$8:AE23) -> 0.340579829 | AY24: 0 | AZ24: 8 | BA24: 938.1035322 | BB24: 37.52414129 | BC24: -75.04896767 | BD24: 0 | BE24: -75.04896767 | BF24: Trim&draft optimisation | BH24: 1.698301698 | BI24: 0.01779375063 | BJ24: -75.04896767 | BK24: 0 | BL24: -75.04896767 | BM24: Trim&draft optimisation | BP24: 1.698301698 | BQ24: 0.005784073019 | BR24: -61.64370022 | BS24: 0 | BT24: -61.64370022 | BU24: Propulsion efficiency devices | BX24: -75.04896767 | BY24: 0 | BZ24: 0 | CA24: 0 | CB24: 0 | CC24: 0 | CD24: 0 | CE24: 0 | CF24: 0 | CG24: 0 | CH24: 0 | CI24: 0 | CJ24: 0 | CK24: 0 | CL24: 0 | CM24: 0 | CN24: 0 | CP24: 0 | CQ24: 0 | CR24: -61.64370022 | CS24: 0 | CT24: 0 | CU24: 0 | CV24: 0 | CW24: 0 | CX24: 0 | CY24: 0 | CZ24: 0 | DA24: 0 | DB24: 0 | DC24: 0 | DD24: 0 | DE24: 0 | DF24: 0 | EB24: =EA24/3.114*Dashboard!$E$14 -> 
B25: =Catch!B25 -> 18 | C25: =IF(Startup!F30="Yes",Catch!C25,0) -> 0 | D25: =Catch!D25 -> 0 | E25: =Catch!E25 -> 0 | F25: =Catch!F25 -> 0 | G25: =IF(C25=0,"",Catch!G25/$W$2) ->  | I25: =IFERROR(VLOOKUP(C25,List!$B$91:$E$108,3,FALSE),"") ->  | J25: =IFERROR(VLOOKUP(C25,List!$B$91:$E$108,4,FALSE),"") ->  | M25: =Catch!H25 -> 0 | N25: =IF(C25=0,"",G25*Catch!I25/Catch!G25) ->  | T25: =Catch!J25 -> 0 | U25: =Catch!K25 -> 0 | V25: =Catch!L25 -> 0 | Y25: 0 | Z25: 58631.47076 | AA25: =IFERROR(SUM($W$8:W25),"") -> 2345.25883 | AE25: 0 | AF25: n/a | AK25: =IFERROR(Catch!V25,"") ->  | AL25: =IFERROR(Catch!W25,"") ->  | AM25: =Catch!X25 ->  | AT25: =Z24 -> 58631.47076 | AU25: =AA24 -> 2345.25883 | AV25: =SUM($AG$8:AG24) -> 1.047737904 | AW25: =SUM($AE$8:AE24) -> 0.340579829 | AX25: =AM25 ->  | AY25: 0 | AZ25: 8.5 | BA25: 996.735003 | BB25: 39.86940012 | BC25: -75.04896767 | BD25: 0 | BE25: -75.04896767 | BF25: Trim&draft optimisation | BH25: 1.798201798 | BI25: 0.01884044184 | BJ25: -75.04896767 | BK25: 0 | BL25: -75.04896767 | BM25: Trim&draft optimisation | BP25: 1.798201798 | BQ25: 0.006124312609 | BR25: -61.64370022 | BS25: 0 | BT25: -61.64370022 | BU25: Propulsion efficiency devices | BX25: -75.04896767 | BY25: 0 | BZ25: 0 | CA25: 0 | CB25: 0 | CC25: 0 | CD25: 0 | CE25: 0 | CF25: 0 | CG25: 0 | CH25: 0 | CI25: 0 | CJ25: 0 | CK25: 0 | CL25: 0 | CM25: 0 | CN25: 0 | CP25: 0 | CQ25: 0 | CR25: -61.64370022 | CS25: 0 | CT25: 0 | CU25: 0 | CV25: 0 | CW25: 0 | CX25: 0 | CY25: 0 | CZ25: 0 | DA25: 0 | DB25: 0 | DC25: 0 | DD25: 0 | DE25: 0 | DF25: 0 | EB25: =EA25/3.114*Dashboard!$E$14 -> 
B26: =Catch!B26 -> 19 | C26: =IF(Startup!F31="Yes",Catch!C26,0) -> 0 | D26: =Catch!D26 -> 0 | E26: =Catch!E26 -> 0 | F26: =Catch!F26 -> 0 | G26: =IF(C26=0,"",Catch!G26/$W$2) ->  | I26: =IFERROR(VLOOKUP(C26,List!$B$91:$E$108,3,FALSE),"") ->  | J26: =IFERROR(VLOOKUP(C26,List!$B$91:$E$108,4,FALSE),"") ->  | M26: =Catch!H26 -> 0 | N26: =IF(C26=0,"",G26*Catch!I26/Catch!G26) ->  | T26: =Catch!J26 -> 0 | U26: =Catch!K26 -> 0 | V26: =Catch!L26 -> 0 | Y26: 0 | Z26: 58631.47076 | AA26: =IFERROR(SUM($W$8:W26),"") -> 2345.25883 | AE26: 0 | AF26: n/a | AK26: =IFERROR(Catch!V26,"") ->  | AL26: =IFERROR(Catch!W26,"") ->  | AM26: =Catch!X26 ->  | AZ26: 9 | BA26: 1055.366474 | BB26: 42.21465895 | BC26: -75.04896767 | BD26: 0 | BE26: -75.04896767 | BF26: Trim&draft optimisation | BH26: 1.898101898 | BI26: 0.01988713305 | BJ26: -75.04896767 | BK26: 0 | BL26: -75.04896767 | BM26: Trim&draft optimisation | BP26: 1.898101898 | BQ26: 0.006464552198 | BR26: -61.64370022 | BS26: 0 | BT26: -61.64370022 | BU26: Propulsion efficiency devices | BX26: -75.04896767 | BY26: 0 | BZ26: 0 | CA26: 0 | CB26: 0 | CC26: 0 | CD26: 0 | CE26: 0 | CF26: 0 | CG26: 0 | CH26: 0 | CI26: 0 | CJ26: 0 | CK26: 0 | CL26: 0 | CM26: 0 | CN26: 0 | CP26: 0 | CQ26: 0 | CR26: -61.64370022 | CS26: 0 | CT26: 0 | CU26: 0 | CV26: 0 | CW26: 0 | CX26: 0 | CY26: 0 | CZ26: 0 | DA26: 0 | DB26: 0 | DC26: 0 | DD26: 0 | DE26: 0 | DF26: 0 | EB26: =EA26/3.114*Dashboard!$E$14 -> 
B27: =Catch!B27 -> 20 | C27: =IF(Startup!F32="Yes",Catch!C27,0) -> 0 | D27: =Catch!D27 -> 0 | E27: =Catch!E27 -> 0 | F27: =Catch!F27 -> 0 | G27: =IF(C27=0,"",Catch!G27/$W$2) ->  | I27: =IFERROR(VLOOKUP(C27,List!$B$91:$E$108,3,FALSE),"") ->  | J27: =IFERROR(VLOOKUP(C27,List!$B$91:$E$108,4,FALSE),"") ->  | M27: =Catch!H27 -> 0 | N27: =IF(C27=0,"",G27*Catch!I27/Catch!G27) ->  | T27: =Catch!J27 -> 0 | U27: =Catch!K27 -> 0 | V27: =Catch!L27 -> 0 | Y27: 0 | Z27: 58631.47076 | AA27: =IFERROR(SUM($W$8:W27),"") -> 2345.25883 | AE27: 0 | AF27: n/a | AK27: =IFERROR(Catch!V27,"") ->  | AL27: =IFERROR(Catch!W27,"") ->  | AM27: =Catch!X27 ->  | AZ27: 9.5 | BA27: 1113.997944 | BB27: 44.55991778 | BC27: -75.04896767 | BD27: 0 | BE27: -75.04896767 | BF27: Trim&draft optimisation | BH27: 1.998001998 | BI27: 0.02093382427 | BJ27: -75.04896767 | BK27: 0 | BL27: -75.04896767 | BM27: Trim&draft optimisation | BP27: 1.998001998 | BQ27: 0.006804791787 | BR27: -61.64370022 | BS27: 0 | BT27: -61.64370022 | BU27: Propulsion efficiency devices | BX27: -75.04896767 | BY27: 0 | BZ27: 0 | CA27: 0 | CB27: 0 | CC27: 0 | CD27: 0 | CE27: 0 | CF27: 0 | CG27: 0 | CH27: 0 | CI27: 0 | CJ27: 0 | CK27: 0 | CL27: 0 | CM27: 0 | CN27: 0 | CP27: 0 | CQ27: 0 | CR27: -61.64370022 | CS27: 0 | CT27: 0 | CU27: 0 | CV27: 0 | CW27: 0 | CX27: 0 | CY27: 0 | CZ27: 0 | DA27: 0 | DB27: 0 | DC27: 0 | DD27: 0 | DE27: 0 | DF27: 0 | EB27: =EA27/3.114*Dashboard!$E$14 -> 
B28: 1 | C28: 2 | D28: 3 | E28: 4 | F28: 5 | G28: 6 | H28: 7 | I28: 8 | J28: 9 | K28: 10 | L28: 11 | M28: 12 | N28: 13 | O28: 14 | P28: 15 | Q28: 16 | R28: 17 | S28: 18 | T28: 19 | U28: 20 | V28: 21 | W28: 22 | X28: 23 | Y28: 24 | Z28: 25 | AA28: 26 | AB28: 27 | AC28: 28 | AD28: 29 | AE28: 30 | AF28: 31 | AG28: 32 | AH28: 33 | AI28: 34 | AJ28: 35 | AK28: 36 | AL28: 37 | AM28: 38 | AN28: 39 | AO28: 40 | AP28: 41 | AQ28: 42 | AR28: 43 | AS28: 44 | AT28: 45 | AU28: 46 | AV28: 47 | AW28: 48 | AX28: 49 | AY28: 50 | AZ28: 10 | BA28: 1172.629415 | BB28: 46.90517661 | BC28: -75.04896767 | BD28: 0 | BE28: -75.04896767 | BF28: Trim&draft optimisation | BH28: 2.097902098 | BI28: 0.02198051548 | BJ28: -75.04896767 | BK28: 0 | BL28: -75.04896767 | BM28: Trim&draft optimisation | BP28: 2.097902098 | BQ28: 0.007145031377 | BR28: -61.64370022 | BS28: 0 | BT28: -61.64370022 | BU28: Propulsion efficiency devices | BX28: =SUMIFS($BJ28,$BM28,BX$4) -> -75.04896767 | BY28: 0 | BZ28: 0 | CA28: 0 | CB28: 0 | CC28: 0 | CD28: 0 | CE28: 0 | CF28: 0 | CG28: 0 | CH28: =SUMIFS($BJ28,$BM28,CH$4) -> 0 | CI28: 0 | CJ28: 0 | CK28: 0 | CL28: 0 | CM28: 0 | CN28: 0 | CP28: 0 | CQ28: 0 | CR28: -61.64370022 | CS28: 0 | CT28: 0 | CU28: 0 | CV28: 0 | CW28: 0 | CX28: 0 | CY28: 0 | CZ28: 0 | DA28: 0 | DB28: 0 | DC28: 0 | DD28: 0 | DE28: 0 | DF28: 0
AZ29: 10.5 | BA29: 1231.260886 | BB29: 49.25043544 | BC29: -75.04896767 | BD29: 0 | BE29: -75.04896767 | BF29: Trim&draft optimisation | BH29: 2.197802198 | BI29: 0.02302720669 | BJ29: -75.04896767 | BK29: 0 | BL29: -75.04896767 | BM29: Trim&draft optimisation | BP29: 2.197802198 | BQ29: 0.007485270966 | BR29: -61.64370022 | BS29: 0 | BT29: -61.64370022 | BU29: Propulsion efficiency devices | BX29: -75.04896767 | BY29: 0 | BZ29: 0 | CA29: 0 | CB29: 0 | CC29: 0 | CD29: 0 | CE29: 0 | CF29: 0 | CG29: 0 | CH29: 0 | CI29: 0 | CJ29: 0 | CK29: 0 | CL29: 0 | CM29: 0 | CN29: 0 | CP29: 0 | CQ29: 0 | CR29: -61.64370022 | CS29: 0 | CT29: 0 | CU29: 0 | CV29: 0 | CW29: 0 | CX29: 0 | CY29: 0 | CZ29: 0 | DA29: 0 | DB29: 0 | DC29: 0 | DD29: 0 | DE29: 0 | DF29: 0
AZ30: 11 | BA30: 1289.892357 | BB30: 51.59569427 | BC30: -75.04896767 | BD30: 0 | BE30: -75.04896767 | BF30: Trim&draft optimisation | BH30: 2.297702298 | BI30: 0.0240738979 | BJ30: -75.04896767 | BK30: 0 | BL30: -75.04896767 | BM30: Trim&draft optimisation | BP30: 2.297702298 | BQ30: 0.007825510555 | BR30: -61.64370022 | BS30: 0 | BT30: -61.64370022 | BU30: Propulsion efficiency devices | BX30: -75.04896767 | BY30: 0 | BZ30: 0 | CA30: 0 | CB30: 0 | CC30: 0 | CD30: 0 | CE30: 0 | CF30: 0 | CG30: 0 | CH30: 0 | CI30: 0 | CJ30: 0 | CK30: 0 | CL30: 0 | CM30: 0 | CN30: 0 | CP30: 0 | CQ30: 0 | CR30: -61.64370022 | CS30: 0 | CT30: 0 | CU30: 0 | CV30: 0 | CW30: 0 | CX30: 0 | CY30: 0 | CZ30: 0 | DA30: 0 | DB30: 0 | DC30: 0 | DD30: 0 | DE30: 0 | DF30: 0
Q31: Delta EEDI | R31: =MAX(K8:K24)-MIN(R8:R24) -> 0.340579829 | AZ31: 11.5 | BA31: 1348.523828 | BB31: 53.9409531 | BC31: -75.04896767 | BD31: 0 | BE31: -75.04896767 | BF31: Trim&draft optimisation | BH31: 2.397602398 | BI31: 0.02512058912 | BJ31: -75.04896767 | BK31: 0 | BL31: -75.04896767 | BM31: Trim&draft optimisation | BP31: 2.397602398 | BQ31: 0.008165750145 | BR31: -61.64370022 | BS31: 0 | BT31: -61.64370022 | BU31: Propulsion efficiency devices | BX31: -75.04896767 | BY31: 0 | BZ31: 0 | CA31: 0 | CB31: 0 | CC31: 0 | CD31: 0 | CE31: 0 | CF31: 0 | CG31: 0 | CH31: 0 | CI31: 0 | CJ31: 0 | CK31: 0 | CL31: 0 | CM31: 0 | CN31: 0 | CP31: 0 | CQ31: 0 | CR31: -61.64370022 | CS31: 0 | CT31: 0 | CU31: 0 | CV31: 0 | CW31: 0 | CX31: 0 | CY31: 0 | CZ31: 0 | DA31: 0 | DB31: 0 | DC31: 0 | DD31: 0 | DE31: 0 | DF31: 0
Q32: Delta EEOI | R32: =MAX(L8:L24)-MIN(S8:S24) -> 1.047737904 | AZ32: 12 | BA32: 1407.155298 | BB32: 56.28621193 | BC32: -75.04896767 | BD32: 0 | BE32: -75.04896767 | BF32: Trim&draft optimisation | BH32: 2.497502498 | BI32: 0.02616728033 | BJ32: -75.04896767 | BK32: 0 | BL32: -75.04896767 | BM32: Trim&draft optimisation | BP32: 2.497502498 | BQ32: 0.008505989734 | BR32: -61.64370022 | BS32: 0 | BT32: -61.64370022 | BU32: Propulsion efficiency devices | BX32: -75.04896767 | BY32: 0 | BZ32: 0 | CA32: 0 | CB32: 0 | CC32: 0 | CD32: 0 | CE32: 0 | CF32: 0 | CG32: 0 | CH32: 0 | CI32: 0 | CJ32: 0 | CK32: 0 | CL32: 0 | CM32: 0 | CN32: 0 | CP32: 0 | CQ32: 0 | CR32: -61.64370022 | CS32: 0 | CT32: 0 | CU32: 0 | CV32: 0 | CW32: 0 | CX32: 0 | CY32: 0 | CZ32: 0 | DA32: 0 | DB32: 0 | DC32: 0 | DD32: 0 | DE32: 0 | DF32: 0
AZ33: 12.5 | BA33: 1465.786769 | BB33: 58.63147076 | BC33: -75.04896767 | BD33: 0 | BE33: -75.04896767 | BF33: Trim&draft optimisation | BH33: 2.597402597 | BI33: 0.02721397154 | BJ33: -75.04896767 | BK33: 0 | BL33: -75.04896767 | BM33: Trim&draft optimisation | BP33: 2.597402597 | BQ33: 0.008846229323 | BR33: -61.64370022 | BS33: 0 | BT33: -61.64370022 | BU33: Propulsion efficiency devices | BX33: -75.04896767 | BY33: 0 | BZ33: 0 | CA33: 0 | CB33: 0 | CC33: 0 | CD33: 0 | CE33: 0 | CF33: 0 | CG33: 0 | CH33: 0 | CI33: 0 | CJ33: 0 | CK33: 0 | CL33: 0 | CM33: 0 | CN33: 0 | CP33: 0 | CQ33: 0 | CR33: -61.64370022 | CS33: 0 | CT33: 0 | CU33: 0 | CV33: 0 | CW33: 0 | CX33: 0 | CY33: 0 | CZ33: 0 | DA33: 0 | DB33: 0 | DC33: 0 | DD33: 0 | DE33: 0 | DF33: 0
AZ34: 13 | BA34: 1524.41824 | BB34: 60.97672959 | BC34: -75.04896767 | BD34: 0 | BE34: -75.04896767 | BF34: Trim&draft optimisation | BH34: 2.697302697 | BI34: 0.02826066276 | BJ34: -75.04896767 | BK34: 0 | BL34: -75.04896767 | BM34: Trim&draft optimisation | BP34: 2.697302697 | BQ34: 0.009186468913 | BR34: -61.64370022 | BS34: 0 | BT34: -61.64370022 | BU34: Propulsion efficiency devices | BX34: -75.04896767 | BY34: 0 | BZ34: 0 | CA34: 0 | CB34: 0 | CC34: 0 | CD34: 0 | CE34: 0 | CF34: 0 | CG34: 0 | CH34: 0 | CI34: 0 | CJ34: 0 | CK34: 0 | CL34: 0 | CM34: 0 | CN34: 0 | CP34: 0 | CQ34: 0 | CR34: -61.64370022 | CS34: 0 | CT34: 0 | CU34: 0 | CV34: 0 | CW34: 0 | CX34: 0 | CY34: 0 | CZ34: 0 | DA34: 0 | DB34: 0 | DC34: 0 | DD34: 0 | DE34: 0 | DF34: 0
AZ35: 13.5 | BA35: 1583.049711 | BB35: 63.32198842 | BC35: -75.04896767 | BD35: 0 | BE35: -75.04896767 | BF35: Trim&draft optimisation | BH35: 2.797202797 | BI35: 0.02930735397 | BJ35: -75.04896767 | BK35: 0 | BL35: -75.04896767 | BM35: Trim&draft optimisation | BP35: 2.797202797 | BQ35: 0.009526708502 | BR35: -61.64370022 | BS35: 0 | BT35: -61.64370022 | BU35: Propulsion efficiency devices | BX35: -75.04896767 | BY35: 0 | BZ35: 0 | CA35: 0 | CB35: 0 | CC35: 0 | CD35: 0 | CE35: 0 | CF35: 0 | CG35: 0 | CH35: 0 | CI35: 0 | CJ35: 0 | CK35: 0 | CL35: 0 | CM35: 0 | CN35: 0 | CP35: 0 | CQ35: 0 | CR35: -61.64370022 | CS35: 0 | CT35: 0 | CU35: 0 | CV35: 0 | CW35: 0 | CX35: 0 | CY35: 0 | CZ35: 0 | DA35: 0 | DB35: 0 | DC35: 0 | DD35: 0 | DE35: 0 | DF35: 0
AZ36: 14 | BA36: 1641.681181 | BB36: 65.66724725 | BC36: -75.04896767 | BD36: 0 | BE36: -75.04896767 | BF36: Trim&draft optimisation | BH36: 2.897102897 | BI36: 0.03035404518 | BJ36: -75.04896767 | BK36: 0 | BL36: -75.04896767 | BM36: Trim&draft optimisation | BP36: 2.897102897 | BQ36: 0.009866948091 | BR36: -61.64370022 | BS36: 0 | BT36: -61.64370022 | BU36: Propulsion efficiency devices | BX36: -75.04896767 | BY36: 0 | BZ36: 0 | CA36: 0 | CB36: 0 | CC36: 0 | CD36: 0 | CE36: 0 | CF36: 0 | CG36: 0 | CH36: 0 | CI36: 0 | CJ36: 0 | CK36: 0 | CL36: 0 | CM36: 0 | CN36: 0 | CP36: 0 | CQ36: 0 | CR36: -61.64370022 | CS36: 0 | CT36: 0 | CU36: 0 | CV36: 0 | CW36: 0 | CX36: 0 | CY36: 0 | CZ36: 0 | DA36: 0 | DB36: 0 | DC36: 0 | DD36: 0 | DE36: 0 | DF36: 0
AZ37: 14.5 | BA37: 1700.312652 | BB37: 68.01250608 | BC37: -75.04896767 | BD37: 0 | BE37: -75.04896767 | BF37: Trim&draft optimisation | BH37: 2.997002997 | BI37: 0.0314007364 | BJ37: -75.04896767 | BK37: 0 | BL37: -75.04896767 | BM37: Trim&draft optimisation | BP37: 2.997002997 | BQ37: 0.01020718768 | BR37: -61.64370022 | BS37: 0 | BT37: -61.64370022 | BU37: Propulsion efficiency devices | BX37: -75.04896767 | BY37: 0 | BZ37: 0 | CA37: 0 | CB37: 0 | CC37: 0 | CD37: 0 | CE37: 0 | CF37: 0 | CG37: 0 | CH37: 0 | CI37: 0 | CJ37: 0 | CK37: 0 | CL37: 0 | CM37: 0 | CN37: 0 | CP37: 0 | CQ37: 0 | CR37: -61.64370022 | CS37: 0 | CT37: 0 | CU37: 0 | CV37: 0 | CW37: 0 | CX37: 0 | CY37: 0 | CZ37: 0 | DA37: 0 | DB37: 0 | DC37: 0 | DD37: 0 | DE37: 0 | DF37: 0
AZ38: 15 | BA38: 1758.944123 | BB38: 70.35776491 | BC38: -75.04896767 | BD38: 0 | BE38: -75.04896767 | BF38: Trim&draft optimisation | BH38: 3.096903097 | BI38: 0.03244742761 | BJ38: -75.04896767 | BK38: 0 | BL38: -75.04896767 | BM38: Trim&draft optimisation | BP38: 3.096903097 | BQ38: 0.01054742727 | BR38: -61.64370022 | BS38: 0 | BT38: -61.64370022 | BU38: Propulsion efficiency devices | BX38: =SUMIFS($BJ38,$BM38,BX$4) -> -75.04896767 | BY38: 0 | BZ38: 0 | CA38: 0 | CB38: 0 | CC38: 0 | CD38: 0 | CE38: 0 | CF38: 0 | CG38: 0 | CH38: =SUMIFS($BJ38,$BM38,CH$4) -> 0 | CI38: 0 | CJ38: 0 | CK38: 0 | CL38: 0 | CM38: 0 | CN38: 0 | CP38: 0 | CQ38: 0 | CR38: -61.64370022 | CS38: 0 | CT38: 0 | CU38: 0 | CV38: 0 | CW38: 0 | CX38: 0 | CY38: 0 | CZ38: 0 | DA38: 0 | DB38: 0 | DC38: 0 | DD38: 0 | DE38: 0 | DF38: 0
AZ39: 15.5 | BA39: 1817.575594 | BB39: 72.70302374 | BC39: -75.04896767 | BD39: 0 | BE39: -75.04896767 | BF39: Trim&draft optimisation | BH39: 3.196803197 | BI39: 0.03349411882 | BJ39: -75.04896767 | BK39: 0 | BL39: -75.04896767 | BM39: Trim&draft optimisation | BP39: 3.196803197 | BQ39: 0.01088766686 | BR39: -61.64370022 | BS39: 0 | BT39: -61.64370022 | BU39: Propulsion efficiency devices | BX39: -75.04896767 | BY39: 0 | BZ39: 0 | CA39: 0 | CB39: 0 | CC39: 0 | CD39: 0 | CE39: 0 | CF39: 0 | CG39: 0 | CH39: 0 | CI39: 0 | CJ39: 0 | CK39: 0 | CL39: 0 | CM39: 0 | CN39: 0 | CP39: 0 | CQ39: 0 | CR39: -61.64370022 | CS39: 0 | CT39: 0 | CU39: 0 | CV39: 0 | CW39: 0 | CX39: 0 | CY39: 0 | CZ39: 0 | DA39: 0 | DB39: 0 | DC39: 0 | DD39: 0 | DE39: =SUMIFS($BR39,$BU39,DE$7) -> 0 | DF39: 0
AZ40: 16 | BA40: 1876.207064 | BB40: 75.04828258 | BC40: -75.04896767 | BD40: 0 | BE40: -75.04896767 | BF40: Trim&draft optimisation | BH40: 3.296703297 | BI40: 0.03454081004 | BJ40: -75.04896767 | BK40: 0 | BL40: -75.04896767 | BM40: Trim&draft optimisation | BP40: 3.296703297 | BQ40: 0.01122790645 | BR40: -61.64370022 | BS40: 0 | BT40: -61.64370022 | BU40: Propulsion efficiency devices | BX40: -75.04896767 | BY40: 0 | BZ40: 0 | CA40: 0 | CB40: 0 | CC40: 0 | CD40: 0 | CE40: 0 | CF40: 0 | CG40: 0 | CH40: 0 | CI40: 0 | CJ40: 0 | CK40: 0 | CL40: 0 | CM40: 0 | CN40: 0 | CP40: 0 | CQ40: 0 | CR40: -61.64370022 | CS40: 0 | CT40: 0 | CU40: 0 | CV40: 0 | CW40: 0 | CX40: 0 | CY40: 0 | CZ40: 0 | DA40: 0 | DB40: 0 | DC40: 0 | DD40: 0 | DE40: 0 | DF40: 0
AZ41: 16.5 | BA41: 1934.838535 | BB41: 77.39354141 | BC41: -75.04896767 | BD41: 0 | BE41: -75.04896767 | BF41: Trim&draft optimisation | BH41: 3.396603397 | BI41: 0.03558750125 | BJ41: -68.51868246 | BK41: -68.51868246 | BL41: 0 | BP41: 3.396603397 | BQ41: 0.01156814604 | BR41: -61.64370022 | BS41: 0 | BT41: -61.64370022 | BU41: Propulsion efficiency devices | BX41: 0 | BY41: 0 | BZ41: 0 | CA41: 0 | CB41: 0 | CC41: 0 | CD41: 0 | CE41: 0 | CF41: 0 | CG41: 0 | CH41: 0 | CI41: 0 | CJ41: 0 | CK41: 0 | CL41: 0 | CM41: 0 | CN41: 0 | CP41: 0 | CQ41: 0 | CR41: -61.64370022 | CS41: 0 | CT41: 0 | CU41: 0 | CV41: 0 | CW41: 0 | CX41: 0 | CY41: 0 | CZ41: 0 | DA41: 0 | DB41: 0 | DC41: 0 | DD41: 0 | DE41: 0 | DF41: 0
AZ42: 17 | BA42: 1993.470006 | BB42: 79.73880024 | BC42: -68.51868246 | BD42: -68.51868246 | BE42: 0 | BH42: 3.496503497 | BI42: 0.03663419246 | BJ42: -68.51868246 | BK42: -68.51868246 | BL42: 0 | BP42: 3.496503497 | BQ42: 0.01190838563 | BR42: -61.64370022 | BS42: 0 | BT42: -61.64370022 | BU42: Propulsion efficiency devices | BX42: 0 | BY42: 0 | BZ42: 0 | CA42: 0 | CB42: 0 | CC42: 0 | CD42: 0 | CE42: 0 | CF42: 0 | CG42: 0 | CH42: 0 | CI42: 0 | CJ42: 0 | CK42: 0 | CL42: 0 | CM42: 0 | CN42: 0 | CP42: 0 | CQ42: 0 | CR42: -61.64370022 | CS42: 0 | CT42: 0 | CU42: 0 | CV42: 0 | CW42: 0 | CX42: 0 | CY42: 0 | CZ42: 0 | DA42: 0 | DB42: 0 | DC42: 0 | DD42: 0 | DE42: 0 | DF42: 0
AZ43: 17.5 | BA43: 2052.101477 | BB43: 82.08405907 | BC43: -68.51868246 | BD43: 0 | BE43: -68.51868246 | BF43: Voyage execution | BH43: 3.596403596 | BI43: 0.03768088368 | BJ43: -68.51868246 | BK43: 0 | BL43: -68.51868246 | BM43: Voyage execution | BP43: 3.596403596 | BQ43: 0.01224862522 | BR43: -61.64370022 | BS43: 0 | BT43: -61.64370022 | BU43: Propulsion efficiency devices | BX43: 0 | BY43: -68.51868246 | BZ43: 0 | CA43: 0 | CB43: 0 | CC43: 0 | CD43: 0 | CE43: 0 | CF43: 0 | CG43: 0 | CH43: 0 | CI43: 0 | CJ43: 0 | CK43: 0 | CL43: 0 | CM43: 0 | CN43: 0 | CP43: 0 | CQ43: 0 | CR43: -61.64370022 | CS43: 0 | CT43: 0 | CU43: 0 | CV43: 0 | CW43: 0 | CX43: 0 | CY43: 0 | CZ43: 0 | DA43: 0 | DB43: 0 | DC43: 0 | DD43: 0 | DE43: 0 | DF43: 0
AZ44: 18 | BA44: 2110.732947 | BB44: 84.4293179 | BC44: -68.51868246 | BD44: 0 | BE44: -68.51868246 | BF44: Voyage execution | BH44: 3.696303696 | BI44: 0.03872757489 | BJ44: -68.51868246 | BK44: 0 | BL44: -68.51868246 | BM44: Voyage execution | BP44: 3.696303696 | BQ44: 0.01258886481 | BR44: -61.64370022 | BS44: 0 | BT44: -61.64370022 | BU44: Propulsion efficiency devices | BX44: 0 | BY44: -68.51868246 | BZ44: 0 | CA44: 0 | CB44: 0 | CC44: 0 | CD44: 0 | CE44: 0 | CF44: 0 | CG44: 0 | CH44: 0 | CI44: 0 | CJ44: 0 | CK44: 0 | CL44: 0 | CM44: 0 | CN44: 0 | CP44: 0 | CQ44: 0 | CR44: -61.64370022 | CS44: 0 | CT44: 0 | CU44: 0 | CV44: 0 | CW44: 0 | CX44: 0 | CY44: 0 | CZ44: 0 | DA44: 0 | DB44: 0 | DC44: 0 | DD44: 0 | DE44: 0 | DF44: 0
AZ45: 18.5 | BA45: 2169.364418 | BB45: 86.77457673 | BC45: -68.51868246 | BD45: 0 | BE45: -68.51868246 | BF45: Voyage execution | BH45: 3.796203796 | BI45: 0.0397742661 | BJ45: -68.51868246 | BK45: 0 | BL45: -68.51868246 | BM45: Voyage execution | BP45: 3.796203796 | BQ45: 0.0129291044 | BR45: -61.64370022 | BS45: 0 | BT45: -61.64370022 | BU45: Propulsion efficiency devices | BX45: 0 | BY45: -68.51868246 | BZ45: 0 | CA45: 0 | CB45: 0 | CC45: 0 | CD45: 0 | CE45: 0 | CF45: 0 | CG45: 0 | CH45: 0 | CI45: 0 | CJ45: 0 | CK45: 0 | CL45: 0 | CM45: 0 | CN45: 0 | CP45: 0 | CQ45: 0 | CR45: -61.64370022 | CS45: 0 | CT45: 0 | CU45: 0 | CV45: 0 | CW45: 0 | CX45: 0 | CY45: 0 | CZ45: 0 | DA45: 0 | DB45: 0 | DC45: 0 | DD45: 0 | DE45: 0 | DF45: 0
AZ46: 19 | BA46: 2227.995889 | BB46: 89.11983556 | BC46: -68.51868246 | BD46: 0 | BE46: -68.51868246 | BF46: Voyage execution | BH46: 3.896103896 | BI46: 0.04082095732 | BJ46: -68.51868246 | BK46: 0 | BL46: -68.51868246 | BM46: Voyage execution | BP46: 3.896103896 | BQ46: 0.01326934399 | BR46: -61.64370022 | BS46: 0 | BT46: -61.64370022 | BU46: Propulsion efficiency devices | BX46: 0 | BY46: -68.51868246 | BZ46: 0 | CA46: 0 | CB46: 0 | CC46: 0 | CD46: 0 | CE46: 0 | CF46: 0 | CG46: 0 | CH46: 0 | CI46: 0 | CJ46: 0 | CK46: 0 | CL46: 0 | CM46: 0 | CN46: 0 | CP46: 0 | CQ46: 0 | CR46: -61.64370022 | CS46: 0 | CT46: 0 | CU46: 0 | CV46: 0 | CW46: 0 | CX46: 0 | CY46: 0 | CZ46: 0 | DA46: 0 | DB46: 0 | DC46: 0 | DD46: 0 | DE46: 0 | DF46: 0
AZ47: 19.5 | BA47: 2286.62736 | BB47: 91.46509439 | BC47: -68.51868246 | BD47: 0 | BE47: -68.51868246 | BF47: Voyage execution | BH47: 3.996003996 | BI47: 0.04186764853 | BJ47: -68.51868246 | BK47: 0 | BL47: -68.51868246 | BM47: Voyage execution | BP47: 3.996003996 | BQ47: 0.01360958357 | BR47: -61.64370022 | BS47: 0 | BT47: -61.64370022 | BU47: Propulsion efficiency devices | BX47: 0 | BY47: -68.51868246 | BZ47: 0 | CA47: 0 | CB47: 0 | CC47: 0 | CD47: 0 | CE47: 0 | CF47: 0 | CG47: 0 | CH47: 0 | CI47: 0 | CJ47: 0 | CK47: 0 | CL47: 0 | CM47: 0 | CN47: 0 | CP47: 0 | CQ47: 0 | CR47: -61.64370022 | CS47: 0 | CT47: 0 | CU47: 0 | CV47: 0 | CW47: 0 | CX47: 0 | CY47: 0 | CZ47: 0 | DA47: 0 | DB47: 0 | DC47: 0 | DD47: 0 | DE47: 0 | DF47: 0
